Workbook

Sheet Navigation
D3: Northwest Power System Database
C5: Data and Documentation
C6: Existing Projects | E6: Abbreviation Key
C7: New Projects | E7: Abbreviation Key
C9: Charts
C10: Installed Capacity | D10: Energy Capability | E10: Historical Energy
C11: New Project Status | D11: Capacity Additions/Retirements | E11: Energy Additions/Retirements
D13: See the Power Supply webpage
C14: Questions? Contact Gillian Charles, gcharles@nwcouncil.org

Sheet Projects
A1: Home
A2: Northwest Power and Conservation Council | H2: ="Auto documentation feature is "&IF(AutoDocOn,"on","off") -> Auto documentation feature is on
A3: POWER PLANTS IN THE PACIFIC NORTHWEST & SYSTEM PLANNING ASSUMPTIONS | H3: TRUE | DT3: Monthly capacity is derated for SOR and seasonal production (wind, solar & small hydro only)
E4: =MAX(BT9:BT8143) -> 2018-01-06T11:14:22 | G4: ="Next Project ID #= "&[2]NextID!B7 -> Next Project ID #= 2256 | CQ4: Show installed capacity for all wind (Y/N, GenRes only) | CR4: Y | CS4: (Otherwise regional share at NPCC firm capacity value is shown) | DT4: Monthly capacity is derated for FOR, SOR and seasonal production (wind, solar & small hydro only)
A5: Notes (dropdown) >> | J5: 1 | W5: 1
A6: PROJECT DATA | BU6: NPCC PLANNING ASSUMPTIONS | BY6: See Worksheet GenRes Notes for GenRes exclusions and capacity and energy adjustments | CN6: GENRES FILE | DT6: SYSTEM SEASONAL CAPACITY AND ENERGY
A7: Name | B7: NWPCC Unit ID | C7: EIA (ORIS) Plant Code | D7: EIA Generator Unit ID | E7: FERC Project ID | F7: Technology | G7: Primary Fuel | H7: Alternate Fuel | I7: Resource Type | J7: Nameplate Capacity (MW) | K7: EIA Nameplate Capacity (MW) | L7: White Book Jan 1-hr Cap (MW) | M7: White Book Jan 120-hr Cap (MW) | N7: WECC Summer Capacity (MW) | O7: WECC Winter Capacity (MW) | P7: EIA Summer Capacity (MW) | Q7: EIA Winter Capacity (MW) | R7: Average Energy (MWa) | S7: Energy Storage MWh | T7: Firm Hydro Energy (MWa) | U7: Status | V7: Service Month | W7: Initial Service Year | X7: Retirement/Idled Year | Y7: Site | Z7: County | AA7: State | AB7: Power Act Region (Y/N) | AC7: Basin | AD7: NERC Reliability Region | AE7: Owner | AF7: Owner Type | AG7: Electrical Load | AH7: 5-yr average Fixed O&M 2010-2014 ($/kw-yr) | AI7: 5-yr average Variable O&M 2010-2014 ($/MWh) | AJ7: 5-yr average Heat Rate | AK7: Environmental Regulatory Compliance Incremental Capital Cost ($/kW) | AL7: Environmental Regulatory Compliance Incremental Fixed O&M ($/kW-yr) | AM7: Environmental Regulatory Compliance Incremental Variable O&M ($/MWh) | AN7: PPA/QF Expiration Date | AO7: RPM % Rate Based to Region | AP7: Uncontracted IPP (%) | AQ7: Contracted Outside Region (%) | AR7: Contracted to Mktr (%) | AS7: Contracted to Unknown (%) | AT7: Capacity to Region (MW) | AU7: Energy to Region (MWa) | AV7: Thermal Host (Cogeneration) | AW7: Thermal Load (Cogeneration) | AX7: Gas Pipeline Interconnection | AY7: Main Grid Interconnection | AZ7: Balancing Authority | BA7: 2002 Energy (MWa) | BB7: 2003 Energy (MWa) | BC7: 2004 Energy (MWa) | BD7: 2005 Energy (MWa) | BE7: 2006 Energy (MWa) | BF7: 2007 Energy (MWa) | BG7: 2008 Energy (MWa) | BH7: 2009 Energy (Mwa) | BI7: 2010 Energy (Mwa) | BJ7: 2011 Energy (Mwa) | BK7: 2012 Energy (Mwa) | BL7: 2013 Energy (Mwa) | BM7: 2014 Energy (Mwa) | BN7: 2015 Energy (Mwa) | BO7: 2016 Energy (Mwa) | BP7: Notes | BQ7: Latitude | BR7: Longitude | BS7: ProjectUrl | BT7: Update | BU7: Net Winter Capacity (MW) | BV7: Net Summer Capacity (MW) | BW7: Availability (%) | BX7: Capability (MWa) | BY7: Hydro Simulation Class | BZ7: Include in GenRes File | CA7: GenRes Note | CB7: GenRes Annotation | CC7: GENESYS Node | CD7: Technical Data Pointer | CE7: Average Heat Rate (Btu/kWh) | CF7: Regional Capacity (%) | CG7: Regional Capacity Derate Note | CH7: Firm Capacity Credit (%) | CI7: Uncommitted IPP Capacity (%) | CJ7: Regional Energy (%) | CK7: Regional Energy Derate Note | CL7: Must Run | CM7: SP2 | DT7: =CN7 -> 0 | DU7: 10 | DV7: 11 | DW7: 12 | DX7: 13 | DY7: 2 | DZ7: 3 | EA7: 4 | EB7: 5 | EC7: 6 | ED7: 7 | EE7: 8 | EF7: 9 | EG7: 10 | EH7: 11 | EI7: 12 | EJ7: 13 | EK7: 2 | EL7: 3 | EM7: 4 | EN7: 5 | EO7: 6 | EP7: 7 | EQ7: 8 | ER7: 9
A8: Namem | B8: NWPCCID | C8: EIAGC | D8: EIA_UI | E8: PID | F8: TECH | G8: PriFuel | H8: AltFuel | I8: RES | J8: NCap | K8: EIA_MW | L8: BPAJanMW | M8: White_Bk_120 | N8: WECC_SMW | O8: WECC_WMW | P8: EIA_SMW | Q8: EIA_WMW | R8: MWa | S8: MWh_Storage | T8: CMWa | U8: CSTAT | V8: SMO | W8: SYEAR | X8: RDATE | Y8: LOC | Z8: COUNTY | AA8: STATE | AB8: RCODE | AC8: Basin | AD8: NERC | AE8: ONAME | AF8: OTYPE | AG8: LOAD | AH8: AVG_FOM | AI8: AVG_VOM | AJ8: AVG_HR | AK8: ENV_INCCAP | AL8: ENV_INCFIX | AM8: ENV_INCVAR | AN8: PPA_EXP | AO8: RPM_RATE | AP8: Unc_IPP | AQ8: Cont_OOR | AR8: Cont_Mkt | AS8: Cont_Unk | AT8: Cap_Reg | AU8: Energy_Reg | AV8: HOST | AW8: THRM_LOAD | AX8: Gas_Intercon | AY8: Elec_Intercon | AZ8: BA | BA8: 2002MWa | BB8: 2003MWa | BC8: 2004MWa | BD8: 2005MWa | BE8: 2006MWa | BF8: 2007MWa | BG8: 2008MWa | BH8: 2009MWa | BI8: 2010MWa | BJ8: 2011MWa | BK8: 2012MWa | BL8: 2013MWa | BM8: 2014MWa | BN8: 2015MWa | BO8: 2016MWa | BP8: NOTES | BQ8: Latitude | BR8: Longitude | BS8: ProjectUrl | BT8: Update | BU8: DefCFW | BV8: DefCFS | BW8: DefAvail | BX8: DefMWa | BY8: HYSIM | BZ8: GenRes | CA8: GRExclNote | CB8: GRAnno | CC8: GNode | CD8: TDP | CE8: AveHR | CF8: RCapGR | CG8: RCapNote | CH8: PkValue | CI8: UncomIPP | CJ8: REng | CK8: REngNote | CL8: MustRun | CM8: SP1 | CN8: SourceName | CO8: PrimaryNode | CP8: SourceDType | CQ8: SourcePType | CR8: Capacity | CS8: OnLine Date | CT8: Retire Date | CU8: Avg Ht Rate | CV8: Fuel Type | CW8: FOR | CX8: Mean Repair Time | CY8: Stoch Outage | CZ8: Maint Sched Ptr | DA8: Cost Set | DB8: Finance Ptr | DC8: Dev Sched Ptr | DD8: Oper Life | DE8: GenVsTemp Ptr | DF8: Emissions Ptr | DG8: Must Run Level | DH8: OffPeakOnly | DI8: InProdCost | DJ8: Track Production | DK8: Track Avail | DL8: Option Lead | DM8: Constr Lead | DN8: Option Shelf Life | DO8: Annotation | DP8: XPos | DQ8: YPos | DR8: SourceKey | DT8: Project | DU8: Sep (MW) | DV8: Oct (MW) | DW8: Nov (MW) | DX8: Dec (MW) | DY8: Jan (MW) | DZ8: Feb (MW) | EA8: Mar (MW) | EB8: Apr (MW) | EC8: May (MW) | ED8: Jun (MW) | EE8: Jul (MW) | EF8: Aug (MW) | EG8: Sep (MW-mo) | EH8: Oct (MW-mo) | EI8: Nov (MW-mo) | EJ8: Dec (MW-mo) | EK8: Jan (MW-mo) | EL8: Feb (MW-mo) | EM8: Mar (MW-mo) | EN8: Apr (MW-mo) | EO8: May (MW-mo) | EP8: Jun (MW-mo) | EQ8: Jul (MW-mo) | ER8: Aug (MW-mo)
A9: 18th Street (Springfield ICs, Springfield Gen Farm) | B9: 1000 | F9: IC | G9: NG | I9: Natural gas | J9: 9.5 | L9: 0 | U9: Retired | W9: 2001 | X9: Unknown | Y9: Springfield | Z9: Lane | AA9: OR | AB9: Y | AC9: Columbia | AD9: WECC | AE9: Springfield Utility Board | AF9: Municipal | AG9: Retired | AO9: 0 | AT9: =AO9*J9 -> 0 | AU9: =IF(ISNUMBER(R9),R9,BX9)*AO9 -> 0 | AZ9: BPA | BP9: (5) 1.9 MW spark-ignition Jennbacher units. | BQ9: =VLOOKUP($B9,[2]!Table_intranet_power_vewProjectLatLongUrl[#Data],2,FALSE) -> 0 | BR9: =VLOOKUP($B9,[2]!Table_intranet_power_vewProjectLatLongUrl[#Data],3,FALSE) -> 0 | BS9: =VLOOKUP($B9,[2]!Table_intranet_power_vewProjectLatLongUrl[#Data],4,FALSE) -> 0 | BT9: 2012-07-13T09:18:42 | BU9: =IF(OR(I9="Wind",I9="Solar",I9="Hydro"),J9,IF(ISNUMBER(L9),L9,IF(ISNUMBER(O9), O9, IF(ISNUMBER(Q9),Q9,J9)))) -> 0 | BV9: =IF(OR(J9="Wind",J9="Solar",J9="Hydro"),J9,IF(ISNUMBER(N9),N9,IF(ISNUMBER(P9), P9, IF(ISNUMBER(L9),L9,J9)))) -> 0 | BW9: =IF(OR(ISBLANK(J9),ISBLANK(R9),J9=0),VLOOKUP(IF(G9="WAT","HY",IF(G9="LFG","LFG",F9)),Acapability,4,FALSE),R9/J9) -> 0.93 | BX9: =IF(ISNUMBER(R9),R9,AVERAGE(BU9,BV9)*BW9) -> 0 | BZ9: N | CA9: Retired | CN9: =IF($BZ9="Y",A9,"") ->  | CO9: =IF($BZ9="Y",CC9,"") ->  | CP9: =IF(BZ9="N","",VLOOKUP($CD9,ATechDat,2,FALSE)) ->  | CQ9: =IF(BZ9="N","",VLOOKUP($CD9,ATechDat,3,FALSE)) ->  | CR9: =IF($BZ9="N","",IF($I9<>"Wind",($CF9*$CH9*IF(ISBLANK($L9),IF(ISBLANK($O9),$J9,$O9),$L9)),$J9*IF(AND($I9="Wind",SWFullWind="Y"),1,$CF9*$CH9))) ->  | CS9: =IF(BZ9="N","",IF(ISBLANK(V9),"Dec",V9)&"-"&IF(ISBLANK(W9),1980,W9)) ->  | CT9: =IF(BZ9="N","",IF(U9="Retired",X9,"Jan-2051")) ->  | CU9: =IF(BZ9="N","",CE9) ->  | CV9: =IF(BZ9="N","",VLOOKUP($CD9,ATechDat,4,FALSE)) ->  | CW9: =IF(BZ9="N","",VLOOKUP($CD9,ATechDat,5,FALSE)) ->  | CX9: =IF(BZ9="N","",VLOOKUP($CD9,ATechDat,6,FALSE)) ->  | CY9: =IF(BZ9="N","",VLOOKUP($CD9,ATechDat,7,FALSE)) ->  | CZ9: =IF(BZ9="N","",VLOOKUP($CD9,ATechDat,8,FALSE)) ->  | DA9: =IF(BZ9="N","",VLOOKUP($CD9,ATechDat,9,FALSE)) ->  | DB9: =IF(BZ9="N","",VLOOKUP($CD9,ATechDat,10,FALSE)) ->  | DC9: =IF(BZ9="N","",VLOOKUP($CD9,ATechDat,11,FALSE)) ->  | DD9: =IF(BZ9="N","",VLOOKUP($CD9,ATechDat,12,FALSE)) ->  | DE9: =IF(BZ9="N","",VLOOKUP($CD9,ATechDat,13,FALSE)) ->  | DF9: =IF(BZ9="N","",VLOOKUP($CD9,ATechDat,14,FALSE)) ->  | DG9: =IF(BZ9="N","",VLOOKUP($CD9,ATechDat,15,FALSE)) ->  | DH9: =IF(BZ9="N","",VLOOKUP($CD9,ATechDat,16,FALSE)) ->  | DI9: =IF(BZ9="N","",VLOOKUP($CD9,ATechDat,17,FALSE)) ->  | DJ9: =IF(BZ9="N","",VLOOKUP($CD9,ATechDat,18,FALSE)) ->  | DK9: =IF(BZ9="N","",VLOOKUP($CD9,ATechDat,19,FALSE)) ->  | DL9: =IF(BZ9="N","",VLOOKUP($CD9,ATechDat,20,FALSE)) ->  | DM9: =IF(BZ9="N","",VLOOKUP($CD9,ATechDat,21,FALSE)) ->  | DN9: =IF(BZ9="N","",VLOOKUP($CD9,ATechDat,22,FALSE)) ->  | DO9: =IF(ISBLANK(CB9),"",CB9) ->  | DR9: =IF(BZ9="N","",CN9) ->  | DT9: =CN9 ->  | DU9: =IF($BZ9="N","",IF(OR($I9<>"Wind",$I9<>"Solar",$I9<>"Hydro"),($CF9*$CH9*IF(ISBLANK($L9),IF(ISBLANK($O9),$J9,$O9),$L9))*VLOOKUP($CZ9,ASeasDist,DU$7,FALSE)*VLOOKUP($DE9,ASeasDist,DU$7),$J9*$CF9*$CH9)) ->  | EG9: =IF($BZ9="N","",IF(OR($I9<>"Wind",$I9<>"Solar",$I9<>"Hydro"),$CJ9*IF(ISBLANK($L9),IF(ISBLANK($O9),$J9,$O9),$L9),$J9)*(1-$CW9)*VLOOKUP($CZ9,ASeasDist,EG$7,FALSE)*VLOOKUP($DE9,ASeasDist,EG$7)) -> 
A10: 45-Mile Hydroelectric Project | B10: 2095 | C10: 58455 | D10: 0001,0002,0003 | E10: P-13817 | F10: HY | G10: WAT | I10: Hydro | J10: 3 | K10: 3 | P10: 3 | Q10: 3 | U10: Operating | V10: May | W10: 2015 | Y10: Haystack Reservoir, North Unit Irrigation District | Z10: Jefferson | AA10: OR | AB10: Y | AC10: Columbia | AD10: WECC | AE10: Apple, Inc. | AF10: Independent | AG10: Self-gen for Prineville data center | AO10: 1 | AT10: 3 | AU10: 1.281 | AZ10: PACW | BN10: 0.63 | BO10: 0.836986 | BP10: (3) 1 MW in-pipe generating turbines. | BQ10: =VLOOKUP($B10,[2]!Table_intranet_power_vewProjectLatLongUrl[#Data],2,FALSE) -> 44.528056 | BR10: =VLOOKUP($B10,[2]!Table_intranet_power_vewProjectLatLongUrl[#Data],3,FALSE) -> -121.152778 | BT10: 2017-10-16T14:44:31 | BU10: 3 | BV10: 3 | BW10: =IF(OR(ISBLANK(J10),ISBLANK(R10),J10=0),VLOOKUP(IF(G10="WAT","HY",IF(G10="LFG","LFG",F10)),Acapability,4,FALSE),R10/J10) -> 0.427 | BX10: 1.281 | BZ10: N | CA10: Self-gen (Apple, Inc.)
A11: Afton Generating Co. 1 | B11: 1002 | F11: STCG | G11: WW | I11: Biomass | J11: 7.5 | U11: Retired | W11: 1983 | X11: 2005 | Y11: Afton | Z11: Lincoln | AA11: WY | AB11: Y | AC11: Unknown | AD11: WECC | AE11: Afton Energy, Inc. | AF11: Independent | AG11: Retired | AO11: 0 | AT11: 0 | AU11: 0 | BD11: n/a | BE11: n/a | BP11: Dismantled 2005. | BQ11: =VLOOKUP($B11,[2]!Table_intranet_power_vewProjectLatLongUrl[#Data],2,FALSE) -> 0 | BR11: =VLOOKUP($B11,[2]!Table_intranet_power_vewProjectLatLongUrl[#Data],3,FALSE) -> 0 | BS11: =VLOOKUP($B11,[2]!Table_intranet_power_vewProjectLatLongUrl[#Data],4,FALSE) -> 0 | BT11: 2005-10-25 | BU11: 7.5 | BV11: 7.5 | BW11: 0.8 | BX11: 6 | BZ11: N | CA11: Retired | DU11: =IF($BZ11="N","",IF(OR($I11<>"Wind",$I11<>"Solar",$I11<>"Hydro"),($CF11*$CH11*IF(ISBLANK($L11),IF(ISBLANK($O11),$J11,$O11),$L11))*VLOOKUP($CZ11,ASeasDist,DU$7,FALSE)*VLOOKUP($DE11,ASeasDist,DU$7),$J11*$CF11*$CH11)) ->  | EG11: =IF($BZ11="N","",IF(OR($I11<>"Wind",$I11<>"Solar",$I11<>"Hydro"),$CJ11*IF(ISBLANK($L11),IF(ISBLANK($O11),$J11,$O11),$L11),$J11)*(1-$CW11)*VLOOKUP($CZ11,ASeasDist,EG$7,FALSE)*VLOOKUP($DE11,ASeasDist,EG$7)) -> 
A12: Albeni Falls 1- 3 | B12: 1003 | C12: 851 | D12: 1,2,3 | E12: FCRPS | F12: Storage | G12: WAT | I12: Hydro | J12: 42 | K12: 42 | M12: 22.5 | N12: 42.6 | O12: 42.6 | P12: 42 | Q12: 42 | R12: 31 | T12: 30 | U12: Operating | V12: May | W12: 1955 | Y12: Pend Oreille R. | Z12: Bonner | AA12: ID | AB12: Y | AC12: Columbia | AD12: WECC | AE12: USCE | AF12: Federal | AG12: BPA | AO12: 1 | AT12: 42 | AU12: 31 | AZ12: BPA | BA12: 22.6 | BB12: 24 | BC12: 29.8 | BD12: 13.2890411 | BE12: 14.42808219 | BF12: 24.8 | BG12: 11.62 | BH12: 23.55 | BI12: 23.3 | BJ12: 20.06 | BK12: 22 | BL12: 26.31 | BM12: 18.33 | BN12: 20.64 | BO12: 23 | BP12: Critical energy from PNUCC 2005 NRF | BQ12: =VLOOKUP($B12,[2]!Table_intranet_power_vewProjectLatLongUrl[#Data],2,FALSE) -> 48.18 | BR12: =VLOOKUP($B12,[2]!Table_intranet_power_vewProjectLatLongUrl[#Data],3,FALSE) -> -116.997 | BS12: =VLOOKUP($B12,[2]!Table_intranet_power_vewProjectLatLongUrl[#Data],4,FALSE) -> http://en.wikipedia.org/wiki/Albeni_Falls_Dam | BT12: 2017-10-16T14:45:06 | BU12: 42 | BV12: 42.6 | BW12: 0.7380952381 | BX12: 31 | BY12: Regulated | BZ12: N | CA12: Reg hydro
A13: Alden Bailey (Wauna Peaking/Loki) | B13: 1004 | C13: 56223 | D13: LOKI | F13: GT | G13: NG | I13: Natural gas | J13: 10.9 | K13: 10.9 | L13: 11 | N13: 8.9 | O13: 11 | P13: 9.8 | Q13: 11 | U13: Operating | V13: Dec | W13: 2001 | Y13: Wauna | Z13: Clatskanie | AA13: OR | AB13: Y | AC13: Columbia | AD13: WECC | AE13: Clatskanie PUD | AF13: PUD | AG13: Clatskanie | AO13: 1 | AT13: 10.9 | AU13: 9.0545 | AX13: Williams Northwest | AZ13: BPA | BG13: 0 | BH13: 0.1 | BI13: 0.1 | BJ13: 0.06 | BK13: 0 | BL13: 0 | BM13: 0.02 | BN13: 0.04 | BO13: 0 | BP13: (1) GE10 GT unit. | BQ13: =VLOOKUP($B13,[2]!Table_intranet_power_vewProjectLatLongUrl[#Data],2,FALSE) -> 46.155595 | BR13: =VLOOKUP($B13,[2]!Table_intranet_power_vewProjectLatLongUrl[#Data],3,FALSE) -> -123.407887 | BS13: =VLOOKUP($B13,[2]!Table_intranet_power_vewProjectLatLongUrl[#Data],4,FALSE) -> 0 | BT13: 2017-10-16T14:45:40 | BU13: 11 | BV13: 8.9 | BW13: 0.91 | BX13: 9.0545 | BZ13: Y | CC13: PNW West | CD13: NGGT_PNWW | CE13: 12600 | CF13: 1 | CH13: 1 | CJ13: 1 | CN13: Alden Bailey (Wauna Peaking/Loki) | CO13: PNW West | CP13: Thr | CQ13: GT | CR13: 11 | CS13: Dec-2001 | CT13: Jan-2051 | CU13: 12600 | CV13: PNW W. gas | CW13: 0.051 | CX13: 88 | CY13: FALSE | CZ13: MR 14d Winter Pk_Hydro | DA13: SCCT - PNW W. | DB13: Default | DC13: Default | DD13: 30 | DE13: CMS GT PNWW | DF13: 0 | DG13: 0 | DH13: FALSE | DI13: TRUE | DJ13: FALSE | DK13: FALSE | DL13: 0 | DM13: 0 | DN13: 0 | DR13: Alden Bailey (Wauna Peaking/Loki) | DT13: Alden Bailey (Wauna Peaking/Loki) | DU13: 10.35242671 | DV13: 10.60703563 | DW13: 10.84452518 | DX13: 10.98678753 | DY13: 11 | DZ13: 10.90166758 | EA13: 9.729550185 | EB13: 8.568933504 | EC13: 8.424503822 | ED13: 8.298402781 | EE13: 10.21836379 | EF13: 10.20121397 | EG13: 9.824452944 | EH13: 10.06607681 | EI13: 10.29145439 | EJ13: 10.42646137 | EK13: 10.439 | EL13: 10.34568253 | EM13: 9.233343126 | EN13: 8.131917895 | EO13: 7.994854127 | EP13: 7.875184239 | EQ13: 9.697227238 | ER13: 9.680952055
A14: Alder 1 & 2 | B14: 1005 | C14: 3913 | D14: 11,12 | E14: 1862B | F14: Storage w/Div | G14: WAT | I14: Hydro | J14: 50 | K14: 50 | M14: 30.5 | N14: 50 | O14: 42 | P14: 50.4 | Q14: 42 | R14: 27 | T14: 21 | U14: Operating | V14: Dec | W14: 1945 | Y14: Nisqually R. | Z14: Pierce | AA14: WA | AB14: Y | AC14: Puget Sound & Coastal | AD14: WECC | AE14: City of Tacoma | AF14: Municipal | AG14: City of Tacoma | AO14: 1 | AT14: 50 | AU14: 27 | AZ14: Tacoma | BA14: 24.3 | BB14: 19.8 | BC14: 9.5 | BD14: 10.5510274 | BE14: 26.00239726 | BF14: 23 | BG14: 9.38 | BH14: 2.86 | BI14: 25.9 | BJ14: 29.45 | BK14: 31.3 | BL14: 25.35 | BM14: 28.26 | BN14: 21.83 | BO14: 28.7 | BP14: License granted March 1997; expires February 2037. 01/016 Critical energy from PNUCC 2005 NRF. Certified Low-impact. | BQ14: =VLOOKUP($B14,[2]!Table_intranet_power_vewProjectLatLongUrl[#Data],2,FALSE) -> 46.801 | BR14: =VLOOKUP($B14,[2]!Table_intranet_power_vewProjectLatLongUrl[#Data],3,FALSE) -> -122.308 | BS14: =VLOOKUP($B14,[2]!Table_intranet_power_vewProjectLatLongUrl[#Data],4,FALSE) -> http://www.ci.tacoma.wa.us/power/parksandpower/hydro_power/nisqually/alder_dam.htm | BT14: 2017-10-16T14:54:31 | BU14: 50 | BV14: 50 | BW14: 0.54 | BX14: 27 | BY14: Regulated | BZ14: N | CA14: Reg hydro
A15: Amalgamated Sugar (TASCO) (Nampa) 1 - 3 | B15: 1006 | C15: 54690 | D15: 2250,500,6500 | F15: STCG | G15: COL | H15: NG | I15: Coal | J15: 8.7 | K15: 8.7 | L15: 0.2 | N15: 0 | O15: 0 | P15: 8.7 | Q15: 8.7 | U15: Operating | V15: Oct | W15: 1948 | Y15: Nampa | Z15: Canyon | AA15: ID | AB15: Y | AC15: Columbia | AD15: WECC | AE15: The Amalgamated Sugar Co. | AF15: Independent | AG15: Idaho Power Co. (QF) | AH15: 25.69 | AI15: 6.35 | AO15: 1 | AT15: 8.7 | AU15: 0.08 | AV15: The Amalgamated Sugar Company | AW15: Food processing | AZ15: IPC | BG15: 5.14 | BH15: 4.83 | BI15: 4.7 | BJ15: 4.33 | BK15: 4.7 | BL15: 5.93 | BM15: 4.56 | BN15: 5.675 | BO15: 6.1 | BP15: (3) STG @ 2.3, 0.5 & 6.5 MW. Proposed NG-fired repowering under study (Nov 2009). | BQ15: =VLOOKUP($B15,[2]!Table_intranet_power_vewProjectLatLongUrl[#Data],2,FALSE) -> 43.605063 | BR15: =VLOOKUP($B15,[2]!Table_intranet_power_vewProjectLatLongUrl[#Data],3,FALSE) -> -116.573758 | BS15: =VLOOKUP($B15,[2]!Table_intranet_power_vewProjectLatLongUrl[#Data],4,FALSE) -> 0 | BT15: 2017-10-16T14:55:22 | BU15: 0.2 | BV15: 0 | BW15: 0.8 | BX15: 0.08 | BZ15: Y | CC15: PNW East | CD15: CLSTCG_SID | CE15: 6000 | CF15: 1 | CH15: 1 | CJ15: 1 | CL15: Y | CN15: Amalgamated Sugar (TASCO) (Nampa) 1 - 3 | CO15: PNW East | CP15: Thr | CQ15: Coal | CR15: 0.2 | CS15: Oct-1948 | CT15: Jan-2051 | CU15: 6000 | CV15: ID coal | CW15: 0.07 | CX15: 56 | CY15: TRUE | CZ15: MR 28d Flat | DA15: Col1 | DB15: Default | DC15: Default | DD15: 30 | DE15: Flat | DF15: 0 | DG15: 1 | DH15: FALSE | DI15: TRUE | DJ15: FALSE | DK15: FALSE | DL15: 0 | DM15: 0 | DN15: 0 | DR15: Amalgamated Sugar (TASCO) (Nampa) 1 - 3 | DT15: Amalgamated Sugar (TASCO) (Nampa) 1 - 3 | DU15: 0.1808219178 | DV15: 0.1808219178 | DW15: 0.1808219178 | DX15: 0.1808219178 | DY15: 0.1808219178 | DZ15: 0.1808219178 | EA15: 0.1808219178 | EB15: 0.1808219178 | EC15: 0.1808219178 | ED15: 0.1808219178 | EE15: 0.1808219178 | EF15: 0.1808219178 | EG15: 0.1681643836 | EH15: 0.1681643836 | EI15: 0.1681643836 | EJ15: 0.1681643836 | EK15: 0.1681643836 | EL15: 0.1681643836 | EM15: 0.1681643836 | EN15: 0.1681643836 | EO15: 0.1681643836 | EP15: 0.1681643836 | EQ15: 0.1681643836 | ER15: 0.1681643836
A16: Amalgamated Sugar (TASCO) (Nyassa) 1 - 3 | B16: 1007 | C16: 54612 | D16: 1,2,3 | F16: STCG | G16: COL | I16: Coal | J16: 14 | P16: 9.8 | Q16: 9.8 | U16: Retired | V16: Sep | W16: 1942 | X16: 2005 | Y16: Nyassa | Z16: Malheur | AA16: OR | AB16: Y | AC16: Columbia | AD16: WECC | AE16: The Amalgamated Sugar Co. | AF16: Independent | AG16: Retired | AO16: 0 | AT16: 0 | AU16: 0 | AV16: The Amalgamated Sugar Company | AW16: Food processing | BP16: Units 1, 2 and 3 are 12, 1.5 MW and 5.5 MW respectively. | BQ16: =VLOOKUP($B16,[2]!Table_intranet_power_vewProjectLatLongUrl[#Data],2,FALSE) -> 0 | BR16: =VLOOKUP($B16,[2]!Table_intranet_power_vewProjectLatLongUrl[#Data],3,FALSE) -> 0 | BS16: =VLOOKUP($B16,[2]!Table_intranet_power_vewProjectLatLongUrl[#Data],4,FALSE) -> 0 | BT16: 2008-10-06 | BU16: 9.8 | BV16: 9.8 | BW16: 0.8 | BX16: 7.84 | BZ16: N | CA16: Retired
A17: Amalgamated Sugar (TASCO) (Paul) | B17: 1008 | F17: STCG | G17: COL | H17: NG | I17: Coal | J17: 5.06 | U17: Idle | W17: 1952 | Y17: Paul | Z17: Minidoka | AA17: ID | AB17: Y | AC17: Columbia | AD17: WECC | AE17: The Amalgamated Sugar Co. | AF17: Independent | AG17: Idle | AO17: 0 | AT17: 0 | AU17: 0 | AV17: The Amalgamated Sugar Company | AW17: Food processing | BE17: 0 | BQ17: =VLOOKUP($B17,[2]!Table_intranet_power_vewProjectLatLongUrl[#Data],2,FALSE) -> 0 | BR17: =VLOOKUP($B17,[2]!Table_intranet_power_vewProjectLatLongUrl[#Data],3,FALSE) -> 0 | BS17: =VLOOKUP($B17,[2]!Table_intranet_power_vewProjectLatLongUrl[#Data],4,FALSE) -> 0 | BT17: 2008-06-10 | BU17: 5.06 | BV17: 5.06 | BW17: 0.8 | BX17: 4.048 | BZ17: N | CA17: Idle
A18: Amalgamated Sugar (TASCO) (Twin Falls) 1-3 | B18: 1009 | C18: 10504 | D18: 1500,2500,4000 | F18: STCG | G18: COL | H18: NG | I18: Coal | J18: 10.2 | K18: 10.2 | L18: 0.1 | N18: 0 | O18: 0 | P18: 8.5 | Q18: 8.5 | U18: Operating | V18: Dec | W18: 1948 | Y18: Twin Falls | Z18: Twin Falls | AA18: ID | AB18: Y | AC18: Columbia | AD18: WECC | AE18: The Amalgamated Sugar Co. | AF18: Independent | AG18: Idaho Power Co. (QF) | AH18: 25.69 | AI18: 6.35 | AO18: 1 | AT18: 10.2 | AU18: 0.04 | AV18: The Amalgamated Sugar Company | AW18: Food processing | AZ18: IPC | BG18: 5.35 | BH18: 4.81 | BI18: 5.7 | BJ18: 5.55 | BK18: 5.8 | BL18: 5.62 | BM18: 5.25 | BN18: 5.25 | BO18: 5.9 | BP18: (3) STG @ 1.5, 2.5 & 4 MW. 4 MW unit reported to operate. | BQ18: =VLOOKUP($B18,[2]!Table_intranet_power_vewProjectLatLongUrl[#Data],2,FALSE) -> 42.53061 | BR18: =VLOOKUP($B18,[2]!Table_intranet_power_vewProjectLatLongUrl[#Data],3,FALSE) -> -114.429584 | BS18: =VLOOKUP($B18,[2]!Table_intranet_power_vewProjectLatLongUrl[#Data],4,FALSE) -> 0 | BT18: 2017-10-16T14:57:36 | BU18: 0.1 | BV18: 0 | BW18: 0.8 | BX18: 0.04 | BZ18: Y | CC18: PNW East | CD18: CLSTCG_SID | CE18: 6000 | CF18: 1 | CH18: 1 | CJ18: 1 | CL18: Y | CN18: Amalgamated Sugar (TASCO) (Twin Falls) 1-3 | CO18: PNW East | CP18: Thr | CQ18: Coal | CR18: 0.1 | CS18: Dec-1948 | CT18: Jan-2051 | CU18: 6000 | CV18: ID coal | CW18: 0.07 | CX18: 56 | CY18: TRUE | CZ18: MR 28d Flat | DA18: Col1 | DB18: Default | DC18: Default | DD18: 30 | DE18: Flat | DF18: 0 | DG18: 1 | DH18: FALSE | DI18: TRUE | DJ18: FALSE | DK18: FALSE | DL18: 0 | DM18: 0 | DN18: 0 | DR18: Amalgamated Sugar (TASCO) (Twin Falls) 1-3 | DT18: Amalgamated Sugar (TASCO) (Twin Falls) 1-3 | DU18: 0.0904109589 | DV18: 0.0904109589 | DW18: 0.0904109589 | DX18: 0.0904109589 | DY18: 0.0904109589 | DZ18: 0.0904109589 | EA18: 0.0904109589 | EB18: 0.0904109589 | EC18: 0.0904109589 | ED18: 0.0904109589 | EE18: 0.0904109589 | EF18: 0.0904109589 | EG18: 0.08408219178 | EH18: 0.08408219178 | EI18: 0.08408219178 | EJ18: 0.08408219178 | EK18: 0.08408219178 | EL18: 0.08408219178 | EM18: 0.08408219178 | EN18: 0.08408219178 | EO18: 0.08408219178 | EP18: 0.08408219178 | EQ18: 0.08408219178 | ER18: 0.08408219178
A19: American Falls 1 - 3 | B19: 1010 | C19: 809 | D19: 1,2,3 | E19: 2736 | F19: Storage w/Div | G19: WAT | I19: Hydro | J19: 112.42 | K19: 92.4 | M19: 36.3 | N19: 82 | O19: 0 | P19: 110.4 | Q19: 60.9 | U19: Operating | V19: Mar | W19: 1978 | Y19: Snake R. | Z19: Power | AA19: ID | AB19: Y | AC19: Columbia | AD19: WECC | AE19: Idaho Power Co. | AF19: IOU | AG19: Idaho Power Co. | AO19: 1 | AT19: 112.42 | AU19: 41.50867 | AZ19: IPC | BA19: 24 | BB19: 23.6 | BC19: 22.8 | BD19: 25.77283105 | BE19: 39.97442922 | BF19: 30 | BG19: 30.23 | BH19: 43.93 | BI19: 36.4 | BJ19: 66.9 | BK19: 40.2 | BL19: 27.83 | BM19: 30.16 | BN19: 33.59 | BO19: 27.8 | BP19: License granted March 1975; expires February 2025. | BQ19: =VLOOKUP($B19,[2]!Table_intranet_power_vewProjectLatLongUrl[#Data],2,FALSE) -> 42.779 | BR19: =VLOOKUP($B19,[2]!Table_intranet_power_vewProjectLatLongUrl[#Data],3,FALSE) -> -112.875 | BS19: =VLOOKUP($B19,[2]!Table_intranet_power_vewProjectLatLongUrl[#Data],4,FALSE) -> http://www.idwr.state.id.us/Water/stream_dam/dams/AmericanFalls.htm | BT19: 2017-10-16T14:58:12 | BU19: 112.42 | BV19: 82 | BW19: 0.427 | BX19: 41.50867 | BY19: Independent | BZ19: N | CA19: Accounted for in HydInd file
A20: American Falls Solar | B20: 2101 | C20: 60011 | D20: IPAF | F20: PV | G20: SOL | I20: Solar | J20: 20 | K20: 20 | M20: 20 | P20: 20 | Q20: 20 | R20: 5.08 | U20: Operating | V20: Jan | W20: 2017 | Y20: American Falls | Z20: Power | AA20: ID | AB20: Y | AC20: Columbia | AD20: WECC | AE20: First Wind | AF20: Independent | AG20: Idaho Power Co. (20 yr ESA) | AN20: 2036 | AO20: 1 | AT20: 20 | AU20: 5.08 | AZ20: IPC | BP20: Project expected to use (10) 2.0 MW ac SMA inverters and (85,880) JA 305w DC panels and utilize a single axis tracking system (from ESA IPUC filing). RECs to be split 50/50 between IPC and developer. Expected CF 25.4% AC. | BQ20: =VLOOKUP($B20,[2]!Table_intranet_power_vewProjectLatLongUrl[#Data],2,FALSE) -> 42.826959 | BR20: =VLOOKUP($B20,[2]!Table_intranet_power_vewProjectLatLongUrl[#Data],3,FALSE) -> -112.743943 | BT20: 2017-11-07T10:56:02 | BU20: 20 | BV20: 20 | BW20: =IF(OR(ISBLANK(J20),ISBLANK(R20),J20=0),VLOOKUP(IF(G20="WAT","HY",IF(G20="LFG","LFG",F20)),Acapability,4,FALSE),R20/J20) -> 0.254 | BX20: 5.08 | BZ20: Y | CB20: 100% PNW PPA | CC20: PNW East | CD20: PV | CF20: 1 | CH20: 0.75 | CJ20: 1 | CL20: Y | CN20: American Falls Solar | CO20: PNW East | CP20: =IF(BZ20="N","",VLOOKUP($CD20,ATechDat,2,FALSE)) -> Thr | CQ20: =IF(BZ20="N","",VLOOKUP($CD20,ATechDat,3,FALSE)) -> PV | CR20: 15 | CS20: Jan-2017 | CT20: Jan-2051 | CU20: 0 | CV20: =IF(BZ20="N","",VLOOKUP($CD20,ATechDat,4,FALSE)) -> Solar | CW20: =IF(BZ20="N","",VLOOKUP($CD20,ATechDat,5,FALSE)) -> 0 | CX20: =IF(BZ20="N","",VLOOKUP($CD20,ATechDat,6,FALSE)) -> 0 | CY20: =IF(BZ20="N","",VLOOKUP($CD20,ATechDat,7,FALSE)) -> FALSE | CZ20: =IF(BZ20="N","",VLOOKUP($CD20,ATechDat,8,FALSE)) -> Cf PV | DA20: =IF(BZ20="N","",VLOOKUP($CD20,ATechDat,9,FALSE)) -> SolarPV | DB20: =IF(BZ20="N","",VLOOKUP($CD20,ATechDat,10,FALSE)) -> Default | DC20: =IF(BZ20="N","",VLOOKUP($CD20,ATechDat,11,FALSE)) -> Default | DD20: =IF(BZ20="N","",VLOOKUP($CD20,ATechDat,12,FALSE)) -> 30 | DE20: =IF(BZ20="N","",VLOOKUP($CD20,ATechDat,13,FALSE)) -> Flat | DF20: =IF(BZ20="N","",VLOOKUP($CD20,ATechDat,14,FALSE)) -> 0 | DG20: =IF(BZ20="N","",VLOOKUP($CD20,ATechDat,15,FALSE)) -> 1 | DH20: =IF(BZ20="N","",VLOOKUP($CD20,ATechDat,16,FALSE)) -> FALSE | DI20: =IF(BZ20="N","",VLOOKUP($CD20,ATechDat,17,FALSE)) -> TRUE | DJ20: =IF(BZ20="N","",VLOOKUP($CD20,ATechDat,18,FALSE)) -> FALSE | DK20: =IF(BZ20="N","",VLOOKUP($CD20,ATechDat,19,FALSE)) -> FALSE | DL20: =IF(BZ20="N","",VLOOKUP($CD20,ATechDat,20,FALSE)) -> 0 | DM20: =IF(BZ20="N","",VLOOKUP($CD20,ATechDat,21,FALSE)) -> 0 | DN20: =IF(BZ20="N","",VLOOKUP($CD20,ATechDat,22,FALSE)) -> 0 | DO20: 100% PNW PPA | DR20: American Falls Solar | DT20: American Falls Solar | DU20: 4.435428333 | DV20: 2.880879218 | DW20: 1.332288136 | DX20: 1.101358255 | DY20: 1.265040881 | DZ20: 2.137384135 | EA20: 3.418489374 | EB20: 4.052965544 | EC20: 5.287725091 | ED20: 5.804276925 | EE20: 5.989196088 | EF20: 5.363026994 | EG20: 5.913904444 | EH20: 3.84117229 | EI20: 1.776384182 | EJ20: 1.468477673 | EK20: 1.686721174 | EL20: 2.849845514 | EM20: 4.557985833 | EN20: 5.403954059 | EO20: 7.050300122 | EP20: 7.7390359 | EQ20: 7.985594784 | ER20: 7.150702659
A21: American Falls Solar II | B21: 2102 | C21: 60012 | D21: IPAF2 | F21: PV | G21: SOL | I21: Solar | J21: 20 | K21: 20 | M21: 20 | P21: 20 | Q21: 20 | R21: 5.08 | U21: Operating | V21: Jan | W21: 2017 | Y21: American Falls | Z21: Power | AA21: ID | AB21: Y | AC21: Columbia | AD21: WECC | AE21: First Wind | AF21: Independent | AG21: Idaho Power Co. (20 yr ESA) | AN21: 2036 | AO21: 1 | AT21: 20 | AU21: 5.08 | AZ21: IPC | BP21: Project expected to use (10) 2.0 MW ac SMA inverters and (85,880) JA 305w DC panels and utilize a single axis tracking system (from ESA IPUC filing). RECs to be split 50/50 between IPC and developer. Expected CF 25.4% AC. | BQ21: =VLOOKUP($B21,[2]!Table_intranet_power_vewProjectLatLongUrl[#Data],2,FALSE) -> 42.826959 | BR21: =VLOOKUP($B21,[2]!Table_intranet_power_vewProjectLatLongUrl[#Data],3,FALSE) -> -112.743943 | BT21: 2017-11-07T10:56:07 | BU21: 20 | BV21: 20 | BW21: 0.254 | BX21: 5.08 | BZ21: Y | CB21: 100% PNW PPA | CC21: PNW East | CD21: PV | CF21: 1 | CH21: 0.75 | CJ21: 1 | CL21: Y | CN21: American Falls Solar II | CO21: PNW East | CP21: Thr | CQ21: PV | CR21: 15 | CS21: Jan-2017 | CT21: Jan-2051 | CU21: 0 | CV21: Solar | CW21: 0 | CX21: 0 | CY21: FALSE | CZ21: Cf PV | DA21: SolarPV | DB21: Default | DC21: Default | DD21: 30 | DE21: Flat | DF21: 0 | DG21: 1 | DH21: FALSE | DI21: TRUE | DJ21: FALSE | DK21: FALSE | DL21: 0 | DM21: 0 | DN21: 0 | DO21: 100% PNW PPA | DR21: American Falls Solar II | DT21: American Falls Solar II | DU21: =IF($BZ21="N","",IF(OR($I21<>"Wind",$I21<>"Solar",$I21<>"Hydro"),($CF21*$CH21*IF(ISBLANK($L21),IF(ISBLANK($O21),$J21,$O21),$L21))*VLOOKUP($CZ21,ASeasDist,DU$7,FALSE)*VLOOKUP($DE21,ASeasDist,DU$7),$J21*$CF21*$CH21)) -> 4.435428333 | DV21: 2.880879218 | DW21: 1.332288136 | DX21: 1.101358255 | DY21: 1.265040881 | DZ21: 2.137384135 | EA21: 3.418489374 | EB21: 4.052965544 | EC21: 5.287725091 | ED21: 5.804276925 | EE21: 5.989196088 | EF21: 5.363026994 | EG21: =IF($BZ21="N","",IF(OR($I21<>"Wind",$I21<>"Solar",$I21<>"Hydro"),$CJ21*IF(ISBLANK($L21),IF(ISBLANK($O21),$J21,$O21),$L21),$J21)*(1-$CW21)*VLOOKUP($CZ21,ASeasDist,EG$7,FALSE)*VLOOKUP($DE21,ASeasDist,EG$7)) -> 5.913904444 | EH21: 3.84117229 | EI21: 1.776384182 | EJ21: 1.468477673 | EK21: 1.686721174 | EL21: 2.849845514 | EM21: 4.557985833 | EN21: 5.403954059 | EO21: 7.050300122 | EP21: 7.7390359 | EQ21: 7.985594784 | ER21: 7.150702659
A22: Amy Ranch | B22: 1011 | E22: 8700 | F22: Conduit | G22: WAT | I22: Hydro | J22: 0.65 | N22: 0.7 | O22: 0.7 | R22: 0.42 | U22: Operating | W22: 1986 | Y22: Deep Cr. | Z22: Butte | AA22: ID | AB22: Y | AC22: Columbia | AD22: WECC | AE22: A.J. Amy | AF22: Independent | AG22: PacifiCorp (QF) | AO22: 1 | AT22: 0.65 | AU22: 0.42 | BP22: Exemption granted October 1985. | BQ22: =VLOOKUP($B22,[2]!Table_intranet_power_vewProjectLatLongUrl[#Data],2,FALSE) -> 0 | BR22: =VLOOKUP($B22,[2]!Table_intranet_power_vewProjectLatLongUrl[#Data],3,FALSE) -> 0 | BS22: =VLOOKUP($B22,[2]!Table_intranet_power_vewProjectLatLongUrl[#Data],4,FALSE) -> 0 | BT22: 2014-01-29T18:51:35 | BU22: 0.65 | BV22: 0.7 | BW22: 0.6461538462 | BX22: 0.42 | BZ22: Y | CA22: Not accounted for in HydInd file | CC22: PNW East | CD22: HY_Irr | CE22: n/a | CF22: 1 | CH22: 1 | CJ22: 1 | CL22: Y | CN22: Amy Ranch | CO22: PNW East | CP22: Thr | CQ22: Hyd | CR22: 0.7 | CS22: Dec-1986 | CT22: Jan-2051 | CU22: n/a | CV22: Water | CW22: 0 | CX22: 24 | CY22: FALSE | CZ22: Cf HY Irr | DA22: Zero | DB22: Expense | DC22: Default | DD22: 50 | DE22: Flat | DF22: 0 | DG22: 0 | DH22: FALSE | DI22: TRUE | DJ22: FALSE | DK22: FALSE | DL22: 0 | DM22: 0 | DN22: 0 | DR22: Amy Ranch | DT22: Amy Ranch | DU22: 0.7 | DV22: 0 | DW22: 0 | DX22: 0 | DY22: 0 | DZ22: 0 | EA22: 0 | EB22: 0.7 | EC22: 0.7 | ED22: 0.7 | EE22: 0.7 | EF22: 0.7 | EG22: 0.7 | EH22: 0 | EI22: 0 | EJ22: 0 | EK22: 0 | EL22: 0 | EM22: 0 | EN22: 0.7 | EO22: 0.7 | EP22: 0.7 | EQ22: 0.7 | ER22: 0.7
A23: Anderson Ranch 1 - 2 | B23: 1012 | C23: 6395 | D23: 1,2 | E23: FCRPS | F23: Storage | G23: WAT | I23: Hydro | J23: 40 | K23: 40 | M23: 4.31 | N23: 34 | O23: 6.4 | P23: 40 | Q23: 40 | R23: 16 | T23: 16 | U23: Operating | V23: Dec | W23: 1950 | Y23: Boise R. | Z23: Elmore | AA23: ID | AB23: Y | AC23: Columbia | AD23: WECC | AE23: USBR | AF23: Federal | AG23: BPA | AO23: 1 | AT23: 40 | AU23: 16 | AZ23: IPC | BA23: 10.4 | BB23: 9.5 | BC23: 12.2 | BD23: 3.95 | BE23: 8.436073059 | BF23: 13.9 | BG23: 3.99 | BH23: 14.05 | BI23: 13.9 | BJ23: 15.97 | BK23: 21.1 | BL23: 12.89 | BM23: 9.85 | BN23: 13.96 | BO23: 16.6 | BP23: Critical energy from PNUCC 2005 NRF | BQ23: =VLOOKUP($B23,[2]!Table_intranet_power_vewProjectLatLongUrl[#Data],2,FALSE) -> 43.357 | BR23: =VLOOKUP($B23,[2]!Table_intranet_power_vewProjectLatLongUrl[#Data],3,FALSE) -> -115.451 | BS23: =VLOOKUP($B23,[2]!Table_intranet_power_vewProjectLatLongUrl[#Data],4,FALSE) -> http://www.usbr.gov/projects/Facility.jsp?fac_Name=Anderson+Ranch+Dam | BT23: 2017-10-16T15:00:05 | BU23: 40 | BV23: 34 | BW23: 0.4 | BX23: 16 | BY23: Independent | BZ23: N | CA23: Accounted for in HydInd file
A24: Arrowrock 1 - 2 | B24: 1688 | C24: 56997 | D24: 1,2 | E24: 4656 | F24: Storage | G24: WAT | I24: Hydro | J24: 18 | K24: 15 | M24: 2.3 | N24: 16 | O24: 16 | P24: 16 | Q24: 16 | R24: 9.2 | U24: Operating | V24: April | W24: 2010 | Y24: Boise R. | Z24: Ada | AA24: ID | AB24: Y | AC24: Columbia | AD24: WECC | AE24: Boise-Kuna Irrigation District | AF24: Independent | AG24: Clatskanie PUD (Apr 2010 - Dec 2015) | AN24: 2015 | AO24: 1 | AT24: 18 | AU24: 9.2 | AZ24: IPC | BI24: 8.9 | BJ24: 9.69 | BK24: 8.7 | BL24: 5.59 | BM24: 8.29 | BN24: 7.46 | BO24: 7.6 | BP24: Powerhouse w/(2) 9 MW units at existing dam. | BQ24: =VLOOKUP($B24,[2]!Table_intranet_power_vewProjectLatLongUrl[#Data],2,FALSE) -> 43.595556 | BR24: =VLOOKUP($B24,[2]!Table_intranet_power_vewProjectLatLongUrl[#Data],3,FALSE) -> -115.922222 | BS24: =VLOOKUP($B24,[2]!Table_intranet_power_vewProjectLatLongUrl[#Data],4,FALSE) -> http://en.wikipedia.org/wiki/Arrowrock_Dam | BT24: 2017-10-16T15:02:02 | BU24: 18 | BV24: 16 | BW24: 0.5111111111 | BX24: 9.2 | BZ24: Y | CA24: Not accounted for in HydInd file | CC24: PNW East | CD24: HY_East | CE24: n/a | CF24: 1 | CH24: 1 | CJ24: 1 | CN24: Arrowrock 1 - 2 | CO24: PNW East | CP24: Thr | CQ24: Hyd | CR24: 16 | CS24: April-2010 | CT24: Jan-2051 | CU24: n/a | CV24: Water | CW24: 0 | CX24: 24 | CY24: FALSE | CZ24: Cf HY East | DA24: Zero | DB24: Expense | DC24: Default | DD24: 50 | DE24: Flat | DF24: 0 | DG24: 0 | DH24: FALSE | DI24: TRUE | DJ24: FALSE | DK24: FALSE | DL24: 0 | DM24: 0 | DN24: 0 | DR24: Arrowrock 1 - 2 | DT24: Arrowrock 1 - 2 | DU24: 5.228324383 | DV24: 6.86444313 | DW24: 6.104150624 | DX24: 7.754274479 | DY24: 8.92176468 | DZ24: 6.885743751 | EA24: 8.013510103 | EB24: 8.657226538 | EC24: 11.37023252 | ED24: 10.56781162 | EE24: 10.5863507 | EF24: 9.564888309 | EG24: 5.228324383 | EH24: 6.86444313 | EI24: 6.104150624 | EJ24: 7.754274479 | EK24: 8.92176468 | EL24: 6.885743751 | EM24: 8.013510103 | EN24: 8.657226538 | EO24: 11.37023252 | EP24: 10.56781162 | EQ24: 10.5863507 | ER24: 9.564888309
A25: Ashton 1 - 3 | B25: 1013 | C25: 825 | D25: 1,2,3 | E25: 2381B | F25: ROR | G25: WAT | I25: Hydro | J25: 7.85 | K25: 6.7 | M25: 7.5 | N25: 7.2 | O25: 7.2 | P25: 7.1 | Q25: 7.1 | R25: 4.75 | U25: Operating | V25: Aug | W25: 1917 | Y25: Henrys Fk. | Z25: Fremont | AA25: ID | AB25: Y | AC25: Columbia | AD25: WECC | AE25: PacifiCorp | AF25: IOU | AG25: PacifiCorp | AO25: 1 | AT25: 7.85 | AU25: 4.75 | AZ25: PACE | BA25: 3.5 | BB25: 3.3 | BC25: 1.2 | BD25: 1.263584475 | BE25: 1.430593607 | BF25: 1.1 | BG25: 1.08 | BH25: 3.85 | BI25: 2.6 | BJ25: 2.06 | BK25: 0.2 | BL25: 3.94 | BM25: 3.75 | BN25: 3.42 | BO25: 3.3 | BP25: Original License granted January 1938; expired December 1987. New license gtd. 08/01/87 Exp. 12/31/27. Unit 1 rated 2.85MW, Unit 2 and 3 are both rated 2.5 MW. Reconstruction to repair and improve completed in 2012. | BQ25: =VLOOKUP($B25,[2]!Table_intranet_power_vewProjectLatLongUrl[#Data],2,FALSE) -> 44.2234 | BR25: =VLOOKUP($B25,[2]!Table_intranet_power_vewProjectLatLongUrl[#Data],3,FALSE) -> -111.4755 | BS25: =VLOOKUP($B25,[2]!Table_intranet_power_vewProjectLatLongUrl[#Data],4,FALSE) -> 0 | BT25: 2017-10-16T15:03:08 | BU25: 7.85 | BV25: 7.2 | BW25: 0.6050955414 | BX25: 4.75 | BZ25: Y | CA25: Not accounted for in HydInd file | CC25: PNW East | CD25: HY_East | CE25: n/a | CF25: 1 | CH25: 1 | CJ25: 1 | CN25: Ashton 1 - 3 | CO25: PNW East | CP25: Thr | CQ25: Hyd | CR25: 7.2 | CS25: Aug-1917 | CT25: Jan-2051 | CU25: n/a | CV25: Water | CW25: 0 | CX25: 24 | CY25: FALSE | CZ25: Cf HY East | DA25: Zero | DB25: Expense | DC25: Default | DD25: 50 | DE25: Flat | DF25: 0 | DG25: 0 | DH25: FALSE | DI25: TRUE | DJ25: FALSE | DK25: FALSE | DL25: 0 | DM25: 0 | DN25: 0 | DR25: Ashton 1 - 3 | DT25: Ashton 1 - 3 | DU25: 2.352745972 | DV25: 3.088999408 | DW25: 2.746867781 | DX25: 3.489423516 | DY25: 4.014794106 | DZ25: 3.098584688 | EA25: 3.606079547 | EB25: 3.895751942 | EC25: 5.116604635 | ED25: 4.755515231 | EE25: 4.763857815 | EF25: 4.304199739 | EG25: 2.352745972 | EH25: 3.088999408 | EI25: 2.746867781 | EJ25: 3.489423516 | EK25: 4.014794106 | EL25: 3.098584688 | EM25: 3.606079547 | EN25: 3.895751942 | EO25: 5.116604635 | EP25: 4.755515231 | EQ25: 4.763857815 | ER25: 4.304199739
A26: Atlanta Power Station (Kirby) | B26: 1014 | C26: 6700 | E26: 11541 | F26: ROR R w/Div | G26: WAT | I26: Hydro | J26: 0.15 | N26: 0.2 | O26: 0.2 | R26: 0.15 | U26: Operating | W26: 1910 | Y26: Boise R, M Fk | Z26: Elmore | AA26: ID | AB26: Y | AC26: Columbia | AD26: WECC | AE26: Atlanta Power Co. Inc. | AF26: Independent | AG26: Atlanta Power Co. | AT26: 0 | AU26: 0 | BP26: License granted May 2002; expires April 2032. | BQ26: =VLOOKUP($B26,[2]!Table_intranet_power_vewProjectLatLongUrl[#Data],2,FALSE) -> 0 | BR26: =VLOOKUP($B26,[2]!Table_intranet_power_vewProjectLatLongUrl[#Data],3,FALSE) -> 0 | BS26: =VLOOKUP($B26,[2]!Table_intranet_power_vewProjectLatLongUrl[#Data],4,FALSE) -> 0 | BT26: 2015-03-27T16:07:45 | BU26: 0.15 | BV26: 0.2 | BW26: 1 | BX26: 0.15 | BZ26: N | CA26: <0.5 MW
A27: Baker River (Lower) Unit 3 | B27: 1332 | C27: 3855 | D27: 3 | E27: 2150A | F27: Storage w/Div | G27: WAT | I27: Hydro | J27: 79 | K27: 80.8 | M27: 63.6 | N27: 86.7 | O27: 86.7 | P27: 80.8 | Q27: 80.8 | R27: 43 | T27: 36 | U27: Operating | W27: 1925 | Y27: Baker R. | Z27: Skagit | AA27: WA | AB27: Y | AC27: Puget Sound & Coastal | AD27: WECC | AE27: Puget Sound Energy | AF27: IOU | AG27: Puget Sound Energy | AO27: 1 | AT27: 79 | AU27: 43 | AZ27: PSE | BA27: 45.8 | BB27: 44.5 | BC27: 40.5 | BD27: 31.07009132 | BE27: 38.14440639 | BF27: 49.3 | BG27: 36.19 | BH27: 39.37 | BI27: 41.8 | BJ27: 37.99 | BK27: 39.9 | BL27: 40.25 | BM27: 49.04 | BN27: 35.23 | BO27: 41 | BP27: Original license granted May 1956. New 50-yr licence granted Oct 2008. Critical energy from PNUCC 2005 NRF | BQ27: =VLOOKUP($B27,[2]!Table_intranet_power_vewProjectLatLongUrl[#Data],2,FALSE) -> 48.544 | BR27: =VLOOKUP($B27,[2]!Table_intranet_power_vewProjectLatLongUrl[#Data],3,FALSE) -> -121.741 | BS27: =VLOOKUP($B27,[2]!Table_intranet_power_vewProjectLatLongUrl[#Data],4,FALSE) -> http://www.pse.com/energyEnvironment/energysupply/Pages/EnergySupply_ElectricityHydro.aspx | BT27: 2017-10-24T09:10:51 | BU27: 79 | BV27: 86.7 | BW27: 0.5443037975 | BX27: 43 | BY27: Regulated | BZ27: N | CA27: Reg hydro
A28: Baker River (Lower) Unit 4 | B28: 1989 | C28: 3855 | D28: 4 | F28: Storage w/Div | G28: WAT | I28: Hydro | J28: 32.4 | K28: 30.4 | P28: 30.4 | Q28: 30.4 | U28: Operating | V28: Dec | W28: 2014 | Y28: Baker R. | Z28: Skagit | AA28: WA | AB28: Y | AC28: Puget Sound & Coastal | AD28: WECC | AE28: Puget Sound Energy | AF28: IOU | AG28: Puget Sound Energy | AO28: 1 | AT28: 32.4 | AU28: 13.4078 | AZ28: PSE | BP28: Construction of new powerhouse begain December 2010. | BQ28: =VLOOKUP($B28,[2]!Table_intranet_power_vewProjectLatLongUrl[#Data],2,FALSE) -> 48.544 | BR28: =VLOOKUP($B28,[2]!Table_intranet_power_vewProjectLatLongUrl[#Data],3,FALSE) -> -121.741 | BS28: =VLOOKUP($B28,[2]!Table_intranet_power_vewProjectLatLongUrl[#Data],4,FALSE) -> http://www.pse.com/energyEnvironment/energysupply/Pages/EnergySupply_ElectricityHydro.aspx | BT28: 2017-10-24T09:11:03 | BU28: =IF(OR(I28="Wind",I28="Solar",I28="Hydro"),J28,IF(ISNUMBER(L28),L28,IF(ISNUMBER(O28), O28, IF(ISNUMBER(Q28),Q28,J28)))) -> 32.4 | BV28: =IF(OR(J28="Wind",J28="Solar",J28="Hydro"),J28,IF(ISNUMBER(N28),N28,IF(ISNUMBER(P28), P28, IF(ISNUMBER(L28),L28,J28)))) -> 30.4 | BW28: =IF(OR(ISBLANK(J28),ISBLANK(R28),J28=0),VLOOKUP(IF(G28="WAT","HY",IF(G28="LFG","LFG",F28)),Acapability,4,FALSE),R28/J28) -> 0.427 | BX28: =IF(ISNUMBER(R28),R28,AVERAGE(BU28,BV28)*BW28) -> 13.4078 | BY28: Regulated | BZ28: N | CA28: Reg hydro
A29: Baker River (Upper) 1 & 2 | B29: 1599 | C29: 3861 | D29: 1,2 | E29: 2150B | F29: Storage | G29: WAT | I29: Hydro | J29: 91 | K29: 104.8 | M29: 83 | N29: 111.4 | O29: 111.4 | P29: 105 | Q29: 105 | R29: 42 | T29: 35 | U29: Operating | V29: Jan | W29: 1959 | Y29: Baker R. | Z29: Whatcom | AA29: WA | AB29: Y | AC29: Puget Sound & Coastal | AD29: WECC | AE29: Puget Sound Energy | AF29: IOU | AG29: Puget Sound Energy | AO29: 1 | AT29: 91 | AU29: 42 | AZ29: PSE | BA29: 40.3 | BB29: 37.9 | BC29: 40.8 | BD29: 33.70136986 | BE29: 38.64760274 | BF29: 45.3 | BG29: 35.75 | BH29: 38.51 | BI29: 41.2 | BJ29: 34.4 | BK29: 39.9 | BL29: 40.7 | BM29: 38.82 | BN29: 31.82 | BO29: 42.1 | BP29: Original license granted May 1956. New 50-yr licence granted Oct 2008. Critical energy from PNUCC 2005 NRF | BQ29: =VLOOKUP($B29,[2]!Table_intranet_power_vewProjectLatLongUrl[#Data],2,FALSE) -> 48.65 | BR29: =VLOOKUP($B29,[2]!Table_intranet_power_vewProjectLatLongUrl[#Data],3,FALSE) -> -121.69 | BS29: =VLOOKUP($B29,[2]!Table_intranet_power_vewProjectLatLongUrl[#Data],4,FALSE) -> http://www.pse.com/energyEnvironment/energysupply/Pages/EnergySupply_ElectricityHydro.aspx | BT29: 2017-10-25T11:48:30 | BU29: 91 | BV29: 111.4 | BW29: 0.4615384615 | BX29: 42 | BY29: Regulated | BZ29: N | CA29: Reg hydro | DU29: =IF($BZ29="N","",IF(OR($I29<>"Wind",$I29<>"Solar",$I29<>"Hydro"),($CF29*$CH29*IF(ISBLANK($L29),IF(ISBLANK($O29),$J29,$O29),$L29))*VLOOKUP($CZ29,ASeasDist,DU$7,FALSE)*VLOOKUP($DE29,ASeasDist,DU$7),$J29*$CF29*$CH29)) ->  | EG29: =IF($BZ29="N","",IF(OR($I29<>"Wind",$I29<>"Solar",$I29<>"Hydro"),$CJ29*IF(ISBLANK($L29),IF(ISBLANK($O29),$J29,$O29),$L29),$J29)*(1-$CW29)*VLOOKUP($CZ29,ASeasDist,EG$7,FALSE)*VLOOKUP($DE29,ASeasDist,EG$7)) -> 
A30: Baldock Solar Highway Project | B30: 2087 | C30: 57882 | D30: BSH1 | F30: PV | G30: SOL | I30: Solar | J30: 1.5 | K30: 1.7 | N30: 1.7 | O30: 1.7 | P30: 1.7 | Q30: 1.7 | R30: 0.2 | U30: Operating | V30: Jan | W30: 2012 | Y30: Wilsonville (NB off I-5) | Z30: Clackamas | AA30: OR | AB30: Y | AC30: Columbia | AD30: WECC | AE30: Bank of America financed and owns project; PGE operates and maintains | AF30: Independent | AG30: Portland General Electric | AN30: n/a | AO30: 1 | AP30: 0 | AQ30: 0 | AR30: 0 | AS30: 0 | AT30: =AO30*J30 -> 1.5 | AU30: =IF(ISNUMBER(R30),R30,BX30)*AO30 -> 0.2 | AZ30: PGE | BK30: 0.2 | BL30: 0.22 | BM30: 0.24 | BN30: 0.226 | BO30: 0.2 | BP30: 6,994 panel array on ~7 acres; solar highway project | BQ30: =VLOOKUP($B30,[2]!Table_intranet_power_vewProjectLatLongUrl[#Data],2,FALSE) -> 45.269 | BR30: =VLOOKUP($B30,[2]!Table_intranet_power_vewProjectLatLongUrl[#Data],3,FALSE) -> -122.771 | BS30: =VLOOKUP($B30,[2]!Table_intranet_power_vewProjectLatLongUrl[#Data],4,FALSE) -> http://live.deckmonitoring.com/?id=baldock_solar_highway | BT30: 2017-10-16T15:03:47 | BU30: =IF(OR(I30="Wind",I30="Solar",I30="Hydro"),J30,IF(ISNUMBER(L30),L30,IF(ISNUMBER(O30), O30, IF(ISNUMBER(Q30),Q30,J30)))) -> 1.5 | BV30: =IF(OR(J30="Wind",J30="Solar",J30="Hydro"),J30,IF(ISNUMBER(N30),N30,IF(ISNUMBER(P30), P30, IF(ISNUMBER(L30),L30,J30)))) -> 1.7 | BW30: =IF(OR(ISBLANK(J30),ISBLANK(R30),J30=0),VLOOKUP(IF(G30="WAT","HY",IF(G30="LFG","LFG",F30)),Acapability,4,FALSE),R30/J30) -> 0.1333333333 | BX30: =IF(ISNUMBER(R30),R30,AVERAGE(BU30,BV30)*BW30) -> 0.2 | BZ30: Y | CC30: PNW West | CD30: PV | CF30: 1 | CH30: 0.75 | CJ30: 1 | CL30: Y | CN30: Baldock Solar Highway Project | CO30: =IF($BZ30="Y",CC30,"") -> PNW West | CP30: =IF(BZ30="N","",VLOOKUP($CD30,ATechDat,2,FALSE)) -> Thr | CQ30: =IF(BZ30="N","",VLOOKUP($CD30,ATechDat,3,FALSE)) -> PV | CR30: 1.275 | CS30: =IF(BZ30="N","",IF(ISBLANK(V30),"Dec",V30)&"-"&IF(ISBLANK(W30),1980,W30)) -> Jan-2012 | CT30: Jan-2051 | CU30: 0 | CV30: =IF(BZ30="N","",VLOOKUP($CD30,ATechDat,4,FALSE)) -> Solar | CW30: =IF(BZ30="N","",VLOOKUP($CD30,ATechDat,5,FALSE)) -> 0 | CX30: =IF(BZ30="N","",VLOOKUP($CD30,ATechDat,6,FALSE)) -> 0 | CY30: =IF(BZ30="N","",VLOOKUP($CD30,ATechDat,7,FALSE)) -> FALSE | CZ30: =IF(BZ30="N","",VLOOKUP($CD30,ATechDat,8,FALSE)) -> Cf PV | DA30: =IF(BZ30="N","",VLOOKUP($CD30,ATechDat,9,FALSE)) -> SolarPV | DB30: =IF(BZ30="N","",VLOOKUP($CD30,ATechDat,10,FALSE)) -> Default | DC30: =IF(BZ30="N","",VLOOKUP($CD30,ATechDat,11,FALSE)) -> Default | DD30: =IF(BZ30="N","",VLOOKUP($CD30,ATechDat,12,FALSE)) -> 30 | DE30: =IF(BZ30="N","",VLOOKUP($CD30,ATechDat,13,FALSE)) -> Flat | DF30: =IF(BZ30="N","",VLOOKUP($CD30,ATechDat,14,FALSE)) -> 0 | DG30: =IF(BZ30="N","",VLOOKUP($CD30,ATechDat,15,FALSE)) -> 1 | DH30: =IF(BZ30="N","",VLOOKUP($CD30,ATechDat,16,FALSE)) -> FALSE | DI30: =IF(BZ30="N","",VLOOKUP($CD30,ATechDat,17,FALSE)) -> TRUE | DJ30: =IF(BZ30="N","",VLOOKUP($CD30,ATechDat,18,FALSE)) -> FALSE | DK30: =IF(BZ30="N","",VLOOKUP($CD30,ATechDat,19,FALSE)) -> FALSE | DL30: =IF(BZ30="N","",VLOOKUP($CD30,ATechDat,20,FALSE)) -> 0 | DM30: =IF(BZ30="N","",VLOOKUP($CD30,ATechDat,21,FALSE)) -> 0 | DN30: =IF(BZ30="N","",VLOOKUP($CD30,ATechDat,22,FALSE)) -> 0 | DO30: =IF(ISBLANK(CB30),"",CB30) ->  | DR30: =IF(BZ30="N","",CN30) -> Baldock Solar Highway Project | DT30: Baldock Solar Highway Project | DU30: 0.3770114083 | DV30: 0.2448747335 | DW30: 0.1132444916 | DX30: 0.09361545164 | DY30: 0.1075284749 | DZ30: 0.1816776515 | EA30: 0.2905715968 | EB30: 0.3445020713 | EC30: 0.4494566327 | ED30: 0.4933635387 | EE30: 0.5090816675 | EF30: 0.4558572945 | EG30: 0.5026818778 | EH30: 0.3264996447 | EI30: 0.1509926555 | EJ30: 0.1248206022 | EK30: 0.1433712998 | EL30: 0.2422368687 | EM30: 0.3874287958 | EN30: 0.459336095 | EO30: 0.5992755103 | EP30: 0.6578180515 | EQ30: 0.6787755566 | ER30: 0.607809726
A31: Bannock County Landfill | B31: 2092 | C31: 59529 | D31: GEN1 | F31: IC | G31: LFG | I31: Biomass | J31: 1.6 | K31: 1.6 | P31: 1.4 | Q31: 1.4 | U31: Operating | V31: Apr | W31: 2014 | Y31: Fort Hall Mine Landfill | Z31: Bannock | AA31: ID | AB31: Y | AD31: WECC | AE31: Bannock County | AF31: Independent | AG31: Idaho Power (Apr 2014 - Apr 2034) | AN31: 2034 | AO31: 1 | AT31: =AO31*J31 -> 1.6 | AU31: =IF(ISNUMBER(R31),R31,BX31)*AO31 -> 1.05 | AZ31: IPC | BM31: 0.55 | BN31: 0.98 | BO31: 1.2 | BP31: (1) 1.6 MW Caterpillar V-20; second unit expected to be constructed within five years. $4.5MM project. | BQ31: =VLOOKUP($B31,[2]!Table_intranet_power_vewProjectLatLongUrl[#Data],2,FALSE) -> 42.782 | BR31: =VLOOKUP($B31,[2]!Table_intranet_power_vewProjectLatLongUrl[#Data],3,FALSE) -> -112.375 | BS31: =VLOOKUP($B31,[2]!Table_intranet_power_vewProjectLatLongUrl[#Data],4,FALSE) -> http://www.bannockcountylandfill.us/gas-to-energy.html | BT31: 2017-10-16T15:05:04 | BU31: =IF(OR(I31="Wind",I31="Solar",I31="Hydro"),J31,IF(ISNUMBER(L31),L31,IF(ISNUMBER(O31), O31, IF(ISNUMBER(Q31),Q31,J31)))) -> 1.4 | BV31: =IF(OR(J31="Wind",J31="Solar",J31="Hydro"),J31,IF(ISNUMBER(N31),N31,IF(ISNUMBER(P31), P31, IF(ISNUMBER(L31),L31,J31)))) -> 1.4 | BW31: =IF(OR(ISBLANK(J31),ISBLANK(R31),J31=0),VLOOKUP(IF(G31="WAT","HY",IF(G31="LFG","LFG",F31)),Acapability,4,FALSE),R31/J31) -> 0.75 | BX31: =IF(ISNUMBER(R31),R31,AVERAGE(BU31,BV31)*BW31) -> 1.05 | BZ31: Y | CC31: PNW East | CD31: BGIC | CE31: 11700 | CF31: 1 | CH31: 1 | CJ31: 1 | CL31: Y | CN31: Bannock County Landfill | CO31: =IF($BZ31="Y",CC31,"") -> PNW East | CP31: =IF(BZ31="N","",VLOOKUP($CD31,ATechDat,2,FALSE)) -> Thr | CQ31: =IF(BZ31="N","",VLOOKUP($CD31,ATechDat,3,FALSE)) -> IC | CR31: 1.6 | CS31: =IF(BZ31="N","",IF(ISBLANK(V31),"Dec",V31)&"-"&IF(ISBLANK(W31),1980,W31)) -> Apr-2014 | CT31: Jan-2051 | CU31: 11700 | CV31: =IF(BZ31="N","",VLOOKUP($CD31,ATechDat,4,FALSE)) -> Zero-cost Biofuel | CW31: =IF(BZ31="N","",VLOOKUP($CD31,ATechDat,5,FALSE)) -> 0.047 | CX31: =IF(BZ31="N","",VLOOKUP($CD31,ATechDat,6,FALSE)) -> 56 | CY31: =IF(BZ31="N","",VLOOKUP($CD31,ATechDat,7,FALSE)) -> FALSE | CZ31: =IF(BZ31="N","",VLOOKUP($CD31,ATechDat,8,FALSE)) -> MR 7d Flat | DA31: =IF(BZ31="N","",VLOOKUP($CD31,ATechDat,9,FALSE)) -> Landfill | DB31: =IF(BZ31="N","",VLOOKUP($CD31,ATechDat,10,FALSE)) -> Default | DC31: =IF(BZ31="N","",VLOOKUP($CD31,ATechDat,11,FALSE)) -> Default | DD31: =IF(BZ31="N","",VLOOKUP($CD31,ATechDat,12,FALSE)) -> 20 | DE31: =IF(BZ31="N","",VLOOKUP($CD31,ATechDat,13,FALSE)) -> Flat | DF31: =IF(BZ31="N","",VLOOKUP($CD31,ATechDat,14,FALSE)) -> 0 | DG31: =IF(BZ31="N","",VLOOKUP($CD31,ATechDat,15,FALSE)) -> 1 | DH31: =IF(BZ31="N","",VLOOKUP($CD31,ATechDat,16,FALSE)) -> FALSE | DI31: =IF(BZ31="N","",VLOOKUP($CD31,ATechDat,17,FALSE)) -> TRUE | DJ31: =IF(BZ31="N","",VLOOKUP($CD31,ATechDat,18,FALSE)) -> FALSE | DK31: =IF(BZ31="N","",VLOOKUP($CD31,ATechDat,19,FALSE)) -> FALSE | DL31: =IF(BZ31="N","",VLOOKUP($CD31,ATechDat,20,FALSE)) -> 0 | DM31: =IF(BZ31="N","",VLOOKUP($CD31,ATechDat,21,FALSE)) -> 0 | DN31: =IF(BZ31="N","",VLOOKUP($CD31,ATechDat,22,FALSE)) -> 0 | DO31: =IF(ISBLANK(CB31),"",CB31) ->  | DR31: =IF(BZ31="N","",CN31) -> Bannock County Landfill | DT31: Bannock County Landfill | DU31: 1.538630137 | DV31: 1.538630137 | DW31: 1.538630137 | DX31: 1.538630137 | DY31: 1.538630137 | DZ31: 1.538630137 | EA31: 1.538630137 | EB31: 1.538630137 | EC31: 1.538630137 | ED31: 1.538630137 | EE31: 1.538630137 | EF31: 1.538630137 | EG31: 1.466314521 | EH31: 1.466314521 | EI31: 1.466314521 | EJ31: 1.466314521 | EK31: 1.466314521 | EL31: 1.466314521 | EM31: 1.466314521 | EN31: 1.466314521 | EO31: 1.466314521 | EP31: 1.466314521 | EQ31: 1.466314521 | ER31: 1.466314521
A32: Barber Dam | B32: 1017 | C32: 10735 | D32: GEN1 | E32: 4881 | F32: ROR | G32: WAT | I32: Hydro | J32: 4.1 | K32: 4.1 | L32: 2.7 | N32: 4 | O32: 4 | P32: 4 | Q32: 4 | R32: 2 | T32: 2 | U32: Operating | V32: Aug | W32: 1990 | Y32: Boise R. | Z32: Ada | AA32: ID | AB32: Y | AC32: Columbia | AD32: WECC | AE32: Ada Co. & Fulcrum Inc. | AF32: Independent | AG32: Idaho Power Co. (QF thru Apr 2024) | AN32: 2024 | AO32: 1 | AT32: 4.1 | AU32: 2 | AZ32: IPC | BG32: 1.27 | BH32: 1.33 | BI32: 1.3 | BJ32: 1.61 | BK32: 1.7 | BL32: 1.02 | BM32: 1.18 | BN32: 1.075 | BO32: 1.4 | BP32: License granted December 1983; expires November 2023. Critical energy from PNUCC 2005 NRF | BQ32: =VLOOKUP($B32,[2]!Table_intranet_power_vewProjectLatLongUrl[#Data],2,FALSE) -> 43.561001 | BR32: =VLOOKUP($B32,[2]!Table_intranet_power_vewProjectLatLongUrl[#Data],3,FALSE) -> -116.121269 | BS32: =VLOOKUP($B32,[2]!Table_intranet_power_vewProjectLatLongUrl[#Data],4,FALSE) -> 0 | BT32: 2017-10-16T15:05:46 | BU32: 4.1 | BV32: 4 | BW32: 0.487804878 | BX32: 2 | BZ32: Y | CA32: Not accounted for in HydInd file | CC32: PNW East | CD32: HY_East | CE32: n/a | CF32: 1 | CH32: 1 | CJ32: 1 | CL32: Y | CN32: Barber Dam | CO32: PNW East | CP32: Thr | CQ32: Hyd | CR32: 2.7 | CS32: Aug-1990 | CT32: Jan-2051 | CU32: n/a | CV32: Water | CW32: 0 | CX32: 24 | CY32: FALSE | CZ32: Cf HY East | DA32: Zero | DB32: Expense | DC32: Default | DD32: 50 | DE32: Flat | DF32: 0 | DG32: 0 | DH32: FALSE | DI32: TRUE | DJ32: FALSE | DK32: FALSE | DL32: 0 | DM32: 0 | DN32: 0 | DR32: Barber Dam | DT32: Barber Dam | DU32: 0.8822797396 | DV32: 1.158374778 | DW32: 1.030075418 | DX32: 1.308533818 | DY32: 1.50554779 | DZ32: 1.161969258 | EA32: 1.35227983 | EB32: 1.460906978 | EC32: 1.918726738 | ED32: 1.783318212 | EE32: 1.786446681 | EF32: 1.614074902 | EG32: 0.8822797396 | EH32: 1.158374778 | EI32: 1.030075418 | EJ32: 1.308533818 | EK32: 1.50554779 | EL32: 1.161969258 | EM32: 1.35227983 | EN32: 1.460906978 | EO32: 1.918726738 | EP32: 1.783318212 | EQ32: 1.786446681 | ER32: 1.614074902
A33: Barney Creek | B33: 1018 | E33: 7754 | F33: Diversion | G33: WAT | I33: Hydro | J33: 0.07 | L33: 0 | N33: 0.1 | O33: 0.1 | R33: 0.04 | U33: Operating | W33: 1986 | Y33: Barney Cr. | Z33: Park | AA33: MT | AB33: N | AC33: Missouri | AD33: WECC | AE33: T.K. & J.L. Budde | AF33: Independent | AG33: NorthWestern (QF thru Nov 2019) | AN33: 2019 | AO33: 0.31 | AT33: 0.0217 | AU33: 0.0124 | BP33: Exemption granted April 1984. | BQ33: =VLOOKUP($B33,[2]!Table_intranet_power_vewProjectLatLongUrl[#Data],2,FALSE) -> 0 | BR33: =VLOOKUP($B33,[2]!Table_intranet_power_vewProjectLatLongUrl[#Data],3,FALSE) -> 0 | BS33: =VLOOKUP($B33,[2]!Table_intranet_power_vewProjectLatLongUrl[#Data],4,FALSE) -> 0 | BT33: 2014-01-29T18:56:39 | BU33: 0.07 | BV33: 0.1 | BW33: 0.5714285714 | BX33: 0.04 | BZ33: N | CA33: <0.5 MW
A34: Basin Creek 1 - 9 | B34: 1019 | C34: 55866 | D34: 1,2,3,4,5,6,7,8,9 | F34: IC | G34: NG | I34: Natural gas | J34: 54.9 | K34: 54.9 | L34: 50 | N34: 51.75 | O34: 51.75 | P34: 54 | Q34: 54 | U34: Operating | V34: Jun | W34: 2006 | Y34: Butte | Z34: Silver Bow | AA34: MT | AB34: Y | AC34: Unknown | AD34: WECC | AE34: Basin Creek Power | AF34: Independent | AG34: NorthWestern (PPA to July 2026) | AH34: 10.236 | AI34: 13.82 | AJ34: 9575 | AN34: 2026 | AO34: 0.31 | AT34: 17.019 | AU34: 14.6672625 | AX34: Northwestern Energy LLC | AZ34: NorthWestern | BG34: 5.61 | BH34: 7.55 | BI34: 2.1 | BJ34: 1.18 | BK34: 2.7 | BL34: 3.87 | BM34: 4.7 | BN34: 7.168 | BO34: 10.5 | BP34: (9) 6 MW Caterpillar reciprocating engines. | BQ34: =VLOOKUP($B34,[2]!Table_intranet_power_vewProjectLatLongUrl[#Data],2,FALSE) -> 45.93 | BR34: =VLOOKUP($B34,[2]!Table_intranet_power_vewProjectLatLongUrl[#Data],3,FALSE) -> -112.524 | BS34: =VLOOKUP($B34,[2]!Table_intranet_power_vewProjectLatLongUrl[#Data],4,FALSE) -> 0 | BT34: 2017-10-16T15:08:37 | BU34: 50 | BV34: 51.75 | BW34: 0.93 | BX34: 47.31375 | BZ34: Y | CC34: PNW East | CD34: NGIC_PNWE | CE34: 9210 | CF34: 0.31 | CG34: NorthWestern | CH34: 1 | CJ34: 0.31 | CK34: NorthWestern | CN34: Basin Creek 1 - 9 | CO34: PNW East | CP34: Thr | CQ34: IC | CR34: 15.5 | CS34: Jun-2006 | CT34: Jan-2051 | CU34: 9210 | CV34: PNW E. gas | CW34: 0.047 | CX34: 56 | CY34: FALSE | CZ34: MR 7d Winter Pk_Hydro | DA34: NG Recip Peaking E | DB34: Default | DC34: Default | DD34: 30 | DE34: Flat | DF34: 0 | DG34: 0 | DH34: FALSE | DI34: TRUE | DJ34: FALSE | DK34: FALSE | DL34: 0 | DM34: 0 | DN34: 0 | DR34: Basin Creek 1 - 9 | DT34: Basin Creek 1 - 9 | DU34: 15.5 | DV34: 15.5 | DW34: 15.5 | DX34: 15.5 | DY34: 15.5 | DZ34: 15.5 | EA34: 14.48082192 | EB34: 13.46164384 | EC34: 13.46164384 | ED34: 13.46164384 | EE34: 15.5 | EF34: 15.5 | EG34: 14.7715 | EH34: 14.7715 | EI34: 14.7715 | EJ34: 14.7715 | EK34: 14.7715 | EL34: 14.7715 | EM34: 13.80022329 | EN34: 12.82894658 | EO34: 12.82894658 | EP34: 12.82894658 | EQ34: 14.7715 | ER34: 14.7715
A35: Beaver 1 - 7 | B35: 1020 | C35: 8073 | D35: 1,2,3,4,5,6,7 | F35: CC | G35: NG | H35: FO | I35: Natural gas | J35: =6*68.3+176.4 -> 586.2 | K35: 586.2 | L35: 521 | N35: 473.03 | O35: 504.2 | P35: 461 | Q35: 499 | U35: Operating | V35: Aug | W35: 1974 | Y35: Clatskanie | Z35: Columbia | AA35: OR | AB35: Y | AC35: Columbia | AD35: WECC | AE35: Portland General Electric | AF35: IOU | AG35: Portland General Electric | AH35: 9.71 | AI35: 53.74 | AJ35: 11555 | AO35: 1 | AT35: 586.2 | AU35: 442.34335 | AX35: Williams Northwest | AZ35: PGE | BA35: 62.2 | BB35: 35 | BC35: 43 | BD35: 19.05993151 | BE35: 40.60445205 | BF35: 41.6 | BG35: 16.57 | BH35: 51.39 | BI35: 17.9 | BJ35: 5.36 | BK35: 2.9 | BL35: 31.7 | BM35: 23.53 | BN35: 35.75 | BO35: 52.2 | BP35: (6) 68.9 MW (baseload)/75.9 (peak) GE 7B GT units + one 176.4 MW STG. | BQ35: =VLOOKUP($B35,[2]!Table_intranet_power_vewProjectLatLongUrl[#Data],2,FALSE) -> 46.174 | BR35: =VLOOKUP($B35,[2]!Table_intranet_power_vewProjectLatLongUrl[#Data],3,FALSE) -> -123.178 | BS35: =VLOOKUP($B35,[2]!Table_intranet_power_vewProjectLatLongUrl[#Data],4,FALSE) -> 0 | BT35: 2017-10-16T15:11:23 | BU35: 521 | BV35: 473.03 | BW35: 0.89 | BX35: 442.34335 | BZ35: Y | CC35: PNW West | CD35: NGCC_PNWW | CE35: 9260 | CF35: 1 | CH35: 1 | CJ35: 1 | CN35: Beaver 1 - 7 | CO35: PNW West | CP35: Thr | CQ35: CCCT | CR35: 521 | CS35: Aug-1974 | CT35: Jan-2051 | CU35: 9260 | CV35: PNW W. gas | CW35: 0.059 | CX35: 32 | CY35: TRUE | CZ35: MR 21d Winter Pk_Hydro | DA35: CCCT - PNW W. | DB35: Default | DC35: Default | DD35: 30 | DE35: CMS GT PNWW | DF35: 0 | DG35: 0 | DH35: FALSE | DI35: TRUE | DJ35: FALSE | DK35: FALSE | DL35: 0 | DM35: 0 | DN35: 0 | DR35: Beaver 1 - 7 | DT35: Beaver 1 - 7 | DU35: 490.328574 | DV35: 502.3877785 | DW35: 513.636147 | DX35: 520.3742095 | DY35: 521 | DZ35: 516.3426189 | EA35: 444.0186018 | EB35: 372.6116853 | EC35: 366.331302 | ED35: 360.8479216 | EE35: 483.9788669 | EF35: 483.1665888 | EG35: 461.3991881 | EH35: 472.7468996 | EI35: 483.3316143 | EJ35: 489.6721311 | EK35: 490.261 | EL35: 485.8784044 | EM35: 417.8215043 | EN35: 350.6275958 | EO35: 344.7177551 | EP35: 339.5578942 | EQ35: 455.4241137 | ER35: 454.6597601
A36: Beaver 8 | B36: 1021 | C36: 8073 | D36: 8 | F36: GT | G36: NG | I36: Natural gas | J36: 24.5 | K36: 24.5 | L36: 24 | N36: 24 | O36: 24 | P36: 24 | Q36: 24 | U36: Operating | V36: Sep | W36: 1999 | Y36: Clatskanie | Z36: Columbia | AA36: OR | AB36: Y | AC36: Columbia | AD36: WECC | AE36: Portland General Electric | AF36: IOU | AG36: Portland General Electric | AH36: 1.8 | AI36: 51.12 | AJ36: 15686.8 | AO36: 1 | AT36: 24.5 | AU36: 21.84 | AX36: Williams Northwest | AZ36: PGE | BP36: (1) Alstom GT10B. | BQ36: =VLOOKUP($B36,[2]!Table_intranet_power_vewProjectLatLongUrl[#Data],2,FALSE) -> 46.174 | BR36: =VLOOKUP($B36,[2]!Table_intranet_power_vewProjectLatLongUrl[#Data],3,FALSE) -> -123.178 | BS36: =VLOOKUP($B36,[2]!Table_intranet_power_vewProjectLatLongUrl[#Data],4,FALSE) -> 0 | BT36: 2014-01-21T12:46:03 | BU36: 24 | BV36: 24 | BW36: 0.91 | BX36: 21.84 | BZ36: Y | CC36: PNW West | CD36: NGGT_PNWW | CE36: 11500 | CF36: 1 | CH36: 1 | CJ36: 1 | CN36: Beaver 8 | CO36: PNW West | CP36: Thr | CQ36: GT | CR36: 24 | CS36: Sep-1999 | CT36: Jan-2051 | CU36: 11500 | CV36: PNW W. gas | CW36: 0.051 | CX36: 88 | CY36: FALSE | CZ36: MR 14d Winter Pk_Hydro | DA36: SCCT - PNW W. | DB36: Default | DC36: Default | DD36: 30 | DE36: CMS GT PNWW | DF36: 0 | DG36: 0 | DH36: FALSE | DI36: TRUE | DJ36: FALSE | DK36: FALSE | DL36: 0 | DM36: 0 | DN36: 0 | DR36: Beaver 8 | DT36: Beaver 8 | DU36: 22.58711281 | DV36: 23.14262319 | DW36: 23.6607822 | DX36: 23.9711728 | DY36: 24 | DZ36: 23.78545653 | EA36: 21.2281095 | EB36: 18.69585492 | EC36: 18.38073561 | ED36: 18.10560607 | EE36: 22.29461191 | EF36: 22.25719411 | EG36: 21.43517006 | EH36: 21.96234941 | EI36: 22.45408231 | EJ36: 22.74864298 | EK36: 22.776 | EL36: 22.57239825 | EM36: 20.14547591 | EN36: 17.74236632 | EO36: 17.4433181 | EP36: 17.18222016 | EQ36: 21.1575867 | ER36: 21.12207721
A37: Bell Mountain | B37: 1978 | F37: Conduit | G37: WAT | I37: Hydro | J37: 0.29 | L37: 0.1 | N37: 0.3 | O37: 0.3 | R37: 0.125859589 | U37: Operating | V37: Dec | W37: 2009 | Y37: Bell Mt Cr. & Mahogany Cr. | Z37: Butte/Lemhi | AA37: ID | AB37: Y | AC37: Columbia | AD37: WECC | AE37: Bell Mountain Power | AF37: Independent | AG37: PacifiCorp (QF) | AO37: 1 | AT37: 0.29 | AU37: 0.125859589 | AZ37: PACE | BP37: Canal, penstock and Pelton wheel. | BQ37: =VLOOKUP($B37,[2]!Table_intranet_power_vewProjectLatLongUrl[#Data],2,FALSE) -> 0 | BR37: =VLOOKUP($B37,[2]!Table_intranet_power_vewProjectLatLongUrl[#Data],3,FALSE) -> 0 | BS37: =VLOOKUP($B37,[2]!Table_intranet_power_vewProjectLatLongUrl[#Data],4,FALSE) -> 0 | BT37: 2014-01-29T18:57:12 | BU37: 0.29 | BV37: 0.3 | BW37: 0.4339985829 | BX37: 0.125859589 | BZ37: N | CA37: < 0.5 MW
A38: Bellevue Solar | B38: 2009 | C38: 57372 | D38: INV-1 | F38: PV | G38: SOL | I38: Solar | J38: 1.4 | K38: 1.6 | M38: 0 | N38: 1.6 | O38: 1.6 | P38: 1.6 | Q38: 1.6 | U38: Operating | V38: Oct | W38: 2011 | Y38: Yamhill, OR | Z38: Yamhill | AA38: OR | AB38: Y | AC38: Columbia | AD38: WECC | AE38: enXco | AF38: Independent | AG38: Portland General Electric (25yr PPA, signed in 2010) | AN38: 2031 | AO38: 1 | AP38: 0 | AQ38: 0 | AR38: 0 | AS38: 0 | AT38: =AO38*J38 -> 1.4 | AU38: =IF(ISNUMBER(R38),R38,BX38)*AO38 -> 0.381 | AZ38: PGE | BJ38: 0.01 | BK38: 0.2 | BL38: 0.21 | BM38: 0.19 | BN38: 0.215 | BO38: 0.2 | BP38: 8,316 Nanosolar, Ground-mount thin-film PV | BQ38: =VLOOKUP($B38,[2]!Table_intranet_power_vewProjectLatLongUrl[#Data],2,FALSE) -> 45.112421 | BR38: =VLOOKUP($B38,[2]!Table_intranet_power_vewProjectLatLongUrl[#Data],3,FALSE) -> -123.234399 | BS38: =VLOOKUP($B38,[2]!Table_intranet_power_vewProjectLatLongUrl[#Data],4,FALSE) -> http://www.edf-re.com/projects/detail/bellevue_solar_project/ | BT38: 2017-10-16T15:14:57 | BU38: 1.4 | BV38: 1.6 | BW38: 0.254 | BX38: 0.381 | BZ38: Y | CC38: PNW West | CD38: PV | CF38: 1 | CH38: 0.75 | CJ38: 1 | CL38: Y | CN38: Bellevue Solar | CO38: PNW West | CP38: Thr | CQ38: PV | CR38: 1.2 | CS38: Oct-2011 | CT38: Jan-2051 | CU38: 0 | CV38: Solar | CW38: 0 | CX38: 0 | CY38: FALSE | CZ38: Cf PV | DA38: SolarPV | DB38: Default | DC38: Default | DD38: 30 | DE38: Flat | DF38: 0 | DG38: 1 | DH38: FALSE | DI38: TRUE | DJ38: FALSE | DK38: FALSE | DL38: 0 | DM38: 0 | DN38: 0 | DR38: Bellevue Solar | DT38: Bellevue Solar | DU38: 0.3548342667 | DV38: 0.2304703374 | DW38: 0.1065830509 | DX38: 0.08810866037 | DY38: 0.1012032705 | DZ38: 0.1709907308 | EA38: 0.27347915 | EB38: 0.3242372435 | EC38: 0.4230180073 | ED38: 0.464342154 | EE38: 0.479135687 | EF38: 0.4290421596 | EG38: 0.4731123555 | EH38: 0.3072937832 | EI38: 0.1421107345 | EJ38: 0.1174782138 | EK38: 0.134937694 | EL38: 0.2279876411 | EM38: 0.3646388666 | EN38: 0.4323163247 | EO38: 0.5640240097 | EP38: 0.619122872 | EQ38: 0.6388475827 | ER38: 0.5720562127
A39: Bend Power 1 - 3 | B39: 1022 | C39: 6484 | D39: 1,2,3 | E39: None | F39: ROR | G39: WAT | I39: Hydro | J39: 1.11 | K39: 1.1 | M39: 0.32 | N39: 1 | O39: 1 | P39: 1 | Q39: 1 | U39: Operating | W39: 1913 | Y39: Deschutes R. | Z39: Deschutes | AA39: OR | AB39: Y | AC39: Columbia | AD39: WECC | AE39: PacifiCorp | AF39: IOU | AG39: PacifiCorp | AO39: 1 | AT39: =AO39*J39 -> 1.11 | AU39: =IF(ISNUMBER(R39),R39,BX39)*AO39 -> 0.450485 | AZ39: PACW | BA39: 0.4 | BB39: 0.3 | BC39: 0.1 | BD39: 0.07385844749 | BE39: 0.07659817352 | BF39: 0.1 | BG39: 0.09 | BH39: 0.36 | BI39: 0.3 | BJ39: 0.24 | BK39: 0.4 | BL39: 0.22 | BM39: 0.29 | BN39: 0.273 | BO39: 0.2 | BP39: PAC minor | BQ39: =VLOOKUP($B39,[2]!Table_intranet_power_vewProjectLatLongUrl[#Data],2,FALSE) -> 44.062326 | BR39: =VLOOKUP($B39,[2]!Table_intranet_power_vewProjectLatLongUrl[#Data],3,FALSE) -> -121.313331 | BS39: =VLOOKUP($B39,[2]!Table_intranet_power_vewProjectLatLongUrl[#Data],4,FALSE) -> 0 | BT39: 2017-10-16T15:16:02 | BU39: 1.11 | BV39: 1 | BW39: 0.427 | BX39: 0.450485 | BZ39: Y | CA39: Not accounted for in HydInd file | CC39: PNW East | CD39: HY_East | CE39: n/a | CF39: 1 | CH39: 1 | CJ39: 1 | CN39: Bend Power 1 - 3 | CO39: PNW East | CP39: Thr | CQ39: Hyd | CR39: 1 | CS39: Dec-1913 | CT39: Jan-2051 | CU39: n/a | CV39: Water | CW39: 0 | CX39: 24 | CY39: FALSE | CZ39: Cf HY East | DA39: Zero | DB39: Expense | DC39: Default | DD39: 50 | DE39: Flat | DF39: 0 | DG39: 0 | DH39: FALSE | DI39: TRUE | DJ39: FALSE | DK39: FALSE | DL39: 0 | DM39: 0 | DN39: 0 | DR39: Bend Power 1 - 3 | DT39: Bend Power 1 - 3 | DU39: =IF($BZ39="N","",IF(OR($I39<>"Wind",$I39<>"Solar",$I39<>"Hydro"),($CF39*$CH39*IF(ISBLANK($L39),IF(ISBLANK($O39),$J39,$O39),$L39))*VLOOKUP($CZ39,ASeasDist,DU$7,FALSE)*VLOOKUP($DE39,ASeasDist,DU$7),$J39*$CF39*$CH39)) -> 0.3267702739 | DV39: 0.4290276956 | DW39: 0.381509414 | DX39: 0.4846421549 | DY39: 0.5576102925 | DZ39: 0.4303589845 | EA39: 0.5008443815 | EB39: 0.5410766587 | EC39: 0.7106395327 | ED39: 0.6604882265 | EE39: 0.6616469188 | EF39: 0.5978055193 | EG39: =IF($BZ39="N","",IF(OR($I39<>"Wind",$I39<>"Solar",$I39<>"Hydro"),$CJ39*IF(ISBLANK($L39),IF(ISBLANK($O39),$J39,$O39),$L39),$J39)*(1-$CW39)*VLOOKUP($CZ39,ASeasDist,EG$7,FALSE)*VLOOKUP($DE39,ASeasDist,EG$7)) -> 0.3267702739 | EH39: 0.4290276956 | EI39: 0.381509414 | EJ39: 0.4846421549 | EK39: 0.5576102925 | EL39: 0.4303589845 | EM39: 0.5008443815 | EN39: 0.5410766587 | EO39: 0.7106395327 | EP39: 0.6604882265 | EQ39: 0.6616469188 | ER39: 0.5978055193
A40: Bennett Creek | B40: 1692 | C40: 56637 | D40: 1 | F40: WT | G40: WND | I40: Wind | J40: 21 | K40: 21 | M40: 0 | P40: 21 | Q40: 21 | U40: Operating | V40: Dec | W40: 2008 | Y40: Mountain Home | Z40: Elmore | AA40: ID | AB40: Y | AC40: Columbia | AD40: WECC | AE40: Exelon (John Deere Renewables) | AF40: Independent | AG40: Idaho Power Co. (QF Dec 2008 - Dec 2028) | AN40: 2028 | AO40: 1 | AT40: =AO40*J40 -> 21 | AU40: =IF(ISNUMBER(R40),R40,BX40)*AO40 -> 6.72 | AY40: MtnHome Junction/Upper Salmon 138 kV | AZ40: IPC | BG40: 0.59 | BH40: 4.7 | BI40: 3.4 | BJ40: 5.16 | BK40: 5.5 | BL40: 4.84 | BM40: 5.1 | BN40: 3.95 | BO40: 5.1 | BP40: (10) Suzlon S88-2.1 MW WTG | BQ40: =VLOOKUP($B40,[2]!Table_intranet_power_vewProjectLatLongUrl[#Data],2,FALSE) -> 43.046640 | BR40: =VLOOKUP($B40,[2]!Table_intranet_power_vewProjectLatLongUrl[#Data],3,FALSE) -> -115.48548 | BS40: =VLOOKUP($B40,[2]!Table_intranet_power_vewProjectLatLongUrl[#Data],4,FALSE) -> https://www.pacificpower.net/env/bsre/bses/bcwf.html | BT40: 2017-10-17T10:05:39 | BU40: 21 | BV40: 21 | BW40: 0.32 | BX40: 6.72 | BZ40: Y | CB40: 100% PNW PPA | CC40: PNW East | CD40: WN_SID | CE40: n/a | CF40: 1 | CH40: 0.05 | CJ40: 1 | CL40: Y | CN40: Bennett Creek | CO40: PNW East | CP40: Thr | CQ40: Wind | CR40: 21 | CS40: Dec-2008 | CT40: Jan-2051 | CU40: n/a | CV40: Wind | CW40: 0 | CX40: 0 | CY40: FALSE | CZ40: Cf WN IDS | DA40: WindB1 | DB40: Default | DC40: Default | DD40: 20 | DE40: Flat | DF40: 0 | DG40: 1 | DH40: FALSE | DI40: TRUE | DJ40: FALSE | DK40: FALSE | DL40: 0 | DM40: 0 | DN40: 0 | DO40: 100% PNW PPA | DR40: Bennett Creek | DT40: Bennett Creek | DU40: 0.21168 | DV40: 0.21756 | DW40: 0.46746 | DX40: 0.42042 | DY40: 0.34986 | DZ40: 0.40866 | EA40: 0.31458 | EB40: 0.3087 | EC40: 0.27636 | ED40: 0.20874 | EE40: 0.16464 | EF40: 0.17934 | EG40: 4.2336 | EH40: 4.3512 | EI40: 9.3492 | EJ40: 8.4084 | EK40: 6.9972 | EL40: 8.1732 | EM40: 6.2916 | EN40: 6.174 | EO40: 5.5272 | EP40: 4.1748 | EQ40: 3.2928 | ER40: 3.5868
A41: Bennett Mountain | B41: 1023 | C41: 55733 | D41: 1 | F41: GT | G41: NG | I41: Natural gas | J41: 172.8 | K41: 172.8 | L41: 180 | N41: 161 | O41: 178 | P41: 164 | Q41: 196.9 | U41: Operating | V41: Apr | W41: 2005 | Y41: Mountain Home | Z41: Elmore | AA41: ID | AB41: Y | AC41: Columbia | AD41: WECC | AE41: Idaho Power Co. | AF41: IOU | AG41: Idaho Power Co. | AH41: 3.82 | AI41: 6.33 | AJ41: 10915.8 | AO41: 1 | AT41: =AO41*J41 -> 172.8 | AU41: =IF(ISNUMBER(R41),R41,BX41)*AO41 -> 155.155 | AX41: Williams Northwest | AZ41: IPC | BG41: 5.61 | BH41: 11.27 | BI41: 4.8 | BJ41: 5.53 | BK41: 6.1 | BL41: 9.15 | BM41: 8.05 | BN41: 18.02 | BO41: 11.8 | BP41: (1) 162 MW Siemens-Westinghouse 501FD3 GT unit. Primarily for peaking - for use in meeting short-duration demands for electricity during summer peak. | BQ41: =VLOOKUP($B41,[2]!Table_intranet_power_vewProjectLatLongUrl[#Data],2,FALSE) -> 43.118 | BR41: =VLOOKUP($B41,[2]!Table_intranet_power_vewProjectLatLongUrl[#Data],3,FALSE) -> -115.686 | BS41: =VLOOKUP($B41,[2]!Table_intranet_power_vewProjectLatLongUrl[#Data],4,FALSE) -> http://www.idahopower.com/energycenter/electricitybasics/generation/thermal.htm#bennetMt | BT41: 2017-10-17T10:06:30 | BU41: 180 | BV41: 161 | BW41: 0.91 | BX41: 155.155 | BZ41: Y | CC41: PNW East | CD41: NGGT_PNWE | CE41: 10600 | CF41: 1 | CH41: 1 | CJ41: 1 | CN41: Bennett Mountain | CO41: PNW East | CP41: Thr | CQ41: GT | CR41: 180 | CS41: Apr-2005 | CT41: Jan-2051 | CU41: 10600 | CV41: PNW W. gas | CW41: 0.051 | CX41: 88 | CY41: FALSE | CZ41: MR 14d Winter Pk_Hydro | DA41: SCCT - PNW W. | DB41: Default | DC41: Default | DD41: 30 | DE41: CMS GT PNWE | DF41: 0 | DG41: 0 | DH41: FALSE | DI41: TRUE | DJ41: FALSE | DK41: FALSE | DL41: 0 | DM41: 0 | DN41: 0 | DR41: Bennett Mountain | DT41: Bennett Mountain | DU41: 166.0127256 | DV41: 171.5651098 | DW41: 176.4855033 | DX41: 179.7837711 | DY41: 180 | DZ41: 177.5250715 | EA41: 157.084692 | EB41: 137.6072882 | EC41: 134.4776733 | ED41: 131.8630033 | EE41: 161.3697794 | EF41: 161.8740952 | EG41: 157.5460766 | EH41: 162.8152892 | EI41: 167.4847427 | EJ41: 170.6147988 | EK41: 170.82 | EL41: 168.4712929 | EM41: 149.0733727 | EN41: 130.5893165 | EO41: 127.6193119 | EP41: 125.1379902 | EQ41: 153.1399207 | ER41: 153.6185164
A42: Benson Creek Wind (Huntington Wind) | B42: 2080 | C42: 59491 | D42: BCW | F42: WT | G42: WND | I42: Wind | J42: 10 | K42: 10 | P42: 10 | Q42: 10 | U42: Operating | V42: Mar | W42: 2017 | Y42: Huntington | Z42: Baker | AA42: OR | AB42: Y | AC42: Columbia | AD42: WECC | AE42: Oregon International Holdings (99%), D.E. Shaw Renewable (1%) | AF42: Independent | AG42: Idaho Power (20yr PPA - 2036) | AN42: 2036 | AO42: 1 | AT42: =AO42*J42 -> 10 | AZ42: IPC | BP42: Per PPA, all RECs go to owner of wind farm. | BQ42: =VLOOKUP($B42,[2]!Table_intranet_power_vewProjectLatLongUrl[#Data],2,FALSE) -> 44.366944 | BR42: =VLOOKUP($B42,[2]!Table_intranet_power_vewProjectLatLongUrl[#Data],3,FALSE) -> -117.343889 | BT42: 2017-11-07T11:43:27 | BU42: =IF(OR(I42="Wind",I42="Solar",I42="Hydro"),J42,IF(ISNUMBER(L42),L42,IF(ISNUMBER(O42), O42, IF(ISNUMBER(Q42),Q42,J42)))) -> 10 | BV42: =IF(OR(J42="Wind",J42="Solar",J42="Hydro"),J42,IF(ISNUMBER(N42),N42,IF(ISNUMBER(P42), P42, IF(ISNUMBER(L42),L42,J42)))) -> 10 | BW42: =IF(OR(ISBLANK(J42),ISBLANK(R42),J42=0),VLOOKUP(IF(G42="WAT","HY",IF(G42="LFG","LFG",F42)),Acapability,4,FALSE),R42/J42) -> 0.32 | BX42: =IF(ISNUMBER(R42),R42,AVERAGE(BU42,BV42)*BW42) -> 3.2 | BZ42: Y | CB42: 100% PNW PPA | CC42: PNW East | CD42: WN_SID | CF42: 1 | CH42: 0.05 | CJ42: 1 | CL42: Y | CN42: Benson Creek Wind (Huntington Wind) | CO42: PNW East | CP42: =IF(BZ42="N","",VLOOKUP($CD42,ATechDat,2,FALSE)) -> Thr | CQ42: =IF(BZ42="N","",VLOOKUP($CD42,ATechDat,3,FALSE)) -> Wind | CR42: 10 | CS42: Mar-2017 | CT42: Jan-2051 | CU42: 0 | CV42: =IF(BZ42="N","",VLOOKUP($CD42,ATechDat,4,FALSE)) -> Wind | CW42: =IF(BZ42="N","",VLOOKUP($CD42,ATechDat,5,FALSE)) -> 0 | CX42: =IF(BZ42="N","",VLOOKUP($CD42,ATechDat,6,FALSE)) -> 0 | CY42: =IF(BZ42="N","",VLOOKUP($CD42,ATechDat,7,FALSE)) -> FALSE | CZ42: =IF(BZ42="N","",VLOOKUP($CD42,ATechDat,8,FALSE)) -> Cf WN IDS | DA42: =IF(BZ42="N","",VLOOKUP($CD42,ATechDat,9,FALSE)) -> WindB1 | DB42: =IF(BZ42="N","",VLOOKUP($CD42,ATechDat,10,FALSE)) -> Default | DC42: =IF(BZ42="N","",VLOOKUP($CD42,ATechDat,11,FALSE)) -> Default | DD42: =IF(BZ42="N","",VLOOKUP($CD42,ATechDat,12,FALSE)) -> 20 | DE42: =IF(BZ42="N","",VLOOKUP($CD42,ATechDat,13,FALSE)) -> Flat | DF42: =IF(BZ42="N","",VLOOKUP($CD42,ATechDat,14,FALSE)) -> 0 | DG42: =IF(BZ42="N","",VLOOKUP($CD42,ATechDat,15,FALSE)) -> 1 | DH42: =IF(BZ42="N","",VLOOKUP($CD42,ATechDat,16,FALSE)) -> FALSE | DI42: =IF(BZ42="N","",VLOOKUP($CD42,ATechDat,17,FALSE)) -> TRUE | DJ42: =IF(BZ42="N","",VLOOKUP($CD42,ATechDat,18,FALSE)) -> FALSE | DK42: =IF(BZ42="N","",VLOOKUP($CD42,ATechDat,19,FALSE)) -> FALSE | DL42: =IF(BZ42="N","",VLOOKUP($CD42,ATechDat,20,FALSE)) -> 0 | DM42: =IF(BZ42="N","",VLOOKUP($CD42,ATechDat,21,FALSE)) -> 0 | DN42: =IF(BZ42="N","",VLOOKUP($CD42,ATechDat,22,FALSE)) -> 0 | DO42: 100% PNW PPA | DR42: Benson Creek Wind (Huntington Wind) | DT42: Benson Creek Wind (Huntington Wind) | DU42: 0.1008 | DV42: 0.1036 | DW42: 0.2226 | DX42: 0.2002 | DY42: 0.1666 | DZ42: 0.1946 | EA42: 0.1498 | EB42: 0.147 | EC42: 0.1316 | ED42: 0.0994 | EE42: 0.0784 | EF42: 0.0854 | EG42: 2.016 | EH42: 2.072 | EI42: 4.452 | EJ42: 4.004 | EK42: 3.332 | EL42: 3.892 | EM42: 2.996 | EN42: 2.94 | EO42: 2.632 | EP42: 1.988 | EQ42: 1.568 | ER42: 1.708
A43: Bethel 1 | B43: 1024 | F43: GT | G43: FO | I43: Petroleum | J43: 56.7 | U43: Retired | W43: 1973 | X43: 1998 | Y43: Salem | Z43: Marion | AA43: OR | AB43: Y | AC43: Columbia | AD43: WECC | AE43: Portland General Electric | AF43: IOU | AG43: Retired | AO43: 0 | AT43: 0 | AU43: 0 | BD43: n/a | BE43: n/a | BQ43: =VLOOKUP($B43,[2]!Table_intranet_power_vewProjectLatLongUrl[#Data],2,FALSE) -> 0 | BR43: =VLOOKUP($B43,[2]!Table_intranet_power_vewProjectLatLongUrl[#Data],3,FALSE) -> 0 | BS43: =VLOOKUP($B43,[2]!Table_intranet_power_vewProjectLatLongUrl[#Data],4,FALSE) -> 0 | BT43: 2001-01-19 | BU43: 56.7 | BV43: 56.7 | BW43: 0.91 | BX43: 51.597 | BZ43: N | CA43: Retired
A44: Bethel 2 | B44: 1025 | F44: GT | G44: FO | I44: Petroleum | J44: 56.7 | U44: Retired | W44: 1973 | X44: 1998 | Y44: Salem | Z44: Marion | AA44: OR | AB44: Y | AC44: Columbia | AD44: WECC | AE44: Portland General Electric | AF44: IOU | AG44: Retired | AO44: 0 | AT44: 0 | AU44: 0 | BD44: n/a | BE44: n/a | BQ44: =VLOOKUP($B44,[2]!Table_intranet_power_vewProjectLatLongUrl[#Data],2,FALSE) -> 0 | BR44: =VLOOKUP($B44,[2]!Table_intranet_power_vewProjectLatLongUrl[#Data],3,FALSE) -> 0 | BS44: =VLOOKUP($B44,[2]!Table_intranet_power_vewProjectLatLongUrl[#Data],4,FALSE) -> 0 | BT44: 2001-01-19 | BU44: 56.7 | BV44: 56.7 | BW44: 0.91 | BX44: 51.597 | BZ44: N | CA44: Retired
A45: Bettencourt B6 Dairy (Cargill) | B45: 1937 | C45: 57343 | D45: 1,2 | F45: BGICCG | G45: AW | I45: Biomass | J45: 2.25 | K45: 2.2 | M45: 1.25 | N45: 2.2 | O45: 2.2 | P45: 2.2 | Q45: 2.2 | U45: Operating | V45: Jun | W45: 2009 | Y45: Jerome | Z45: Gooding | AA45: ID | AB45: Y | AC45: Columbia | AD45: WECC | AE45: Cargill Environmental Finance | AF45: Independent | AG45: Idaho Power (QF Dec 2009 - Dec 2019) | AN45: 2019 | AO45: 1 | AT45: 2.25 | AU45: 1.65 | AV45: Internal thermal load | AW45: Waste digester | AZ45: IPC | BI45: 0.2 | BJ45: 0.22 | BK45: 1.1 | BL45: 1.04 | BM45: 1.08 | BN45: 0.93 | BO45: 1 | BQ45: =VLOOKUP($B45,[2]!Table_intranet_power_vewProjectLatLongUrl[#Data],2,FALSE) -> 42.717204 | BR45: =VLOOKUP($B45,[2]!Table_intranet_power_vewProjectLatLongUrl[#Data],3,FALSE) -> -114.616717 | BS45: =VLOOKUP($B45,[2]!Table_intranet_power_vewProjectLatLongUrl[#Data],4,FALSE) -> http://www.epa.gov/agstar/projects/profiles/bettencourtdairyb6farm.html | BT45: 2017-10-17T14:36:14 | BU45: 2.2 | BV45: 2.2 | BW45: 0.75 | BX45: 1.65 | BZ45: Y | CC45: PNW East | CD45: BGIC | CE45: 10250 | CF45: 1 | CH45: 1 | CJ45: 1 | CL45: Y | CN45: Bettencourt B6 Dairy (Cargill) | CO45: PNW East | CP45: Thr | CQ45: IC | CR45: 2.2 | CS45: Jun-2009 | CT45: Jan-2051 | CU45: 10250 | CV45: Zero-cost Biofuel | CW45: 0.047 | CX45: 56 | CY45: FALSE | CZ45: MR 7d Flat | DA45: Landfill | DB45: Default | DC45: Default | DD45: 20 | DE45: Flat | DF45: 0 | DG45: 1 | DH45: FALSE | DI45: TRUE | DJ45: FALSE | DK45: FALSE | DL45: 0 | DM45: 0 | DN45: 0 | DR45: Bettencourt B6 Dairy (Cargill) | DT45: Bettencourt B6 Dairy (Cargill) | DU45: 2.115616438 | DV45: 2.115616438 | DW45: 2.115616438 | DX45: 2.115616438 | DY45: 2.115616438 | DZ45: 2.115616438 | EA45: 2.115616438 | EB45: 2.115616438 | EC45: 2.115616438 | ED45: 2.115616438 | EE45: 2.115616438 | EF45: 2.115616438 | EG45: 2.016182466 | EH45: 2.016182466 | EI45: 2.016182466 | EJ45: 2.016182466 | EK45: 2.016182466 | EL45: 2.016182466 | EM45: 2.016182466 | EN45: 2.016182466 | EO45: 2.016182466 | EP45: 2.016182466 | EQ45: 2.016182466 | ER45: 2.016182466
A46: Bettencourt Dry Creek Biofactory (Cargill) | B46: 1678 | C46: 57344 | D46: GS1,GS2,GS3 | F46: BGICCG | G46: AW | I46: Biomass | J46: 2.25 | K46: 2.4 | L46: 2.3 | N46: 2.4 | O46: 2.4 | P46: 2.4 | Q46: 2.4 | U46: Operating | V46: Sep | W46: 2008 | Y46: Twin Falls | Z46: Wendell | AA46: ID | AB46: Y | AC46: Columbia | AD46: WECC | AE46: Cargill Environmental Finance | AF46: Independent | AG46: Idaho Power (QF Jan 2010 - Jan 2020) | AN46: 2020 | AO46: 1 | AT46: 2.25 | AU46: 1.7625 | AV46: Internal thermal load | AW46: Waste digester | AZ46: IPC | BI46: 1.4 | BJ46: 1.1 | BK46: 0.6 | BL46: 1.35 | BM46: 1.54 | BN46: 1.21 | BO46: 1.2 | BP46: Anaerobic digestor and (3) Guascor SFGLD 560 750 kW nameplate reciprocating engines. QF contract converted to firm Apr 2010. | BQ46: =VLOOKUP($B46,[2]!Table_intranet_power_vewProjectLatLongUrl[#Data],2,FALSE) -> 42.788344 | BR46: =VLOOKUP($B46,[2]!Table_intranet_power_vewProjectLatLongUrl[#Data],3,FALSE) -> -114.635735 | BS46: =VLOOKUP($B46,[2]!Table_intranet_power_vewProjectLatLongUrl[#Data],4,FALSE) -> http://bettencourtdairy.com/dry_creek_dairy_video | BT46: 2017-10-17T14:36:38 | BU46: 2.3 | BV46: 2.4 | BW46: 0.75 | BX46: 1.7625 | BZ46: Y | CC46: PNW East | CD46: BGIC | CE46: 10250 | CF46: 1 | CH46: 1 | CJ46: 1 | CL46: Y | CN46: Bettencourt Dry Creek Biofactory (Cargill) | CO46: PNW East | CP46: Thr | CQ46: IC | CR46: 2.3 | CS46: Sep-2008 | CT46: Jan-2051 | CU46: 10250 | CV46: Zero-cost Biofuel | CW46: 0.047 | CX46: 56 | CY46: FALSE | CZ46: MR 7d Flat | DA46: Landfill | DB46: Default | DC46: Default | DD46: 20 | DE46: Flat | DF46: 0 | DG46: 1 | DH46: FALSE | DI46: TRUE | DJ46: FALSE | DK46: FALSE | DL46: 0 | DM46: 0 | DN46: 0 | DR46: Bettencourt Dry Creek Biofactory (Cargill) | DT46: Bettencourt Dry Creek Biofactory (Cargill) | DU46: 2.211780822 | DV46: 2.211780822 | DW46: 2.211780822 | DX46: 2.211780822 | DY46: 2.211780822 | DZ46: 2.211780822 | EA46: 2.211780822 | EB46: 2.211780822 | EC46: 2.211780822 | ED46: 2.211780822 | EE46: 2.211780822 | EF46: 2.211780822 | EG46: 2.107827123 | EH46: 2.107827123 | EI46: 2.107827123 | EJ46: 2.107827123 | EK46: 2.107827123 | EL46: 2.107827123 | EM46: 2.107827123 | EN46: 2.107827123 | EO46: 2.107827123 | EP46: 2.107827123 | EQ46: 2.107827123 | ER46: 2.107827123
A47: Big Cliff | B47: 1026 | C47: 3074 | D47: 1 | E47: FCRPS | F47: Storage w/Div | G47: WAT | I47: Hydro | J47: 21 | K47: 18 | M47: 3.2 | N47: 21 | O47: 21 | P47: 21 | Q47: 21 | R47: 11 | T47: 11 | U47: Operating | W47: 1954 | Y47: N. Fk. Santiam R. | Z47: Linn | AA47: OR | AB47: Y | AC47: Columbia | AD47: WECC | AE47: USCE | AF47: Federal | AG47: BPA | AO47: 1 | AT47: 21 | AU47: 11 | AZ47: BPA | BA47: 10.8 | BB47: 11.3 | BC47: 9.9 | BD47: 2.95696347 | BE47: 5.192009132 | BF47: 9.3 | BG47: 5.89 | BH47: -0.02 | BI47: 4.1 | BJ47: 8.9 | BK47: 8.2 | BL47: 7.31 | BM47: 8.22 | BN47: 6.27 | BO47: 7.9 | BP47: Critical energy from PNUCC 2005 NRF | BQ47: =VLOOKUP($B47,[2]!Table_intranet_power_vewProjectLatLongUrl[#Data],2,FALSE) -> 44.7506775 | BR47: =VLOOKUP($B47,[2]!Table_intranet_power_vewProjectLatLongUrl[#Data],3,FALSE) -> -122.28313 | BS47: =VLOOKUP($B47,[2]!Table_intranet_power_vewProjectLatLongUrl[#Data],4,FALSE) -> http://www.bpa.gov/corporate/bpanews/library/images/dams/descriptions/BigCliff.cfm | BT47: 2017-10-17T10:07:33 | BU47: 21 | BV47: 21 | BW47: 0.5238095238 | BX47: 11 | BY47: Independent | BZ47: N | CA47: Accounted for in HydInd file | CP47: =IF(BZ47="N","",VLOOKUP($CD47,ATechDat,2,FALSE)) ->  | CQ47: =IF(BZ47="N","",VLOOKUP($CD47,ATechDat,3,FALSE)) ->  | CR47: =IF($BZ47="N","",IF($I47<>"Wind",($CF47*$CH47*IF(ISBLANK($L47),IF(ISBLANK($O47),$J47,$O47),$L47)),$J47*IF(AND($I47="Wind",SWFullWind="Y"),1,$CF47*$CH47))) ->  | CV47: =IF(BZ47="N","",VLOOKUP($CD47,ATechDat,4,FALSE)) ->  | CW47: =IF(BZ47="N","",VLOOKUP($CD47,ATechDat,5,FALSE)) ->  | CX47: =IF(BZ47="N","",VLOOKUP($CD47,ATechDat,6,FALSE)) ->  | CY47: =IF(BZ47="N","",VLOOKUP($CD47,ATechDat,7,FALSE)) ->  | CZ47: =IF(BZ47="N","",VLOOKUP($CD47,ATechDat,8,FALSE)) ->  | DA47: =IF(BZ47="N","",VLOOKUP($CD47,ATechDat,9,FALSE)) ->  | DB47: =IF(BZ47="N","",VLOOKUP($CD47,ATechDat,10,FALSE)) ->  | DC47: =IF(BZ47="N","",VLOOKUP($CD47,ATechDat,11,FALSE)) ->  | DD47: =IF(BZ47="N","",VLOOKUP($CD47,ATechDat,12,FALSE)) ->  | DE47: =IF(BZ47="N","",VLOOKUP($CD47,ATechDat,13,FALSE)) ->  | DF47: =IF(BZ47="N","",VLOOKUP($CD47,ATechDat,14,FALSE)) ->  | DG47: =IF(BZ47="N","",VLOOKUP($CD47,ATechDat,15,FALSE)) ->  | DH47: =IF(BZ47="N","",VLOOKUP($CD47,ATechDat,16,FALSE)) ->  | DI47: =IF(BZ47="N","",VLOOKUP($CD47,ATechDat,17,FALSE)) ->  | DJ47: =IF(BZ47="N","",VLOOKUP($CD47,ATechDat,18,FALSE)) ->  | DK47: =IF(BZ47="N","",VLOOKUP($CD47,ATechDat,19,FALSE)) ->  | DL47: =IF(BZ47="N","",VLOOKUP($CD47,ATechDat,20,FALSE)) ->  | DM47: =IF(BZ47="N","",VLOOKUP($CD47,ATechDat,21,FALSE)) ->  | DN47: =IF(BZ47="N","",VLOOKUP($CD47,ATechDat,22,FALSE)) -> 
A48: Big Fork 1 - 3 | B48: 1027 | C48: 6459 | D48: 1,2,3 | E48: 2652 | F48: Diversion | G48: WAT | I48: Hydro | J48: 4.1 | K48: 4.1 | M48: 2.4 | N48: 4.15 | O48: 4.15 | P48: 4.6 | Q48: 4.6 | R48: 16 | U48: Operating | W48: 1910 | Y48: Swan R. | Z48: Flathead | AA48: MT | AB48: Y | AC48: Columbia | AD48: WECC | AE48: PacifiCorp | AF48: IOU | AG48: PacifiCorp | AO48: 1 | AT48: 4.1 | AU48: 16 | AZ48: PACE | BA48: 2.2 | BB48: 3 | BC48: 1.2 | BD48: 1.231164384 | BE48: 1.187100457 | BF48: 0.9 | BG48: 0.93 | BH48: 3.31 | BI48: 3.7 | BJ48: 3.96 | BK48: 3.8 | BL48: 3.44 | BM48: 3.57 | BN48: 3.02 | BO48: 3.4 | BP48: Units 1 & 2 1.7 MW, Unit 3 0.7 MW. PAC minor. Original license granted September 1976; expired August 2002. | BQ48: =VLOOKUP($B48,[2]!Table_intranet_power_vewProjectLatLongUrl[#Data],2,FALSE) -> 48.0592 | BR48: =VLOOKUP($B48,[2]!Table_intranet_power_vewProjectLatLongUrl[#Data],3,FALSE) -> -114.0708 | BS48: =VLOOKUP($B48,[2]!Table_intranet_power_vewProjectLatLongUrl[#Data],4,FALSE) -> 0 | BT48: 2017-10-17T12:52:19 | BU48: 4.1 | BV48: 4.15 | BW48: 3.902439024 | BX48: 16 | BZ48: Y | CA48: Not accounted for in HydInd file | CN48: Big Fork 1 - 3 | CO48: 0 | CR48: 0 | CS48: Dec-1910 | CT48: Jan-2051 | CU48: 0 | DR48: Big Fork 1 - 3 | DT48: Big Fork 1 - 3
A49: Big Hanaford (Transalta Centralia 30-70) | B49: 1028 | C49: 3845 | D49: 30,40,50,60,70 | F49: CC | G49: NG | I49: Natural gas | J49: 322 | K49: 322 | L49: 248 | N49: 244 | O49: 256 | P49: 256 | Q49: 268 | U49: Retired | V49: Aug | W49: 2002 | X49: 2014 | Y49: Big Hanaford Valley | Z49: Lewis | AA49: WA | AB49: Y | AC49: Puget Sound & Coastal | AD49: WECC | AE49: TransAlta | AF49: Independent | AG49: Unannounced as of June 2010. | AO49: 0 | AT49: 0 | AU49: 0 | AX49: Williams Northwest | AZ49: BPA | BA49: 25.9 | BB49: 44.7 | BC49: 22.8 | BD49: 29.2 | BE49: 67 | BF49: 40.4 | BG49: 35.64 | BH49: 43.23 | BI49: 31.1 | BJ49: 0 | BK49: 0 | BP49: (4) GE LM6000 units in 4x1 CC configuration. aka TransAlta Centralia 30, 40, 50, 60, 70. TransAlta confirmed w/ BPA that plant is no longer in service; and no longer interconnected to the transmission grid. | BQ49: =VLOOKUP($B49,[2]!Table_intranet_power_vewProjectLatLongUrl[#Data],2,FALSE) -> 46.75 | BR49: =VLOOKUP($B49,[2]!Table_intranet_power_vewProjectLatLongUrl[#Data],3,FALSE) -> -122.863 | BS49: =VLOOKUP($B49,[2]!Table_intranet_power_vewProjectLatLongUrl[#Data],4,FALSE) -> http://www.transalta.com/transalta/webcms.nsf/AllDoc/8E2BA08371EE79B187257157004FC335?OpenDocument | BT49: 2015-02-02T14:03:48 | BU49: 248 | BV49: 244 | BW49: 0.89 | BX49: 218.94 | BZ49: N | CA49: Retired? | CB49: 100% Uncommitted IPP | CC49: PNW West | CD49: NGCC_PNWW | CE49: 7200 | CF49: 1 | CH49: 1 | CI49: 1 | CJ49: 1 | DO49: 100% Uncommitted IPP | DU49: =IF($BZ49="N","",IF(OR($I49<>"Wind",$I49<>"Solar",$I49<>"Hydro"),($CF49*$CH49*IF(ISBLANK($L49),IF(ISBLANK($O49),$J49,$O49),$L49))*VLOOKUP($CZ49,ASeasDist,DU$7,FALSE)*VLOOKUP($DE49,ASeasDist,DU$7),$J49*$CF49*$CH49)) ->  | EG49: =IF($BZ49="N","",IF(OR($I49<>"Wind",$I49<>"Solar",$I49<>"Hydro"),$CJ49*IF(ISBLANK($L49),IF(ISBLANK($O49),$J49,$O49),$L49),$J49)*(1-$CW49)*VLOOKUP($CZ49,ASeasDist,EG$7,FALSE)*VLOOKUP($DE49,ASeasDist,EG$7)) -> 
A50: Big Horn I | B50: 1029 | C50: 56361 | D50: 1 | F50: WT | G50: WND | I50: Wind | J50: 199.5 | K50: 199 | M50: 0 | N50: 67 | O50: 67 | P50: 199 | Q50: 199 | U50: Operating | V50: Oct | W50: 2006 | Y50: Bickleton | Z50: Klickitat | AA50: WA | AB50: Y | AC50: Columbia | AD50: WECC | AE50: Iberdrola Renewables | AF50: Independent | AG50: M-S-R Public Power Agency (Modesto, Santa Clara, Redding) (Oct 2006 - Oct 2031) | AN50: 2031 | AO50: 0 | AQ50: 1 | AT50: 0 | AU50: 0 | AZ50: BPA | BD50: n/a | BE50: 8.911187215 | BF50: 62.8 | BG50: 65.83 | BH50: 58.5 | BI50: 55.32 | BJ50: 64.65 | BK50: 59.3 | BL50: 57.47 | BM50: 59.05 | BN50: 49.3 | BO50: 57.4 | BP50: (133) GE 1.5 MW WTG. | BQ50: =VLOOKUP($B50,[2]!Table_intranet_power_vewProjectLatLongUrl[#Data],2,FALSE) -> 45.89842 | BR50: =VLOOKUP($B50,[2]!Table_intranet_power_vewProjectLatLongUrl[#Data],3,FALSE) -> -120.288483 | BS50: =VLOOKUP($B50,[2]!Table_intranet_power_vewProjectLatLongUrl[#Data],4,FALSE) -> http://www.facebook.com/pages/Big-Horn-Wind-Farm/136744476362272 | BT50: 2017-10-17T12:54:55 | BU50: 199.5 | BV50: 67 | BW50: 0.32 | BX50: 42.64 | BZ50: Y | CB50: 100% OOR PPA | CC50: PNW East | CD50: WN_PNWE | CE50: n/a | CF50: 0 | CH50: 0.05 | CJ50: 0 | CK50: OOR PPA | CL50: Y | CN50: Big Horn I | CO50: PNW East | CP50: Thr | CQ50: Wind | CR50: 199.5 | CS50: Oct-2006 | CT50: Jan-2051 | CU50: n/a | CV50: Wind | CW50: 0 | CX50: 0 | CY50: FALSE | CZ50: Cf WN PNWE | DA50: WindB1 | DB50: Default | DC50: Default | DD50: 20 | DE50: Flat | DF50: 0 | DG50: 1 | DH50: FALSE | DI50: TRUE | DJ50: FALSE | DK50: FALSE | DL50: 0 | DM50: 0 | DN50: 0 | DO50: 100% OOR PPA | DR50: Big Horn I | DT50: Big Horn I | DU50: 0 | DV50: 0 | DW50: 0 | DX50: 0 | DY50: 0 | DZ50: 0 | EA50: 0 | EB50: 0 | EC50: 0 | ED50: 0 | EE50: 0 | EF50: 0 | EG50: 0 | EH50: 0 | EI50: 0 | EJ50: 0 | EK50: 0 | EL50: 0 | EM50: 0 | EN50: 0 | EO50: 0 | EP50: 0 | EQ50: 0 | ER50: 0
A51: Big Horn II | B51: 1901 | C51: 57319 | D51: 1 | F51: WT | G51: WND | I51: Wind | J51: 50 | K51: 50 | M51: 0 | P51: 50 | Q51: 50 | U51: Operating | V51: Oct | W51: 2010 | Y51: Bickleton | Z51: Klickitat | AA51: WA | AB51: Y | AC51: Columbia | AD51: WECC | AE51: Iberdrola Renewables | AF51: Independent | AG51: M-S-R Public Power Agency (Modesto, Santa Clara, Redding) (25 yr PPA - Jan 2011 - Jan 2036) | AN51: 2036 | AO51: 0 | AQ51: 1 | AT51: 0 | AU51: 0 | AY51: BPA Rock Creek substation | AZ51: BPA | BI51: 2.9 | BJ51: 13.54 | BK51: 13.8 | BL51: 13.12 | BM51: 14.42 | BN51: 11.85 | BO51: 14 | BP51: RECs to PG&E through EOY 2010 | BQ51: =VLOOKUP($B51,[2]!Table_intranet_power_vewProjectLatLongUrl[#Data],2,FALSE) -> 45.840524 | BR51: =VLOOKUP($B51,[2]!Table_intranet_power_vewProjectLatLongUrl[#Data],3,FALSE) -> -120.326519 | BS51: =VLOOKUP($B51,[2]!Table_intranet_power_vewProjectLatLongUrl[#Data],4,FALSE) -> http://www.facebook.com/pages/Big-Horn-Wind-Farm/136744476362272 | BT51: 2017-10-17T12:54:42 | BU51: 50 | BW51: 0.32 | BX51: 16 | BZ51: Y | CA51: Operating | CB51: 100% OOR PPA | CC51: PNW East | CD51: WN_PNWE | CE51: n/a | CF51: 0 | CH51: 0.05 | CJ51: 0 | CK51: OOR PPA | CL51: Y | CN51: Big Horn II | CO51: PNW East | CP51: Thr | CQ51: Wind | CR51: 50 | CS51: Oct-2010 | CT51: Jan-2051 | CU51: n/a | CV51: Wind | CW51: 0 | CX51: 0 | CY51: FALSE | CZ51: Cf WN PNWE | DA51: WindB1 | DB51: Default | DC51: Default | DD51: 20 | DE51: Flat | DF51: 0 | DG51: 1 | DH51: FALSE | DI51: TRUE | DJ51: FALSE | DK51: FALSE | DL51: 0 | DM51: 0 | DN51: 0 | DO51: 100% OOR PPA | DR51: Big Horn II | DT51: Big Horn II | DU51: 0 | DV51: 0 | DW51: 0 | DX51: 0 | DY51: 0 | DZ51: 0 | EA51: 0 | EB51: 0 | EC51: 0 | ED51: 0 | EE51: 0 | EF51: 0 | EG51: 0 | EH51: 0 | EI51: 0 | EJ51: 0 | EK51: 0 | EL51: 0 | EM51: 0 | EN51: 0 | EO51: 0 | EP51: 0 | EQ51: 0 | ER51: 0
A52: Big Sheep Creek | B52: 1030 | C52: 50091 | D52: TB1,TB2 | E52: 5118 | F52: Diversion | G52: WAT | I52: Hydro | J52: 1.6 | K52: 1.6 | L52: 1.6 | N52: 1.6 | O52: 2 | P52: 1.6 | Q52: 1 | R52: 0.51 | U52: Operating | V52: Jun | W52: 1986 | Y52: Big Sheep Cr. | Z52: Stevens | AA52: WA | AB52: Y | AC52: Columbia | AD52: WECC | AE52: G.M. Phillips | AF52: Independent | AG52: Avista Utilities (QF thru Jun 2021) | AN52: 2021 | AO52: 1 | AT52: 1.6 | AU52: 0.51 | AZ52: BPA | BG52: 0.36 | BH52: 0.65 | BI52: 0.9 | BJ52: 0.85 | BK52: 0.9 | BL52: 0.99 | BM52: 0.89 | BN52: 0.94 | BO52: 1.2 | BP52: Exemption granted August 1983. | BQ52: =VLOOKUP($B52,[2]!Table_intranet_power_vewProjectLatLongUrl[#Data],2,FALSE) -> 48.947741 | BR52: =VLOOKUP($B52,[2]!Table_intranet_power_vewProjectLatLongUrl[#Data],3,FALSE) -> -117.795376 | BS52: =VLOOKUP($B52,[2]!Table_intranet_power_vewProjectLatLongUrl[#Data],4,FALSE) -> 0 | BT52: 2017-10-24T16:35:08 | BU52: 1.6 | BV52: =IF(OR(J52="Wind",J52="Solar",J52="Hydro"),J52,IF(ISNUMBER(N52),N52,IF(ISNUMBER(P52), P52, IF(ISNUMBER(L52),L52,J52)))) -> 1.6 | BW52: 0.31875 | BX52: 0.51 | BZ52: Y | CA52: Not accounted for in HydInd file | CC52: PNW East | CD52: HY_East | CE52: n/a | CF52: 1 | CH52: 1 | CJ52: 1 | CL52: Y | CN52: Big Sheep Creek | CO52: PNW East | CP52: Thr | CQ52: Hyd | CR52: 1.6 | CS52: Jun-1986 | CT52: Jan-2051 | CU52: n/a | CV52: Water | CW52: 0 | CX52: 24 | CY52: FALSE | CZ52: Cf HY East | DA52: Zero | DB52: Expense | DC52: Default | DD52: 50 | DE52: Flat | DF52: 0 | DG52: 0 | DH52: FALSE | DI52: TRUE | DJ52: FALSE | DK52: FALSE | DL52: 0 | DM52: 0 | DN52: 0 | DR52: Big Sheep Creek | DT52: Big Sheep Creek | DU52: 0.5228324383 | DV52: 0.686444313 | DW52: 0.6104150624 | DX52: 0.7754274479 | DY52: 0.892176468 | DZ52: 0.6885743751 | EA52: 0.8013510103 | EB52: 0.8657226538 | EC52: 1.137023252 | ED52: 1.056781162 | EE52: 1.05863507 | EF52: 0.9564888309 | EG52: 0.5228324383 | EH52: 0.686444313 | EI52: 0.6104150624 | EJ52: 0.7754274479 | EK52: 0.892176468 | EL52: 0.6885743751 | EM52: 0.8013510103 | EN52: 0.8657226538 | EO52: 1.137023252 | EP52: 1.056781162 | EQ52: 1.05863507 | ER52: 0.9564888309
A53: Big Sky West Dairy Digester | B53: 1693 | C53: 57393 | D53: GEN1,GEN2 | F53: BGICCG | G53: AW | I53: Biomass | J53: 1.5 | K53: 1.6 | L53: 1.4 | M53: 1.01 | N53: 1.4 | O53: 1.4 | P53: 1.4 | Q53: 1.4 | R53: 1.1 | U53: Operating | W53: 2009 | Y53: Gooding | Z53: Gooding | AA53: ID | AB53: Y | AC53: Columbia | AD53: WECC | AE53: Dean Foods Co./AgPower Partners | AF53: Independent | AG53: Idaho Power (QF Jan 2009 - Jan 2029) | AN53: 2029 | AO53: 1 | AP53: 0 | AT53: 1.5 | AU53: 1.1 | AV53: Internal thermal load | AW53: Waste digester | AZ53: IPC | BI53: 1.1 | BJ53: 1.03 | BK53: 1 | BL53: 0.92 | BM53: 1 | BN53: 1 | BO53: 1 | BP53: Gasification of cattle waste. Anaerobic digestor and (2) Guascor SFGLD 560 750 kW nameplate reciprocating engines. | BQ53: =VLOOKUP($B53,[2]!Table_intranet_power_vewProjectLatLongUrl[#Data],2,FALSE) -> 42.846975 | BR53: =VLOOKUP($B53,[2]!Table_intranet_power_vewProjectLatLongUrl[#Data],3,FALSE) -> -114.800487 | BS53: =VLOOKUP($B53,[2]!Table_intranet_power_vewProjectLatLongUrl[#Data],4,FALSE) -> http://www.andgar.com/specialty-general-contracting-digester-projects-in-progress-big-sky-dairy.php | BT53: 2017-10-17T12:55:40 | BU53: 1.4 | BV53: 1.4 | BW53: 0.7333333333 | BX53: 1.1 | BZ53: Y | CC53: PNW West | CD53: BGIC | CE53: 10250 | CF53: 1 | CH53: 1 | CJ53: 1 | CL53: Y | CN53: Big Sky West Dairy Digester | CO53: PNW West | CP53: Thr | CQ53: IC | CR53: 1.4 | CS53: Dec-2009 | CT53: Jan-2051 | CU53: 10250 | CV53: Zero-cost Biofuel | CW53: 0.047 | CX53: 56 | CY53: FALSE | CZ53: MR 7d Flat | DA53: Landfill | DB53: Default | DC53: Default | DD53: 20 | DE53: Flat | DF53: 0 | DG53: 1 | DH53: FALSE | DI53: TRUE | DJ53: FALSE | DK53: FALSE | DL53: 0 | DM53: 0 | DN53: 0 | DR53: Big Sky West Dairy Digester | DT53: Big Sky West Dairy Digester | DU53: 1.34630137 | DV53: 1.34630137 | DW53: 1.34630137 | DX53: 1.34630137 | DY53: 1.34630137 | DZ53: 1.34630137 | EA53: 1.34630137 | EB53: 1.34630137 | EC53: 1.34630137 | ED53: 1.34630137 | EE53: 1.34630137 | EF53: 1.34630137 | EG53: 1.283025205 | EH53: 1.283025205 | EI53: 1.283025205 | EJ53: 1.283025205 | EK53: 1.283025205 | EL53: 1.283025205 | EM53: 1.283025205 | EN53: 1.283025205 | EO53: 1.283025205 | EP53: 1.283025205 | EQ53: 1.283025205 | ER53: 1.283025205
A54: Big Top (Echo Wind Farm) | B54: 1980 | C54: 56968 | D54: 1 | F54: WT | G54: WND | I54: Wind | J54: 1.65 | K54: 1.7 | N54: 1.7 | O54: 1.7 | P54: 1.7 | Q54: 1.7 | U54: Operating | V54: Jul | W54: 2009 | Y54: Echo vicinity | Z54: Morrow/Umatilla | AA54: OR | AB54: Y | AC54: Columbia | AD54: WECC | AE54: Exelon (John Deere Renwables) | AF54: Independent | AG54: PacifiCorp | AO54: 1 | AP54: 0 | AT54: 1.65 | AY54: PacifiCorp Irrigon Substation | AZ54: PACW | BH54: 0.09 | BI54: 0.3 | BJ54: 0.44 | BK54: 0.4 | BL54: 0.43 | BM54: 0.44 | BN54: 0.394 | BO54: 0.4 | BP54: Big Top Wind Farm is a part of Echo Wind Farm (1-9). Echo Wind Farm (1-9) is powered by (10) RePower MM92 turbines and (27) Vestas V82 turbines. Echo Wind Farm has a capacity of 64.5 MW. | BQ54: =VLOOKUP($B54,[2]!Table_intranet_power_vewProjectLatLongUrl[#Data],2,FALSE) -> 45.724 | BR54: =VLOOKUP($B54,[2]!Table_intranet_power_vewProjectLatLongUrl[#Data],3,FALSE) -> -119.436 | BS54: =VLOOKUP($B54,[2]!Table_intranet_power_vewProjectLatLongUrl[#Data],4,FALSE) -> 0 | BT54: 2017-10-17T12:57:20 | BU54: 1.65 | BV54: 1.7 | BW54: 0.32 | BX54: 0.536 | BZ54: Y | CB54: 100% PNW PPA | CC54: PNW East | CD54: WN_PNWE | CE54: n/a | CF54: 1 | CH54: 0.05 | CJ54: 1 | CL54: Y | CN54: Big Top (Echo Wind Farm) | CO54: PNW East | CP54: Thr | CQ54: Wind | CR54: 1.65 | CS54: Jul-2009 | CT54: Jan-2051 | CU54: n/a | CV54: Wind | CW54: 0 | CX54: 0 | CY54: FALSE | CZ54: Cf WN PNWE | DA54: WindB1 | DB54: Default | DC54: Default | DD54: 20 | DE54: Flat | DF54: 0 | DG54: 1 | DH54: FALSE | DI54: TRUE | DJ54: FALSE | DK54: FALSE | DL54: 0 | DM54: 0 | DN54: 0 | DO54: 100% PNW PPA | DR54: Big Top (Echo Wind Farm) | DT54: Big Top (Echo Wind Farm) | DU54: 0.02397 | DV54: 0.018615 | DW54: 0.021675 | DX54: 0.02448 | DY54: 0.026265 | DZ54: 0.02295 | EA54: 0.027285 | EB54: 0.027285 | EC54: 0.030855 | ED54: 0.027285 | EE54: 0.028305 | EF54: 0.027285 | EG54: 0.4794 | EH54: 0.3723 | EI54: 0.4335 | EJ54: 0.4896 | EK54: 0.5253 | EL54: 0.459 | EM54: 0.5457 | EN54: 0.5457 | EO54: 0.6171 | EP54: 0.5457 | EQ54: 0.5661 | ER54: 0.5457
A55: Biglow Canyon I | B55: 1031 | C55: 56485 | D55: 1 | F55: WT | G55: WND | I55: Wind | J55: 125.4 | K55: 125.4 | M55: 0 | P55: 125.4 | Q55: 125.4 | R55: 41.8 | U55: Operating | V55: Dec | W55: 2007 | Y55: Wasco | Z55: Sherman | AA55: OR | AB55: Y | AC55: Columbia | AD55: WECC | AE55: Portland General Electric | AF55: IOU | AG55: Portland General Electric | AN55: n/a | AO55: 1 | AP55: 0 | AQ55: 0 | AR55: 0 | AS55: 0 | AT55: =AO55*J55 -> 125.4 | AU55: =IF(ISNUMBER(R55),R55,BX55)*AO55 -> 41.8 | AY55: BPA John Day | AZ55: BPA | BF55: 3.2 | BG55: 43.87 | BH55: 39.25 | BI55: 35.61 | BJ55: 55.51 | BK55: 126.5 | BL55: 135.94 | BM55: 130.42 | BN55: 119.32 | BO55: 120.8 | BP55: (76) Vestas V82 1.65 MW WTG. | BQ55: =VLOOKUP($B55,[2]!Table_intranet_power_vewProjectLatLongUrl[#Data],2,FALSE) -> 45.694343 | BR55: =VLOOKUP($B55,[2]!Table_intranet_power_vewProjectLatLongUrl[#Data],3,FALSE) -> -120.626478 | BS55: =VLOOKUP($B55,[2]!Table_intranet_power_vewProjectLatLongUrl[#Data],4,FALSE) -> http://en.wikipedia.org/wiki/Biglow_Canyon_Wind_Farm | BT55: 2017-10-17T13:00:30 | BU55: 125.4 | BV55: 125.4 | BW55: 0.3333333333 | BX55: 41.8 | BZ55: Y | CB55: 100% PNW Utility Owner | CC55: PNW East | CD55: WN_PNWE | CE55: n/a | CF55: 1 | CH55: 0.05 | CJ55: 1 | CL55: Y | CN55: Biglow Canyon I | CO55: PNW East | CP55: Thr | CQ55: Wind | CR55: 125.4 | CS55: Dec-2007 | CT55: Jan-2051 | CU55: n/a | CV55: Wind | CW55: 0 | CX55: 0 | CY55: FALSE | CZ55: Cf WN PNWE | DA55: WindB1 | DB55: Default | DC55: Default | DD55: 20 | DE55: Flat | DF55: 0 | DG55: 1 | DH55: FALSE | DI55: TRUE | DJ55: FALSE | DK55: FALSE | DL55: 0 | DM55: 0 | DN55: 0 | DO55: 100% PNW Utility Owner | DR55: Biglow Canyon I | DT55: Biglow Canyon I | DU55: 1.76814 | DV55: 1.37313 | DW55: 1.59885 | DX55: 1.80576 | DY55: 1.93743 | DZ55: 1.6929 | EA55: 2.01267 | EB55: 2.01267 | EC55: 2.27601 | ED55: 2.01267 | EE55: 2.08791 | EF55: 2.01267 | EG55: 35.3628 | EH55: 27.4626 | EI55: 31.977 | EJ55: 36.1152 | EK55: 38.7486 | EL55: 33.858 | EM55: 40.2534 | EN55: 40.2534 | EO55: 45.5202 | EP55: 40.2534 | EQ55: 41.7582 | ER55: 40.2534
A56: Biglow Canyon II | B56: 1679 | C56: 56485 | D56: 2 | F56: WT | G56: WND | I56: Wind | J56: 149.5 | K56: 163.3 | M56: 0 | P56: 163.3 | Q56: 163.3 | R56: 49.83333333 | U56: Operating | V56: Aug | W56: 2009 | Y56: Wasco | Z56: Sherman | AA56: OR | AB56: Y | AC56: Columbia | AD56: WECC | AE56: Portland General Electric | AF56: IOU | AG56: Portland General Electric | AN56: n/a | AO56: 1 | AP56: 0 | AQ56: 0 | AR56: 0 | AS56: 0 | AT56: =AO56*J56 -> 149.5 | AU56: =IF(ISNUMBER(R56),R56,BX56)*AO56 -> 49.83333333 | AY56: BPA John Day | AZ56: BPA | BP56: (65) Siemens SWT-2.3-93 WTG. | BQ56: =VLOOKUP($B56,[2]!Table_intranet_power_vewProjectLatLongUrl[#Data],2,FALSE) -> 45.694343 | BR56: =VLOOKUP($B56,[2]!Table_intranet_power_vewProjectLatLongUrl[#Data],3,FALSE) -> -120.626478 | BS56: =VLOOKUP($B56,[2]!Table_intranet_power_vewProjectLatLongUrl[#Data],4,FALSE) -> http://en.wikipedia.org/wiki/Biglow_Canyon_Wind_Farm | BT56: 2017-10-17T13:00:33 | BU56: 149.5 | BV56: 163.3 | BW56: 0.3333333333 | BX56: 49.83333333 | BZ56: Y | CB56: 100% PNW Utility Owner | CC56: PNW East | CD56: WN_PNWE | CE56: n/a | CF56: 1 | CH56: 0.05 | CJ56: 1 | CL56: Y | CN56: Biglow Canyon II | CO56: PNW East | CP56: Thr | CQ56: Wind | CR56: 149.5 | CS56: Aug-2009 | CT56: Jan-2051 | CU56: n/a | CV56: Wind | CW56: 0 | CX56: 0 | CY56: FALSE | CZ56: Cf WN PNWE | DA56: WindB1 | DB56: Default | DC56: Default | DD56: 20 | DE56: Flat | DF56: 0 | DG56: 1 | DH56: FALSE | DI56: TRUE | DJ56: FALSE | DK56: FALSE | DL56: 0 | DM56: 0 | DN56: 0 | DO56: 100% PNW Utility Owner | DR56: Biglow Canyon II | DT56: Biglow Canyon II | DU56: 2.10795 | DV56: 1.637025 | DW56: 1.906125 | DX56: 2.1528 | DY56: 2.309775 | DZ56: 2.01825 | EA56: 2.399475 | EB56: 2.399475 | EC56: 2.713425 | ED56: 2.399475 | EE56: 2.489175 | EF56: 2.399475 | EG56: 42.159 | EH56: 32.7405 | EI56: 38.1225 | EJ56: 43.056 | EK56: 46.1955 | EL56: 40.365 | EM56: 47.9895 | EN56: 47.9895 | EO56: 54.2685 | EP56: 47.9895 | EQ56: 49.7835 | ER56: 47.9895
A57: Biglow Canyon III | B57: 1695 | C57: 56485 | D57: 3 | F57: WT | G57: WND | I57: Wind | J57: 174.8 | K57: 161 | M57: 0 | P57: 161 | Q57: 161 | R57: 60.9 | U57: Operating | V57: Aug | W57: 2010 | Y57: Wasco | Z57: Sherman | AA57: OR | AB57: Y | AC57: Columbia | AD57: WECC | AE57: Portland General Electric | AF57: IOU | AG57: Portland General Electric | AN57: n/a | AO57: 1 | AP57: 0 | AQ57: 0 | AR57: 0 | AS57: 0 | AT57: =AO57*J57 -> 174.8 | AU57: =IF(ISNUMBER(R57),R57,BX57)*AO57 -> 60.9 | AY57: BPA John Day | AZ57: BPA | BP57: (76) Siemens SWT-2.3-93 WTG. | BQ57: =VLOOKUP($B57,[2]!Table_intranet_power_vewProjectLatLongUrl[#Data],2,FALSE) -> 45.694343 | BR57: =VLOOKUP($B57,[2]!Table_intranet_power_vewProjectLatLongUrl[#Data],3,FALSE) -> -120.626478 | BS57: =VLOOKUP($B57,[2]!Table_intranet_power_vewProjectLatLongUrl[#Data],4,FALSE) -> http://en.wikipedia.org/wiki/Biglow_Canyon_Wind_Farm | BT57: 2017-10-17T13:00:36 | BU57: 174.8 | BV57: 161 | BW57: 0.3483981693 | BX57: 60.9 | BZ57: Y | CB57: 100% PNW Utility Owner | CC57: PNW East | CD57: WN_PNWE | CE57: n/a | CF57: 1 | CH57: 0.05 | CJ57: 1 | CL57: Y | CN57: Biglow Canyon III | CO57: PNW East | CP57: Thr | CQ57: Wind | CR57: 174.8 | CS57: Aug-2010 | CT57: Jan-2051 | CU57: n/a | CV57: Wind | CW57: 0 | CX57: 0 | CY57: FALSE | CZ57: Cf WN PNWE | DA57: WindB1 | DB57: Default | DC57: Default | DD57: 20 | DE57: Flat | DF57: 0 | DG57: 1 | DH57: FALSE | DI57: TRUE | DJ57: FALSE | DK57: FALSE | DL57: 0 | DM57: 0 | DN57: 0 | DO57: 100% PNW Utility Owner | DR57: Biglow Canyon III | DT57: Biglow Canyon III | DU57: 2.46468 | DV57: 1.91406 | DW57: 2.2287 | DX57: 2.51712 | DY57: 2.70066 | DZ57: 2.3598 | EA57: 2.80554 | EB57: 2.80554 | EC57: 3.17262 | ED57: 2.80554 | EE57: 2.91042 | EF57: 2.80554 | EG57: 49.2936 | EH57: 38.2812 | EI57: 44.574 | EJ57: 50.3424 | EK57: 54.0132 | EL57: 47.196 | EM57: 56.1108 | EN57: 56.1108 | EO57: 63.4524 | EP57: 56.1108 | EQ57: 58.2084 | ER57: 56.1108
A58: Billingsley Creek | B58: 1032 | E58: 6208 | F58: Diversion | G58: WAT | I58: Hydro | J58: 0.28 | L58: 0.2 | R58: 0.13 | U58: Operating | W58: 1986 | Y58: Billlingsley Cr. | Z58: Gooding | AA58: ID | AB58: Y | AC58: Columbia | AD58: WECC | AE58: Trout-Co. Inc. | AF58: Independent | AG58: Idaho Power Co. (QF thru Nov 2021) | AN58: 2021 | AO58: 1 | AT58: =AO58*J58 -> 0.28 | AU58: =IF(ISNUMBER(R58),R58,BX58)*AO58 -> 0.13 | BP58: Exemption granted September 1982. | BQ58: =VLOOKUP($B58,[2]!Table_intranet_power_vewProjectLatLongUrl[#Data],2,FALSE) -> 0 | BR58: =VLOOKUP($B58,[2]!Table_intranet_power_vewProjectLatLongUrl[#Data],3,FALSE) -> 0 | BS58: =VLOOKUP($B58,[2]!Table_intranet_power_vewProjectLatLongUrl[#Data],4,FALSE) -> 0 | BT58: 2010-06-22 | BU58: 0.28 | BV58: 0.2 | BW58: 0.4642857143 | BX58: 0.13 | BZ58: N | CA58: <0.5 MW
A59: Biofuels Washington Renewable Energy Facility | B59: 2084 | C59: 58688 | D59: A,B,C | F59: IC | G59: LFG | I59: Biomass | J59: 4.5 | K59: 4.5 | P59: 4.5 | Q59: 4.5 | U59: Operating | V59: Dec | W59: 2013 | Y59: Graham Landfill | Z59: Pierce | AA59: WA | AB59: Y | AC59: Columbia | AD59: WECC | AE59: BioFuels Washington, LLC | AF59: Municipal | AG59: Puget Sound Energy (RECs to be split between PSE and Benton Co. PUD) | AO59: 1 | AT59: 4.5 | AU59: 3.375 | AZ59: PSE | BL59: 0.18 | BM59: 4.19 | BN59: 3.89 | BO59: 4.2 | BP59: (3) 1.5 MW 3520 Caterpillar generators. DG so REC's count double. RECs split between PSE and Benton Cty PUD. | BQ59: =VLOOKUP($B59,[2]!Table_intranet_power_vewProjectLatLongUrl[#Data],2,FALSE) -> 46.975556 | BR59: =VLOOKUP($B59,[2]!Table_intranet_power_vewProjectLatLongUrl[#Data],3,FALSE) -> -122.290556 | BS59: =VLOOKUP($B59,[2]!Table_intranet_power_vewProjectLatLongUrl[#Data],4,FALSE) -> http://www.tpchd.org/environment/waste-management/lri-landfill/biofuels/ | BT59: 2017-10-24T09:48:24 | BU59: 4.5 | BV59: 4.5 | BW59: =IF(OR(ISBLANK(J59),ISBLANK(R59),J59=0),VLOOKUP(IF(G59="WAT","HY",IF(G59="LFG","LFG",F59)),Acapability,4,FALSE),R59/J59) -> 0.75 | BX59: 3.375 | BZ59: Y | CB59: 100% PNW PPA | CC59: PNW West | CD59: BGIC | CE59: 11075 | CF59: 1 | CH59: 1 | CJ59: 1 | CL59: Y | CN59: Biofuels Washington Renewable Energy Facility | CO59: PNW West | CP59: Thr | CQ59: IC | CR59: 4.5 | CS59: Dec-2013 | CT59: Jan-2051 | CU59: 11075 | CV59: Zero-cost Biofuel | CW59: 0.047 | CX59: 56 | CY59: FALSE | CZ59: MR 7d Flat | DA59: Landfill | DB59: Default | DC59: Default | DD59: 20 | DE59: Flat | DF59: 0 | DG59: 1 | DH59: FALSE | DI59: TRUE | DJ59: FALSE | DK59: FALSE | DL59: 0 | DM59: 0 | DN59: 0 | DO59: 100% PNW PPA | DR59: Biofuels Washington Renewable Energy Facility | DT59: Biofuels Washington Renewable Energy Facility | DU59: =IF($BZ59="N","",IF(OR($I59<>"Wind",$I59<>"Solar",$I59<>"Hydro"),($CF59*$CH59*IF(ISBLANK($L59),IF(ISBLANK($O59),$J59,$O59),$L59))*VLOOKUP($CZ59,ASeasDist,DU$7,FALSE)*VLOOKUP($DE59,ASeasDist,DU$7),$J59*$CF59*$CH59)) -> 4.32739726 | DV59: 4.32739726 | DW59: 4.32739726 | DX59: 4.32739726 | DY59: 4.32739726 | DZ59: 4.32739726 | EA59: 4.32739726 | EB59: 4.32739726 | EC59: 4.32739726 | ED59: 4.32739726 | EE59: 4.32739726 | EF59: 4.32739726 | EG59: =IF($BZ59="N","",IF(OR($I59<>"Wind",$I59<>"Solar",$I59<>"Hydro"),$CJ59*IF(ISBLANK($L59),IF(ISBLANK($O59),$J59,$O59),$L59),$J59)*(1-$CW59)*VLOOKUP($CZ59,ASeasDist,EG$7,FALSE)*VLOOKUP($DE59,ASeasDist,EG$7)) -> 4.124009589 | EH59: 4.124009589 | EI59: 4.124009589 | EJ59: 4.124009589 | EK59: 4.124009589 | EL59: 4.124009589 | EM59: 4.124009589 | EN59: 4.124009589 | EO59: 4.124009589 | EP59: 4.124009589 | EQ59: 4.124009589 | ER59: 4.124009589
A60: Biomass One 1 & 2 | B60: 1033 | C60: 10869 | D60: BBC,GE,GE-2 | F60: STCG | G60: WW | I60: Biomass | J60: 30 | K60: 40 | L60: 25 | N60: 29 | O60: 29 | P60: 36.5 | Q60: 36.5 | U60: Operating | V60: Dec | W60: 1985 | Y60: White City | Z60: Jackson | AA60: OR | AB60: Y | AC60: Puget Sound & Coastal | AD60: WECC | AE60: Biomass 1, L.P. | AF60: Independent | AG60: PacifiCorp (QF Dec 1985 - Dec 2011) | AN60: 2011 | AO60: 1 | AT60: 30 | AU60: 21.6 | AW60: Lumber & wood products | AZ60: PACW | BE60: 5.413812785 | BF60: 4.4 | BG60: 4.31 | BH60: 14.5 | BI60: 17.3 | BJ60: 13.41 | BK60: 14.6 | BL60: 19.64 | BM60: 22.28 | BN60: 17.42 | BO60: 17.7 | BP60: Unit 1 (10 MW) operating; Unit 2 (15 MW) idle, DOE/EIA-0095(99)/2 | BQ60: =VLOOKUP($B60,[2]!Table_intranet_power_vewProjectLatLongUrl[#Data],2,FALSE) -> 42.436 | BR60: =VLOOKUP($B60,[2]!Table_intranet_power_vewProjectLatLongUrl[#Data],3,FALSE) -> -122.85 | BS60: =VLOOKUP($B60,[2]!Table_intranet_power_vewProjectLatLongUrl[#Data],4,FALSE) -> http://www.biomassone.com/ | BT60: 2017-10-17T13:01:48 | BU60: 25 | BV60: 29 | BW60: 0.8 | BX60: 21.6 | BZ60: Y | CC60: PNW West | CD60: WWSTCG | CE60: 8000 | CF60: 1 | CH60: 1 | CJ60: 1 | CL60: Y | CN60: Biomass One 1 & 2 | CO60: PNW West | CP60: Thr | CQ60: STCG | CR60: 25 | CS60: Dec-1985 | CT60: Jan-2051 | CU60: 8000 | CV60: Mill Residue | CW60: 0.07 | CX60: 56 | CY60: FALSE | CZ60: MR 28d Flat | DA60: Bio1 | DB60: Default | DC60: Default | DD60: 30 | DE60: Flat | DF60: 0 | DG60: 1 | DH60: FALSE | DI60: TRUE | DJ60: FALSE | DK60: FALSE | DL60: 0 | DM60: 0 | DN60: 0 | DR60: Biomass One 1 & 2 | DT60: Biomass One 1 & 2 | DU60: 22.60273973 | DV60: 22.60273973 | DW60: 22.60273973 | DX60: 22.60273973 | DY60: 22.60273973 | DZ60: 22.60273973 | EA60: 22.60273973 | EB60: 22.60273973 | EC60: 22.60273973 | ED60: 22.60273973 | EE60: 22.60273973 | EF60: 22.60273973 | EG60: 21.02054795 | EH60: 21.02054795 | EI60: 21.02054795 | EJ60: 21.02054795 | EK60: 21.02054795 | EL60: 21.02054795 | EM60: 21.02054795 | EN60: 21.02054795 | EO60: 21.02054795 | EP60: 21.02054795 | EQ60: 21.02054795 | ER60: 21.02054795
A61: Biotech/Life Sciences Building Generator 836 | B61: 1993 | C61: 56932 | D61: BLS1 | F61: IC | G61: FO2 | I61: Petroleum | J61: 1 | K61: 1 | N61: 1 | O61: 1 | P61: 1 | Q61: 1 | U61: Operating | V61: May | W61: 2009 | Y61: Pullman | Z61: Whitman | AA61: WA | AB61: Y | AC61: Columbia | AD61: WECC | AE61: State of Washington | AF61: Independent | AG61: Load-side emrg. | AO61: 1 | AT61: 1 | AU61: 0.93 | AZ61: Avista | BI61: 0 | BJ61: 0 | BK61: 0 | BL61: 0 | BM61: 0 | BN61: 0 | BO61: 0 | BP61: (1) 1MW FO IC unit | BQ61: =VLOOKUP($B61,[2]!Table_intranet_power_vewProjectLatLongUrl[#Data],2,FALSE) -> 46.7331 | BR61: =VLOOKUP($B61,[2]!Table_intranet_power_vewProjectLatLongUrl[#Data],3,FALSE) -> -117.1583 | BS61: =VLOOKUP($B61,[2]!Table_intranet_power_vewProjectLatLongUrl[#Data],4,FALSE) -> 0 | BT61: 2017-10-17T13:03:01 | BU61: 1 | BV61: 1 | BW61: 0.93 | BX61: 0.93 | BZ61: Y | CC61: PNW East | CD61: NGIC_PNWE | CE61: 10100 | CF61: 1 | CH61: 1 | CJ61: 0 | CN61: Biotech/Life Sciences Building Generator 836 | CO61: PNW East | CP61: Thr | CQ61: IC | CR61: 1 | CS61: May-2009 | CT61: Jan-2051 | CU61: 10100 | CV61: PNW E. gas | CW61: 0.047 | CX61: 56 | CY61: FALSE | CZ61: MR 7d Winter Pk_Hydro | DA61: NG Recip Peaking E | DB61: Default | DC61: Default | DD61: 30 | DE61: Flat | DF61: 0 | DG61: 0 | DH61: FALSE | DI61: TRUE | DJ61: FALSE | DK61: FALSE | DL61: 0 | DM61: 0 | DN61: 0 | DR61: Biotech/Life Sciences Building Generator 836 | DT61: =CN61 -> Biotech/Life Sciences Building Generator 836 | DU61: 1 | DV61: 1 | DW61: 1 | DX61: 1 | DY61: 1 | DZ61: 1 | EA61: 0.9342465753 | EB61: 0.8684931507 | EC61: 0.8684931507 | ED61: 0.8684931507 | EE61: 1 | EF61: 1 | EG61: 0 | EH61: 0 | EI61: 0 | EJ61: 0 | EK61: 0 | EL61: 0 | EM61: 0 | EN61: 0 | EO61: 0 | EP61: 0 | EQ61: 0 | ER61: 0
A62: Birch Creek | B62: 1034 | C62: 10140 | D62: GEN1 | E62: 7194 | F62: Canal | G62: WAT | I62: Hydro | J62: 2.6 | K62: 2.6 | L62: 0 | N62: 2.6 | O62: 2.6 | P62: 2.6 | Q62: 2.6 | T62: 0 | U62: Operating | V62: Apr | W62: 1986 | Y62: Birch Cr. | Z62: Clark | AA62: ID | AB62: Y | AC62: Columbia | AD62: WECC | AE62: Birch Power Co. & T.S. Sorenson | AF62: Independent | AG62: Idaho Power Co. (QF thru Oct 2019) | AN62: 2019 | AO62: 1 | AT62: 2.6 | AU62: 1.1102 | AZ62: PACE | BE62: 0.5530821918 | BF62: 0.4 | BG62: 0.46 | BH62: 1.29 | BI62: 1.2 | BJ62: 1.49 | BK62: 1.8 | BL62: 1.4 | BM62: 1.51 | BN62: 1.4 | BO62: 1.3 | BP62: License granted May 1986; expires April 2036. Critical energy from PNUCC 2005 NRF | BQ62: =VLOOKUP($B62,[2]!Table_intranet_power_vewProjectLatLongUrl[#Data],2,FALSE) -> 44.027444 | BR62: =VLOOKUP($B62,[2]!Table_intranet_power_vewProjectLatLongUrl[#Data],3,FALSE) -> -112.719439 | BS62: =VLOOKUP($B62,[2]!Table_intranet_power_vewProjectLatLongUrl[#Data],4,FALSE) -> 0 | BT62: 2017-10-17T13:04:36 | BU62: 2.6 | BV62: 2.6 | BW62: 0.427 | BX62: 1.1102 | BZ62: Y | CA62: Not accounted for in HydInd file | CC62: PNW East | CD62: HY_Irr | CE62: n/a | CF62: 1 | CH62: 1 | CJ62: 1 | CL62: Y | CN62: Birch Creek | CO62: PNW East | CP62: Thr | CQ62: Hyd | CR62: 0 | CS62: Apr-1986 | CT62: Jan-2051 | CU62: n/a | CV62: Water | CW62: 0 | CX62: 24 | CY62: FALSE | CZ62: Cf HY Irr | DA62: Zero | DB62: Expense | DC62: Default | DD62: 50 | DE62: Flat | DF62: 0 | DG62: 0 | DH62: FALSE | DI62: TRUE | DJ62: FALSE | DK62: FALSE | DL62: 0 | DM62: 0 | DN62: 0 | DR62: Birch Creek | DT62: Birch Creek | DU62: 0 | DV62: 0 | DW62: 0 | DX62: 0 | DY62: 0 | DZ62: 0 | EA62: 0 | EB62: 0 | EC62: 0 | ED62: 0 | EE62: 0 | EF62: 0 | EG62: 0 | EH62: 0 | EI62: 0 | EJ62: 0 | EK62: 0 | EL62: 0 | EM62: 0 | EN62: 0 | EO62: 0 | EP62: 0 | EQ62: 0 | ER62: 0
A63: Birch Creek B | B63: 1035 | E63: 6458B | F63: Conduit | G63: WAT | I63: Hydro | J63: 0.05 | L63: 0.3 | N63: 0.05 | O63: 0.05 | T63: 1 | U63: Operating | W63: 1984 | Y63: Birch Cr. | Z63: Gooding | AA63: ID | AB63: Y | AC63: Columbia | AD63: WECC | AE63: E. Jensen | AF63: Independent | AG63: PacifiCorp (QF thru Mar 2021) | AN63: 2021 | AO63: 1 | AT63: 0.05 | AU63: 0.02135 | BP63: Exemption granted December 1982. Critical energy from PNUCC 2005 NRF | BQ63: =VLOOKUP($B63,[2]!Table_intranet_power_vewProjectLatLongUrl[#Data],2,FALSE) -> 0 | BR63: =VLOOKUP($B63,[2]!Table_intranet_power_vewProjectLatLongUrl[#Data],3,FALSE) -> 0 | BS63: =VLOOKUP($B63,[2]!Table_intranet_power_vewProjectLatLongUrl[#Data],4,FALSE) -> 0 | BT63: 2014-01-29T19:01:37 | BU63: 0.05 | BV63: 0.05 | BW63: 0.427 | BX63: 0.02135 | BZ63: N | CA63: <0.5 MW
A64: Black Canyon 1 - 2 | B64: 1036 | C64: 6396 | D64: 1,2 | E64: FCRPS | F64: Storage | G64: WAT | I64: Hydro | J64: 10.2 | K64: 10.2 | M64: 3.27 | N64: 12 | O64: 6 | P64: 10.2 | Q64: 10.2 | R64: 8 | U64: Operating | W64: 1986 | Y64: Payette R. | Z64: Gem | AA64: ID | AB64: Y | AC64: Columbia | AD64: WECC | AE64: USBR | AF64: Federal | AG64: BPA | AO64: 1 | AT64: 10.2 | AU64: 8 | AZ64: IPC | BA64: 6.6 | BB64: 7.6 | BC64: 5 | BD64: 1.516210046 | BE64: 2.571803653 | BF64: 5.1 | BG64: 1.51 | BH64: 7.08 | BI64: 6.5 | BJ64: 7.66 | BK64: 7 | BL64: 6.35 | BM64: 7.27 | BN64: 7.01 | BO64: 7.1 | BQ64: =VLOOKUP($B64,[2]!Table_intranet_power_vewProjectLatLongUrl[#Data],2,FALSE) -> 43.9304438 | BR64: =VLOOKUP($B64,[2]!Table_intranet_power_vewProjectLatLongUrl[#Data],3,FALSE) -> -116.4365228 | BS64: =VLOOKUP($B64,[2]!Table_intranet_power_vewProjectLatLongUrl[#Data],4,FALSE) -> http://www.usbr.gov/projects/Facility.jsp?fac_Name=Black+Canyon+Diversion+Dam | BT64: 2017-10-17T13:05:53 | BU64: 10.2 | BV64: 12 | BW64: 0.7843137255 | BX64: 8 | BY64: Independent | BZ64: N | CA64: Accounted for in HydInd file
A65: Black Canyon No. 3 | B65: 1037 | E65: 6137 | F65: Canal | G65: WAT | I65: Hydro | J65: 0.1 | N65: 0 | O65: 0 | T65: 0 | U65: Operating | W65: 1983 | Y65: N. Gooding Main Cnl. | Z65: Gem | AA65: ID | AB65: Y | AC65: Columbia | AD65: WECC | AE65: W. & S. Brown | AF65: Independent | AG65: Idaho Power Co. (QF thru Apr 2019) | AN65: 2019 | AO65: 1 | AT65: 0.1 | AU65: 0.02135 | BP65: Exemption granted July 1982. Critical energy from PNUCC 2005 NRF | BQ65: =VLOOKUP($B65,[2]!Table_intranet_power_vewProjectLatLongUrl[#Data],2,FALSE) -> 0 | BR65: =VLOOKUP($B65,[2]!Table_intranet_power_vewProjectLatLongUrl[#Data],3,FALSE) -> 0 | BS65: =VLOOKUP($B65,[2]!Table_intranet_power_vewProjectLatLongUrl[#Data],4,FALSE) -> 0 | BT65: 2014-01-30T08:43:01 | BU65: 0.1 | BV65: 0 | BW65: 0.427 | BX65: 0.02135 | BZ65: N | CA65: <0.5 MW
A66: Black Cap Solar Project | B66: 2012 | C66: 58150 | D66: 1 | F66: PV | G66: SOL | I66: Solar | J66: 2 | K66: 2 | M66: 0 | P66: 2 | Q66: 2 | U66: Operating | V66: Oct | W66: 2012 | Y66: Near Lakeview, OR | Z66: Lake | AA66: OR | AB66: Y | AC66: Columbia | AD66: WECC | AE66: Obsidian Finance Group/ Black Cap Solar LLC; PacifiCorp owns the project's rights and land | AF66: Independent | AG66: PacifiCorp | AO66: 1 | AT66: 2 | AU66: 0.508 | AZ66: PACW | BK66: 0.1 | BL66: 0.54 | BM66: 0.49 | BN66: 0.51 | BO66: 0.5 | BP66: (8,976) PV modules mounted on single-axis trackers. | BQ66: =VLOOKUP($B66,[2]!Table_intranet_power_vewProjectLatLongUrl[#Data],2,FALSE) -> 42.171 | BR66: =VLOOKUP($B66,[2]!Table_intranet_power_vewProjectLatLongUrl[#Data],3,FALSE) -> -120.361 | BS66: =VLOOKUP($B66,[2]!Table_intranet_power_vewProjectLatLongUrl[#Data],4,FALSE) -> http://www.pacificorp.com/blackcap | BT66: 2017-10-17T13:07:29 | BU66: 2 | BV66: 2 | BW66: 0.254 | BX66: 0.508 | BZ66: Y | CC66: PNW East | CD66: PV | CE66: n/a | CF66: 1 | CH66: 0.75 | CJ66: 1 | CL66: Y | CN66: Black Cap Solar Project | CO66: PNW East | CP66: Thr | CQ66: PV | CR66: 1.5 | CS66: Oct-2012 | CT66: Jan-2051 | CU66: n/a | CV66: Solar | CW66: 0 | CX66: 0 | CY66: FALSE | CZ66: Cf PV | DA66: SolarPV | DB66: Default | DC66: Default | DD66: 30 | DE66: Flat | DF66: 0 | DG66: 1 | DH66: FALSE | DI66: TRUE | DJ66: FALSE | DK66: FALSE | DL66: 0 | DM66: 0 | DN66: 0 | DR66: Black Cap Solar Project | DT66: =CN66 -> Black Cap Solar Project | DU66: 0.4435428333 | DV66: 0.2880879218 | DW66: 0.1332288136 | DX66: 0.1101358255 | DY66: 0.1265040881 | DZ66: 0.2137384135 | EA66: 0.3418489374 | EB66: 0.4052965544 | EC66: 0.5287725091 | ED66: 0.5804276925 | EE66: 0.5989196088 | EF66: 0.5363026994 | EG66: 0.5913904444 | EH66: 0.384117229 | EI66: 0.1776384182 | EJ66: 0.1468477673 | EK66: 0.1686721174 | EL66: 0.2849845514 | EM66: 0.4557985833 | EN66: 0.5403954059 | EO66: 0.7050300122 | EP66: 0.77390359 | EQ66: 0.7985594784 | ER66: 0.7150702659
A67: Black Cap Solar II (PSEG Lake County Solar Energy Center) | B67: 2162 | C67: 60616 | D67: BCSLR | F67: PV | G67: SOL | I67: Solar | J67: 8 | K67: 8 | P67: 8 | Q67: 8 | U67: Operating | V67: Dec | W67: 2016 | Y67: Lakeview | Z67: Lake | AA67: OR | AB67: Y | AC67: Columbia | AD67: WECC | AE67: PSEG (purchased from Obsidian Nov 2016) | AF67: Independent | AG67: PacifiCorp (QF thru 2036) | AN67: 2036 | AO67: 1 | AT67: 8 | AU67: 2.032 | AZ67: PACW | BP67: Ground mounted; https://www.pseg.com/info/media/newsreleases/2016/2016-11-02.jsp#.WG2QIVUrK3w | BQ67: =VLOOKUP($B67,[2]!Table_intranet_power_vewProjectLatLongUrl[#Data],2,FALSE) -> 42.175 | BR67: =VLOOKUP($B67,[2]!Table_intranet_power_vewProjectLatLongUrl[#Data],3,FALSE) -> -120.3598 | BT67: 2017-11-15T10:52:54 | BU67: 8 | BV67: 8 | BW67: =IF(OR(ISBLANK(J67),ISBLANK(R67),J67=0),VLOOKUP(IF(G67="WAT","HY",IF(G67="LFG","LFG",F67)),Acapability,4,FALSE),R67/J67) -> 0.254 | BX67: 2.032 | BZ67: y | CC67: PNW East | CD67: PV | CE67: n/a | CF67: 1 | CH67: 0.75 | CJ67: 1 | CL67: Y | CN67: Black Cap Solar II (PSEG Lake County Solar Energy Center) | CO67: PNW East | CP67: =IF(BZ67="N","",VLOOKUP($CD67,ATechDat,2,FALSE)) -> Thr | CQ67: =IF(BZ67="N","",VLOOKUP($CD67,ATechDat,3,FALSE)) -> PV | CR67: 6 | CS67: Dec-2016 | CT67: Jan-2051 | CU67: n/a | CV67: =IF(BZ67="N","",VLOOKUP($CD67,ATechDat,4,FALSE)) -> Solar | CW67: =IF(BZ67="N","",VLOOKUP($CD67,ATechDat,5,FALSE)) -> 0 | CX67: =IF(BZ67="N","",VLOOKUP($CD67,ATechDat,6,FALSE)) -> 0 | CY67: =IF(BZ67="N","",VLOOKUP($CD67,ATechDat,7,FALSE)) -> FALSE | CZ67: =IF(BZ67="N","",VLOOKUP($CD67,ATechDat,8,FALSE)) -> Cf PV | DA67: =IF(BZ67="N","",VLOOKUP($CD67,ATechDat,9,FALSE)) -> SolarPV | DB67: =IF(BZ67="N","",VLOOKUP($CD67,ATechDat,10,FALSE)) -> Default | DC67: =IF(BZ67="N","",VLOOKUP($CD67,ATechDat,11,FALSE)) -> Default | DD67: =IF(BZ67="N","",VLOOKUP($CD67,ATechDat,12,FALSE)) -> 30 | DE67: =IF(BZ67="N","",VLOOKUP($CD67,ATechDat,13,FALSE)) -> Flat | DF67: =IF(BZ67="N","",VLOOKUP($CD67,ATechDat,14,FALSE)) -> 0 | DG67: =IF(BZ67="N","",VLOOKUP($CD67,ATechDat,15,FALSE)) -> 1 | DH67: =IF(BZ67="N","",VLOOKUP($CD67,ATechDat,16,FALSE)) -> FALSE | DI67: =IF(BZ67="N","",VLOOKUP($CD67,ATechDat,17,FALSE)) -> TRUE | DJ67: =IF(BZ67="N","",VLOOKUP($CD67,ATechDat,18,FALSE)) -> FALSE | DK67: =IF(BZ67="N","",VLOOKUP($CD67,ATechDat,19,FALSE)) -> FALSE | DL67: =IF(BZ67="N","",VLOOKUP($CD67,ATechDat,20,FALSE)) -> 0 | DM67: =IF(BZ67="N","",VLOOKUP($CD67,ATechDat,21,FALSE)) -> 0 | DN67: =IF(BZ67="N","",VLOOKUP($CD67,ATechDat,22,FALSE)) -> 0 | DR67: Black Cap Solar II (PSEG Lake County Solar Energy Center) | DT67: =CN67 -> Black Cap Solar II (PSEG Lake County Solar Energy Center) | DU67: 1.774171333 | DV67: 1.152351687 | DW67: 0.5329152546 | DX67: 0.4405433018 | DY67: 0.5060163523 | DZ67: 0.8549536541 | EA67: 1.36739575 | EB67: 1.621186218 | EC67: 2.115090036 | ED67: 2.32171077 | EE67: 2.395678435 | EF67: 2.145210798 | EG67: 2.365561778 | EH67: 1.536468916 | EI67: 0.7105536727 | EJ67: 0.5873910691 | EK67: 0.6746884698 | EL67: 1.139938206 | EM67: 1.823194333 | EN67: 2.161581624 | EO67: 2.820120049 | EP67: 3.09561436 | EQ67: 3.194237913 | ER67: 2.860281064
A68: Black Creek | B68: 1038 | C68: 54860 | D68: GEN1 | E68: 6221 | F68: Diversion | G68: WAT | I68: Hydro | J68: 3.7 | K68: 3.7 | L68: 3.7 | N68: 2 | O68: 0 | P68: 3.7 | Q68: 3.7 | R68: 2 | T68: 2 | U68: Operating | V68: Feb | W68: 1994 | Y68: Black Cr. | Z68: King | AA68: WA | AB68: Y | AC68: Puget Sound & Coastal | AD68: WECC | AE68: Black Creek Hydro, Inc. | AF68: Independent | AG68: Listed NUG per 2009 White Book | AO68: 1 | AT68: 3.7 | AU68: 2 | AZ68: PSE | BG68: 0.04 | BH68: 0.71 | BI68: 1.3 | BJ68: 1.49 | BK68: 1.3 | BL68: 1.47 | BM68: 1.61 | BN68: 0.73 | BO68: 1.4 | BP68: License granted July 1988; expires June 2038. Critical energy from PNUCC 2005 NRF. Certified Low-impact. | BQ68: =VLOOKUP($B68,[2]!Table_intranet_power_vewProjectLatLongUrl[#Data],2,FALSE) -> 47.534465 | BR68: =VLOOKUP($B68,[2]!Table_intranet_power_vewProjectLatLongUrl[#Data],3,FALSE) -> -121.702596 | BS68: =VLOOKUP($B68,[2]!Table_intranet_power_vewProjectLatLongUrl[#Data],4,FALSE) -> 0 | BT68: 2017-10-17T13:08:01 | BU68: 3.7 | BV68: 2 | BW68: 0.5405405405 | BX68: 2 | BZ68: Y | CA68: Not accounted for in HydInd file | CC68: PNW West | CD68: HY_West | CE68: n/a | CF68: 1 | CH68: 1 | CJ68: 1 | CL68: Y | CN68: Black Creek | CO68: PNW West | CP68: =IF(BZ68="N","",VLOOKUP($CD68,ATechDat,2,FALSE)) -> Thr | CQ68: =IF(BZ68="N","",VLOOKUP($CD68,ATechDat,3,FALSE)) -> Hyd | CR68: =IF($BZ68="N","",IF($I68<>"Wind",($CF68*$CH68*IF(ISBLANK($L68),IF(ISBLANK($O68),$J68,$O68),$L68)),$J68*IF(AND($I68="Wind",SWFullWind="Y"),1,$CF68*$CH68))) -> 3.7 | CS68: Feb-1994 | CT68: Jan-2051 | CU68: n/a | CV68: =IF(BZ68="N","",VLOOKUP($CD68,ATechDat,4,FALSE)) -> Water | CW68: =IF(BZ68="N","",VLOOKUP($CD68,ATechDat,5,FALSE)) -> 0 | CX68: =IF(BZ68="N","",VLOOKUP($CD68,ATechDat,6,FALSE)) -> 24 | CY68: =IF(BZ68="N","",VLOOKUP($CD68,ATechDat,7,FALSE)) -> FALSE | CZ68: =IF(BZ68="N","",VLOOKUP($CD68,ATechDat,8,FALSE)) -> Cf HY West | DA68: =IF(BZ68="N","",VLOOKUP($CD68,ATechDat,9,FALSE)) -> Zero | DB68: =IF(BZ68="N","",VLOOKUP($CD68,ATechDat,10,FALSE)) -> Expense | DC68: =IF(BZ68="N","",VLOOKUP($CD68,ATechDat,11,FALSE)) -> Default | DD68: =IF(BZ68="N","",VLOOKUP($CD68,ATechDat,12,FALSE)) -> 50 | DE68: =IF(BZ68="N","",VLOOKUP($CD68,ATechDat,13,FALSE)) -> Flat | DF68: =IF(BZ68="N","",VLOOKUP($CD68,ATechDat,14,FALSE)) -> 0 | DG68: =IF(BZ68="N","",VLOOKUP($CD68,ATechDat,15,FALSE)) -> 0 | DH68: =IF(BZ68="N","",VLOOKUP($CD68,ATechDat,16,FALSE)) -> FALSE | DI68: =IF(BZ68="N","",VLOOKUP($CD68,ATechDat,17,FALSE)) -> TRUE | DJ68: =IF(BZ68="N","",VLOOKUP($CD68,ATechDat,18,FALSE)) -> FALSE | DK68: =IF(BZ68="N","",VLOOKUP($CD68,ATechDat,19,FALSE)) -> FALSE | DL68: =IF(BZ68="N","",VLOOKUP($CD68,ATechDat,20,FALSE)) -> 0 | DM68: =IF(BZ68="N","",VLOOKUP($CD68,ATechDat,21,FALSE)) -> 0 | DN68: =IF(BZ68="N","",VLOOKUP($CD68,ATechDat,22,FALSE)) -> 0 | DR68: Black Creek | DT68: Black Creek | DU68: 1.214994102 | DV68: 1.347381213 | DW68: 1.837020388 | DX68: 2.005013682 | DY68: 1.939692847 | DZ68: 1.451998682 | EA68: 1.527670029 | EB68: 1.562898097 | EC68: 1.731711876 | ED68: 1.739265171 | EE68: 1.647158673 | EF68: 1.702451145 | EG68: 1.214994102 | EH68: 1.347381213 | EI68: 1.837020388 | EJ68: 2.005013682 | EK68: 1.939692847 | EL68: 1.451998682 | EM68: 1.527670029 | EN68: 1.562898097 | EO68: 1.731711876 | EP68: 1.739265171 | EQ68: 1.647158673 | ER68: 1.702451145
A69: Black Eagle 1 - 3 | B69: 1039 | C69: 2181 | D69: BLA1,BLA2,BLA3 | E69: 2188E | F69: ROR | G69: WAT | I69: Hydro | J69: 21 | K69: 24 | N69: 21 | O69: 21 | P69: 21 | Q69: 21 | R69: 15.45 | U69: Operating | V69: Sep | W69: 1927 | Y69: Missouri R. | Z69: Cascade | AA69: MT | AB69: N | AC69: Missouri | AD69: WECC | AE69: Northwestern Energy purchased from PPL Montana, finalized Nov. 2014. | AF69: IOU | AG69: Northwestern Energy | AO69: 0.31 | AT69: 6.51 | AU69: 4.7895 | AZ69: NorthWestern | BG69: 14.41 | BH69: 16.28 | BI69: 16.2 | BJ69: 16.79 | BK69: 13.8 | BL69: 12.56 | BM69: 13.81 | BN69: 14.53 | BO69: 13.5 | BP69: Original License granted April 1956; expired November 1994. | BQ69: =VLOOKUP($B69,[2]!Table_intranet_power_vewProjectLatLongUrl[#Data],2,FALSE) -> 47.52027 | BR69: =VLOOKUP($B69,[2]!Table_intranet_power_vewProjectLatLongUrl[#Data],3,FALSE) -> -111.26248 | BS69: =VLOOKUP($B69,[2]!Table_intranet_power_vewProjectLatLongUrl[#Data],4,FALSE) -> http://www.northwesternenergy.com/our-company/hydroelectric-facilities | BT69: 2017-10-17T13:09:45 | BU69: 21 | BV69: 21 | BW69: 0.7357142857 | BX69: 15.45 | BZ69: Y | CA69: Not accounted for in HydInd file | CB69: 100% PNW Utility Owner | CC69: PNW East | CD69: HY_Missouri | CE69: n/a | CF69: 0.31 | CG69: NorthWestern | CH69: 1 | CJ69: 0.31 | CK69: NorthWestern | CN69: Black Eagle 1 - 3 | CO69: PNW East | CP69: Thr | CQ69: Hyd | CR69: 6.51 | CS69: Sep-1927 | CT69: Jan-2051 | CU69: n/a | CV69: Water | CW69: 0 | CX69: 24 | CY69: FALSE | CZ69: Cf HY Missouri | DA69: Zero | DB69: Expense | DC69: Default | DD69: 50 | DE69: Flat | DF69: 0 | DG69: 0 | DH69: FALSE | DI69: TRUE | DJ69: FALSE | DK69: FALSE | DL69: 0 | DM69: 0 | DN69: 0 | DO69: 100% PNW Utility Owner | DR69: Black Eagle 1 - 3 | DT69: Black Eagle 1 - 3 | DU69: 3.379686823 | DV69: 3.602130201 | DW69: 3.876103492 | DX69: 4.099840339 | DY69: 4.109681255 | DZ69: 4.003156764 | EA69: 4.046527414 | EB69: 4.387865257 | EC69: 5.103190672 | ED69: 7.01600909 | EE69: 5.106070607 | EF69: 3.629591953 | EG69: 3.379686823 | EH69: 3.602130201 | EI69: 3.876103492 | EJ69: 4.099840339 | EK69: 4.109681255 | EL69: 4.003156764 | EM69: 4.046527414 | EN69: 4.387865257 | EO69: 5.103190672 | EP69: 7.01600909 | EQ69: 5.106070607 | ER69: 3.629591953
A70: Black Eagle Solar | B70: 2226 | C70: 61336 | D70: BESMT | F70: PV | G70: SOL | I70: Solar | J70: 3 | K70: 3 | P70: 3 | Q70: 3 | R70: =6520/8760 -> 0.7442922374 | U70: Operating | V70: Sep | W70: 2017 | Y70: Black Eagle, MT | Z70: Cascade | AA70: MT | AB70: N | AC70: Missouri | AD70: WECC | AE70: Developed by Cypress Creek Renewables, owned by Enerparc. | AF70: Independent | AG70: NorthWestern Energy (25yr PPA) | AN70: 2042 | AO70: 0.31 | AT70: 0.93 | AU70: 0.2307305936 | AZ70: NorthWestern | BP70: ~35 acres, 10,000-12,000 panels | BQ70: =VLOOKUP($B70,[2]!Table_intranet_power_vewProjectLatLongUrl[#Data],2,FALSE) -> 47.547466 | BR70: =VLOOKUP($B70,[2]!Table_intranet_power_vewProjectLatLongUrl[#Data],3,FALSE) -> -111.253974 | BS70: =VLOOKUP($B70,[2]!Table_intranet_power_vewProjectLatLongUrl[#Data],4,FALSE) -> 0 | BT70: 2018-01-06T11:14:22 | BU70: 3 | BV70: 3 | BW70: =IF(OR(ISBLANK(J70),ISBLANK(R70),J70=0),VLOOKUP(IF(G70="WAT","HY",IF(G70="LFG","LFG",F70)),Acapability,4,FALSE),R70/J70) -> 0.2480974125 | BX70: 0.7442922374 | BZ70: Y | CA70: Northwestern PPA | CB70: 100% PNW PPA | CC70: PNW East | CD70: PV | CF70: 0.31 | CG70: NorthWestern | CH70: 0.75 | CJ70: 0.31 | CK70: NorthWestern | CL70: Y | CN70: Black Eagle Solar | CO70: PNW East | CP70: Thr | CQ70: PV | CR70: 0.6975 | CS70: Sep-2017 | CT70: Jan-2051 | CU70: 0 | CV70: Solar | CW70: 0 | CX70: 0 | CY70: FALSE | CZ70: Cf PV | DA70: SolarPV | DB70: Default | DC70: Default | DD70: 30 | DE70: Flat | DF70: 0 | DG70: 1 | DH70: FALSE | DI70: TRUE | DJ70: FALSE | DK70: FALSE | DL70: 0 | DM70: 0 | DN70: 0 | DO70: 100% PNW PPA | DR70: Black Eagle Solar | DT70: Black Eagle Solar | DU70: 0.2062474175 | DV70: 0.1339608836 | DW70: 0.06195139834 | DX70: 0.05121315884 | DY70: 0.05882440096 | DZ70: 0.09938836229 | EA70: 0.1589597559 | EB70: 0.1884628978 | EC70: 0.2458792167 | ED70: 0.269898877 | EE70: 0.2784976181 | EF70: 0.2493807552 | EG70: 0.2749965567 | EH70: 0.1786145115 | EI70: 0.08260186446 | EJ70: 0.06828421179 | EK70: 0.07843253461 | EL70: 0.1325178164 | EM70: 0.2119463412 | EN70: 0.2512838637 | EO70: 0.3278389557 | EP70: 0.3598651694 | EQ70: 0.3713301574 | ER70: 0.3325076737
A71: Blind Canyon | B71: 1040 | C71: 54514 | D71: 1 | E71: 8375 | F71: Diversion | G71: WAT | I71: Hydro | J71: 1.3 | K71: 1.3 | L71: 0 | N71: 0.62 | O71: 0 | P71: 1.3 | Q71: 1.3 | T71: 0 | U71: Operating | V71: Apr | W71: 1992 | Y71: Blind Canyon Spr. | Z71: Gooding | AA71: ID | AB71: Y | AC71: Columbia | AD71: WECC | AE71: Blind Canyon Aquaranch, Inc. | AF71: Independent | AG71: Idaho Power Co. (QF thru Apr 2014; Dec 2014 - Dec 2034) | AN71: 2034 | AO71: 1 | AP71: 0 | AT71: 1.3 | AU71: 0.40992 | AZ71: IPC | BG71: 0.44 | BH71: 0.5 | BI71: 0.5 | BJ71: 0.63 | BK71: 0.5 | BL71: 0.32 | BM71: 0.38 | BN71: 0.45 | BO71: 0.4 | BP71: Exemption granted October 1985 Critical energy from PNUCC 2005 NRF | BQ71: =VLOOKUP($B71,[2]!Table_intranet_power_vewProjectLatLongUrl[#Data],2,FALSE) -> 42.69984 | BR71: =VLOOKUP($B71,[2]!Table_intranet_power_vewProjectLatLongUrl[#Data],3,FALSE) -> -114.822603 | BS71: =VLOOKUP($B71,[2]!Table_intranet_power_vewProjectLatLongUrl[#Data],4,FALSE) -> 0 | BT71: 2017-10-17T13:13:54 | BU71: 1.3 | BV71: 0.62 | BW71: 0.427 | BX71: 0.40992 | BZ71: Y | CA71: Not accounted for in HydInd file | CC71: PNW East | CD71: HY_Irr | CE71: n/a | CF71: 1 | CH71: 1 | CJ71: 1 | CL71: Y | CN71: Blind Canyon | CO71: PNW East | CP71: Thr | CQ71: Hyd | CR71: 0 | CS71: Apr-1992 | CT71: Jan-2051 | CU71: n/a | CV71: Water | CW71: 0 | CX71: 24 | CY71: FALSE | CZ71: Cf HY Irr | DA71: Zero | DB71: Expense | DC71: Default | DD71: 50 | DE71: Flat | DF71: 0 | DG71: 0 | DH71: FALSE | DI71: TRUE | DJ71: FALSE | DK71: FALSE | DL71: 0 | DM71: 0 | DN71: 0 | DR71: Blind Canyon | DT71: Blind Canyon | DU71: 0 | DV71: 0 | DW71: 0 | DX71: 0 | DY71: 0 | DZ71: 0 | EA71: 0 | EB71: 0 | EC71: 0 | ED71: 0 | EE71: 0 | EF71: 0 | EG71: 0 | EH71: 0 | EI71: 0 | EJ71: 0 | EK71: 0 | EL71: 0 | EM71: 0 | EN71: 0 | EO71: 0 | EP71: 0 | EQ71: 0 | ER71: 0
A72: Bliss 1 - 3 | B72: 1041 | C72: 810 | D72: 1,2,3 | E72: 1975 | F72: ROR | G72: WAT | I72: Hydro | J72: 75 | K72: 75 | M72: 75 | N72: 75 | O72: 75 | P72: 81.4 | Q72: 77.9 | R72: 42 | T72: 42 | U72: Operating | V72: Nov | W72: 1949 | Y72: Snake R. | Z72: Gooding | AA72: ID | AB72: Y | AC72: Columbia | AD72: WECC | AE72: Idaho Power Co. | AF72: IOU | AG72: Idaho Power Co. | AO72: 1 | AT72: 75 | AU72: 42 | AZ72: IPC | BG72: 36 | BH72: 44.32 | BI72: 38.4 | BJ72: 58.63 | BK72: 42 | BL72: 33.31 | BM72: 34.42 | BN72: 35.6 | BO72: 32.8 | BP72: Original license granted March 1948; expired February 1998. Relicense granted Aug 2004. Critical energy from PNUCC 2005 NRF | BQ72: =VLOOKUP($B72,[2]!Table_intranet_power_vewProjectLatLongUrl[#Data],2,FALSE) -> 42.913 | BR72: =VLOOKUP($B72,[2]!Table_intranet_power_vewProjectLatLongUrl[#Data],3,FALSE) -> -115.07 | BS72: =VLOOKUP($B72,[2]!Table_intranet_power_vewProjectLatLongUrl[#Data],4,FALSE) -> 0 | BT72: 2017-10-17T13:15:28 | BU72: 75 | BV72: 75 | BW72: 0.56 | BX72: 42 | BY72: Independent | BZ72: N | CA72: Accounted for in HydInd file
A73: Blue Heron Paper | B73: 1042 | F73: STCG | G73: NG | H73: FO | I73: Natural gas | J73: 15 | U73: Retired | X73: 2011 | Y73: Oregon City | Z73: Clackamas | AA73: OR | AB73: Y | AC73: Columbia | AD73: WECC | AE73: Blue Heron Paper Co. | AF73: Independent | AG73: Self-generation | AO73: 1 | AT73: 15 | AU73: 12 | AV73: Blue Heron Paper | AW73: Groundwood, deinking, newsprint mills | AX73: Williams Northwest | BP73: Was Smurfit Stone Container Corp. | BQ73: =VLOOKUP($B73,[2]!Table_intranet_power_vewProjectLatLongUrl[#Data],2,FALSE) -> 45.355 | BR73: =VLOOKUP($B73,[2]!Table_intranet_power_vewProjectLatLongUrl[#Data],3,FALSE) -> -122.6128 | BS73: =VLOOKUP($B73,[2]!Table_intranet_power_vewProjectLatLongUrl[#Data],4,FALSE) -> 0 | BT73: 2012-06-05T15:17:08 | BU73: 15 | BV73: 15 | BW73: 0.8 | BX73: =IF(ISNUMBER(R73),R73,AVERAGE(BU73,BV73)*BW73) -> 12 | BZ73: N | CA73: 100% Self-gen | CN73: =IF($BZ73="Y",A73,"") ->  | CO73: =IF($BZ73="Y",CC73,"") ->  | CS73: =IF(BZ73="N","",IF(ISBLANK(V73),"Dec",V73)&"-"&IF(ISBLANK(W73),1980,W73)) ->  | CT73: =IF(BZ73="N","",IF(U73="Retired",X73,"Jan-2051")) ->  | CU73: =IF(BZ73="N","",CE73) ->  | DO73: =IF(ISBLANK(CB73),"",CB73) ->  | DR73: =IF(BZ73="N","",CN73) -> 
A74: Blue Mountain Lumber Products | B74: 1043 | F74: STCG | G74: WW | I74: Biomass | J74: 3.5 | U74: Retired | W74: 1986 | X74: 1996 | Y74: Long Creek | Z74: Grant | AA74: OR | AB74: Y | AC74: Columbia | AD74: WECC | AE74: Blue Mtn Forest Products | AF74: Independent | AG74: Retired | AO74: 0 | AT74: 0 | AU74: 0 | AV74: Blue Mountain Forest Products | AW74: Lumber & wood products | BD74: n/a | BE74: n/a | BP74: Sold and to be dismantled. | BQ74: =VLOOKUP($B74,[2]!Table_intranet_power_vewProjectLatLongUrl[#Data],2,FALSE) -> 0 | BR74: =VLOOKUP($B74,[2]!Table_intranet_power_vewProjectLatLongUrl[#Data],3,FALSE) -> 0 | BS74: =VLOOKUP($B74,[2]!Table_intranet_power_vewProjectLatLongUrl[#Data],4,FALSE) -> 0 | BT74: 2005-02-10 | BU74: 3.5 | BV74: 3.5 | BW74: 0.8 | BX74: 2.8 | BZ74: N | CA74: Retired
A75: Blundell II | B75: 2029 | C75: 299 | D75: 2 | F75: GB | G75: GST | I75: Geothermal | J75: 12 | K75: 12 | P75: 11 | Q75: 9 | U75: Operating | V75: Dec | W75: 2007 | Y75: Roosevelt Hot Springs, Milford, UT | Z75: Beaver | AA75: UT | AB75: N | AD75: WECC | AE75: PacifiCorp | AF75: IOU | AG75: PacifiCorp | AO75: 0 | AT75: 0 | AU75: 0 | AZ75: PACE | BP75: Blundell II - employs "bottoming" cycle of binary heat-recovery process to extract more energy from hot geothermal brine left over from steam seperation cycle. 26.1 MW Blundell I uses "flash" technology, operating in 1984. | BQ75: =VLOOKUP($B75,[2]!Table_intranet_power_vewProjectLatLongUrl[#Data],2,FALSE) -> 38.486 | BR75: =VLOOKUP($B75,[2]!Table_intranet_power_vewProjectLatLongUrl[#Data],3,FALSE) -> -112.852 | BS75: =VLOOKUP($B75,[2]!Table_intranet_power_vewProjectLatLongUrl[#Data],4,FALSE) -> http://www.pacificorp.com/es/re/blundell.html | BT75: 2014-01-22T16:21:44 | BU75: 9 | BV75: 11 | BW75: 0.9 | BX75: 9 | BZ75: N | CA75: PACE; Utah | CE75: 20000
A76: Boardman | B76: 1044 | C76: 6106 | D76: 1 | F76: ST | G76: COL | I76: Coal | J76: 601 | K76: 642.2 | L76: 580 | N76: 606 | O76: 610 | P76: 585 | Q76: 585 | U76: Operating | V76: Aug | W76: 1980 | X76: 2020 | Y76: Boardman | Z76: Morrow | AA76: OR | AB76: Y | AC76: Columbia | AD76: WECC | AE76: PGE (80%); IPC (10%); PRC (10%) - PRC in talks to pay PGE to take its share, giving PGE 90%. Agreement should be executed by Dec 2014. | AF76: Coop/IOU/Independent | AG76: PGE (80%); IPC (10%); Turlock (10% PPA 1994-2018) | AH76: 41.88 | AI76: 2.5 | AJ76: 9913 | AN76: 2018 | AO76: 0.9 | AP76: 0 | AQ76: 0.1 | AR76: 0 | AS76: 0 | AT76: =AO76*J76 -> 540.9 | AU76: =IF(ISNUMBER(R76),R76,BX76)*AO76 -> 458.982 | AZ76: BPA (PRC share), IPC (share), PGE (share) | BA76: 430.8 | BB76: 490.9 | BC76: 403.8 | BD76: 396.3037671 | BE76: 272.6635845 | BF76: 497.2 | BG76: 462.08 | BH76: 365.32 | BI76: 471.43 | BJ76: 381.29 | BK76: 301.4 | BL76: 429.11 | BM76: 365.56 | BN76: 272.01 | BO76: 217.2 | BP76: One 560.5 MW STG. | BQ76: =VLOOKUP($B76,[2]!Table_intranet_power_vewProjectLatLongUrl[#Data],2,FALSE) -> 45.6964 | BR76: =VLOOKUP($B76,[2]!Table_intranet_power_vewProjectLatLongUrl[#Data],3,FALSE) -> -119.808 | BS76: =VLOOKUP($B76,[2]!Table_intranet_power_vewProjectLatLongUrl[#Data],4,FALSE) -> http://en.wikipedia.org/wiki/Boardman_Coal_Plant | BT76: 2017-10-17T13:17:18 | BU76: 580 | BV76: 606 | BW76: 0.86 | BX76: 509.98 | BZ76: Y | CB76: 25% OOR PPA | CC76: PNW East | CD76: CLST_PNWE | CE76: 10840 | CF76: 0.9 | CG76: OOR PPA | CH76: 1 | CJ76: 0.9 | CK76: OOR PPA | CN76: Boardman | CO76: PNW East | CP76: =IF(BZ76="N","",VLOOKUP($CD76,ATechDat,2,FALSE)) -> Thr | CQ76: =IF(BZ76="N","",VLOOKUP($CD76,ATechDat,3,FALSE)) -> Coal | CR76: =IF($BZ76="N","",IF($I76<>"Wind",($CF76*$CH76*IF(ISBLANK($L76),IF(ISBLANK($O76),$J76,$O76),$L76)),$J76*IF(AND($I76="Wind",SWFullWind="Y"),1,$CF76*$CH76))) -> 522 | CS76: =IF(BZ76="N","",IF(ISBLANK(V76),"Dec",V76)&"-"&IF(ISBLANK(W76),1980,W76)) -> Aug-1980 | CT76: =IF(BZ76="N","",IF(U76="Retired",X76,"Jan-2051")) -> Jan-2051 | CU76: =IF(BZ76="N","",CE76) -> 10840 | CV76: =IF(BZ76="N","",VLOOKUP($CD76,ATechDat,4,FALSE)) -> PNW E. coal | CW76: =IF(BZ76="N","",VLOOKUP($CD76,ATechDat,5,FALSE)) -> 0.067 | CX76: =IF(BZ76="N","",VLOOKUP($CD76,ATechDat,6,FALSE)) -> 40 | CY76: =IF(BZ76="N","",VLOOKUP($CD76,ATechDat,7,FALSE)) -> TRUE | CZ76: =IF(BZ76="N","",VLOOKUP($CD76,ATechDat,8,FALSE)) -> MR 35d Winter Pk_Hydro | DA76: =IF(BZ76="N","",VLOOKUP($CD76,ATechDat,9,FALSE)) -> Bdmn | DB76: =IF(BZ76="N","",VLOOKUP($CD76,ATechDat,10,FALSE)) -> Default | DC76: =IF(BZ76="N","",VLOOKUP($CD76,ATechDat,11,FALSE)) -> Default | DD76: =IF(BZ76="N","",VLOOKUP($CD76,ATechDat,12,FALSE)) -> 30 | DE76: =IF(BZ76="N","",VLOOKUP($CD76,ATechDat,13,FALSE)) -> Flat | DF76: =IF(BZ76="N","",VLOOKUP($CD76,ATechDat,14,FALSE)) -> 0 | DG76: =IF(BZ76="N","",VLOOKUP($CD76,ATechDat,15,FALSE)) -> 0 | DH76: =IF(BZ76="N","",VLOOKUP($CD76,ATechDat,16,FALSE)) -> FALSE | DI76: =IF(BZ76="N","",VLOOKUP($CD76,ATechDat,17,FALSE)) -> TRUE | DJ76: =IF(BZ76="N","",VLOOKUP($CD76,ATechDat,18,FALSE)) -> FALSE | DK76: =IF(BZ76="N","",VLOOKUP($CD76,ATechDat,19,FALSE)) -> FALSE | DL76: =IF(BZ76="N","",VLOOKUP($CD76,ATechDat,20,FALSE)) -> 0 | DM76: =IF(BZ76="N","",VLOOKUP($CD76,ATechDat,21,FALSE)) -> 0 | DN76: =IF(BZ76="N","",VLOOKUP($CD76,ATechDat,22,FALSE)) -> 0 | DO76: =IF(ISBLANK(CB76),"",CB76) -> 25% OOR PPA | DR76: Boardman | DT76: Boardman | DU76: =IF($BZ76="N","",IF(OR($I76<>"Wind",$I76<>"Solar",$I76<>"Hydro"),($CF76*$CH76*IF(ISBLANK($L76),IF(ISBLANK($O76),$J76,$O76),$L76))*VLOOKUP($CZ76,ASeasDist,DU$7,FALSE)*VLOOKUP($DE76,ASeasDist,DU$7),$J76*$CF76*$CH76)) -> 522 | DV76: 500.1579078 | DW76: 500.1579078 | DX76: 522 | DY76: 522 | DZ76: 522 | EA76: 511.0789539 | EB76: 500.1579078 | EC76: 500.1579078 | ED76: 500.1579078 | EE76: 522 | EF76: 522 | EG76: =IF($BZ76="N","",IF(OR($I76<>"Wind",$I76<>"Solar",$I76<>"Hydro"),$CJ76*IF(ISBLANK($L76),IF(ISBLANK($O76),$J76,$O76),$L76),$J76)*(1-$CW76)*VLOOKUP($CZ76,ASeasDist,EG$7,FALSE)*VLOOKUP($DE76,ASeasDist,EG$7)) -> 487.026 | EH76: 466.647328 | EI76: 466.647328 | EJ76: 487.026 | EK76: 487.026 | EL76: 487.026 | EM76: 476.836664 | EN76: 466.647328 | EO76: 466.647328 | EP76: 466.647328 | EQ76: 487.026 | ER76: 487.026
A77: Boise (Elgin) | B77: 1045 | F77: STCG | G77: WW | I77: Biomass | J77: 7.5 | R77: 7.5 | U77: Retired | X77: 2000 | Y77: Elgin | Z77: Union | AA77: OR | AB77: Y | AC77: Columbia | AD77: WECC | AE77: Boise Cascade | AF77: Independent | AG77: Retired | AO77: 0 | AT77: =AO77*J77 -> 0 | AU77: =IF(ISNUMBER(R77),R77,BX77)*AO77 -> 0 | AV77: Boise Cascade Elgin | AW77: Lumber & wood products | BD77: n/a | BE77: n/a | BQ77: =VLOOKUP($B77,[2]!Table_intranet_power_vewProjectLatLongUrl[#Data],2,FALSE) -> 0 | BR77: =VLOOKUP($B77,[2]!Table_intranet_power_vewProjectLatLongUrl[#Data],3,FALSE) -> 0 | BS77: =VLOOKUP($B77,[2]!Table_intranet_power_vewProjectLatLongUrl[#Data],4,FALSE) -> 0 | BT77: 2005-07-20 | BU77: 7.5 | BV77: 7.5 | BW77: 1 | BX77: 7.5 | BZ77: N | CA77: Retired
A78: Boise 1 & 2 (Medford) | B78: 1046 | C78: 56193 | D78: 1,2 | F78: STCG | G78: WW | I78: Biomass | J78: 8.5 | K78: 8.5 | L78: 0 | N78: 7.5 | O78: 7.5 | P78: 7.5 | Q78: 7.5 | U78: Suspended | V78: Jun | W78: 1956 | Y78: Medford | Z78: Jackson | AA78: OR | AB78: Y | AC78: Puget Sound & Coastal | AD78: WECC | AE78: Boise Cascade | AF78: Independent | AG78: Listed NUG per 2009 White Book | AO78: 1 | AT78: 8.5 | AU78: 3 | AV78: Boise Cascade - Medford Operations | AW78: Sawmill | AZ78: PACW | BG78: 0.01 | BH78: 0.26 | BL78: 0 | BM78: 0 | BP78: Per SNL, plant is mothballed. No EIA generation data for 2015. | BQ78: =VLOOKUP($B78,[2]!Table_intranet_power_vewProjectLatLongUrl[#Data],2,FALSE) -> 42.355075 | BR78: =VLOOKUP($B78,[2]!Table_intranet_power_vewProjectLatLongUrl[#Data],3,FALSE) -> -122.900775 | BS78: =VLOOKUP($B78,[2]!Table_intranet_power_vewProjectLatLongUrl[#Data],4,FALSE) -> 0 | BT78: 2017-10-24T11:01:53 | BU78: 0 | BV78: 7.5 | BW78: 0.8 | BX78: 3 | BZ78: N | CA78: Mothballed. | CB78: Assume non-firm (WB = 0) | CC78: PNWW | CD78: WWST | CE78: 5000 | CF78: 1 | CH78: 1 | CJ78: 1 | DO78: Assume non-firm (WB = 0)
A79: Boise City Solar (ID Solar 1) | B79: 1932 | C79: 60445 | D79: INV1 | F79: PV | G79: SOL | I79: Solar | J79: 40 | K79: 40 | M79: 40 | P79: 40 | Q79: 40 | R79: 10.48 | U79: Operating | V79: Jun | W79: 2016 | Y79: Kuna | Z79: Ada | AA79: ID | AB79: Y | AC79: Columbia | AD79: WECC | AE79: Entropy Solar Integrators | AF79: Independent | AG79: Idaho Power Co (20 yr ESA) | AN79: 2036 | AO79: 1 | AT79: 40 | AU79: 10.48 | AZ79: IPC | BO79: 3 | BP79: Single axis tracking system. 563 acreage lot. (174,800) Poly c-Si Jinko modules. EPC contractor Depcom. 40MWac/54.37MWdc. | BQ79: =VLOOKUP($B79,[2]!Table_intranet_power_vewProjectLatLongUrl[#Data],2,FALSE) -> 43.386694 | BR79: =VLOOKUP($B79,[2]!Table_intranet_power_vewProjectLatLongUrl[#Data],3,FALSE) -> -116.334094 | BT79: 2017-10-18T10:44:43 | BU79: 40 | BV79: 40 | BW79: =IF(OR(ISBLANK(J79),ISBLANK(R79),J79=0),VLOOKUP(IF(G79="WAT","HY",IF(G79="LFG","LFG",F79)),Acapability,4,FALSE),R79/J79) -> 0.262 | BX79: 10.48 | BZ79: Y | CC79: PNW East | CD79: PV | CF79: 1 | CH79: 0.75 | CJ79: 1 | CL79: Y | CN79: =IF($BZ79="Y",A79,"") -> Boise City Solar (ID Solar 1) | CO79: =IF($BZ79="Y",CC79,"") -> PNW East | CP79: =IF(BZ79="N","",VLOOKUP($CD79,ATechDat,2,FALSE)) -> Thr | CQ79: =IF(BZ79="N","",VLOOKUP($CD79,ATechDat,3,FALSE)) -> PV | CR79: =IF($BZ79="N","",IF($I79<>"Wind",($CF79*$CH79*IF(ISBLANK($L79),IF(ISBLANK($O79),$J79,$O79),$L79)),$J79*IF(AND($I79="Wind",SWFullWind="Y"),1,$CF79*$CH79))) -> 30 | CS79: Jun-2016 | CT79: Jan-2051 | CU79: 0 | CV79: =IF(BZ79="N","",VLOOKUP($CD79,ATechDat,4,FALSE)) -> Solar | CW79: =IF(BZ79="N","",VLOOKUP($CD79,ATechDat,5,FALSE)) -> 0 | CX79: =IF(BZ79="N","",VLOOKUP($CD79,ATechDat,6,FALSE)) -> 0 | CY79: =IF(BZ79="N","",VLOOKUP($CD79,ATechDat,7,FALSE)) -> FALSE | CZ79: =IF(BZ79="N","",VLOOKUP($CD79,ATechDat,8,FALSE)) -> Cf PV | DA79: =IF(BZ79="N","",VLOOKUP($CD79,ATechDat,9,FALSE)) -> SolarPV | DB79: =IF(BZ79="N","",VLOOKUP($CD79,ATechDat,10,FALSE)) -> Default | DC79: =IF(BZ79="N","",VLOOKUP($CD79,ATechDat,11,FALSE)) -> Default | DD79: =IF(BZ79="N","",VLOOKUP($CD79,ATechDat,12,FALSE)) -> 30 | DE79: =IF(BZ79="N","",VLOOKUP($CD79,ATechDat,13,FALSE)) -> Flat | DF79: =IF(BZ79="N","",VLOOKUP($CD79,ATechDat,14,FALSE)) -> 0 | DG79: =IF(BZ79="N","",VLOOKUP($CD79,ATechDat,15,FALSE)) -> 1 | DH79: =IF(BZ79="N","",VLOOKUP($CD79,ATechDat,16,FALSE)) -> FALSE | DI79: =IF(BZ79="N","",VLOOKUP($CD79,ATechDat,17,FALSE)) -> TRUE | DJ79: =IF(BZ79="N","",VLOOKUP($CD79,ATechDat,18,FALSE)) -> FALSE | DK79: =IF(BZ79="N","",VLOOKUP($CD79,ATechDat,19,FALSE)) -> FALSE | DL79: =IF(BZ79="N","",VLOOKUP($CD79,ATechDat,20,FALSE)) -> 0 | DM79: =IF(BZ79="N","",VLOOKUP($CD79,ATechDat,21,FALSE)) -> 0 | DN79: =IF(BZ79="N","",VLOOKUP($CD79,ATechDat,22,FALSE)) -> 0 | DR79: Boise City Solar (ID Solar 1) | DT79: Boise City Solar (ID Solar 1) | DU79: 8.870856666 | DV79: 5.761758436 | DW79: 2.664576273 | DX79: 2.202716509 | DY79: 2.530081762 | DZ79: 4.274768271 | EA79: 6.836978749 | EB79: 8.105931089 | EC79: 10.57545018 | ED79: 11.60855385 | EE79: 11.97839218 | EF79: 10.72605399 | EG79: 11.82780889 | EH79: 7.682344581 | EI79: 3.552768364 | EJ79: 2.936955346 | EK79: 3.373442349 | EL79: 5.699691028 | EM79: 9.115971665 | EN79: 10.80790812 | EO79: 14.10060024 | EP79: 15.4780718 | EQ79: 15.97118957 | ER79: 14.30140532
A80: Boise River Diversion 1- 3 | B80: 1047 | C80: 6397 | D80: 1A,2A,3A | E80: FCRPS | F80: ROR | G80: WAT | I80: Hydro | J80: 3.3 | K80: 3.3 | M80: 0 | N80: 3.3 | O80: 3.3 | P80: 3.3 | Q80: 3.3 | R80: 2 | U80: Operating | V80: May | W80: 1912 | Y80: Boise R. | Z80: Ada | AA80: ID | AB80: Y | AC80: Columbia | AD80: WECC | AE80: USBR | AF80: Federal | AG80: BPA | AO80: 1 | AT80: 3.3 | AU80: 2 | AZ80: IPC | BC80: 0.9 | BD80: 0.575 | BE80: 0.995890411 | BF80: 1.1 | BG80: 0.41 | BH80: 0.85 | BI80: 1 | BJ80: 1.05 | BK80: 1.3 | BL80: 0.91 | BM80: 0.8 | BN80: 0.94 | BO80: 1 | BP80: (3) turbine-generators. Idled 1982. Rehabilitation underway Nov 2002; returned to service Aug 2004. | BQ80: =VLOOKUP($B80,[2]!Table_intranet_power_vewProjectLatLongUrl[#Data],2,FALSE) -> 43.5375 | BR80: =VLOOKUP($B80,[2]!Table_intranet_power_vewProjectLatLongUrl[#Data],3,FALSE) -> -116.09333 | BS80: =VLOOKUP($B80,[2]!Table_intranet_power_vewProjectLatLongUrl[#Data],4,FALSE) -> http://www.usbr.gov/projects/Powerplant.jsp?fac_Name=Boise+River+Diversion+Powerplant | BT80: 2017-10-17T13:17:58 | BU80: 3.3 | BV80: 3.3 | BW80: 0.6060606061 | BX80: 2 | BY80: Independent | BZ80: N | CA80: Accounted for in HydInd file
A81: Bonners Ferry 1 | B81: 1048 | F81: IC | G81: FO | I81: Petroleum | J81: 0.2 | O81: 0.2 | U81: Retired | W81: 1930 | X81: Unknown | Y81: Bonners Ferry | Z81: Boundary | AA81: ID | AB81: Y | AC81: Columbia | AD81: WECC | AE81: City of Bonners Ferry | AF81: Municipal | AG81: Retired | AO81: 0 | AT81: 0 | AU81: 0 | BQ81: =VLOOKUP($B81,[2]!Table_intranet_power_vewProjectLatLongUrl[#Data],2,FALSE) -> 0 | BR81: =VLOOKUP($B81,[2]!Table_intranet_power_vewProjectLatLongUrl[#Data],3,FALSE) -> 0 | BS81: =VLOOKUP($B81,[2]!Table_intranet_power_vewProjectLatLongUrl[#Data],4,FALSE) -> 0 | BT81: 2008-04-14 | BU81: 0.2 | BV81: 0.2 | BW81: 0.93 | BX81: 0.186 | BZ81: N | CA81: Retired
A82: Bonners Ferry 2 | B82: 1049 | F82: IC | G82: FO | I82: Petroleum | J82: 1.1 | O82: 1.1 | U82: Retired | W82: 1930 | X82: Unknown | Y82: Bonners Ferry | Z82: Boundary | AA82: ID | AB82: Y | AC82: Columbia | AD82: WECC | AE82: City of Bonners Ferry | AF82: Municipal | AG82: Retired | AO82: 0 | AT82: 0 | AU82: 0 | BQ82: =VLOOKUP($B82,[2]!Table_intranet_power_vewProjectLatLongUrl[#Data],2,FALSE) -> 0 | BR82: =VLOOKUP($B82,[2]!Table_intranet_power_vewProjectLatLongUrl[#Data],3,FALSE) -> 0 | BS82: =VLOOKUP($B82,[2]!Table_intranet_power_vewProjectLatLongUrl[#Data],4,FALSE) -> 0 | BT82: 2008-04-14 | BU82: 1.1 | BV82: 1.1 | BW82: 0.93 | BX82: 1.023 | BZ82: N | CA82: Retired
A83: Bonners Ferry 3 | B83: 1050 | F83: IC | G83: FO | I83: Petroleum | J83: 1.1 | O83: 1.1 | U83: Retired | W83: 1973 | X83: Unknown | Y83: Bonners Ferry | Z83: Boundary | AA83: ID | AB83: Y | AC83: Columbia | AD83: WECC | AE83: City of Bonners Ferry | AF83: Municipal | AG83: Retired | AO83: 0 | AT83: 0 | AU83: 0 | BQ83: =VLOOKUP($B83,[2]!Table_intranet_power_vewProjectLatLongUrl[#Data],2,FALSE) -> 0 | BR83: =VLOOKUP($B83,[2]!Table_intranet_power_vewProjectLatLongUrl[#Data],3,FALSE) -> 0 | BS83: =VLOOKUP($B83,[2]!Table_intranet_power_vewProjectLatLongUrl[#Data],4,FALSE) -> 0 | BT83: 2008-04-14 | BU83: =IF(OR(I83="Wind",I83="Solar",I83="Hydro"),J83,IF(ISNUMBER(L83),L83,IF(ISNUMBER(O83), O83, IF(ISNUMBER(Q83),Q83,J83)))) -> 1.1 | BV83: 1.1 | BW83: =IF(OR(ISBLANK(J83),ISBLANK(R83),J83=0),VLOOKUP(IF(G83="WAT","HY",IF(G83="LFG","LFG",F83)),Acapability,4,FALSE),R83/J83) -> 0.93 | BX83: 1.023 | BZ83: N | CA83: Retired
A84: Bonneville 1 - 18 | B84: 1051 | C84: 3075 | D84: 1,2,3,4,5,6,7,8,9,10,11,12,13,14,15,16,17,18 | E84: FCRPS | F84: ROR | G84: WAT | I84: Hydro | J84: 1050 | K84: 1135.8 | M84: 921 | N84: 1086.7 | O84: 1086.7 | P84: 1127.7 | Q84: 1127.7 | R84: 578 | T84: 402 | U84: Operating | V84: Jul | W84: 1938 | Y84: Columbia R. | Z84: Multnomah/Skamania | AA84: OR/WA | AB84: Y | AC84: Columbia | AD84: WECC | AE84: USCE | AF84: Federal | AG84: BPA | AO84: 1 | AT84: 1050 | AU84: 578 | AZ84: BPA | BA84: 534.5 | BB84: 512.8 | BC84: 534.3 | BD84: 492.166895 | BE84: 580.2909817 | BF84: 520.4 | BG84: 515.49 | BH84: 509.8 | BI84: 460.61 | BJ84: 629.14 | BK84: 633.5 | BL84: 533.28 | BM84: 556.73 | BN84: 471.13 | BO84: 528 | BP84: Nameplate, Summer & Winter from FERC 714. Critical energy from PNUCC 2005 NRF | BQ84: =VLOOKUP($B84,[2]!Table_intranet_power_vewProjectLatLongUrl[#Data],2,FALSE) -> 45.638 | BR84: =VLOOKUP($B84,[2]!Table_intranet_power_vewProjectLatLongUrl[#Data],3,FALSE) -> -121.942 | BS84: =VLOOKUP($B84,[2]!Table_intranet_power_vewProjectLatLongUrl[#Data],4,FALSE) -> http://www.nwcouncil.org/energy/powersupply/dams/dam.asp?id=1 | BT84: 2017-10-17T13:20:56 | BU84: 1050 | BV84: 1086.7 | BW84: 0.5504761905 | BX84: 578 | BY84: Regulated | BZ84: N | CA84: Reg hydro
A85: Bonneville Fishway F1 & F2 | B85: 1052 | C85: 3075 | D85: F1,F2 | E85: FCRPS | F85: ROR | G85: WAT | I85: Hydro | J85: 26.2 | K85: 26.2 | N85: 26.2 | O85: 26.2 | P85: 26.2 | Q85: 26.2 | R85: 21 | T85: 21 | U85: Operating | V85: Nov | W85: 1981 | Y85: Columbia R. | Z85: Multnomah/Skamania | AA85: OR/WA | AB85: Y | AC85: Columbia | AD85: WECC | AE85: USCE | AF85: Federal | AG85: BPA | AO85: 1 | AT85: 26.2 | AU85: 21 | AZ85: BPA | BP85: Nameplate, Summer & Winter from FERC 714. Critical energy from PNUCC 2005 NRF | BQ85: =VLOOKUP($B85,[2]!Table_intranet_power_vewProjectLatLongUrl[#Data],2,FALSE) -> 45.638 | BR85: =VLOOKUP($B85,[2]!Table_intranet_power_vewProjectLatLongUrl[#Data],3,FALSE) -> -121.942 | BS85: =VLOOKUP($B85,[2]!Table_intranet_power_vewProjectLatLongUrl[#Data],4,FALSE) -> 0 | BT85: 2017-10-17T13:24:27 | BU85: 26.2 | BV85: 26.2 | BW85: 0.8015267176 | BX85: 21 | BY85: Independent | BZ85: N | CA85: Accounted for in HydInd file
A86: Boulder Creek | B86: 1053 | E86: 7086 | F86: Diversion | G86: WAT | I86: Hydro | J86: 0.35 | L86: 0.2 | N86: 0.35 | O86: 0.35 | R86: 0.21 | U86: Operating | W86: 1984 | Y86: Boulder Cr. | Z86: Lake | AA86: MT | AB86: Y | AC86: Columbia | AD86: WECC | AE86: Salish & Kookenai Tribes | AF86: Independent | AG86: Listed NUG per 2009 White Book | AO86: 1 | AT86: 0.35 | AU86: 0.21 | BP86: Exemption granted September 1983. | BQ86: =VLOOKUP($B86,[2]!Table_intranet_power_vewProjectLatLongUrl[#Data],2,FALSE) -> 0 | BR86: =VLOOKUP($B86,[2]!Table_intranet_power_vewProjectLatLongUrl[#Data],3,FALSE) -> 0 | BS86: =VLOOKUP($B86,[2]!Table_intranet_power_vewProjectLatLongUrl[#Data],4,FALSE) -> 0 | BT86: 2014-01-30T08:47:07 | BU86: 0.35 | BV86: 0.35 | BW86: 0.6 | BX86: 0.21 | BZ86: N | CA86: <0.5 MW | DU86: =IF($BZ86="N","",IF(OR($I86<>"Wind",$I86<>"Solar",$I86<>"Hydro"),($CF86*$CH86*IF(ISBLANK($L86),IF(ISBLANK($O86),$J86,$O86),$L86))*VLOOKUP($CZ86,ASeasDist,DU$7,FALSE)*VLOOKUP($DE86,ASeasDist,DU$7),$J86*$CF86*$CH86)) ->  | EG86: =IF($BZ86="N","",IF(OR($I86<>"Wind",$I86<>"Solar",$I86<>"Hydro"),$CJ86*IF(ISBLANK($L86),IF(ISBLANK($O86),$J86,$O86),$L86),$J86)*(1-$CW86)*VLOOKUP($CZ86,ASeasDist,EG$7,FALSE)*VLOOKUP($DE86,ASeasDist,EG$7)) -> 
A87: Boulder Park 1-6 | B87: 1054 | C87: 8022 | D87: 1,2,3,4,5,6 | F87: IC | G87: NG | I87: Natural gas | J87: 24.6 | K87: 24.6 | L87: 25 | N87: 24.6 | O87: 24.6 | P87: 24.6 | Q87: 24.6 | U87: Operating | V87: May | W87: 2002 | Y87: Spokane | Z87: Spokane | AA87: WA | AB87: Y | AC87: Columbia | AD87: WECC | AE87: Avista | AF87: IOU | AG87: Avista Utilities | AH87: 11.24 | AI87: 11.85 | AJ87: 9545 | AO87: 1 | AT87: 24.6 | AU87: 23.064 | AX87: TransCanada GTN/Williams Northwest | AZ87: Avista | BA87: 1 | BB87: 1.8 | BC87: 0.9 | BD87: 0.775456621 | BE87: 0.8913242009 | BF87: 1.6 | BG87: 1.35 | BH87: 3.17 | BI87: 1.2 | BJ87: 1.04 | BK87: 0.6 | BL87: 2.96 | BM87: 1.69 | BN87: 2.56 | BO87: 2.1 | BP87: (6) 4.1 MW Wartsila units. | BQ87: =VLOOKUP($B87,[2]!Table_intranet_power_vewProjectLatLongUrl[#Data],2,FALSE) -> 47.696410 | BR87: =VLOOKUP($B87,[2]!Table_intranet_power_vewProjectLatLongUrl[#Data],3,FALSE) -> -117.147488 | BS87: =VLOOKUP($B87,[2]!Table_intranet_power_vewProjectLatLongUrl[#Data],4,FALSE) -> 0 | BT87: 2017-10-17T13:25:07 | BU87: 25 | BV87: 24.6 | BW87: 0.93 | BX87: 23.064 | BZ87: Y | CC87: PNW East | CD87: NGIC_PNWE | CE87: 9400 | CF87: 1 | CH87: 1 | CJ87: 1 | CN87: Boulder Park 1-6 | CO87: PNW East | CP87: Thr | CQ87: IC | CR87: 25 | CS87: May-2002 | CT87: Jan-2051 | CU87: 9400 | CV87: PNW E. gas | CW87: 0.047 | CX87: 56 | CY87: FALSE | CZ87: MR 7d Winter Pk_Hydro | DA87: NG Recip Peaking E | DB87: Default | DC87: Default | DD87: 30 | DE87: Flat | DF87: 0 | DG87: 0 | DH87: FALSE | DI87: TRUE | DJ87: FALSE | DK87: FALSE | DL87: 0 | DM87: 0 | DN87: 0 | DR87: Boulder Park 1-6 | DT87: Boulder Park 1-6 | DU87: 25 | DV87: 25 | DW87: 25 | DX87: 25 | DY87: 25 | DZ87: 25 | EA87: 23.35616438 | EB87: 21.71232877 | EC87: 21.71232877 | ED87: 21.71232877 | EE87: 25 | EF87: 25 | EG87: 23.825 | EH87: 23.825 | EI87: 23.825 | EJ87: 23.825 | EK87: 23.825 | EL87: 23.825 | EM87: 22.25842466 | EN87: 20.69184932 | EO87: 20.69184932 | EP87: 20.69184932 | EQ87: 23.825 | ER87: 23.825
A88: Boundary 1 - 6 | B88: 1055 | C88: 6433 | D88: 51,52,53,54,55,56 | E88: 2144 | F88: Storage | G88: WAT | I88: Hydro | J88: 1039.8 | K88: 1118.6 | M88: 717 | N88: 1039.8 | O88: 1039.8 | P88: 1103.8 | Q88: 1103.8 | R88: 454 | T88: 303 | U88: Operating | V88: Aug | W88: 1967 | Y88: Pend Oreille R. | Z88: Pend Oreille | AA88: WA | AB88: Y | AC88: Columbia | AD88: WECC | AE88: City of Seattle | AF88: Municipal | AG88: City of Seattle | AO88: 1 | AT88: 1039.8 | AU88: 454 | AZ88: SCE | BA88: 451.5 | BB88: 407.5 | BC88: 398.1 | BD88: 394.2994292 | BE88: 492.286758 | BF88: 413.8 | BG88: 441.21 | BH88: 409.5 | BI88: 358.27 | BJ88: 512.7 | BK88: 433.3 | BL88: 394.89 | BM88: 484.41 | BN88: 395.66 | BO88: 443.4 | BP88: License granted April 1982; expires October 2011. Critical energy from PNUCC 2005 NRF. FERC approved 42-yr license (Mar 2013). | BQ88: =VLOOKUP($B88,[2]!Table_intranet_power_vewProjectLatLongUrl[#Data],2,FALSE) -> 48.992 | BR88: =VLOOKUP($B88,[2]!Table_intranet_power_vewProjectLatLongUrl[#Data],3,FALSE) -> -117.348 | BS88: =VLOOKUP($B88,[2]!Table_intranet_power_vewProjectLatLongUrl[#Data],4,FALSE) -> http://www.nwcouncil.org/energy/powersupply/dams/dam.asp?id=21 | BT88: 2017-10-17T13:29:15 | BU88: 1039.8 | BV88: 1039.8 | BW88: 0.4366224274 | BX88: 454 | BY88: Regulated | BZ88: N | CA88: Reg hydro | DT88: =CN88 -> 
A89: Boundary GT | B89: 1056 | F89: GT | G89: FO | I89: Petroleum | J89: 0.75 | L89: 1 | U89: Operating | Y89: Boundary Dam | Z89: Pend Oreille | AA89: WA | AB89: Y | AC89: Columbia | AD89: WECC | AE89: City of Seattle | AF89: Municipal | AG89: City of Seattle | AO89: 1 | AT89: 0.75 | AU89: 0.91 | BQ89: =VLOOKUP($B89,[2]!Table_intranet_power_vewProjectLatLongUrl[#Data],2,FALSE) -> 0 | BR89: =VLOOKUP($B89,[2]!Table_intranet_power_vewProjectLatLongUrl[#Data],3,FALSE) -> 0 | BS89: =VLOOKUP($B89,[2]!Table_intranet_power_vewProjectLatLongUrl[#Data],4,FALSE) -> 0 | BT89: 2010-05-14 | BU89: 1 | BV89: 1 | BW89: 0.91 | BX89: 0.91 | BZ89: Y | CC89: PNW East | CD89: FOIC | CE89: 13000 | CF89: 1 | CH89: 1 | CJ89: 0 | CK89: Emergency service | CN89: Boundary GT | CO89: PNW East | CP89: Thr | CQ89: IC | CR89: 1 | CS89: Dec-1980 | CT89: Jan-2051 | CU89: 13000 | CV89: No. 2 FO | CW89: 0.047 | CX89: 56 | CY89: FALSE | CZ89: MR 7d Flat | DA89: FO Peaking | DB89: Default | DC89: Default | DD89: 20 | DE89: Flat | DF89: 0 | DG89: 0 | DH89: FALSE | DI89: TRUE | DJ89: FALSE | DK89: FALSE | DL89: 0 | DM89: 0 | DN89: 0 | DR89: Boundary GT | DT89: Boundary GT | DU89: 0.9616438356 | DV89: 0.9616438356 | DW89: 0.9616438356 | DX89: 0.9616438356 | DY89: 0.9616438356 | DZ89: 0.9616438356 | EA89: 0.9616438356 | EB89: 0.9616438356 | EC89: 0.9616438356 | ED89: 0.9616438356 | EE89: 0.9616438356 | EF89: 0.9616438356 | EG89: 0 | EH89: 0 | EI89: 0 | EJ89: 0 | EK89: 0 | EL89: 0 | EM89: 0 | EN89: 0 | EO89: 0 | EP89: 0 | EQ89: 0 | ER89: 0
A90: Box Canyon | B90: 1057 | E90: 6543 | F90: ROR R w/Div (spring) | G90: WAT | I90: Hydro | J90: 0.56 | L90: 0.3 | R90: 0.52 | U90: Operating | W90: 1983 | Y90: Box Canyon Spr. | Z90: Twin Falls | AA90: ID | AB90: Y | AC90: Columbia | AD90: WECC | AE90: Clear Springs Trout Co. | AF90: Independent | AG90: Idaho Power Co. (QF thru Feb 2019) | AO90: 1 | AT90: 0.56 | AU90: 0.52 | BP90: Exemption granted November 1982. | BQ90: =VLOOKUP($B90,[2]!Table_intranet_power_vewProjectLatLongUrl[#Data],2,FALSE) -> 0 | BR90: =VLOOKUP($B90,[2]!Table_intranet_power_vewProjectLatLongUrl[#Data],3,FALSE) -> 0 | BS90: =VLOOKUP($B90,[2]!Table_intranet_power_vewProjectLatLongUrl[#Data],4,FALSE) -> 0 | BT90: 2015-03-27T16:09:07 | BU90: 0.56 | BV90: 0.3 | BW90: 0.9285714286 | BX90: 0.52 | BZ90: Y | CA90: Not accounted for in HydInd file | CC90: PNW East | CD90: HY_East | CE90: n/a | CF90: 1 | CH90: 1 | CJ90: 1 | CL90: Y | CN90: Box Canyon | CO90: PNW East | CP90: Thr | CQ90: Hyd | CR90: 0.3 | CS90: Dec-1983 | CT90: Jan-2051 | CU90: n/a | CV90: Water | CW90: 0 | CX90: 24 | CY90: FALSE | CZ90: Cf HY East | DA90: Zero | DB90: Expense | DC90: Default | DD90: 50 | DE90: Flat | DF90: 0 | DG90: 0 | DH90: FALSE | DI90: TRUE | DJ90: FALSE | DK90: FALSE | DL90: 0 | DM90: 0 | DN90: 0 | DR90: Box Canyon | DT90: Box Canyon | DU90: 0.09803108218 | DV90: 0.1287083087 | DW90: 0.1144528242 | DX90: 0.1453926465 | DY90: 0.1672830878 | DZ90: 0.1291076953 | EA90: 0.1502533144 | EB90: 0.1623229976 | EC90: 0.2131918598 | ED90: 0.198146468 | EE90: 0.1984940756 | EF90: 0.1793416558 | EG90: 0.09803108218 | EH90: 0.1287083087 | EI90: 0.1144528242 | EJ90: 0.1453926465 | EK90: 0.1672830878 | EL90: 0.1291076953 | EM90: 0.1502533144 | EN90: 0.1623229976 | EO90: 0.2131918598 | EP90: 0.198146468 | EQ90: 0.1984940756 | ER90: 0.1793416558
A91: Box Canyon 1 - 4 | B91: 1058 | C91: 3891 | D91: 1,2,3,4 | E91: 2042 | F91: ROR | G91: WAT | I91: Hydro | J91: 90 | K91: 90 | M91: 64.6 | N91: 76.8 | O91: 76.8 | P91: 90 | Q91: 90 | R91: 52 | T91: 43 | U91: Operating | V91: Jun | W91: 1955 | Y91: Pend Oreille R. | Z91: Pend Oreille | AA91: WA | AB91: Y | AC91: Columbia | AD91: WECC | AE91: Pend Oreille Co. PUD | AF91: PUD | AG91: Pend Oreille Co. PUD | AO91: 1 | AT91: 90 | AU91: 52 | AZ91: Avista | BA91: 45.6 | BB91: 49.7 | BC91: 53.6 | BD91: 53.68652968 | BE91: 55.4847032 | BF91: 51.9 | BG91: 48.22 | BH91: 50.1 | BI91: 44.8 | BJ91: 46.09 | BK91: 42.9 | BL91: 47.39 | BM91: 49.66 | BN91: 57.9 | BO91: 55.6 | BP91: Box Canyon Dam & reservoir and Calispell Ck diversion pumphouse, diversion, forebay channel and powerhouse w/4 Kaplan turbines. Original license Feb 1952 - Jan 2002. 50- yr relicensed granted July 2005. Critical energy from PNUCC 2005 NRF. Licensed upgrade to 90 MW + 2.4 additional aMW energy completed in Feb 2015. | BQ91: =VLOOKUP($B91,[2]!Table_intranet_power_vewProjectLatLongUrl[#Data],2,FALSE) -> 48.781215 | BR91: =VLOOKUP($B91,[2]!Table_intranet_power_vewProjectLatLongUrl[#Data],3,FALSE) -> -117.412244 | BS91: =VLOOKUP($B91,[2]!Table_intranet_power_vewProjectLatLongUrl[#Data],4,FALSE) -> http://www.popud.com/Box%20Canyon%20Hydro.htm | BT91: 2017-10-17T13:30:02 | BU91: 90 | BV91: 76.8 | BW91: 0.5777777778 | BX91: 52 | BY91: Regulated | BZ91: N | CA91: Reg hydro
A92: Box Canyon 1 & 2 | B92: 1059 | C92: 50179 | D92: GEN1,GEN2 | G92: WAT | I92: Hydro | J92: 5 | K92: 5 | N92: 0.26 | O92: 0.34 | P92: 5 | Q92: 5 | U92: Operating | V92: Jun | W92: 1986 | Y92: Mt. Shasta | Z92: Siskiyou | AA92: CA | AB92: N | AC92: Unknown | AD92: WECC | AE92: Synergics, Inc. | AF92: Independent | AG92: PacifiCorp (PPA thru 2020) | AN92: 2020 | AO92: 1 | AT92: 5 | AU92: 1.12301 | AZ92: PACW | BO92: 2.73 | BQ92: =VLOOKUP($B92,[2]!Table_intranet_power_vewProjectLatLongUrl[#Data],2,FALSE) -> 41.2792 | BR92: =VLOOKUP($B92,[2]!Table_intranet_power_vewProjectLatLongUrl[#Data],3,FALSE) -> -122.3292 | BS92: =VLOOKUP($B92,[2]!Table_intranet_power_vewProjectLatLongUrl[#Data],4,FALSE) -> 0 | BT92: 2017-12-04T15:08:27 | BU92: 5 | BV92: 0.26 | BW92: 0.427 | BX92: 1.12301 | BZ92: Y | CA92: Not accounted for in HydInd file | CC92: Capt Jack | CD92: HY_East | CE92: n/a | CF92: 1 | CH92: 1 | CJ92: 1 | CN92: Box Canyon 1 & 2 | CO92: Capt Jack | CP92: Thr | CQ92: Hyd | CR92: 0.34 | CS92: Jun-1986 | CT92: Jan-2051 | CU92: n/a | CV92: Water | CW92: 0 | CX92: 24 | CY92: FALSE | CZ92: Cf HY East | DA92: Zero | DB92: Expense | DC92: Default | DD92: 50 | DE92: Flat | DF92: 0 | DG92: 0 | DH92: FALSE | DI92: TRUE | DJ92: FALSE | DK92: FALSE | DL92: 0 | DM92: 0 | DN92: 0 | DR92: Box Canyon 1 & 2 | DT92: Box Canyon 1 & 2 | DU92: 0.1111018931 | DV92: 0.1458694165 | DW92: 0.1297132008 | DX92: 0.1647783327 | DY92: 0.1895874995 | DZ92: 0.1463220547 | EA92: 0.1702870897 | EB92: 0.1839660639 | EC92: 0.2416174411 | ED92: 0.224565997 | EE92: 0.2249599524 | EF92: 0.2032538766 | EG92: 0.1111018931 | EH92: 0.1458694165 | EI92: 0.1297132008 | EJ92: 0.1647783327 | EK92: 0.1895874995 | EL92: 0.1463220547 | EM92: 0.1702870897 | EN92: 0.1839660639 | EO92: 0.2416174411 | EP92: 0.224565997 | EQ92: 0.2249599524 | ER92: 0.2032538766
A93: BP Cherry Point GTs | B93: 1060 | F93: GT | G93: NG | I93: Natural gas | J93: 72.8 | U93: Retired | W93: 2001 | X93: 2001 | Y93: Blaine (Cherry Point Refinery) | Z93: Whatcom | AA93: WA | AB93: Y | AC93: Puget Sound & Coastal | AD93: WECC | AE93: BP Cherry Point Refinery, Blaine, WA | AF93: Independent | AG93: Retired | AO93: 0 | AT93: 0 | AU93: 0 | BD93: n/a | BE93: n/a | BP93: (14) leased 5.2 MW Solar Taurus units. | BQ93: =VLOOKUP($B93,[2]!Table_intranet_power_vewProjectLatLongUrl[#Data],2,FALSE) -> 0 | BR93: =VLOOKUP($B93,[2]!Table_intranet_power_vewProjectLatLongUrl[#Data],3,FALSE) -> 0 | BS93: =VLOOKUP($B93,[2]!Table_intranet_power_vewProjectLatLongUrl[#Data],4,FALSE) -> 0 | BT93: 2005-03-30 | BU93: 72.8 | BV93: 72.8 | BW93: 0.91 | BX93: 66.248 | BZ93: N | CA93: Retired
A94: Bremerton WWTP | B94: 1061 | F94: ICCG | G94: WG | I94: Biomass | J94: 0.152 | N94: 0.152 | O94: 0.152 | R94: 0.07 | U94: Operating | Y94: Bremerton | Z94: Kitsap | AA94: WA | AB94: Y | AC94: Puget Sound & Coastal | AD94: WECC | AE94: City of Bremerton | AF94: Independent | AG94: Self-generation | AO94: 1 | AT94: 0.152 | AU94: 0.07 | AV94: Bremerton WWTP | AW94: Wastewater treatment | BQ94: =VLOOKUP($B94,[2]!Table_intranet_power_vewProjectLatLongUrl[#Data],2,FALSE) -> 47.550221 | BR94: =VLOOKUP($B94,[2]!Table_intranet_power_vewProjectLatLongUrl[#Data],3,FALSE) -> -122.671981 | BS94: =VLOOKUP($B94,[2]!Table_intranet_power_vewProjectLatLongUrl[#Data],4,FALSE) -> http://www.cityofbremerton.com/content/wastewater.html | BT94: 2014-01-30T08:48:43 | BU94: 0.152 | BV94: 0.152 | BW94: 0.4605263158 | BX94: 0.07 | BZ94: N | CA94: <0.5 MW
A95: Briggs | B95: 1062 | E95: 8083 | F95: Diversion | G95: WAT | I95: Hydro | J95: 0.3 | R95: 0.2 | U95: Retired | W95: 1986 | X95: 1999 | Y95: Teton Cnl. | Z95: Fremont | AA95: ID | AB95: Y | AC95: Columbia | AD95: WECC | AE95: Briggs Hydroelectric | AF95: Independent | AG95: Retired | AT95: 0 | AU95: 0 | BD95: n/a | BE95: n/a | BP95: Exemption surrendered June 1999. | BQ95: =VLOOKUP($B95,[2]!Table_intranet_power_vewProjectLatLongUrl[#Data],2,FALSE) -> 0 | BR95: =VLOOKUP($B95,[2]!Table_intranet_power_vewProjectLatLongUrl[#Data],3,FALSE) -> 0 | BS95: =VLOOKUP($B95,[2]!Table_intranet_power_vewProjectLatLongUrl[#Data],4,FALSE) -> 0 | BT95: 2003-09-19 | BU95: 0.3 | BV95: 0.3 | BW95: 0.6666666667 | BX95: 0.2 | BZ95: N | CA95: Retired
A96: Briggs Creek | B96: 1063 | E96: 4360 | F96: Diversion | G96: WAT | I96: Hydro | J96: 0.75 | L96: 0.6 | N96: 0.41 | O96: 0.41 | T96: 0 | U96: Operating | W96: 1985 | Y96: Briggs Cr. | Z96: Gooding | AA96: ID | AB96: Y | AC96: Columbia | AD96: WECC | AE96: R. Kaster | AF96: Independent | AG96: Idaho Power Co. (QF thru Oct 2020) | AO96: 1 | AT96: 0.75 | AU96: 0.24766 | BP96: Exemption granted February 1984. Critical energy from PNUCC 2005 NRF | BQ96: =VLOOKUP($B96,[2]!Table_intranet_power_vewProjectLatLongUrl[#Data],2,FALSE) -> 0 | BR96: =VLOOKUP($B96,[2]!Table_intranet_power_vewProjectLatLongUrl[#Data],3,FALSE) -> 0 | BS96: =VLOOKUP($B96,[2]!Table_intranet_power_vewProjectLatLongUrl[#Data],4,FALSE) -> 0 | BT96: 2014-01-30T08:49:19 | BU96: 0.75 | BV96: 0.41 | BW96: 0.427 | BX96: 0.24766 | BZ96: Y | CA96: Not accounted for in HydInd file | CC96: PNW East | CD96: HY_East | CE96: n/a | CF96: 1 | CH96: 1 | CJ96: 1 | CL96: Y | CN96: Briggs Creek | CO96: PNW East | CP96: Thr | CQ96: Hyd | CR96: 0.6 | CS96: Dec-1985 | CT96: Jan-2051 | CU96: n/a | CV96: Water | CW96: 0 | CX96: 24 | CY96: FALSE | CZ96: Cf HY East | DA96: Zero | DB96: Expense | DC96: Default | DD96: 50 | DE96: Flat | DF96: 0 | DG96: 0 | DH96: FALSE | DI96: TRUE | DJ96: FALSE | DK96: FALSE | DL96: 0 | DM96: 0 | DN96: 0 | DR96: Briggs Creek | DT96: Briggs Creek | DU96: =IF($BZ96="N","",IF(OR($I96<>"Wind",$I96<>"Solar",$I96<>"Hydro"),($CF96*$CH96*IF(ISBLANK($L96),IF(ISBLANK($O96),$J96,$O96),$L96))*VLOOKUP($CZ96,ASeasDist,DU$7,FALSE)*VLOOKUP($DE96,ASeasDist,DU$7),$J96*$CF96*$CH96)) -> 0.1960621644 | DV96: 0.2574166174 | DW96: 0.2289056484 | DX96: 0.290785293 | DY96: 0.3345661755 | DZ96: 0.2582153907 | EA96: 0.3005066289 | EB96: 0.3246459952 | EC96: 0.4263837196 | ED96: 0.3962929359 | EE96: 0.3969881513 | EF96: 0.3586833116 | EG96: =IF($BZ96="N","",IF(OR($I96<>"Wind",$I96<>"Solar",$I96<>"Hydro"),$CJ96*IF(ISBLANK($L96),IF(ISBLANK($O96),$J96,$O96),$L96),$J96)*(1-$CW96)*VLOOKUP($CZ96,ASeasDist,EG$7,FALSE)*VLOOKUP($DE96,ASeasDist,EG$7)) -> 0.1960621644 | EH96: 0.2574166174 | EI96: 0.2289056484 | EJ96: 0.290785293 | EK96: 0.3345661755 | EL96: 0.2582153907 | EM96: 0.3005066289 | EN96: 0.3246459952 | EO96: 0.4263837196 | EP96: 0.3962929359 | EQ96: 0.3969881513 | ER96: 0.3586833116
A97: Broadwater Toston Dam | B97: 1064 | C97: 54006 | D97: GEN1 | E97: 2853 | F97: ROR | G97: WAT | I97: Hydro | J97: 9.7 | K97: 9.7 | L97: 3.1 | N97: 7.9 | O97: 6.7 | P97: 9.7 | Q97: 9.7 | T97: 6 | U97: Operating | V97: Jun | W97: 1989 | Y97: Missouri R. | Z97: Broadwater | AA97: MT | AB97: N | AC97: Missouri | AD97: WECC | AE97: State of Montana (owner); Dry Creek, LLC (lessee) | AF97: Independent | AG97: NorthWestern (QF thru Jun 2024) | AO97: 0.31 | AT97: 3.007 | AU97: 1.164856 | AZ97: NorthWestern | BG97: 5.26 | BH97: 6.04 | BI97: 6 | BJ97: 6.11 | BK97: 6.1 | BL97: 5.15 | BM97: 5.95 | BN97: 5.4 | BO97: 5.5 | BP97: License granted April 1984; expires June 2024. Critical energy from PNUCC 2005 NRF | BQ97: =VLOOKUP($B97,[2]!Table_intranet_power_vewProjectLatLongUrl[#Data],2,FALSE) -> 46.119722 | BR97: =VLOOKUP($B97,[2]!Table_intranet_power_vewProjectLatLongUrl[#Data],3,FALSE) -> -111.408333 | BS97: =VLOOKUP($B97,[2]!Table_intranet_power_vewProjectLatLongUrl[#Data],4,FALSE) -> http://en.wikipedia.org/wiki/Toston_Dam | BT97: 2017-10-17T13:53:46 | BU97: 9.7 | BV97: 7.9 | BW97: 0.427 | BX97: 3.7576 | BZ97: Y | CA97: Not accounted for in HydInd file | CC97: PNW East | CD97: HY_Irr | CE97: n/a | CF97: 0.31 | CG97: NorthWestern | CH97: 1 | CJ97: 0.31 | CK97: NorthWestern | CL97: Y | CN97: Broadwater Toston Dam | CO97: PNW East | CP97: Thr | CQ97: Hyd | CR97: 0.961 | CS97: Jun-1989 | CT97: Jan-2051 | CU97: n/a | CV97: Water | CW97: 0 | CX97: 24 | CY97: FALSE | CZ97: Cf HY Irr | DA97: Zero | DB97: Expense | DC97: Default | DD97: 50 | DE97: Flat | DF97: 0 | DG97: 0 | DH97: FALSE | DI97: TRUE | DJ97: FALSE | DK97: FALSE | DL97: 0 | DM97: 0 | DN97: 0 | DR97: Broadwater Toston Dam | DT97: Broadwater Toston Dam | DU97: 0.961 | DV97: 0 | DW97: 0 | DX97: 0 | DY97: 0 | DZ97: 0 | EA97: 0 | EB97: 0.961 | EC97: 0.961 | ED97: 0.961 | EE97: 0.961 | EF97: 0.961 | EG97: 0.961 | EH97: 0 | EI97: 0 | EJ97: 0 | EK97: 0 | EL97: 0 | EM97: 0 | EN97: 0.961 | EO97: 0.961 | EP97: 0.961 | EQ97: 0.961 | ER97: 0.961
A98: Brownlee 1- 5 | B98: 1065 | C98: 811 | D98: 1,2,3,4,5 | E98: 1971C | F98: ROR R. w/Div. | G98: WAT | I98: Hydro | J98: 585.4 | K98: 585.4 | M98: 675 | N98: 675.02 | O98: 491.99 | P98: 744 | Q98: 726.9 | R98: 340 | T98: 231 | U98: Operating | V98: Aug | W98: 1958 | Y98: Snake R. | Z98: Washington | AA98: ID/OR | AB98: Y | AC98: Columbia | AD98: WECC | AE98: Idaho Power Co. | AF98: IOU | AG98: Idaho Power Co. | AO98: 1 | AT98: 585.4 | AU98: 340 | AZ98: IPC | BA98: 209.9 | BB98: 221.9 | BC98: 214.2 | BD98: 223.3747717 | BE98: 333.9915525 | BF98: 208.6 | BG98: 239.99 | BH98: 274.75 | BI98: 256.28 | BJ98: 333.78 | BK98: 262.5 | BL98: 191.26 | BM98: 218.89 | BN98: 196.22 | BO98: 229.8 | BP98: License granted August 1955; expires July 2005. Critical energy from PNUCC 2005 NRF | BQ98: =VLOOKUP($B98,[2]!Table_intranet_power_vewProjectLatLongUrl[#Data],2,FALSE) -> 44.841 | BR98: =VLOOKUP($B98,[2]!Table_intranet_power_vewProjectLatLongUrl[#Data],3,FALSE) -> -116.896 | BS98: =VLOOKUP($B98,[2]!Table_intranet_power_vewProjectLatLongUrl[#Data],4,FALSE) -> http://www.nwcouncil.org/energy/powersupply/dams/dam.asp?id=20 | BT98: 2017-10-17T14:09:35 | BU98: 585.4 | BV98: 675.02 | BW98: 0.5807994534 | BX98: 340 | BY98: Regulated | BZ98: N | CA98: Reg hydro
A99: Brunswick Creek | B99: 1066 | E99: 6564 | F99: Storage w/Div | G99: WAT | I99: Hydro | J99: 0.0375 | N99: 0.0375 | O99: 0.0375 | R99: 0.025 | U99: Operating | W99: 1982 | Y99: Brunswick Canyon Cr. | Z99: Washington | AA99: OR | AB99: Y | AC99: Columbia | AD99: WECC | AE99: R.L. Horning | AF99: Independent | AG99: Portland General Electric | AO99: 1 | AT99: 0.0375 | AU99: 0.025 | BP99: (1) 37.5 kW unit. Exemption granted September 1982; surrendered April 2004. | BQ99: =VLOOKUP($B99,[2]!Table_intranet_power_vewProjectLatLongUrl[#Data],2,FALSE) -> 0 | BR99: =VLOOKUP($B99,[2]!Table_intranet_power_vewProjectLatLongUrl[#Data],3,FALSE) -> 0 | BS99: =VLOOKUP($B99,[2]!Table_intranet_power_vewProjectLatLongUrl[#Data],4,FALSE) -> 0 | BT99: 2014-01-30T08:50:30 | BU99: 0.0375 | BV99: 0.0375 | BW99: 0.6666666667 | BX99: 0.025 | BZ99: N | CA99: <0.5 MW
A100: Buffalo River (Pond's Lodge) | B100: 1067 | C100: 7718 | E100: 1413 | F100: Diversion | G100: WAT | I100: Hydro | J100: 0.25 | L100: 0.3 | N100: 0.25 | O100: 0.25 | R100: 0.217 | U100: Operating | W100: 1936 | Y100: Buffalo R. (Henrys Fk. Snake) | Z100: Fremont | AA100: ID | AB100: Y | AC100: Columbia | AD100: WECC | AE100: Fall River REA | AF100: Coop | AG100: BPA | AO100: 1 | AT100: 0.25 | AU100: 0.217 | BP100: (1) 250 kW Bouvier Kaplan turbine. Original license granted October 1939; expired June 1951. Relicensed Nov 2004. Low-impact certified to 2011. | BQ100: =VLOOKUP($B100,[2]!Table_intranet_power_vewProjectLatLongUrl[#Data],2,FALSE) -> 0 | BR100: =VLOOKUP($B100,[2]!Table_intranet_power_vewProjectLatLongUrl[#Data],3,FALSE) -> 0 | BS100: =VLOOKUP($B100,[2]!Table_intranet_power_vewProjectLatLongUrl[#Data],4,FALSE) -> 0 | BT100: 2014-01-30T08:50:45 | BU100: 0.25 | BV100: 0.25 | BW100: 0.868 | BX100: 0.217 | BZ100: N | CA100: <0.5 MW
A101: Bull Run 1 - 4 | B101: 1068 | C101: 3044 | D101: 1,2,3,4 | E101: 477 | F101: ROR R. w/Div. | G101: WAT | I101: Hydro | J101: 20.8 | O101: 24 | P101: 22 | Q101: 22 | T101: 10 | U101: Retired | V101: Oct | W101: 1912 | X101: 2007 | Y101: Sandy R. | Z101: Clackamas | AA101: OR | AB101: Y | AC101: Columbia | AD101: WECC | AE101: Portland General Electric | AF101: IOU | AG101: Retired | AT101: 0 | AU101: 0 | AZ101: PGE | BA101: 10.6 | BB101: 11 | BC101: 13.4 | BD101: 8.881621005 | BE101: 11.40958904 | BF101: 9.2 | BG101: 2.6 | BP101: Original license granted November 1924; expired November 1974. App. to surrender license for project removal by 2009 approved May 2004. Decomissioning commenced 2007. Critical energy from PNUCC 2005 NRF | BQ101: =VLOOKUP($B101,[2]!Table_intranet_power_vewProjectLatLongUrl[#Data],2,FALSE) -> 45.42901 | BR101: =VLOOKUP($B101,[2]!Table_intranet_power_vewProjectLatLongUrl[#Data],3,FALSE) -> -122.23395 | BS101: =VLOOKUP($B101,[2]!Table_intranet_power_vewProjectLatLongUrl[#Data],4,FALSE) -> http://en.wikipedia.org/wiki/Bull_Run_Hydroelectric_Project | BT101: 2014-01-30T08:56:24 | BU101: 20.8 | BV101: 22 | BW101: 0.427 | BX101: 9.1378 | BZ101: N | CA101: Retired
A102: Bull Run No. 1 (Portland Hydro) | B102: 1069 | C102: 4213 | D102: 1 | E102: 2821A | F102: Storage w/Div | G102: WAT | I102: Hydro | J102: 23.7 | K102: 23.7 | L102: 18 | N102: 24 | O102: 24 | P102: 24 | Q102: 24 | R102: 6.86 | U102: Operating | V102: Feb | W102: 1982 | Y102: Bull Run R. | Z102: Multnomah/Clackamas | AA102: OR | AB102: Y | AC102: Columbia | AD102: WECC | AE102: City of Portland | AF102: Independent | AG102: PGE (Sep 2017 thru June 2032); replaces old contract which expired Aug 2017 | AN102: 2032 | AO102: 1 | AP102: 0 | AQ102: 0 | AR102: 0 | AS102: 0 | AT102: =AO102*J102 -> 23.7 | AU102: =IF(ISNUMBER(R102),R102,BX102)*AO102 -> 6.86 | AZ102: PGE | BA102: 8.2 | BB102: 9.9 | BC102: 1.9 | BD102: 7.374200913 | BE102: 6.083105023 | BG102: 0.07 | BH102: 5.67 | BI102: 6.3 | BJ102: 6.12 | BK102: 7.4 | BL102: 6 | BM102: 6.45 | BN102: 4.38 | BO102: 6.1 | BP102: License granted March 1979; expires February 2029. New PSA w/ PGE signed in Sep 2017, thru Jun 2032. Energy NorthWest to be new O&M operator. | BQ102: =VLOOKUP($B102,[2]!Table_intranet_power_vewProjectLatLongUrl[#Data],2,FALSE) -> 45.42901 | BR102: =VLOOKUP($B102,[2]!Table_intranet_power_vewProjectLatLongUrl[#Data],3,FALSE) -> -122.23395 | BS102: =VLOOKUP($B102,[2]!Table_intranet_power_vewProjectLatLongUrl[#Data],4,FALSE) -> http://en.wikipedia.org/wiki/Bull_Run_Hydroelectric_Project | BT102: 2017-12-05T15:11:31 | BU102: 23.7 | BV102: 24 | BW102: 0.2894514768 | BX102: 6.86 | BZ102: Y | CA102: Not accounted for in HydInd file | CC102: PNW West | CD102: HY_West | CE102: n/a | CF102: 1 | CH102: 1 | CJ102: 1 | CL102: Y | CN102: Bull Run No. 1 (Portland Hydro) | CO102: PNW West | CP102: Thr | CQ102: Hyd | CR102: 18 | CS102: Feb-1982 | CT102: Jan-2051 | CU102: n/a | CV102: Water | CW102: 0 | CX102: 24 | CY102: FALSE | CZ102: Cf HY West | DA102: Zero | DB102: Expense | DC102: Default | DD102: 50 | DE102: Flat | DF102: 0 | DG102: 0 | DH102: FALSE | DI102: TRUE | DJ102: FALSE | DK102: FALSE | DL102: 0 | DM102: 0 | DN102: 0 | DR102: Bull Run No. 1 (Portland Hydro) | DT102: Bull Run No. 1 (Portland Hydro) | DU102: 5.910782119 | DV102: 6.554827521 | DW102: 8.936855942 | DX102: 9.754120614 | DY102: 9.43634358 | DZ102: 7.063777374 | EA102: 7.43190825 | EB102: 7.603288038 | EC102: 8.424544264 | ED102: 8.461290019 | EE102: 8.013204353 | EF102: 8.282194761 | EG102: 5.910782119 | EH102: 6.554827521 | EI102: 8.936855942 | EJ102: 9.754120614 | EK102: 9.43634358 | EL102: 7.063777374 | EM102: 7.43190825 | EN102: 7.603288038 | EO102: 8.424544264 | EP102: 8.461290019 | EQ102: 8.013204353 | ER102: 8.282194761
A103: Bull Run No. 2 (Portland Hydro) | B103: 1070 | C103: 4214 | D103: 2 | E103: 2821B | F103: ROR R w/Div | G103: WAT | I103: Hydro | J103: 11.8 | K103: 11.8 | L103: 0 | N103: 13.5 | O103: 13.5 | P103: 13.5 | Q103: 13.5 | R103: 4.58 | U103: Operating | V103: Feb | W103: 1982 | Y103: Bull Run R. | Z103: Multnomah/Clackamas | AA103: OR | AB103: Y | AC103: Columbia | AD103: WECC | AE103: City of Portland | AF103: Independent | AG103: Portland General Electric (PSA through Aug 2017) | AN103: 2032 | AO103: 1 | AP103: 0 | AQ103: 0 | AR103: 0 | AS103: 0 | AT103: =AO103*J103 -> 11.8 | AU103: =IF(ISNUMBER(R103),R103,BX103)*AO103 -> 4.58 | AZ103: PGE | BA103: 8.7 | BB103: 9.9 | BC103: 9.3 | BD103: 7.66826484 | BE103: 3.615410959 | BF103: 8.5 | BG103: 5.28 | BH103: 4.08 | BI103: 5 | BJ103: 4.52 | BK103: 3.9 | BL103: 0.65 | BM103: 4.1 | BN103: 3.1 | BO103: 4.2 | BP103: License granted March 1979; expires February 2029. New PSA w/ PGE signed in Sep 2017, thru Jun 2032. Energy NorthWest to be new O&M operator. | BQ103: =VLOOKUP($B103,[2]!Table_intranet_power_vewProjectLatLongUrl[#Data],2,FALSE) -> 45.42901 | BR103: =VLOOKUP($B103,[2]!Table_intranet_power_vewProjectLatLongUrl[#Data],3,FALSE) -> -122.23395 | BS103: =VLOOKUP($B103,[2]!Table_intranet_power_vewProjectLatLongUrl[#Data],4,FALSE) -> http://en.wikipedia.org/wiki/Bull_Run_Hydroelectric_Project | BT103: 2017-12-05T15:11:35 | BU103: 11.8 | BV103: 13.5 | BW103: 0.3881355932 | BX103: 4.58 | BZ103: Y | CA103: Not accounted for in HydInd file | CC103: PNW West | CD103: HY_West | CE103: n/a | CF103: 1 | CH103: 1 | CJ103: 1 | CL103: Y | CN103: Bull Run No. 2 (Portland Hydro) | CO103: PNW West | CP103: Thr | CQ103: Hyd | CR103: 0 | CS103: Feb-1982 | CT103: Jan-2051 | CU103: n/a | CV103: Water | CW103: 0 | CX103: 24 | CY103: FALSE | CZ103: Cf HY West | DA103: Zero | DB103: Expense | DC103: Default | DD103: 50 | DE103: Flat | DF103: 0 | DG103: 0 | DH103: FALSE | DI103: TRUE | DJ103: FALSE | DK103: FALSE | DL103: 0 | DM103: 0 | DN103: 0 | DR103: Bull Run No. 2 (Portland Hydro) | DT103: Bull Run No. 2 (Portland Hydro) | DU103: 0 | DV103: 0 | DW103: 0 | DX103: 0 | DY103: 0 | DZ103: 0 | EA103: 0 | EB103: 0 | EC103: 0 | ED103: 0 | EE103: 0 | EF103: 0 | EG103: 0 | EH103: 0 | EI103: 0 | EJ103: 0 | EK103: 0 | EL103: 0 | EM103: 0 | EN103: 0 | EO103: 0 | EP103: 0 | EQ103: 0 | ER103: 0
A104: Burley Butte (Idaho Wind) | B104: 1994 | C104: 56434 | D104: BBWP | F104: WT | G104: WND | I104: Wind | J104: 19.5 | K104: 21.3 | M104: 0 | P104: 21.3 | Q104: 21.3 | R104: 5.9 | U104: Operating | V104: Feb | W104: 2011 | Y104: Burley | Z104: Cassia | AA104: ID | AB104: Y | AC104: Columbia | AD104: WECC | AE104: Idaho Wind Partners | AF104: Independent | AG104: QF PPA w/IPC (Feb 2011-Dec 2030) | AN104: 2030 | AO104: 1 | AT104: =AO104*J104 -> 19.5 | AU104: =IF(ISNUMBER(R104),R104,BX104)*AO104 -> 5.9 | AZ104: IPC | BJ104: 5.21 | BK104: 6.8 | BL104: 6.61 | BM104: 6.99 | BN104: 5.85 | BO104: 6.4 | BP104: (13) GE 1.5 MW WTG. FERC ruling May 2011 allows for RECs to be unbundled via 3rd party and sold to CA - power gets sold back to ID. | BQ104: =VLOOKUP($B104,[2]!Table_intranet_power_vewProjectLatLongUrl[#Data],2,FALSE) -> 42.4644 | BR104: =VLOOKUP($B104,[2]!Table_intranet_power_vewProjectLatLongUrl[#Data],3,FALSE) -> -113.895 | BS104: =VLOOKUP($B104,[2]!Table_intranet_power_vewProjectLatLongUrl[#Data],4,FALSE) -> http://www.exergydevelopment.com/projects/sites/burley-butte | BT104: 2017-10-17T14:15:38 | BU104: 19.5 | BV104: 21.3 | BW104: 0.3025641026 | BX104: 5.9 | BZ104: Y | CB104: 100% PNW PPA | CC104: PNW East | CD104: WN_PNWE | CE104: n/a | CF104: 1 | CH104: 0.05 | CJ104: 1 | CL104: Y | CN104: Burley Butte (Idaho Wind) | CO104: PNW East | CP104: Thr | CQ104: Wind | CR104: 19.5 | CS104: Feb-2011 | CT104: Jan-2051 | CU104: n/a | CV104: Wind | CW104: 0 | CX104: 0 | CY104: FALSE | CZ104: Cf WN PNWE | DA104: WindB1 | DB104: Default | DC104: Default | DD104: 20 | DE104: Flat | DF104: 0 | DG104: 1 | DH104: FALSE | DI104: TRUE | DJ104: FALSE | DK104: FALSE | DL104: 0 | DM104: 0 | DN104: 0 | DO104: 100% PNW PPA | DR104: Burley Butte (Idaho Wind) | DT104: =CN104 -> Burley Butte (Idaho Wind) | DU104: 0.27495 | DV104: 0.213525 | DW104: 0.248625 | DX104: 0.2808 | DY104: 0.301275 | DZ104: 0.26325 | EA104: 0.312975 | EB104: 0.312975 | EC104: 0.353925 | ED104: 0.312975 | EE104: 0.324675 | EF104: 0.312975 | EG104: 5.499 | EH104: 4.2705 | EI104: 4.9725 | EJ104: 5.616 | EK104: 6.0255 | EL104: 5.265 | EM104: 6.2595 | EN104: 6.2595 | EO104: 7.0785 | EP104: 6.2595 | EQ104: 6.4935 | ER104: 6.2595
A105: Burnham Creek | B105: 1071 | E105: 9654 | G105: WAT | I105: Hydro | J105: 0 | R105: 0 | U105: Retired | X105: Unknown | Y105: Burnham Cr. | AA105: WA | AB105: Y | AC105: Unknown | AD105: WECC | AG105: Retired | BQ105: =VLOOKUP($B105,[2]!Table_intranet_power_vewProjectLatLongUrl[#Data],2,FALSE) -> 0 | BR105: =VLOOKUP($B105,[2]!Table_intranet_power_vewProjectLatLongUrl[#Data],3,FALSE) -> 0 | BS105: =VLOOKUP($B105,[2]!Table_intranet_power_vewProjectLatLongUrl[#Data],4,FALSE) -> 0 | BU105: 0 | BV105: 0 | BW105: 0.427 | BX105: 0 | BZ105: N | CA105: Retired
A106: Burrill Lumber | B106: 1072 | F106: STCG | G106: NG | H106: WW | I106: Natural gas | J106: 1.5 | K106: 1.5 | P106: 1.4 | Q106: 1.4 | U106: Retired | W106: 1990 | X106: 1998 | Y106: White City | Z106: Jackson | AA106: OR | AB106: Y | AC106: Puget Sound & Coastal | AD106: WECC | AE106: Eugene F. Burrill Lumber | AF106: Independent | AG106: Retired | AO106: 0 | AT106: =AO106*J106 -> 0 | AU106: =IF(ISNUMBER(R106),R106,BX106)*AO106 -> 0 | AV106: Eugene F. Burrill Lumber | AW106: Lumber & wood products | BD106: 0 | BE106: 0 | BP106: Burrill closed down in 1998. | BQ106: =VLOOKUP($B106,[2]!Table_intranet_power_vewProjectLatLongUrl[#Data],2,FALSE) -> 0 | BR106: =VLOOKUP($B106,[2]!Table_intranet_power_vewProjectLatLongUrl[#Data],3,FALSE) -> 0 | BS106: =VLOOKUP($B106,[2]!Table_intranet_power_vewProjectLatLongUrl[#Data],4,FALSE) -> 0 | BT106: 2014-01-23T17:03:42 | BU106: 1.4 | BV106: 1.4 | BW106: 0.8 | BX106: 1.12 | BZ106: N | CA106: Retired | DU106: =IF($BZ106="N","",IF(OR($I106<>"Wind",$I106<>"Solar",$I106<>"Hydro"),($CF106*$CH106*IF(ISBLANK($L106),IF(ISBLANK($O106),$J106,$O106),$L106))*VLOOKUP($CZ106,ASeasDist,DU$7,FALSE)*VLOOKUP($DE106,ASeasDist,DU$7),$J106*$CF106*$CH106)) ->  | EG106: =IF($BZ106="N","",IF(OR($I106<>"Wind",$I106<>"Solar",$I106<>"Hydro"),$CJ106*IF(ISBLANK($L106),IF(ISBLANK($O106),$J106,$O106),$L106),$J106)*(1-$CW106)*VLOOKUP($CZ106,ASeasDist,EG$7,FALSE)*VLOOKUP($DE106,ASeasDist,EG$7)) -> 
A107: Burton Creek | B107: 1073 | E107: 7577 | F107: Diversion | G107: WAT | I107: Hydro | J107: 0.8 | N107: 0.48 | O107: 0.48 | R107: 0.41 | U107: Operating | W107: 1996 | Y107: Burton Cr. | Z107: Lewis | AA107: WA | AB107: Y | AC107: Columbia | AD107: WECC | AE107: G. Peters | AF107: Independent | AO107: 1 | AT107: =AO107*J107 -> 0.8 | AU107: =IF(ISNUMBER(R107),R107,BX107)*AO107 -> 0.41 | BA107: 0.2 | BB107: 0.2 | BC107: 0.2 | BD107: 0.1586757991 | BE107: 0.1885844749 | BF107: 0.2 | BG107: 0.17 | BP107: Exemption granted September 1985. | BQ107: =VLOOKUP($B107,[2]!Table_intranet_power_vewProjectLatLongUrl[#Data],2,FALSE) -> 0 | BR107: =VLOOKUP($B107,[2]!Table_intranet_power_vewProjectLatLongUrl[#Data],3,FALSE) -> 0 | BS107: =VLOOKUP($B107,[2]!Table_intranet_power_vewProjectLatLongUrl[#Data],4,FALSE) -> 0 | BT107: 2014-01-30T08:58:55 | BU107: 0.8 | BV107: 0.48 | BW107: 0.5125 | BX107: 0.41 | BZ107: Y | CA107: Not accounted for in HydInd file | CB107: IPP Unknown load | CC107: PNW West | CD107: HY_West | CE107: n/a | CF107: 0 | CG107: Assume non-firm | CJ107: 0 | CK107: Assume non-firm | CN107: Burton Creek | CO107: PNW West | CP107: Thr | CQ107: Hyd | CR107: 0 | CS107: Dec-1996 | CT107: Jan-2051 | CU107: n/a | CV107: Water | CW107: 0 | CX107: 24 | CY107: FALSE | CZ107: Cf HY West | DA107: Zero | DB107: Expense | DC107: Default | DD107: 50 | DE107: Flat | DF107: 0 | DG107: 0 | DH107: FALSE | DI107: TRUE | DJ107: FALSE | DK107: FALSE | DL107: 0 | DM107: 0 | DN107: 0 | DO107: IPP Unknown load | DR107: Burton Creek | DT107: Burton Creek | DU107: 0 | DV107: 0 | DW107: 0 | DX107: 0 | DY107: 0 | DZ107: 0 | EA107: 0 | EB107: 0 | EC107: 0 | ED107: 0 | EE107: 0 | EF107: 0 | EG107: 0 | EH107: 0 | EI107: 0 | EJ107: 0 | EK107: 0 | EL107: 0 | EM107: 0 | EN107: 0 | EO107: 0 | EP107: 0 | EQ107: 0 | ER107: 0
A108: Butter Creek (Echo Wind Farm) | B108: 1981 | C108: 56967 | D108: 1 | F108: WT | G108: WND | I108: Wind | J108: 4.95 | K108: 5 | P108: 5 | Q108: 5 | U108: Operating | V108: Jul | W108: 2009 | Y108: Echo vicinity | Z108: Morrow/Umatilla | AA108: OR | AB108: Y | AC108: Columbia | AD108: WECC | AE108: Exelon (John Deere Renwables) | AF108: Independent | AG108: PacifiCorp | AO108: 1 | AT108: =AO108*J108 -> 4.95 | AU108: =IF(ISNUMBER(R108),R108,BX108)*AO108 -> 1.592 | AY108: PacifiCorp Irrigon Substation | AZ108: PACW | BH108: 0.57 | BI108: 1.3 | BJ108: 1.57 | BK108: 1.5 | BL108: 1.54 | BM108: 1.51 | BN108: 1.32 | BO108: 1.3 | BP108: Butter Creek is a part of Echo Wind Farm (1-9). Echo Wind Farm (1-9) is powered by (10) RePower MM92 turbines and (27) Vestas V82 turbines. Echo Wind Farm has a capacity of 64.5 MW. | BQ108: =VLOOKUP($B108,[2]!Table_intranet_power_vewProjectLatLongUrl[#Data],2,FALSE) -> 45.724 | BR108: =VLOOKUP($B108,[2]!Table_intranet_power_vewProjectLatLongUrl[#Data],3,FALSE) -> -119.436 | BS108: =VLOOKUP($B108,[2]!Table_intranet_power_vewProjectLatLongUrl[#Data],4,FALSE) -> 0 | BT108: 2017-10-17T14:17:04 | BU108: 4.95 | BV108: 5 | BW108: 0.32 | BX108: 1.592 | BZ108: Y | CB108: 100% PNW PPA | CC108: PNW East | CD108: WN_PNWE | CE108: n/a | CF108: 1 | CH108: 0.05 | CJ108: 1 | CL108: Y | CN108: Butter Creek (Echo Wind Farm) | CO108: PNW East | CP108: Thr | CQ108: Wind | CR108: 4.95 | CS108: Jul-2009 | CT108: Jan-2051 | CU108: n/a | CV108: Wind | CW108: 0 | CX108: 0 | CY108: FALSE | CZ108: Cf WN PNWE | DA108: WindB1 | DB108: Default | DC108: Default | DD108: 20 | DE108: Flat | DF108: 0 | DG108: 1 | DH108: FALSE | DI108: TRUE | DJ108: FALSE | DK108: FALSE | DL108: 0 | DM108: 0 | DN108: 0 | DO108: 100% PNW PPA | DR108: Butter Creek (Echo Wind Farm) | DT108: Butter Creek (Echo Wind Farm) | DU108: 0.069795 | DV108: 0.0542025 | DW108: 0.0631125 | DX108: 0.07128 | DY108: 0.0764775 | DZ108: 0.066825 | EA108: 0.0794475 | EB108: 0.0794475 | EC108: 0.0898425 | ED108: 0.0794475 | EE108: 0.0824175 | EF108: 0.0794475 | EG108: 1.3959 | EH108: 1.08405 | EI108: 1.26225 | EJ108: 1.4256 | EK108: 1.52955 | EL108: 1.3365 | EM108: 1.58895 | EN108: 1.58895 | EO108: 1.79685 | EP108: 1.58895 | EQ108: 1.64835 | ER108: 1.58895
A109: Bypass | B109: 1074 | C109: 50895 | D109: GEN1,GEN2,GEN3 | E109: 9070 | F109: Canal | G109: WAT | I109: Hydro | J109: 9.9 | K109: 9.9 | L109: 0 | N109: 7.5 | O109: 0 | P109: 9.9 | Q109: 9.9 | T109: 3 | U109: Operating | V109: Mar | W109: 1987 | Y109: N. Side Main Cnl. | Z109: Jerome | AA109: ID | AB109: Y | AC109: Columbia | AD109: WECC | AE109: Enel SpA | AF109: Independent | AG109: Idaho Power Co. (QF thru Jun 2023) | AO109: 1 | AT109: =AO109*J109 -> 9.9 | AU109: =IF(ISNUMBER(R109),R109,BX109)*AO109 -> 3.7149 | AZ109: IPC | BG109: 3 | BH109: 3.03 | BI109: 3.1 | BJ109: 3.18 | BK109: 3.3 | BL109: 3.05 | BM109: 3.09 | BN109: 3.13 | BO109: 3 | BP109: Exemption granted September 1985. Sold to ENEL Spa July 2004. Critical energy from PNUCC 2005 NRF | BQ109: =VLOOKUP($B109,[2]!Table_intranet_power_vewProjectLatLongUrl[#Data],2,FALSE) -> 42.5596337 | BR109: =VLOOKUP($B109,[2]!Table_intranet_power_vewProjectLatLongUrl[#Data],3,FALSE) -> -114.055861 | BS109: =VLOOKUP($B109,[2]!Table_intranet_power_vewProjectLatLongUrl[#Data],4,FALSE) -> http://www.enelgreenpower.com/en-GB/ena/power_plants/wm/bypass/index.aspx | BT109: 2017-10-17T14:23:35 | BU109: 9.9 | BV109: 7.5 | BW109: 0.427 | BX109: 3.7149 | BZ109: Y | CA109: Not accounted for in HydInd file | CC109: PNW East | CD109: HY_Irr | CE109: n/a | CF109: 1 | CH109: 1 | CJ109: 1 | CL109: Y | CN109: Bypass | CO109: PNW East | CP109: Thr | CQ109: Hyd | CR109: 0 | CS109: Mar-1987 | CT109: Jan-2051 | CU109: n/a | CV109: Water | CW109: 0 | CX109: 24 | CY109: FALSE | CZ109: Cf HY Irr | DA109: Zero | DB109: Expense | DC109: Default | DD109: 50 | DE109: Flat | DF109: 0 | DG109: 0 | DH109: FALSE | DI109: TRUE | DJ109: FALSE | DK109: FALSE | DL109: 0 | DM109: 0 | DN109: 0 | DR109: Bypass | DT109: Bypass | DU109: 0 | DV109: 0 | DW109: 0 | DX109: 0 | DY109: 0 | DZ109: 0 | EA109: 0 | EB109: 0 | EC109: 0 | ED109: 0 | EE109: 0 | EF109: 0 | EG109: 0 | EH109: 0 | EI109: 0 | EJ109: 0 | EK109: 0 | EL109: 0 | EM109: 0 | EN109: 0 | EO109: 0 | EP109: 0 | EQ109: 0 | ER109: 0
A110: C-Drop Hydro | B110: 2100 | C110: 58470 | D110: GEN1 | F110: Canal | G110: WAT | I110: Hydro | J110: 1.1 | K110: 1.1 | P110: 1.1 | U110: Operating | V110: May | W110: 2012 | Z110: Klamath | AA110: OR | AB110: Y | AC110: Klamath | AD110: WECC | AE110: C-Drop Hydro, LLC/Klamath Irrigation District | AF110: Municipal | AO110: 1 | AT110: 1.1 | AU110: 0.4697 | AZ110: PACW | BL110: 0.22 | BM110: 0.25 | BN110: 0.26 | BO110: 0.3 | BP110: Granted LOPP by Bur Rec instead of FERC license in Nov 2011. | BQ110: =VLOOKUP($B110,[2]!Table_intranet_power_vewProjectLatLongUrl[#Data],2,FALSE) -> 42.165833 | BR110: =VLOOKUP($B110,[2]!Table_intranet_power_vewProjectLatLongUrl[#Data],3,FALSE) -> -121.685 | BT110: 2017-10-17T14:44:23 | BU110: =IF(OR(I110="Wind",I110="Solar",I110="Hydro"),J110,IF(ISNUMBER(L110),L110,IF(ISNUMBER(O110), O110, IF(ISNUMBER(Q110),Q110,J110)))) -> 1.1 | BV110: =IF(OR(J110="Wind",J110="Solar",J110="Hydro"),J110,IF(ISNUMBER(N110),N110,IF(ISNUMBER(P110), P110, IF(ISNUMBER(L110),L110,J110)))) -> 1.1 | BW110: =IF(OR(ISBLANK(J110),ISBLANK(R110),J110=0),VLOOKUP(IF(G110="WAT","HY",IF(G110="LFG","LFG",F110)),Acapability,4,FALSE),R110/J110) -> 0.427 | BX110: =IF(ISNUMBER(R110),R110,AVERAGE(BU110,BV110)*BW110) -> 0.4697 | BZ110: Y | CA110: Not accounted for in HydInd file | CC110: PNW West | CD110: HY_West | CE110: n/a | CF110: 1 | CH110: 1 | CJ110: 1 | CN110: C-Drop Hydro | CO110: PNW West | CP110: =IF(BZ110="N","",VLOOKUP($CD110,ATechDat,2,FALSE)) -> Thr | CQ110: =IF(BZ110="N","",VLOOKUP($CD110,ATechDat,3,FALSE)) -> Hyd | CR110: 1.1 | CS110: =IF(BZ110="N","",IF(ISBLANK(V110),"Dec",V110)&"-"&IF(ISBLANK(W110),1980,W110)) -> May-2012 | CT110: =IF(BZ110="N","",IF(U110="Retired",X110,"Jan-2051")) -> Jan-2051 | CU110: =IF(BZ110="N","",CE110) -> n/a | CV110: =IF(BZ110="N","",VLOOKUP($CD110,ATechDat,4,FALSE)) -> Water | CW110: =IF(BZ110="N","",VLOOKUP($CD110,ATechDat,5,FALSE)) -> 0 | CX110: =IF(BZ110="N","",VLOOKUP($CD110,ATechDat,6,FALSE)) -> 24 | CY110: =IF(BZ110="N","",VLOOKUP($CD110,ATechDat,7,FALSE)) -> FALSE | CZ110: =IF(BZ110="N","",VLOOKUP($CD110,ATechDat,8,FALSE)) -> Cf HY West | DA110: =IF(BZ110="N","",VLOOKUP($CD110,ATechDat,9,FALSE)) -> Zero | DB110: =IF(BZ110="N","",VLOOKUP($CD110,ATechDat,10,FALSE)) -> Expense | DC110: =IF(BZ110="N","",VLOOKUP($CD110,ATechDat,11,FALSE)) -> Default | DD110: =IF(BZ110="N","",VLOOKUP($CD110,ATechDat,12,FALSE)) -> 50 | DE110: =IF(BZ110="N","",VLOOKUP($CD110,ATechDat,13,FALSE)) -> Flat | DF110: =IF(BZ110="N","",VLOOKUP($CD110,ATechDat,14,FALSE)) -> 0 | DG110: =IF(BZ110="N","",VLOOKUP($CD110,ATechDat,15,FALSE)) -> 0 | DH110: =IF(BZ110="N","",VLOOKUP($CD110,ATechDat,16,FALSE)) -> FALSE | DI110: =IF(BZ110="N","",VLOOKUP($CD110,ATechDat,17,FALSE)) -> TRUE | DJ110: =IF(BZ110="N","",VLOOKUP($CD110,ATechDat,18,FALSE)) -> FALSE | DK110: =IF(BZ110="N","",VLOOKUP($CD110,ATechDat,19,FALSE)) -> FALSE | DL110: =IF(BZ110="N","",VLOOKUP($CD110,ATechDat,20,FALSE)) -> 0 | DM110: =IF(BZ110="N","",VLOOKUP($CD110,ATechDat,21,FALSE)) -> 0 | DN110: =IF(BZ110="N","",VLOOKUP($CD110,ATechDat,22,FALSE)) -> 0 | DO110: =IF(ISBLANK(CB110),"",CB110) ->  | DR110: =IF(BZ110="N","",CN110) -> C-Drop Hydro | DT110: C-Drop Hydro | DU110: 0.3612144628 | DV110: 0.400572793 | DW110: 0.5461411964 | DX110: 0.5960851487 | DY110: 0.576665441 | DZ110: 0.4316752839 | EA110: 0.4541721708 | EB110: 0.4646453801 | EC110: 0.5148332606 | ED110: 0.5170788345 | EE110: 0.4896958216 | EF110: 0.5061341243 | EG110: 0.3612144628 | EH110: 0.400572793 | EI110: 0.5461411964 | EJ110: 0.5960851487 | EK110: 0.576665441 | EL110: 0.4316752839 | EM110: 0.4541721708 | EN110: 0.4646453801 | EO110: 0.5148332606 | EP110: 0.5170788345 | EQ110: 0.4896958216 | ER110: 0.5061341243
A111: C.J. Strike 1- 3 | B111: 1075 | C111: 812 | D111: 1,2,3 | E111: 2055 | F111: ROR | G111: WAT | I111: Hydro | J111: 82.8 | K111: 82.8 | M111: 82.8 | N111: 82.8 | O111: 82.8 | P111: 94.2 | Q111: 92 | U111: Operating | V111: May | W111: 1952 | Y111: Snake R. | Z111: Owyhee | AA111: ID | AB111: Y | AC111: Columbia | AD111: WECC | AE111: Idaho Power Co. | AF111: IOU | AG111: Idaho Power Co. | AO111: 1 | AT111: 82.8 | AU111: 35.3556 | AZ111: IPC | BA111: 41.5 | BB111: 40.1 | BC111: 40.5 | BD111: 43.72705479 | BE111: 55.11929224 | BF111: 44.5 | BG111: 44.11 | BH111: 54.78 | BI111: 48.4 | BJ111: 75.07 | BK111: 53 | BL111: 40.94 | BM111: 41.81 | BN111: 42.93 | BO111: 43 | BP111: Original License granted February 1951; expired November 2000. Relicense granted Aug 2004. | BQ111: =VLOOKUP($B111,[2]!Table_intranet_power_vewProjectLatLongUrl[#Data],2,FALSE) -> 42.946 | BR111: =VLOOKUP($B111,[2]!Table_intranet_power_vewProjectLatLongUrl[#Data],3,FALSE) -> -115.975 | BS111: =VLOOKUP($B111,[2]!Table_intranet_power_vewProjectLatLongUrl[#Data],4,FALSE) -> http://www.idahopower.com/riversrec/parksrec/swanfalls.htm | BT111: 2017-10-17T14:32:26 | BU111: 82.8 | BV111: 82.8 | BW111: 0.427 | BX111: 35.3556 | BY111: Independent | BZ111: N | CA111: Accounted for in HydInd file
A112: Cabinet Gorge 1 - 4 | B112: 1076 | C112: 833 | D112: 1,2,3,4 | E112: 2058 | F112: ROR R. w/Div. | G112: WAT | I112: Hydro | J112: 265.2 | K112: 265.2 | M112: 262 | N112: 287.3 | O112: 287.3 | P112: 254.6 | Q112: 294.8 | R112: 123.6 | T112: 84 | U112: Operating | V112: Sep | W112: 1952 | Y112: Clark Fork R. | Z112: Bonner | AA112: ID | AB112: Y | AC112: Columbia | AD112: WECC | AE112: Avista | AF112: IOU | AG112: Avista Utilities | AO112: 1 | AT112: 265.2 | AU112: 123.6 | AZ112: Avista | BA112: 123.8 | BB112: 111.2 | BC112: 120.9 | BD112: 114.5920091 | BE112: 130.7993151 | BF112: 124.2 | BG112: 125.16 | BH112: 121.05 | BI112: 107.48 | BJ112: 147.53 | BK112: 136.9 | BL112: 119 | BM112: 136.36 | BN112: 113.57 | BO112: 122.8 | BP112: License granted January 1951; expires February 2001. Critical energy from PNUCC 2005 NRF | BQ112: =VLOOKUP($B112,[2]!Table_intranet_power_vewProjectLatLongUrl[#Data],2,FALSE) -> 48.087 | BR112: =VLOOKUP($B112,[2]!Table_intranet_power_vewProjectLatLongUrl[#Data],3,FALSE) -> -116.057 | BS112: =VLOOKUP($B112,[2]!Table_intranet_power_vewProjectLatLongUrl[#Data],4,FALSE) -> http://www.avistautilities.com/resources/hydro/clarkfork/project/proj_cg.asp | BT112: 2017-10-17T14:33:06 | BU112: 265.2 | BV112: 287.3 | BW112: 0.4660633484 | BX112: 123.6 | BY112: Regulated | BZ112: N | CA112: Reg hydro
A113: Camp Reed (Idaho Wind) | B113: 1885 | C113: 57125 | D113: CRWP | F113: WT | G113: WND | I113: Wind | J113: 22.5 | K113: 22.5 | M113: 0 | P113: 22.5 | Q113: 22.5 | R113: 6.8 | U113: Operating | V113: Dec | W113: 2010 | Y113: Hagerman | Z113: Elmore | AA113: ID | AB113: Y | AC113: Columbia | AD113: WECC | AE113: Idaho Wind Partners | AF113: Independent | AG113: QF PPA w/IPC (Feb 2011 - Dec 2030). SCL to purchase environmental attributes (RECs) 2018-2030, for compliance ytars 2019-2031. | AN113: 2030 | AO113: 1 | AT113: =AO113*J113 -> 22.5 | AU113: =IF(ISNUMBER(R113),R113,BX113)*AO113 -> 6.8 | AY113: IPC King-Bliss 138kV line | AZ113: IPC | BI113: 0 | BJ113: 6.93 | BK113: 4 | BL113: 7.21 | BM113: 7.63 | BN113: 6.03 | BO113: 7.9 | BP113: (15) GE 1.5 MW WTG. FERC ruling May 2011 allows for RECs to be unbundled via 3rd party and sold to CA - power gets sold back to ID. | BQ113: =VLOOKUP($B113,[2]!Table_intranet_power_vewProjectLatLongUrl[#Data],2,FALSE) -> 42.816 | BR113: =VLOOKUP($B113,[2]!Table_intranet_power_vewProjectLatLongUrl[#Data],3,FALSE) -> -115.058 | BS113: =VLOOKUP($B113,[2]!Table_intranet_power_vewProjectLatLongUrl[#Data],4,FALSE) -> https://www.pacificpower.net/env/bsre/bses/crwp.html | BT113: 2017-10-17T14:34:26 | BU113: 22.5 | BV113: 22.5 | BW113: 0.3022222222 | BX113: 6.8 | BZ113: Y | CB113: 100% PNW PPA | CC113: PNW East | CD113: WN_PNWE | CE113: n/a | CF113: 1 | CH113: 0.05 | CJ113: 1 | CL113: Y | CN113: Camp Reed (Idaho Wind) | CO113: PNW East | CP113: Thr | CQ113: Wind | CR113: 22.5 | CS113: Dec-2010 | CT113: Jan-2051 | CU113: n/a | CV113: Wind | CW113: 0 | CX113: 0 | CY113: FALSE | CZ113: Cf WN PNWE | DA113: WindB1 | DB113: Default | DC113: Default | DD113: 20 | DE113: Flat | DF113: 0 | DG113: 1 | DH113: FALSE | DI113: TRUE | DJ113: FALSE | DK113: FALSE | DL113: 0 | DM113: 0 | DN113: 0 | DO113: 100% PNW PPA | DR113: Camp Reed (Idaho Wind) | DT113: =CN113 -> Camp Reed (Idaho Wind) | DU113: 0.31725 | DV113: 0.246375 | DW113: 0.286875 | DX113: 0.324 | DY113: 0.347625 | DZ113: 0.30375 | EA113: 0.361125 | EB113: 0.361125 | EC113: 0.408375 | ED113: 0.361125 | EE113: 0.374625 | EF113: 0.361125 | EG113: 6.345 | EH113: 4.9275 | EI113: 5.7375 | EJ113: 6.48 | EK113: 6.9525 | EL113: 6.075 | EM113: 7.2225 | EN113: 7.2225 | EO113: 8.1675 | EP113: 7.2225 | EQ113: 7.4925 | ER113: 7.2225
A114: Campbell Hill | B114: 2017 | C114: 57090 | D114: CHWF | F114: WT | G114: WND | I114: Wind | J114: 99 | K114: 99 | P114: 99 | Q114: 99 | R114: 29.7 | U114: Operating | V114: Dec | W114: 2009 | Y114: Casper | Z114: Converse | AA114: WY | AB114: N | AC114: Missouri | AD114: WECC | AE114: Duke Energy DEGS Campbell Hill | AF114: Independent | AG114: PPA w/ PacifiCorp for 20 years (Dec 2009 - Dec 2029) | AN114: 2029 | AO114: 1 | AT114: =AO114*J114 -> 99 | AU114: =IF(ISNUMBER(R114),R114,BX114)*AO114 -> 29.7 | AZ114: PACE | BL114: 38.54 | BM114: 37.83 | BN114: 33.51 | BO114: 37.9 | BP114: (66) 1.5 MW GE WTG. Assume 25.81% SG factor to Oregon, per PacifiCorp's 2011 OR RPS Compliance Report. | BQ114: =VLOOKUP($B114,[2]!Table_intranet_power_vewProjectLatLongUrl[#Data],2,FALSE) -> 42.9989 | BR114: =VLOOKUP($B114,[2]!Table_intranet_power_vewProjectLatLongUrl[#Data],3,FALSE) -> -106.02136 | BS114: =VLOOKUP($B114,[2]!Table_intranet_power_vewProjectLatLongUrl[#Data],4,FALSE) -> http://en.openei.org/wiki/Campbell_Hill_Wind_Farm | BT114: 2017-11-06T15:10:23 | BU114: 99 | BV114: 99 | BW114: 0.3 | BX114: 29.7 | BZ114: N | CA114: PACE | DT114: =CN114 -> 
A115: Canal Creek | B115: 1077 | E115: 5572 | F115: Canal | G115: WAT | I115: Hydro | J115: 1.1 | R115: 0.47 | U115: Retired | W115: 1984 | X115: 1997 | Y115: Wallowa Valley Imp. Dist. Cnl. | Z115: Wallowa | AA115: OR | AB115: Y | AC115: Columbia | AD115: WECC | AE115: Joseph Hydro Assoc., Ltd. | AF115: Independent | AG115: Retired | BD115: n/a | BE115: n/a | BP115: Dam remains in service. Exemption surrendered March 1982. | BQ115: =VLOOKUP($B115,[2]!Table_intranet_power_vewProjectLatLongUrl[#Data],2,FALSE) -> 0 | BR115: =VLOOKUP($B115,[2]!Table_intranet_power_vewProjectLatLongUrl[#Data],3,FALSE) -> 0 | BS115: =VLOOKUP($B115,[2]!Table_intranet_power_vewProjectLatLongUrl[#Data],4,FALSE) -> 0 | BT115: 2003-09-19 | BU115: 1.1 | BV115: 1.1 | BW115: 0.4272727273 | BX115: 0.47 | BZ115: N | CA115: Retired | CO115: =IF($BZ115="Y",CC115,"") ->  | CP115: =IF(BZ115="N","",VLOOKUP($CD115,ATechDat,2,FALSE)) ->  | CQ115: =IF(BZ115="N","",VLOOKUP($CD115,ATechDat,3,FALSE)) ->  | CR115: =IF($BZ115="N","",IF($I115<>"Wind",($CF115*$CH115*IF(ISBLANK($L115),IF(ISBLANK($O115),$J115,$O115),$L115)),$J115*IF(AND($I115="Wind",SWFullWind="Y"),1,$CF115*$CH115))) ->  | CU115: =IF(BZ115="N","",CE115) ->  | CV115: =IF(BZ115="N","",VLOOKUP($CD115,ATechDat,4,FALSE)) ->  | CW115: =IF(BZ115="N","",VLOOKUP($CD115,ATechDat,5,FALSE)) ->  | CX115: =IF(BZ115="N","",VLOOKUP($CD115,ATechDat,6,FALSE)) ->  | CY115: =IF(BZ115="N","",VLOOKUP($CD115,ATechDat,7,FALSE)) ->  | CZ115: =IF(BZ115="N","",VLOOKUP($CD115,ATechDat,8,FALSE)) ->  | DA115: =IF(BZ115="N","",VLOOKUP($CD115,ATechDat,9,FALSE)) ->  | DB115: =IF(BZ115="N","",VLOOKUP($CD115,ATechDat,10,FALSE)) ->  | DC115: =IF(BZ115="N","",VLOOKUP($CD115,ATechDat,11,FALSE)) ->  | DD115: =IF(BZ115="N","",VLOOKUP($CD115,ATechDat,12,FALSE)) ->  | DE115: =IF(BZ115="N","",VLOOKUP($CD115,ATechDat,13,FALSE)) ->  | DF115: =IF(BZ115="N","",VLOOKUP($CD115,ATechDat,14,FALSE)) ->  | DG115: =IF(BZ115="N","",VLOOKUP($CD115,ATechDat,15,FALSE)) ->  | DH115: =IF(BZ115="N","",VLOOKUP($CD115,ATechDat,16,FALSE)) ->  | DI115: =IF(BZ115="N","",VLOOKUP($CD115,ATechDat,17,FALSE)) ->  | DJ115: =IF(BZ115="N","",VLOOKUP($CD115,ATechDat,18,FALSE)) ->  | DK115: =IF(BZ115="N","",VLOOKUP($CD115,ATechDat,19,FALSE)) ->  | DL115: =IF(BZ115="N","",VLOOKUP($CD115,ATechDat,20,FALSE)) ->  | DM115: =IF(BZ115="N","",VLOOKUP($CD115,ATechDat,21,FALSE)) ->  | DN115: =IF(BZ115="N","",VLOOKUP($CD115,ATechDat,22,FALSE)) ->  | DO115: =IF(ISBLANK(CB115),"",CB115) ->  | DU115: =IF($BZ115="N","",IF(OR($I115<>"Wind",$I115<>"Solar",$I115<>"Hydro"),($CF115*$CH115*IF(ISBLANK($L115),IF(ISBLANK($O115),$J115,$O115),$L115))*VLOOKUP($CZ115,ASeasDist,DU$7,FALSE)*VLOOKUP($DE115,ASeasDist,DU$7),$J115*$CF115*$CH115)) ->  | EG115: =IF($BZ115="N","",IF(OR($I115<>"Wind",$I115<>"Solar",$I115<>"Hydro"),$CJ115*IF(ISBLANK($L115),IF(ISBLANK($O115),$J115,$O115),$L115),$J115)*(1-$CW115)*VLOOKUP($CZ115,ASeasDist,EG$7,FALSE)*VLOOKUP($DE115,ASeasDist,EG$7)) -> 
A116: Canyon Creek | B116: 1078 | C116: PLNT_19 | E116: 6414 | F116: Diversion | G116: WAT | I116: Hydro | J116: 0.08 | N116: 0.08 | O116: 0.08 | R116: 0.06 | U116: Operating | W116: 1985 | Y116: Canyon Cr. | Z116: Clackamas | AA116: OR | AB116: Y | AC116: Columbia | AD116: WECC | AE116: Douglas Water Power Company | AF116: Independent | AO116: 1 | AT116: =AO116*J116 -> 0.08 | AU116: =IF(ISNUMBER(R116),R116,BX116)*AO116 -> 0.06 | BG116: 0.05 | BP116: Exemption granted September 1982. | BQ116: =VLOOKUP($B116,[2]!Table_intranet_power_vewProjectLatLongUrl[#Data],2,FALSE) -> 0 | BR116: =VLOOKUP($B116,[2]!Table_intranet_power_vewProjectLatLongUrl[#Data],3,FALSE) -> 0 | BS116: =VLOOKUP($B116,[2]!Table_intranet_power_vewProjectLatLongUrl[#Data],4,FALSE) -> 0 | BT116: 2014-01-30T09:21:19 | BU116: 0.08 | BV116: =IF(OR(J116="Wind",J116="Solar",J116="Hydro"),J116,IF(ISNUMBER(N116),N116,IF(ISNUMBER(P116), P116, IF(ISNUMBER(L116),L116,J116)))) -> 0.08 | BW116: 0.75 | BX116: 0.06 | BZ116: N | CA116: <0.5 MW | CP116: =IF(BZ116="N","",VLOOKUP($CD116,ATechDat,2,FALSE)) ->  | CQ116: =IF(BZ116="N","",VLOOKUP($CD116,ATechDat,3,FALSE)) ->  | CR116: =IF($BZ116="N","",IF($I116<>"Wind",($CF116*$CH116*IF(ISBLANK($L116),IF(ISBLANK($O116),$J116,$O116),$L116)),$J116*IF(AND($I116="Wind",SWFullWind="Y"),1,$CF116*$CH116))) ->  | CV116: =IF(BZ116="N","",VLOOKUP($CD116,ATechDat,4,FALSE)) ->  | CW116: =IF(BZ116="N","",VLOOKUP($CD116,ATechDat,5,FALSE)) ->  | CX116: =IF(BZ116="N","",VLOOKUP($CD116,ATechDat,6,FALSE)) ->  | CY116: =IF(BZ116="N","",VLOOKUP($CD116,ATechDat,7,FALSE)) ->  | CZ116: =IF(BZ116="N","",VLOOKUP($CD116,ATechDat,8,FALSE)) ->  | DA116: =IF(BZ116="N","",VLOOKUP($CD116,ATechDat,9,FALSE)) ->  | DB116: =IF(BZ116="N","",VLOOKUP($CD116,ATechDat,10,FALSE)) ->  | DC116: =IF(BZ116="N","",VLOOKUP($CD116,ATechDat,11,FALSE)) ->  | DD116: =IF(BZ116="N","",VLOOKUP($CD116,ATechDat,12,FALSE)) ->  | DE116: =IF(BZ116="N","",VLOOKUP($CD116,ATechDat,13,FALSE)) ->  | DF116: =IF(BZ116="N","",VLOOKUP($CD116,ATechDat,14,FALSE)) ->  | DG116: =IF(BZ116="N","",VLOOKUP($CD116,ATechDat,15,FALSE)) ->  | DH116: =IF(BZ116="N","",VLOOKUP($CD116,ATechDat,16,FALSE)) ->  | DI116: =IF(BZ116="N","",VLOOKUP($CD116,ATechDat,17,FALSE)) ->  | DJ116: =IF(BZ116="N","",VLOOKUP($CD116,ATechDat,18,FALSE)) ->  | DK116: =IF(BZ116="N","",VLOOKUP($CD116,ATechDat,19,FALSE)) ->  | DL116: =IF(BZ116="N","",VLOOKUP($CD116,ATechDat,20,FALSE)) ->  | DM116: =IF(BZ116="N","",VLOOKUP($CD116,ATechDat,21,FALSE)) ->  | DN116: =IF(BZ116="N","",VLOOKUP($CD116,ATechDat,22,FALSE)) ->  | DO116: =IF(ISBLANK(CB116),"",CB116) -> 
A117: Canyon Ferry 1- 3 | B117: 1079 | C117: 6400 | D117: 1,2,3 | E117: Federal | F117: Storage | G117: WAT | I117: Hydro | J117: 49.8 | K117: 49.8 | N117: 57.6 | O117: 57.6 | P117: 57.6 | Q117: 57.6 | R117: 46.8 | T117: not reported | U117: Operating | V117: Dec | W117: 1953 | Y117: Missouri R. | Z117: Lewis & Clark | AA117: MT | AB117: N | AC117: Missouri | AD117: WECC | AE117: USBR | AF117: Federal | AG117: WAPA | AZ117: NorthWestern | BD117: 34.0652968 | BE117: 37.63812785 | BF117: 32.6 | BG117: 37.95 | BH117: 44.31 | BI117: 42.11 | BJ117: 47.8 | BK117: 37 | BL117: 30.24 | BM117: 41.44 | BN117: 34.63 | BO117: 35.4 | BQ117: =VLOOKUP($B117,[2]!Table_intranet_power_vewProjectLatLongUrl[#Data],2,FALSE) -> 46.649 | BR117: =VLOOKUP($B117,[2]!Table_intranet_power_vewProjectLatLongUrl[#Data],3,FALSE) -> -111.728 | BS117: =VLOOKUP($B117,[2]!Table_intranet_power_vewProjectLatLongUrl[#Data],4,FALSE) -> http://goldwest.visitmt.com/listings/97.htm | BT117: 2017-10-17T14:34:58 | BU117: 49.8 | BV117: 57.6 | BW117: 0.9397590361 | BX117: 46.8 | BZ117: N | CA117: WAPA load | CP117: =IF(BZ117="N","",VLOOKUP($CD117,ATechDat,2,FALSE)) ->  | CQ117: =IF(BZ117="N","",VLOOKUP($CD117,ATechDat,3,FALSE)) ->  | CR117: =IF($BZ117="N","",IF($I117<>"Wind",($CF117*$CH117*IF(ISBLANK($L117),IF(ISBLANK($O117),$J117,$O117),$L117)),$J117*IF(AND($I117="Wind",SWFullWind="Y"),1,$CF117*$CH117))) ->  | CV117: =IF(BZ117="N","",VLOOKUP($CD117,ATechDat,4,FALSE)) ->  | CW117: =IF(BZ117="N","",VLOOKUP($CD117,ATechDat,5,FALSE)) ->  | CX117: =IF(BZ117="N","",VLOOKUP($CD117,ATechDat,6,FALSE)) ->  | CY117: =IF(BZ117="N","",VLOOKUP($CD117,ATechDat,7,FALSE)) ->  | CZ117: =IF(BZ117="N","",VLOOKUP($CD117,ATechDat,8,FALSE)) ->  | DA117: =IF(BZ117="N","",VLOOKUP($CD117,ATechDat,9,FALSE)) ->  | DB117: =IF(BZ117="N","",VLOOKUP($CD117,ATechDat,10,FALSE)) ->  | DC117: =IF(BZ117="N","",VLOOKUP($CD117,ATechDat,11,FALSE)) ->  | DD117: =IF(BZ117="N","",VLOOKUP($CD117,ATechDat,12,FALSE)) ->  | DE117: =IF(BZ117="N","",VLOOKUP($CD117,ATechDat,13,FALSE)) ->  | DF117: =IF(BZ117="N","",VLOOKUP($CD117,ATechDat,14,FALSE)) ->  | DG117: =IF(BZ117="N","",VLOOKUP($CD117,ATechDat,15,FALSE)) ->  | DH117: =IF(BZ117="N","",VLOOKUP($CD117,ATechDat,16,FALSE)) ->  | DI117: =IF(BZ117="N","",VLOOKUP($CD117,ATechDat,17,FALSE)) ->  | DJ117: =IF(BZ117="N","",VLOOKUP($CD117,ATechDat,18,FALSE)) ->  | DK117: =IF(BZ117="N","",VLOOKUP($CD117,ATechDat,19,FALSE)) ->  | DL117: =IF(BZ117="N","",VLOOKUP($CD117,ATechDat,20,FALSE)) ->  | DM117: =IF(BZ117="N","",VLOOKUP($CD117,ATechDat,21,FALSE)) ->  | DN117: =IF(BZ117="N","",VLOOKUP($CD117,ATechDat,22,FALSE)) ->  | DO117: =IF(ISBLANK(CB117),"",CB117) -> 
A118: Cargill Kettle Butte Bio Factory | B118: 2070 | C118: 57345 | D118: 1,2 | F118: BGICCG | G118: AW | I118: Biomass | J118: 1.8 | K118: 1.8 | N118: 1.8 | O118: 1.8 | P118: 1.8 | Q118: 1.8 | U118: Operating | V118: May | W118: 2011 | Y118: Roberts, ID | Z118: Jefferson | AA118: ID | AB118: Y | AC118: Columbia | AD118: WECC | AE118: Cargill Environmental Finance | AF118: Independent | AG118: PacifiCorp (Rocky Mountain Power) - PPA June 2011 - Feb 2021 | AN118: 2021 | AO118: 1 | AT118: =AO118*J118 -> 1.8 | AU118: =IF(ISNUMBER(R118),R118,BX118)*AO118 -> 1.35 | AW118: Waste digestor | AZ118: PACE | BJ118: 0.37 | BK118: 1 | BL118: 0.82 | BM118: 0.88 | BN118: 0.61 | BO118: 0.7 | BP118: Anaerobic digestor on Kettle Butte Dairy and (2) biogas-fired IC engines. | BQ118: =VLOOKUP($B118,[2]!Table_intranet_power_vewProjectLatLongUrl[#Data],2,FALSE) -> 43.630127 | BR118: =VLOOKUP($B118,[2]!Table_intranet_power_vewProjectLatLongUrl[#Data],3,FALSE) -> -112.28169 | BS118: =VLOOKUP($B118,[2]!Table_intranet_power_vewProjectLatLongUrl[#Data],4,FALSE) -> 0 | BT118: 2017-10-17T14:37:14 | BU118: 1.8 | BV118: 1.8 | BW118: 0.75 | BX118: 1.35 | BZ118: Y | CC118: PNW East | CD118: BGIC | CN118: Cargill Kettle Butte Bio Factory | CO118: PNW East | CP118: =IF(BZ118="N","",VLOOKUP($CD118,ATechDat,2,FALSE)) -> Thr | CQ118: =IF(BZ118="N","",VLOOKUP($CD118,ATechDat,3,FALSE)) -> IC | CR118: =IF($BZ118="N","",IF($I118<>"Wind",($CF118*$CH118*IF(ISBLANK($L118),IF(ISBLANK($O118),$J118,$O118),$L118)),$J118*IF(AND($I118="Wind",SWFullWind="Y"),1,$CF118*$CH118))) -> 0 | CS118: May-2011 | CT118: Jan-2051 | CU118: 0 | CW118: =IF(BZ118="N","",VLOOKUP($CD118,ATechDat,5,FALSE)) -> 0.047 | CX118: =IF(BZ118="N","",VLOOKUP($CD118,ATechDat,6,FALSE)) -> 56 | CY118: =IF(BZ118="N","",VLOOKUP($CD118,ATechDat,7,FALSE)) -> FALSE | CZ118: =IF(BZ118="N","",VLOOKUP($CD118,ATechDat,8,FALSE)) -> MR 7d Flat | DA118: =IF(BZ118="N","",VLOOKUP($CD118,ATechDat,9,FALSE)) -> Landfill | DB118: =IF(BZ118="N","",VLOOKUP($CD118,ATechDat,10,FALSE)) -> Default | DC118: =IF(BZ118="N","",VLOOKUP($CD118,ATechDat,11,FALSE)) -> Default | DD118: =IF(BZ118="N","",VLOOKUP($CD118,ATechDat,12,FALSE)) -> 20 | DE118: =IF(BZ118="N","",VLOOKUP($CD118,ATechDat,13,FALSE)) -> Flat | DF118: =IF(BZ118="N","",VLOOKUP($CD118,ATechDat,14,FALSE)) -> 0 | DG118: =IF(BZ118="N","",VLOOKUP($CD118,ATechDat,15,FALSE)) -> 1 | DH118: =IF(BZ118="N","",VLOOKUP($CD118,ATechDat,16,FALSE)) -> FALSE | DI118: =IF(BZ118="N","",VLOOKUP($CD118,ATechDat,17,FALSE)) -> TRUE | DJ118: =IF(BZ118="N","",VLOOKUP($CD118,ATechDat,18,FALSE)) -> FALSE | DK118: =IF(BZ118="N","",VLOOKUP($CD118,ATechDat,19,FALSE)) -> FALSE | DL118: =IF(BZ118="N","",VLOOKUP($CD118,ATechDat,20,FALSE)) -> 0 | DM118: =IF(BZ118="N","",VLOOKUP($CD118,ATechDat,21,FALSE)) -> 0 | DN118: =IF(BZ118="N","",VLOOKUP($CD118,ATechDat,22,FALSE)) -> 0 | DO118: =IF(ISBLANK(CB118),"",CB118) ->  | DR118: =IF(BZ118="N","",CN118) -> Cargill Kettle Butte Bio Factory | DT118: Cargill Kettle Butte Bio Factory | DU118: 0 | DV118: 0 | DW118: 0 | DX118: 0 | DY118: 0 | DZ118: 0 | EA118: 0 | EB118: 0 | EC118: 0 | ED118: 0 | EE118: 0 | EF118: 0 | EG118: 0 | EH118: 0 | EI118: 0 | EJ118: 0 | EK118: 0 | EL118: 0 | EM118: 0 | EN118: 0 | EO118: 0 | EP118: 0 | EQ118: 0 | ER118: 0
A119: Carmen-Smith 1-3 | B119: 1080 | C119: 3067 | D119: 1,2,3 | E119: 2242B | F119: Storage w/Div | G119: WAT | I119: Hydro | J119: 114.3 | K119: 114.3 | M119: 108 | N119: 111.8 | O119: 114.5 | P119: 103.8 | Q119: 106.5 | R119: 22 | T119: 16 | U119: Operating | V119: Aug | W119: 1963 | Y119: McKenzie R. | Z119: Linn | AA119: OR | AB119: Y | AC119: Columbia | AD119: WECC | AE119: City of Eugene (EWEB) | AF119: Municipal | AG119: EWEB | AO119: 1 | AT119: =AO119*J119 -> 114.3 | AU119: =IF(ISNUMBER(R119),R119,BX119)*AO119 -> 22 | AZ119: BPA | BA119: 26.3 | BB119: 26.2 | BC119: 28.6 | BD119: 21.81210046 | BE119: 26.19006849 | BF119: 24.1 | BG119: 17.78 | BH119: 24.54 | BI119: 25.2 | BJ119: 31.73 | BK119: 33.6 | BL119: 28.7 | BM119: 32.01 | BN119: 22.74 | BO119: 29.8 | BP119: (2) 52.2 MW units, (1) 9.9 MW unit. License granted January 1959; expired November 2008. EWEB negotiating new license - wants to revise 2008 application due to rising costs and lower project economics (Oct 2015). Critical energy from PNUCC 2005 NRF. | BQ119: =VLOOKUP($B119,[2]!Table_intranet_power_vewProjectLatLongUrl[#Data],2,FALSE) -> 44.279 | BR119: =VLOOKUP($B119,[2]!Table_intranet_power_vewProjectLatLongUrl[#Data],3,FALSE) -> -122.049 | BS119: =VLOOKUP($B119,[2]!Table_intranet_power_vewProjectLatLongUrl[#Data],4,FALSE) -> http://www.eweb.org/content.aspx/1f46b0f5-8c35-4fbc-9a22-1eadb1553e92 | BT119: 2017-10-17T14:37:45 | BU119: 114.3 | BV119: 111.8 | BW119: 0.1924759405 | BX119: 22 | BY119: Independent | BZ119: N | CA119: Accounted for in HydInd file | CP119: =IF(BZ119="N","",VLOOKUP($CD119,ATechDat,2,FALSE)) ->  | CQ119: =IF(BZ119="N","",VLOOKUP($CD119,ATechDat,3,FALSE)) ->  | CV119: =IF(BZ119="N","",VLOOKUP($CD119,ATechDat,4,FALSE)) ->  | CW119: =IF(BZ119="N","",VLOOKUP($CD119,ATechDat,5,FALSE)) ->  | CX119: =IF(BZ119="N","",VLOOKUP($CD119,ATechDat,6,FALSE)) ->  | CY119: =IF(BZ119="N","",VLOOKUP($CD119,ATechDat,7,FALSE)) ->  | CZ119: =IF(BZ119="N","",VLOOKUP($CD119,ATechDat,8,FALSE)) ->  | DA119: =IF(BZ119="N","",VLOOKUP($CD119,ATechDat,9,FALSE)) ->  | DB119: =IF(BZ119="N","",VLOOKUP($CD119,ATechDat,10,FALSE)) ->  | DC119: =IF(BZ119="N","",VLOOKUP($CD119,ATechDat,11,FALSE)) ->  | DD119: =IF(BZ119="N","",VLOOKUP($CD119,ATechDat,12,FALSE)) ->  | DE119: =IF(BZ119="N","",VLOOKUP($CD119,ATechDat,13,FALSE)) ->  | DF119: =IF(BZ119="N","",VLOOKUP($CD119,ATechDat,14,FALSE)) ->  | DG119: =IF(BZ119="N","",VLOOKUP($CD119,ATechDat,15,FALSE)) ->  | DH119: =IF(BZ119="N","",VLOOKUP($CD119,ATechDat,16,FALSE)) ->  | DI119: =IF(BZ119="N","",VLOOKUP($CD119,ATechDat,17,FALSE)) ->  | DJ119: =IF(BZ119="N","",VLOOKUP($CD119,ATechDat,18,FALSE)) ->  | DK119: =IF(BZ119="N","",VLOOKUP($CD119,ATechDat,19,FALSE)) ->  | DL119: =IF(BZ119="N","",VLOOKUP($CD119,ATechDat,20,FALSE)) ->  | DM119: =IF(BZ119="N","",VLOOKUP($CD119,ATechDat,21,FALSE)) ->  | DN119: =IF(BZ119="N","",VLOOKUP($CD119,ATechDat,22,FALSE)) ->  | DO119: =IF(ISBLANK(CB119),"",CB119) -> 
A120: Carty Generating Station | B120: 1892 | C120: 58503 | D120: GEN1,GEN2 | F120: CC | G120: NG | I120: Natural gas | J120: 440 | K120: 500 | P120: 413 | Q120: 467 | U120: Operating | V120: Jul | W120: 2016 | Y120: Boardman | Z120: Morrow | AA120: OR | AB120: Y | AC120: Columbia | AD120: WECC | AE120: Portland General Electric | AF120: IOU | AG120: Portland General Electric | AO120: 1 | AT120: =AO120*J120 -> 440 | AU120: =IF(ISNUMBER(R120),R120,BX120)*AO120 -> 391.6 | AZ120: PGE | BO120: 155.6 | BP120: (1) CC w/duct firing, wet mech draft cooling. Mitsbishi G-class turbine. | BQ120: =VLOOKUP($B120,[2]!Table_intranet_power_vewProjectLatLongUrl[#Data],2,FALSE) -> 45.6964 | BR120: =VLOOKUP($B120,[2]!Table_intranet_power_vewProjectLatLongUrl[#Data],3,FALSE) -> -119.808 | BS120: =VLOOKUP($B120,[2]!Table_intranet_power_vewProjectLatLongUrl[#Data],4,FALSE) -> http://www.portlandgeneral.com/our_company/energy_strategy/proposed/carty_station.aspx | BT120: 2017-10-17T14:39:45 | BU120: =IF(OR(I120="Wind",I120="Solar",I120="Hydro"),J120,IF(ISNUMBER(L120),L120,IF(ISNUMBER(O120), O120, IF(ISNUMBER(Q120),Q120,J120)))) -> 467 | BV120: =IF(OR(J120="Wind",J120="Solar",J120="Hydro"),J120,IF(ISNUMBER(N120),N120,IF(ISNUMBER(P120), P120, IF(ISNUMBER(L120),L120,J120)))) -> 413 | BW120: =IF(OR(ISBLANK(J120),ISBLANK(R120),J120=0),VLOOKUP(IF(G120="WAT","HY",IF(G120="LFG","LFG",F120)),Acapability,4,FALSE),R120/J120) -> 0.89 | BX120: =IF(ISNUMBER(R120),R120,AVERAGE(BU120,BV120)*BW120) -> 391.6 | BZ120: Y | CC120: PNW East | CD120: NGCC_PNWE | CE120: 6700 | CF120: 1 | CH120: 1 | CJ120: 1 | CN120: Carty Generating Station | CO120: PNW East | CP120: Thr | CQ120: CCCT | CR120: 440 | CS120: Jul-2016 | CT120: Jan-2051 | CU120: 6700 | CV120: PNW E. gas | CW120: 0.059 | CX120: 32 | CY120: TRUE | CZ120: MR 21d Winter Pk_Hydro | DA120: CCCT - PNW E. | DB120: Default | DC120: Default | DD120: 30 | DE120: CMS GT PNWE | DF120: 0 | DG120: 0 | DH120: FALSE | DI120: TRUE | DJ120: FALSE | DK120: FALSE | DL120: 0 | DM120: 0 | DN120: 0 | DR120: Carty Generating Station | DT120: Carty Generating Station | DU120: 405.8088848 | DV120: 419.3813795 | DW120: 431.4090082 | DX120: 439.4714405 | DY120: 440 | DZ120: 433.9501748 | EA120: 369.9792779 | EB120: 308.8206036 | EC120: 301.7970688 | ED120: 295.9291823 | EE120: 394.4594608 | EF120: 395.6922327 | EG120: 381.8661606 | EH120: 394.6378782 | EI120: 405.9558767 | EJ120: 413.5426255 | EK120: 414.04 | EL120: 408.3471145 | EM120: 348.1505005 | EN120: 290.600188 | EO120: 283.9910417 | EP120: 278.4693606 | EQ120: 371.1863526 | ER120: 372.346391
A121: Cascade 1 & 2 | B121: 1081 | C121: 813 | D121: 1,2 | E121: 2848 | F121: Storage w/Div | G121: WAT | I121: Hydro | J121: 12.42 | K121: 12.4 | M121: 8.63 | N121: 12.4 | O121: 1.8 | P121: 14.4 | Q121: 9.2 | R121: 12 | U121: Operating | W121: 1926 | Y121: Payette R. N. Fk. | Z121: Valley | AA121: ID | AB121: Y | AC121: Columbia | AD121: WECC | AE121: Idaho Power Co. | AF121: IOU | AG121: Idaho Power Co. | AO121: 1 | AT121: =AO121*J121 -> 12.42 | AU121: =IF(ISNUMBER(R121),R121,BX121)*AO121 -> 12 | AZ121: IPC | BG121: 5.4 | BH121: 5.12 | BI121: 4.1 | BJ121: 5.81 | BK121: 6 | BL121: 4.56 | BM121: 4.92 | BN121: 3.6 | BO121: 4.8 | BP121: License granted February 1981; expires January 2031. | BQ121: =VLOOKUP($B121,[2]!Table_intranet_power_vewProjectLatLongUrl[#Data],2,FALSE) -> 44.7578 | BR121: =VLOOKUP($B121,[2]!Table_intranet_power_vewProjectLatLongUrl[#Data],3,FALSE) -> -115.561 | BS121: =VLOOKUP($B121,[2]!Table_intranet_power_vewProjectLatLongUrl[#Data],4,FALSE) -> 0 | BT121: 2017-10-17T14:40:13 | BU121: 12.42 | BV121: 12.4 | BW121: 0.9661835749 | BX121: 12 | BY121: Independent | BZ121: N | CA121: Accounted for in HydInd file
A122: Cascade Creek | B122: 1082 | E122: 6629 | F122: Diversion | G122: WAT | I122: Hydro | J122: 0.08 | L122: 0 | N122: 0.08 | O122: 0.08 | R122: =67/8760 -> 0.007648401826 | U122: Operating | W122: 1983 | Y122: Cascade Cr. | Z122: Park | AA122: MT | AB122: N | AC122: Missouri | AD122: WECC | AE122: M Ranch | AF122: Independent | AG122: NorthWestern (QF thru Oct 2019) | AO122: 0.31 | BP122: Exemption granted January 1983. Critical energy from PNUCC 2005 NRF | BQ122: =VLOOKUP($B122,[2]!Table_intranet_power_vewProjectLatLongUrl[#Data],2,FALSE) -> 0 | BR122: =VLOOKUP($B122,[2]!Table_intranet_power_vewProjectLatLongUrl[#Data],3,FALSE) -> 0 | BS122: =VLOOKUP($B122,[2]!Table_intranet_power_vewProjectLatLongUrl[#Data],4,FALSE) -> 0 | BT122: 2014-01-30T09:24:30 | BU122: 0.08 | BV122: 0.08 | BW122: 0.09560502283 | BX122: 0.007648401826 | BZ122: N | CA122: <0.5 MW
A123: Cassia | B123: 1902 | C123: 56934 | D123: 1 | F123: WT | G123: WND | I123: Wind | J123: 10.5 | K123: 10.5 | M123: 0 | P123: 10.5 | Q123: 10.5 | U123: Operating | V123: Feb | W123: 2009 | Y123: Hagerman | Z123: Twin Falls | AA123: ID | AB123: Y | AC123: Columbia | AD123: WECC | AE123: Exelon (John Deere Renewables) | AF123: Independent | AG123: Idaho Power Co. (QF Mar 2009 - Mar 2029) | AN123: 2029 | AO123: 1 | AT123: =AO123*J123 -> 10.5 | AU123: =IF(ISNUMBER(R123),R123,BX123)*AO123 -> 3.36 | AY123: IPC Lower Malad/ Mtn Home Jct 138kV | AZ123: IPC | BH123: 2.01 | BI123: 3 | BJ123: 2.75 | BK123: 2.7 | BL123: 2.83 | BM123: 3.04 | BN123: 2.35 | BO123: 2.8 | BP123: (5) Suzlon S88-2.1 MW WTG | BQ123: =VLOOKUP($B123,[2]!Table_intranet_power_vewProjectLatLongUrl[#Data],2,FALSE) -> 42.86232 | BR123: =VLOOKUP($B123,[2]!Table_intranet_power_vewProjectLatLongUrl[#Data],3,FALSE) -> -115.026510 | BS123: =VLOOKUP($B123,[2]!Table_intranet_power_vewProjectLatLongUrl[#Data],4,FALSE) -> http://www.exeloncorp.com/PowerPlants/exelonwind-idaho/Pages/profile.aspx | BT123: 2017-10-17T14:41:54 | BU123: 10.5 | BV123: 10.5 | BW123: 0.32 | BX123: 3.36 | BZ123: Y | CB123: 100% PNW PPA | CC123: PNW East | CD123: WN_SID | CE123: n/a | CF123: 1 | CH123: 0.05 | CJ123: 1 | CL123: Y | CN123: Cassia | CO123: PNW East | CP123: Thr | CQ123: Wind | CR123: 10.5 | CS123: Feb-2009 | CT123: Jan-2051 | CU123: n/a | CV123: Wind | CW123: 0 | CX123: 0 | CY123: FALSE | CZ123: Cf WN IDS | DA123: WindB1 | DB123: Default | DC123: Default | DD123: 20 | DE123: Flat | DF123: 0 | DG123: 1 | DH123: FALSE | DI123: TRUE | DJ123: FALSE | DK123: FALSE | DL123: 0 | DM123: 0 | DN123: 0 | DO123: 100% PNW PPA | DR123: Cassia | DT123: Cassia | DU123: 0.10584 | DV123: 0.10878 | DW123: 0.23373 | DX123: 0.21021 | DY123: 0.17493 | DZ123: 0.20433 | EA123: 0.15729 | EB123: 0.15435 | EC123: 0.13818 | ED123: 0.10437 | EE123: 0.08232 | EF123: 0.08967 | EG123: 2.1168 | EH123: 2.1756 | EI123: 4.6746 | EJ123: 4.2042 | EK123: 3.4986 | EL123: 4.0866 | EM123: 3.1458 | EN123: 3.087 | EO123: 2.7636 | EP123: 2.0874 | EQ123: 1.6464 | ER123: 1.7934
A124: Cassia Gulch | B124: 1888 | C124: 56935 | D124: 1 | F124: WT | G124: WND | I124: Wind | J124: 18.9 | K124: 18.9 | M124: 0 | P124: 18.9 | Q124: 18.9 | U124: Operating | V124: Feb | W124: 2009 | Y124: Hagerman | Z124: Twin Falls | AA124: ID | AB124: Y | AC124: Columbia | AD124: WECC | AE124: Exelon (John Deere Renewables) | AF124: Independent | AG124: Idaho Power Co. (QF May 2010 - May 2030) | AN124: 2030 | AO124: 1 | AT124: =AO124*J124 -> 18.9 | AU124: =IF(ISNUMBER(R124),R124,BX124)*AO124 -> 6.048 | AY124: IPC Lower Malad/ Mtn Home Jct 138kV | AZ124: IPC | BH124: 3.57 | BI124: 5.2 | BJ124: 5.1 | BK124: 5.1 | BL124: 4.95 | BM124: 5.15 | BN124: 4.05 | BO124: 4.9 | BP124: (9) Suzlon S88-2.1 MW WTG. | BQ124: =VLOOKUP($B124,[2]!Table_intranet_power_vewProjectLatLongUrl[#Data],2,FALSE) -> 42.162371 | BR124: =VLOOKUP($B124,[2]!Table_intranet_power_vewProjectLatLongUrl[#Data],3,FALSE) -> -112.380623 | BS124: =VLOOKUP($B124,[2]!Table_intranet_power_vewProjectLatLongUrl[#Data],4,FALSE) -> 0 | BT124: 2017-10-17T14:41:36 | BU124: 18.9 | BV124: 18.9 | BW124: 0.32 | BX124: 6.048 | BZ124: Y | CB124: 100% PNW PPA | CC124: PNW East | CD124: WN_SID | CE124: n/a | CF124: 1 | CH124: 0.05 | CJ124: 1 | CL124: Y | CN124: Cassia Gulch | CO124: PNW East | CP124: Thr | CQ124: Wind | CR124: 18.9 | CS124: Feb-2009 | CT124: Jan-2051 | CU124: n/a | CV124: Wind | CW124: 0 | CX124: 0 | CY124: FALSE | CZ124: Cf WN IDS | DA124: WindB1 | DB124: Default | DC124: Default | DD124: 20 | DE124: Flat | DF124: 0 | DG124: 1 | DH124: FALSE | DI124: TRUE | DJ124: FALSE | DK124: FALSE | DL124: 0 | DM124: 0 | DN124: 0 | DO124: 100% PNW PPA | DR124: Cassia Gulch | DT124: Cassia Gulch | DU124: 0.190512 | DV124: 0.195804 | DW124: 0.420714 | DX124: 0.378378 | DY124: 0.314874 | DZ124: 0.367794 | EA124: 0.283122 | EB124: 0.27783 | EC124: 0.248724 | ED124: 0.187866 | EE124: 0.148176 | EF124: 0.161406 | EG124: 3.81024 | EH124: 3.91608 | EI124: 8.41428 | EJ124: 7.56756 | EK124: 6.29748 | EL124: 7.35588 | EM124: 5.66244 | EN124: 5.5566 | EO124: 4.97448 | EP124: 3.75732 | EQ124: 2.96352 | ER124: 3.22812
A125: Cedar Draw Creek (Crystal Springs) | B125: 1083 | C125: 10806 | D125: GEN1 | E125: 8278 | F125: Diversion | G125: WAT | I125: Hydro | J125: 2.3 | K125: 2.3 | L125: 0.8 | N125: 1.08 | O125: 0.46 | P125: 2 | Q125: 2 | T125: 0 | U125: Operating | V125: Jan | W125: 1988 | Y125: Cedar Draw Cr. | Z125: Twin Falls | AA125: ID | AB125: Y | AC125: Columbia | AD125: WECC | AE125: Crystal Springs Hydroelectric, LP | AF125: Independent | AG125: Idaho Power Co. (QF thru May 2019) | AO125: 1 | AT125: =AO125*J125 -> 2.3 | AU125: =IF(ISNUMBER(R125),R125,BX125)*AO125 -> 0.72163 | AZ125: IPC | BI125: 1.2 | BJ125: 1.3 | BK125: 1.3 | BL125: 1.12 | BM125: 1.2 | BN125: 1.11 | BO125: 1.3 | BP125: License granted May 1985; expires April 2035. Critical energy from PNUCC 2005 NRF | BQ125: =VLOOKUP($B125,[2]!Table_intranet_power_vewProjectLatLongUrl[#Data],2,FALSE) -> 42.622513 | BR125: =VLOOKUP($B125,[2]!Table_intranet_power_vewProjectLatLongUrl[#Data],3,FALSE) -> -114.50093 | BS125: =VLOOKUP($B125,[2]!Table_intranet_power_vewProjectLatLongUrl[#Data],4,FALSE) -> 0 | BT125: 2017-10-17T15:20:39 | BU125: 2.3 | BV125: 1.08 | BW125: 0.427 | BX125: 0.72163 | BZ125: Y | CA125: Not accounted for in HydInd file | CC125: PNW East | CD125: HY_East | CE125: n/a | CF125: 1 | CH125: 1 | CJ125: 1 | CL125: Y | CN125: Cedar Draw Creek (Crystal Springs) | CO125: PNW East | CP125: Thr | CQ125: Hyd | CR125: 0.8 | CS125: Jan-1988 | CT125: Jan-2051 | CU125: n/a | CV125: Water | CW125: 0 | CX125: 24 | CY125: FALSE | CZ125: Cf HY East | DA125: Zero | DB125: Expense | DC125: Default | DD125: 50 | DE125: Flat | DF125: 0 | DG125: 0 | DH125: FALSE | DI125: TRUE | DJ125: FALSE | DK125: FALSE | DL125: 0 | DM125: 0 | DN125: 0 | DR125: Cedar Draw Creek (Crystal Springs) | DT125: Cedar Draw Creek (Crystal Springs) | DU125: 0.2614162191 | DV125: 0.3432221565 | DW125: 0.3052075312 | DX125: 0.387713724 | DY125: 0.446088234 | DZ125: 0.3442871876 | EA125: 0.4006755052 | EB125: 0.4328613269 | EC125: 0.5685116261 | ED125: 0.5283905812 | EE125: 0.529317535 | EF125: 0.4782444155 | EG125: 0.2614162191 | EH125: 0.3432221565 | EI125: 0.3052075312 | EJ125: 0.387713724 | EK125: 0.446088234 | EL125: 0.3442871876 | EM125: 0.4006755052 | EN125: 0.4328613269 | EO125: 0.5685116261 | EP125: 0.5283905812 | EQ125: 0.529317535 | ER125: 0.4782444155
A126: Cedar Falls (Masonry Dam) 1 & 2 | B126: 1084 | C126: 6430 | D126: 5,6 | E126: 10647 | F126: Storage w/Div | G126: WAT | I126: Hydro | J126: 20 | K126: 30 | M126: 9.25 | N126: 30 | O126: 30 | P126: 30 | Q126: 30 | R126: 9 | T126: 12 | U126: Operating | W126: 1905 | Y126: Cedar R. | Z126: King | AA126: WA | AB126: Y | AC126: Puget Sound & Coastal | AD126: WECC | AE126: City of Seattle | AF126: Municipal | AG126: City of Seattle | AO126: 1 | AT126: 20 | AU126: 9 | AZ126: SCE | BA126: 9 | BB126: 7.2 | BC126: 6.9 | BD126: 3.452853881 | BE126: 6.048630137 | BF126: 5.6 | BG126: 7.45 | BH126: 8.69 | BI126: 7.4 | BJ126: 12.52 | BK126: 13.9 | BL126: 8.87 | BM126: 7.44 | BN126: 5.37 | BO126: 7.8 | BP126: Critical energy from PNUCC 2005 NRF | BQ126: =VLOOKUP($B126,[2]!Table_intranet_power_vewProjectLatLongUrl[#Data],2,FALSE) -> 47.419 | BR126: =VLOOKUP($B126,[2]!Table_intranet_power_vewProjectLatLongUrl[#Data],3,FALSE) -> -121.781 | BS126: =VLOOKUP($B126,[2]!Table_intranet_power_vewProjectLatLongUrl[#Data],4,FALSE) -> http://www.ci.seattle.wa.us/light/environment/fish/ev5ff_cf.htm | BT126: 2017-10-17T14:45:12 | BU126: 20 | BV126: 30 | BW126: 0.45 | BX126: 9 | BY126: Independent | BZ126: N | CA126: Accounted for in HydInd file
A127: Central Energy Cogen Plant (Brigham Young Univ) | B127: 2183 | C127: 59496 | D127: ST601 | F127: STCG | G127: NG | I127: Natural gas | J127: 5 | K127: 5.6 | P127: 4.6 | Q127: 5.2 | U127: Operating | V127: Jun | W127: 2016 | Y127: BYU-Idaho in Rexburg | Z127: Madison | AA127: ID | AB127: Y | AC127: Columbia | AD127: WECC | AE127: Brigham Young University-Idaho | AF127: Independent | AG127: Self-gen, PPA w/ PAC for excess | AO127: 1 | AT127: 5 | AU127: 3.92 | AZ127: PACE | BO127: 4.5 | BP127: Construction begain in 2013 to replace coal-fired boilers w/ NG fired boilers. New plant utilizes cogen thru a HRSG. | BQ127: =VLOOKUP($B127,[2]!Table_intranet_power_vewProjectLatLongUrl[#Data],2,FALSE) -> 43.8181 | BR127: =VLOOKUP($B127,[2]!Table_intranet_power_vewProjectLatLongUrl[#Data],3,FALSE) -> -111.7828 | BS127: =VLOOKUP($B127,[2]!Table_intranet_power_vewProjectLatLongUrl[#Data],4,FALSE) -> http://big-d.com/projects/byu-idaho-central-energy-facility/ | BT127: 2017-10-17T14:26:37 | BU127: 5.2 | BV127: 4.6 | BW127: =IF(OR(ISBLANK(J127),ISBLANK(R127),J127=0),VLOOKUP(IF(G127="WAT","HY",IF(G127="LFG","LFG",F127)),Acapability,4,FALSE),R127/J127) -> 0.8 | BX127: 3.92 | BZ127: N | CA127: Self gen
A128: Central Oregon Siphon | B128: 1085 | C128: 50980 | D128: GEN1,GEN2 | E128: 3571 | F128: Diversion | G128: WAT | I128: Hydro | J128: 5.4 | K128: 5.4 | L128: 0 | N128: 5.4 | O128: 5.4 | P128: 5.4 | Q128: 5.4 | U128: Operating | V128: Aug | W128: 1989 | Y128: Deschutes R. | Z128: Deschutes | AA128: OR | AB128: Y | AC128: Columbia | AD128: WECC | AE128: Central Oregon Irrigation District | AF128: Independent | AG128: PacifiCorp (QF thru Dec 2020) | AO128: 1 | AT128: 5.4 | AU128: 2.3058 | AZ128: PACW | BE128: 0.8182648402 | BF128: 0.9 | BG128: 0.69 | BH128: 3.25 | BI128: 2.5 | BJ128: 3.27 | BK128: 4.4 | BL128: 2.97 | BM128: 2.92 | BN128: 2.9 | BO128: 2.5 | BP128: License granted September 1987; expires August 2037. | BQ128: =VLOOKUP($B128,[2]!Table_intranet_power_vewProjectLatLongUrl[#Data],2,FALSE) -> 44.065925 | BR128: =VLOOKUP($B128,[2]!Table_intranet_power_vewProjectLatLongUrl[#Data],3,FALSE) -> -121.311962 | BS128: =VLOOKUP($B128,[2]!Table_intranet_power_vewProjectLatLongUrl[#Data],4,FALSE) -> http://www.coid.org/powerplant.htm | BT128: 2017-10-25T09:00:54 | BU128: 5.4 | BV128: 5.4 | BW128: 0.427 | BX128: 2.3058 | BZ128: Y | CA128: Not accounted for in HydInd file | CC128: PNW East | CD128: HY_Irr | CE128: n/a | CF128: 1 | CH128: 1 | CJ128: 1 | CL128: Y | CN128: Central Oregon Siphon | CO128: PNW East | CP128: Thr | CQ128: Hyd | CR128: 0 | CS128: Aug-1989 | CT128: Jan-2051 | CU128: n/a | CV128: Water | CW128: 0 | CX128: 24 | CY128: FALSE | CZ128: Cf HY Irr | DA128: Zero | DB128: Expense | DC128: Default | DD128: 50 | DE128: Flat | DF128: 0 | DG128: 0 | DH128: FALSE | DI128: TRUE | DJ128: FALSE | DK128: FALSE | DL128: 0 | DM128: 0 | DN128: 0 | DR128: Central Oregon Siphon | DT128: Central Oregon Siphon | DU128: =IF($BZ128="N","",IF(OR($I128<>"Wind",$I128<>"Solar",$I128<>"Hydro"),($CF128*$CH128*IF(ISBLANK($L128),IF(ISBLANK($O128),$J128,$O128),$L128))*VLOOKUP($CZ128,ASeasDist,DU$7,FALSE)*VLOOKUP($DE128,ASeasDist,DU$7),$J128*$CF128*$CH128)) -> 0 | DV128: 0 | DW128: 0 | DX128: 0 | DY128: 0 | DZ128: 0 | EA128: 0 | EB128: 0 | EC128: 0 | ED128: 0 | EE128: 0 | EF128: 0 | EG128: =IF($BZ128="N","",IF(OR($I128<>"Wind",$I128<>"Solar",$I128<>"Hydro"),$CJ128*IF(ISBLANK($L128),IF(ISBLANK($O128),$J128,$O128),$L128),$J128)*(1-$CW128)*VLOOKUP($CZ128,ASeasDist,EG$7,FALSE)*VLOOKUP($DE128,ASeasDist,EG$7)) -> 0 | EH128: 0 | EI128: 0 | EJ128: 0 | EK128: 0 | EL128: 0 | EM128: 0 | EN128: 0 | EO128: 0 | EP128: 0 | EQ128: 0 | ER128: 0
A129: Centralia 1 | B129: 1086 | C129: 3845 | D129: 1 | F129: ST | G129: COL | I129: Coal | J129: 729.99 | K129: 729.9 | L129: 670 | N129: 688 | O129: 688 | P129: 670 | Q129: 670 | U129: Operating | V129: Dec | W129: 1972 | X129: 2020 | Y129: Centralia | Z129: Lewis | AA129: WA | AB129: Y | AC129: Puget Sound & Coastal | AD129: WECC | AE129: TransAlta | AF129: Independent | AG129: 100 MW contract w/PGE through 2015 (Centralia 1 & 2) . 11 yr Transition agreement w/ PSE - 180MW in 2014, 300MW in 2015, 380MW 2016-2024, 300MW in 2025. | AH129: 26.87 | AI129: 3.016 | AJ129: 10890 | AO129: 0.43 | AP129: 0.57 | AT129: =AO129*J129 -> 313.8957 | AU129: =IF(ISNUMBER(R129),R129,BX129)*AO129 -> 251.0942 | AZ129: BPA | BA129: 1058.7 | BB129: 1151.5 | BC129: 1188.8 | BD129: 1196.7 | BE129: 642.4 | BF129: 973.4 | BG129: 997.38 | BH129: 850.5 | BI129: 968.8 | BJ129: 594.65 | BK129: 425.6 | BL129: 766.14 | BM129: 762.97 | BN129: 573.4 | BO129: 522.5 | BP129: One 729.999 MW STG | BQ129: =VLOOKUP($B129,[2]!Table_intranet_power_vewProjectLatLongUrl[#Data],2,FALSE) -> 46.756 | BR129: =VLOOKUP($B129,[2]!Table_intranet_power_vewProjectLatLongUrl[#Data],3,FALSE) -> -122.857 | BS129: =VLOOKUP($B129,[2]!Table_intranet_power_vewProjectLatLongUrl[#Data],4,FALSE) -> http://www.transalta.com/transalta/webcms.nsf/AllDoc/D7E5E521CBB488BF87257226006EEC84?OpenDocument | BT129: 2017-10-25T10:43:35 | BU129: 670 | BV129: 688 | BW129: 0.86 | BX129: 583.94 | BZ129: Y | CB129: 85% uncommitted IPP through 2015 | CC129: PNW West | CD129: CLST_PNWW | CE129: 10240 | CF129: 1 | CH129: 1 | CI129: 0.85 | CJ129: 1 | CN129: Centralia 1 | CO129: PNW West | CP129: Thr | CQ129: Coal | CR129: 670 | CS129: Dec-1972 | CT129: Jan-2051 | CU129: 10240 | CV129: PNW W. coal | CW129: 0.067 | CX129: 40 | CY129: TRUE | CZ129: MR 35d Winter Pk_Hydro | DA129: Bdmn | DB129: Default | DC129: Default | DD129: 30 | DE129: Flat | DF129: 0 | DG129: 0 | DH129: FALSE | DI129: TRUE | DJ129: FALSE | DK129: FALSE | DL129: 0 | DM129: 0 | DN129: 0 | DO129: 85% uncommitted IPP through 2015 | DR129: Centralia 1 | DT129: Centralia 1 | DU129: 670 | DV129: 641.9651308 | DW129: 641.9651308 | DX129: 670 | DY129: 670 | DZ129: 670 | EA129: 655.9825654 | EB129: 641.9651308 | EC129: 641.9651308 | ED129: 641.9651308 | EE129: 670 | EF129: 670 | EG129: 625.11 | EH129: 598.953467 | EI129: 598.953467 | EJ129: 625.11 | EK129: 625.11 | EL129: 625.11 | EM129: 612.0317335 | EN129: 598.953467 | EO129: 598.953467 | EP129: 598.953467 | EQ129: 625.11 | ER129: 625.11
A130: Centralia 2 | B130: 1087 | C130: 3845 | D130: 2 | F130: ST | G130: COL | I130: Coal | J130: 729.99 | K130: 729.9 | L130: 670 | N130: 688 | O130: 688 | P130: 670 | Q130: 670 | U130: Operating | V130: Jul | W130: 1973 | X130: 2025 | Y130: Centralia | Z130: Lewis | AA130: WA | AB130: Y | AC130: Puget Sound & Coastal | AD130: WECC | AE130: TransAlta | AF130: Independent | AG130: See Centralia 1. | AH130: 26.87 | AI130: 3.016 | AJ130: 10718 | AO130: 0 | AP130: 1 | AT130: =AO130*J130 -> 0 | AU130: =IF(ISNUMBER(R130),R130,BX130)*AO130 -> 0 | AZ130: BPA | BP130: One 729.999 MW STG | BQ130: =VLOOKUP($B130,[2]!Table_intranet_power_vewProjectLatLongUrl[#Data],2,FALSE) -> 46.756 | BR130: =VLOOKUP($B130,[2]!Table_intranet_power_vewProjectLatLongUrl[#Data],3,FALSE) -> -122.857 | BS130: =VLOOKUP($B130,[2]!Table_intranet_power_vewProjectLatLongUrl[#Data],4,FALSE) -> http://www.transalta.com/transalta/webcms.nsf/AllDoc/D7E5E521CBB488BF87257226006EEC84?OpenDocument | BT130: 2017-10-25T10:43:49 | BU130: 670 | BV130: 688 | BW130: 0.86 | BX130: 583.94 | BZ130: Y | CB130: 100% Uncommitted IPP | CC130: PNW West | CD130: CLST_PNWW | CE130: 10240 | CF130: 1 | CH130: 1 | CI130: 1 | CJ130: 1 | CN130: Centralia 2 | CO130: PNW West | CP130: Thr | CQ130: Coal | CR130: 670 | CS130: Jul-1973 | CT130: Jan-2051 | CU130: 10240 | CV130: PNW W. coal | CW130: 0.067 | CX130: 40 | CY130: TRUE | CZ130: MR 35d Winter Pk_Hydro | DA130: Bdmn | DB130: Default | DC130: Default | DD130: 30 | DE130: Flat | DF130: 0 | DG130: 0 | DH130: FALSE | DI130: TRUE | DJ130: FALSE | DK130: FALSE | DL130: 0 | DM130: 0 | DN130: 0 | DO130: 100% Uncommitted IPP | DR130: Centralia 2 | DT130: Centralia 2 | DU130: 670 | DV130: 641.9651308 | DW130: 641.9651308 | DX130: 670 | DY130: 670 | DZ130: 670 | EA130: 655.9825654 | EB130: 641.9651308 | EC130: 641.9651308 | ED130: 641.9651308 | EE130: 670 | EF130: 670 | EG130: 625.11 | EH130: 598.953467 | EI130: 598.953467 | EJ130: 625.11 | EK130: 625.11 | EL130: 625.11 | EM130: 612.0317335 | EN130: 598.953467 | EO130: 598.953467 | EP130: 598.953467 | EQ130: 625.11 | ER130: 625.11
A131: Chandler 1 - 2 | B131: 1088 | C131: 6406 | D131: 1,2 | E131: FCRPS | F131: ROR R. w/Div. | G131: WAT | I131: Hydro | J131: 12 | K131: 12 | M131: 4.5 | N131: 12 | O131: 12 | P131: 12 | Q131: 12 | R131: 5 | T131: 9 | U131: Operating | V131: Feb | W131: 1956 | Y131: Yakima R. (Off-stream) | Z131: Benton | AA131: WA | AB131: Y | AC131: Columbia | AD131: WECC | AE131: USBR | AF131: Federal | AG131: BPA | AO131: 1 | AT131: =AO131*J131 -> 12 | AU131: =IF(ISNUMBER(R131),R131,BX131)*AO131 -> 5 | AZ131: BPA | BA131: 6.6 | BB131: 5.3 | BC131: 4.9 | BD131: 1.419063927 | BE131: 3.443378995 | BF131: 3 | BG131: 2.47 | BH131: 5.42 | BI131: 6.9 | BJ131: 5.81 | BK131: 7.5 | BL131: 4.7 | BM131: 5.06 | BN131: 3.32 | BO131: 6.1 | BP131: (2) 6.0 MW units. Critical energy from PNUCC 2005 NRF | BQ131: =VLOOKUP($B131,[2]!Table_intranet_power_vewProjectLatLongUrl[#Data],2,FALSE) -> 46.212742 | BR131: =VLOOKUP($B131,[2]!Table_intranet_power_vewProjectLatLongUrl[#Data],3,FALSE) -> -119.77222 | BS131: =VLOOKUP($B131,[2]!Table_intranet_power_vewProjectLatLongUrl[#Data],4,FALSE) -> http://www.bpa.gov/corporate/bpanews/library/images/dams/descriptions/Chandler.cfm | BT131: 2017-10-17T14:52:46 | BU131: 12 | BV131: 12 | BW131: 0.4166666667 | BX131: 5 | BY131: Independent | BZ131: N | CA131: Accounted for in HydInd file
A132: Chehalis Generating Facility | B132: 1089 | C132: 55662 | D132: CA,CT1,CT2 | F132: CC | G132: NG | H132: FO | I132: Natural gas | J132: 593.3 | K132: 698 | L132: 514 | N132: 427 | O132: 453 | P132: 477 | Q132: 507 | U132: Operating | V132: Aug | W132: 2003 | Y132: Chehalis | Z132: Lewis | AA132: WA | AB132: Y | AC132: Puget Sound & Coastal | AD132: WECC | AE132: PacifiCorp - purchased from SUEZ in 2008. Originally operated by TNA Merchant Projects, a subsidiary of SUEZ. | AF132: IOU | AG132: PacifiCorp | AH132: 5.22 | AI132: 2.41 | AJ132: 7572 | AO132: 1 | AT132: =AO132*J132 -> 593.3 | AU132: =IF(ISNUMBER(R132),R132,BX132)*AO132 -> 418.745 | AX132: Williams Northwest | AY132: BPA Napavine | AZ132: BPA | BC132: 306.1 | BD132: 255.8065068 | BE132: 150.2271689 | BF132: 215.5 | BG132: 243 | BH132: 199.46 | BI132: 147.06 | BJ132: 75.91 | BK132: 97 | BL132: 191.12 | BM132: 290.39 | BN132: 124.77 | BO132: 162.1 | BP132: (2) 175MW GE 7FA GT x (1) 170 MW ST. Dry cooling. Purchased by PacifiCorp from SUEZ closed Sep 2008. | BQ132: =VLOOKUP($B132,[2]!Table_intranet_power_vewProjectLatLongUrl[#Data],2,FALSE) -> 46.622 | BR132: =VLOOKUP($B132,[2]!Table_intranet_power_vewProjectLatLongUrl[#Data],3,FALSE) -> -122.917 | BS132: =VLOOKUP($B132,[2]!Table_intranet_power_vewProjectLatLongUrl[#Data],4,FALSE) -> 0 | BT132: 2017-10-17T14:53:22 | BU132: 514 | BV132: 427 | BW132: 0.89 | BX132: 418.745 | BZ132: Y | CC132: PNW West | CD132: NGCC_PNWW | CE132: 7000 | CF132: 1 | CH132: 1 | CJ132: 1 | CN132: Chehalis Generating Facility | CO132: PNW West | CP132: Thr | CQ132: CCCT | CR132: 514 | CS132: Aug-2003 | CT132: Jan-2051 | CU132: 7000 | CV132: PNW W. gas | CW132: 0.059 | CX132: 32 | CY132: TRUE | CZ132: MR 21d Winter Pk_Hydro | DA132: CCCT - PNW W. | DB132: Default | DC132: Default | DD132: 30 | DE132: CMS GT PNWW | DF132: 0 | DG132: 0 | DH132: FALSE | DI132: TRUE | DJ132: FALSE | DK132: FALSE | DL132: 0 | DM132: 0 | DN132: 0 | DR132: Chehalis Generating Facility | DT132: Chehalis Generating Facility | DU132: 483.7406661 | DV132: 495.6378467 | DW132: 506.7350855 | DX132: 513.3826174 | DY132: 514 | DZ132: 509.4051941 | EA132: 438.0529008 | EB132: 367.6053862 | EC132: 361.4093843 | ED132: 355.999677 | EE132: 477.4762717 | EF132: 476.6749072 | EG132: 455.1999668 | EH132: 466.3952138 | EI132: 476.8377154 | EJ132: 483.093043 | EK132: 483.674 | EL132: 479.3502876 | EM132: 412.2077797 | EN132: 345.9166685 | EO132: 340.0862306 | EP132: 334.995696 | EQ132: 449.3051717 | ER132: 448.5510877
A133: Chelan A1 & A2 | B133: 1090 | C133: 6424 | D133: A-1,A-2 | E133: 637 | F133: Storage w/Div | G133: WAT | I133: Hydro | J133: 48 | K133: 59.2 | M133: 55.5 | N133: 62 | O133: 62 | P133: 62.1 | Q133: 62.1 | R133: 44 | T133: 38 | U133: Operating | V133: Sep | W133: 1927 | Y133: Chelan R. | Z133: Chelan | AA133: WA | AB133: Y | AC133: Columbia | AD133: WECC | AE133: Chelan Co. PUD | AF133: PUD | AG133: Chelan | AO133: 1 | AT133: =AO133*J133 -> 48 | AU133: =IF(ISNUMBER(R133),R133,BX133)*AO133 -> 44 | AZ133: Chelan Co. PUD | BA133: 47.9 | BB133: 42.1 | BC133: 6.3 | BD133: 5.735273973 | BE133: 7.441666667 | BF133: 5.9 | BG133: 16.65 | BH133: 35.23 | BI133: 44.2 | BJ133: 51.76 | BK133: 45.4 | BL133: 47.46 | BM133: 45.45 | BN133: 47.086 | BO133: 50.5 | BP133: Original license granted May 1926; expired May 1976. Critical energy from PNUCC 2005 NRF | BQ133: =VLOOKUP($B133,[2]!Table_intranet_power_vewProjectLatLongUrl[#Data],2,FALSE) -> 47.808 | BR133: =VLOOKUP($B133,[2]!Table_intranet_power_vewProjectLatLongUrl[#Data],3,FALSE) -> -119.985 | BS133: =VLOOKUP($B133,[2]!Table_intranet_power_vewProjectLatLongUrl[#Data],4,FALSE) -> http://www.chelanpud.org/relicense/process/facts.htm | BT133: 2017-10-17T14:53:59 | BU133: 48 | BV133: 62 | BW133: 0.9166666667 | BX133: 44 | BY133: Regulated | BZ133: N | CA133: Reg hydro
A134: Chester Diversion 1-3 | B134: 1706 | C134: 56893 | D134: 1,2,3 | E134: 11879 | F134: ROR | G134: WAT | I134: Hydro | J134: 3.3 | K134: 3.6 | N134: 3.6 | O134: 3.6 | P134: 3.6 | Q134: 3.6 | R134: 1.386 | U134: Operating | V134: Mar | W134: 2014 | Y134: Henrys Fk. | Z134: Fremont | AA134: ID | AB134: Y | AC134: Columbia | AD134: WECC | AE134: Fall River REC | AF134: Coop | AG134: BPA | AO134: 1 | AT134: 3.3 | AU134: 1.386 | AZ134: BPA | BM134: 0.47 | BN134: 0.423 | BO134: 0.8 | BP134: (3) turbine-generators. Existing run-of-river dam w/diversion (Chester Dam). Lice gtd Jul 2008. | BQ134: =VLOOKUP($B134,[2]!Table_intranet_power_vewProjectLatLongUrl[#Data],2,FALSE) -> 44.018333 | BR134: =VLOOKUP($B134,[2]!Table_intranet_power_vewProjectLatLongUrl[#Data],3,FALSE) -> -111.583611 | BS134: =VLOOKUP($B134,[2]!Table_intranet_power_vewProjectLatLongUrl[#Data],4,FALSE) -> 0 | BT134: 2017-10-17T14:54:46 | BU134: 3.3 | BV134: 3.6 | BW134: 0.42 | BX134: 1.386 | BZ134: Y | CA134: Not accounted for in HydInd file | CC134: PNW East | CD134: HY_East | CE134: n/a | CF134: 1 | CH134: 1 | CJ134: 1 | CL134: Y | CN134: Chester Diversion 1-3 | CO134: PNW East | CP134: Thr | CQ134: Hyd | CR134: 3.6 | CS134: Mar-2014 | CT134: Jan-2051 | CU134: n/a | CV134: Water | CW134: 0 | CX134: 24 | CY134: FALSE | CZ134: Cf HY East | DA134: Zero | DB134: Expense | DC134: Default | DD134: 50 | DE134: Flat | DF134: 0 | DG134: 0 | DH134: FALSE | DI134: TRUE | DJ134: FALSE | DK134: FALSE | DL134: 0 | DM134: 0 | DN134: 0 | DR134: Chester Diversion 1-3 | DT134: Chester Diversion 1-3 | DU134: 1.176372986 | DV134: 1.544499704 | DW134: 1.37343389 | DX134: 1.744711758 | DY134: 2.007397053 | DZ134: 1.549292344 | EA134: 1.803039773 | EB134: 1.947875971 | EC134: 2.558302318 | ED134: 2.377757615 | EE134: 2.381928908 | EF134: 2.15209987 | EG134: 1.176372986 | EH134: 1.544499704 | EI134: 1.37343389 | EJ134: 1.744711758 | EK134: 2.007397053 | EL134: 1.549292344 | EM134: 1.803039773 | EN134: 1.947875971 | EO134: 2.558302318 | EP134: 2.377757615 | EQ134: 2.381928908 | ER134: 2.15209987
A135: Chevron Casper Wind Farm | B135: 2018 | C135: 57093 | D135: CWGT | F135: WT | G135: WND | I135: Wind | J135: 16.5 | K135: 17 | P135: 17 | Q135: 17 | U135: Operating | V135: Dec | W135: 2009 | Y135: Casper | Z135: Natrona | AA135: WY | AB135: N | AC135: Missouri | AD135: WECC | AE135: Chevron Global Power Company | AF135: Independent | AG135: Short-term PPA w/ PacifiCorp for 100% of facility's output. | AO135: 1 | AT135: =AO135*J135 -> 16.5 | AU135: =IF(ISNUMBER(R135),R135,BX135)*AO135 -> 5.36 | AZ135: PACE | BL135: 5.02 | BM135: 4.84 | BN135: 4.22 | BO135: 4.8 | BP135: (11) 1.5 MW GE WTG. Assume 25.81% SG factor to Oregon, per PacifiCorp's 2011 OR RPS Compliance Report. | BQ135: =VLOOKUP($B135,[2]!Table_intranet_power_vewProjectLatLongUrl[#Data],2,FALSE) -> 43.01578 | BR135: =VLOOKUP($B135,[2]!Table_intranet_power_vewProjectLatLongUrl[#Data],3,FALSE) -> -105.993723 | BS135: =VLOOKUP($B135,[2]!Table_intranet_power_vewProjectLatLongUrl[#Data],4,FALSE) -> http://www.chevron.com/news/currentissues/casperwind/ | BT135: 2017-11-06T15:15:24 | BU135: 16.5 | BV135: 17 | BW135: 0.32 | BX135: 5.36 | BZ135: N | CA135: PACE
A136: Chief Joseph 1 - 27 | B136: 1091 | C136: 3921 | D136: 1,2,3,4,5,6,7,8,9,10,11,12,13,14,15,16,17,18,19,20,21,22,23,24,25,26,27 | E136: FCRPS | F136: ROR | G136: WAT | I136: Hydro | J136: 2456.2 | K136: 2456.2 | M136: 2374 | N136: 2456.2 | O136: 2456.2 | P136: 2456.2 | Q136: 2456.2 | R136: 1321 | T136: 996 | U136: Operating | V136: Sep | W136: 1955 | Y136: Columbia R. | Z136: Douglas | AA136: WA | AB136: Y | AC136: Columbia | AD136: WECC | AE136: USCE | AF136: Federal | AG136: BPA | AO136: 1 | AT136: =AO136*J136 -> 2456.2 | AU136: =IF(ISNUMBER(R136),R136,BX136)*AO136 -> 1321 | AZ136: BPA | BA136: 1321.2 | BB136: 1157.2 | BC136: 1172.5 | BD136: 1240.730137 | BE136: 1318.673174 | BF136: 1319.8 | BG136: 1213.74 | BH136: 1116.44 | BI136: 1040.59 | BJ136: 1427.29 | BK136: 1424.7 | BL136: 1391.29 | BM136: 1329.17 | BN136: 1308.48 | BO136: 1328.6 | BP136: Critical energy from PNUCC 2005 NRF | BQ136: =VLOOKUP($B136,[2]!Table_intranet_power_vewProjectLatLongUrl[#Data],2,FALSE) -> 47.999 | BR136: =VLOOKUP($B136,[2]!Table_intranet_power_vewProjectLatLongUrl[#Data],3,FALSE) -> -119.634 | BS136: =VLOOKUP($B136,[2]!Table_intranet_power_vewProjectLatLongUrl[#Data],4,FALSE) -> http://www.nwcouncil.org/energy/powersupply/dams/dam.asp?id=10 | BT136: 2017-10-17T14:56:27 | BU136: 2456.2 | BV136: 2456.2 | BW136: 0.5378226529 | BX136: 1321 | BY136: Regulated | BZ136: N | CA136: Reg hydro | CO136: =IF($BZ136="Y",CC136,"") ->  | CP136: =IF(BZ136="N","",VLOOKUP($CD136,ATechDat,2,FALSE)) ->  | CQ136: =IF(BZ136="N","",VLOOKUP($CD136,ATechDat,3,FALSE)) ->  | CR136: =IF($BZ136="N","",IF($I136<>"Wind",($CF136*$CH136*IF(ISBLANK($L136),IF(ISBLANK($O136),$J136,$O136),$L136)),$J136*IF(AND($I136="Wind",SWFullWind="Y"),1,$CF136*$CH136))) ->  | CU136: =IF(BZ136="N","",CE136) ->  | CV136: =IF(BZ136="N","",VLOOKUP($CD136,ATechDat,4,FALSE)) ->  | CW136: =IF(BZ136="N","",VLOOKUP($CD136,ATechDat,5,FALSE)) ->  | CX136: =IF(BZ136="N","",VLOOKUP($CD136,ATechDat,6,FALSE)) ->  | CY136: =IF(BZ136="N","",VLOOKUP($CD136,ATechDat,7,FALSE)) ->  | CZ136: =IF(BZ136="N","",VLOOKUP($CD136,ATechDat,8,FALSE)) ->  | DA136: =IF(BZ136="N","",VLOOKUP($CD136,ATechDat,9,FALSE)) ->  | DB136: =IF(BZ136="N","",VLOOKUP($CD136,ATechDat,10,FALSE)) ->  | DC136: =IF(BZ136="N","",VLOOKUP($CD136,ATechDat,11,FALSE)) ->  | DD136: =IF(BZ136="N","",VLOOKUP($CD136,ATechDat,12,FALSE)) ->  | DE136: =IF(BZ136="N","",VLOOKUP($CD136,ATechDat,13,FALSE)) ->  | DF136: =IF(BZ136="N","",VLOOKUP($CD136,ATechDat,14,FALSE)) ->  | DG136: =IF(BZ136="N","",VLOOKUP($CD136,ATechDat,15,FALSE)) ->  | DH136: =IF(BZ136="N","",VLOOKUP($CD136,ATechDat,16,FALSE)) ->  | DI136: =IF(BZ136="N","",VLOOKUP($CD136,ATechDat,17,FALSE)) ->  | DJ136: =IF(BZ136="N","",VLOOKUP($CD136,ATechDat,18,FALSE)) ->  | DK136: =IF(BZ136="N","",VLOOKUP($CD136,ATechDat,19,FALSE)) ->  | DL136: =IF(BZ136="N","",VLOOKUP($CD136,ATechDat,20,FALSE)) ->  | DM136: =IF(BZ136="N","",VLOOKUP($CD136,ATechDat,21,FALSE)) ->  | DN136: =IF(BZ136="N","",VLOOKUP($CD136,ATechDat,22,FALSE)) ->  | DO136: =IF(ISBLANK(CB136),"",CB136) -> 
A137: Chopin Wind Project | B137: 1992 | C137: 59076 | D137: WT1 | F137: WT | G137: WND | I137: Wind | J137: 10 | K137: 10 | P137: 10 | Q137: 10 | U137: Operating | V137: Sep | W137: 2016 | Y137: Umapine and Athena, OR | Z137: Umatilla | AA137: OR | AB137: Y | AC137: Columbia | AD137: WECC | AE137: BayWa r.e. | AF137: Independent | AG137: PacifiCorp (PPA) | AO137: 1 | AT137: 10 | AU137: 3.2 | AZ137: PACW | BO137: 1.1 | BP137: (6) GE 1.7MW-103 WTG, 80m hub height, 103m rotor diameter. According to PPA, PAC waives claim to ownership of RECs. | BQ137: =VLOOKUP($B137,[2]!Table_intranet_power_vewProjectLatLongUrl[#Data],2,FALSE) -> 45.891814 | BR137: =VLOOKUP($B137,[2]!Table_intranet_power_vewProjectLatLongUrl[#Data],3,FALSE) -> -118.4719197 | BS137: =VLOOKUP($B137,[2]!Table_intranet_power_vewProjectLatLongUrl[#Data],4,FALSE) -> http://us.baywa-re.com/en/references/wind-projects/ | BT137: 2017-10-17T14:58:07 | BU137: 10 | BV137: 10 | BW137: =IF(OR(ISBLANK(J137),ISBLANK(R137),J137=0),VLOOKUP(IF(G137="WAT","HY",IF(G137="LFG","LFG",F137)),Acapability,4,FALSE),R137/J137) -> 0.32 | BX137: =IF(ISNUMBER(R137),R137,AVERAGE(BU137,BV137)*BW137) -> 3.2 | BZ137: Y | CC137: PNW East | CD137: WN_PNWE | CF137: 1 | CH137: 0.05 | CJ137: 1 | CL137: Y | CN137: =IF($BZ137="Y",A137,"") -> Chopin Wind Project | CO137: PNW East | CP137: =IF(BZ137="N","",VLOOKUP($CD137,ATechDat,2,FALSE)) -> Thr | CQ137: =IF(BZ137="N","",VLOOKUP($CD137,ATechDat,3,FALSE)) -> Wind | CR137: 10 | CS137: Sep-2016 | CT137: Jan-2051 | CU137: 0 | CV137: =IF(BZ137="N","",VLOOKUP($CD137,ATechDat,4,FALSE)) -> Wind | CW137: =IF(BZ137="N","",VLOOKUP($CD137,ATechDat,5,FALSE)) -> 0 | CX137: =IF(BZ137="N","",VLOOKUP($CD137,ATechDat,6,FALSE)) -> 0 | CY137: =IF(BZ137="N","",VLOOKUP($CD137,ATechDat,7,FALSE)) -> FALSE | CZ137: =IF(BZ137="N","",VLOOKUP($CD137,ATechDat,8,FALSE)) -> Cf WN PNWE | DA137: =IF(BZ137="N","",VLOOKUP($CD137,ATechDat,9,FALSE)) -> WindB1 | DB137: =IF(BZ137="N","",VLOOKUP($CD137,ATechDat,10,FALSE)) -> Default | DC137: =IF(BZ137="N","",VLOOKUP($CD137,ATechDat,11,FALSE)) -> Default | DD137: =IF(BZ137="N","",VLOOKUP($CD137,ATechDat,12,FALSE)) -> 20 | DE137: =IF(BZ137="N","",VLOOKUP($CD137,ATechDat,13,FALSE)) -> Flat | DF137: =IF(BZ137="N","",VLOOKUP($CD137,ATechDat,14,FALSE)) -> 0 | DG137: =IF(BZ137="N","",VLOOKUP($CD137,ATechDat,15,FALSE)) -> 1 | DH137: =IF(BZ137="N","",VLOOKUP($CD137,ATechDat,16,FALSE)) -> FALSE | DI137: =IF(BZ137="N","",VLOOKUP($CD137,ATechDat,17,FALSE)) -> TRUE | DJ137: =IF(BZ137="N","",VLOOKUP($CD137,ATechDat,18,FALSE)) -> FALSE | DK137: =IF(BZ137="N","",VLOOKUP($CD137,ATechDat,19,FALSE)) -> FALSE | DL137: =IF(BZ137="N","",VLOOKUP($CD137,ATechDat,20,FALSE)) -> 0 | DM137: =IF(BZ137="N","",VLOOKUP($CD137,ATechDat,21,FALSE)) -> 0 | DN137: =IF(BZ137="N","",VLOOKUP($CD137,ATechDat,22,FALSE)) -> 0 | DR137: =IF(BZ137="N","",CN137) -> Chopin Wind Project | DT137: Chopin Wind Project | DU137: 0.141 | DV137: 0.1095 | DW137: 0.1275 | DX137: 0.144 | DY137: 0.1545 | DZ137: 0.135 | EA137: 0.1605 | EB137: 0.1605 | EC137: 0.1815 | ED137: 0.1605 | EE137: 0.1665 | EF137: 0.1605 | EG137: 2.82 | EH137: 2.19 | EI137: 2.55 | EJ137: 2.88 | EK137: 3.09 | EL137: 2.7 | EM137: 3.21 | EN137: 3.21 | EO137: 3.63 | EP137: 3.21 | EQ137: 3.33 | ER137: 3.21
A138: City of Albany (Vine Street WTP) | B138: 1092 | E138: 11509 | F138: Canal | G138: WAT | I138: Hydro | J138: 0.5 | L138: 0.8 | R138: 0.3196347032 | U138: Operating | V138: Feb | W138: 2009 | Y138: Santiam - Albany Canal | Z138: Linn | AA138: OR | AB138: Y | AC138: Columbia | AD138: WECC | AE138: City of Albany | AF138: Municipal | AG138: PacifiCorp (PPA) | AO138: 1 | AT138: 0.5 | AU138: 0.3196347032 | BD138: 0 | BE138: 0 | BP138: (1) 500kW turbine-generator. Original 1888 project retired in 1991. License to refurbish granted October 1998, expires September 2048. Renovation partly funded to the Oregon Energy Trust. | BQ138: =VLOOKUP($B138,[2]!Table_intranet_power_vewProjectLatLongUrl[#Data],2,FALSE) -> 0 | BR138: =VLOOKUP($B138,[2]!Table_intranet_power_vewProjectLatLongUrl[#Data],3,FALSE) -> 0 | BS138: =VLOOKUP($B138,[2]!Table_intranet_power_vewProjectLatLongUrl[#Data],4,FALSE) -> 0 | BT138: 2010-06-22 | BU138: 0.5 | BV138: 0.8 | BW138: 0.6392694064 | BX138: 0.3196347032 | BZ138: Y | CA138: Not accounted for in HydInd file | CC138: PNW West | CD138: HY_West | CE138: n/a | CF138: 1 | CH138: 1 | CJ138: 1 | CL138: Y | CN138: City of Albany (Vine Street WTP) | CO138: PNW West | CP138: Thr | CQ138: Hyd | CR138: 0.8 | CS138: Feb-2009 | CT138: Jan-2051 | CU138: n/a | CV138: Water | CW138: 0 | CX138: 24 | CY138: FALSE | CZ138: Cf HY West | DA138: Zero | DB138: Expense | DC138: Default | DD138: 50 | DE138: Flat | DF138: 0 | DG138: 0 | DH138: FALSE | DI138: TRUE | DJ138: FALSE | DK138: FALSE | DL138: 0 | DM138: 0 | DN138: 0 | DR138: City of Albany (Vine Street WTP) | DT138: City of Albany (Vine Street WTP) | DU138: =IF($BZ138="N","",IF(OR($I138<>"Wind",$I138<>"Solar",$I138<>"Hydro"),($CF138*$CH138*IF(ISBLANK($L138),IF(ISBLANK($O138),$J138,$O138),$L138))*VLOOKUP($CZ138,ASeasDist,DU$7,FALSE)*VLOOKUP($DE138,ASeasDist,DU$7),$J138*$CF138*$CH138)) -> 0.2627014275 | DV138: 0.2913256676 | DW138: 0.3971935974 | DX138: 0.4335164717 | DY138: 0.419393048 | DZ138: 0.313945661 | EA138: 0.3303070333 | EB138: 0.3379239128 | EC138: 0.3744241895 | ED138: 0.3760573342 | EE138: 0.3561424157 | EF138: 0.3680975449 | EG138: =IF($BZ138="N","",IF(OR($I138<>"Wind",$I138<>"Solar",$I138<>"Hydro"),$CJ138*IF(ISBLANK($L138),IF(ISBLANK($O138),$J138,$O138),$L138),$J138)*(1-$CW138)*VLOOKUP($CZ138,ASeasDist,EG$7,FALSE)*VLOOKUP($DE138,ASeasDist,EG$7)) -> 0.2627014275 | EH138: 0.2913256676 | EI138: 0.3971935974 | EJ138: 0.4335164717 | EK138: 0.419393048 | EL138: 0.313945661 | EM138: 0.3303070333 | EN138: 0.3379239128 | EO138: 0.3744241895 | EP138: 0.3760573342 | EQ138: 0.3561424157 | ER138: 0.3680975449
A139: City of Anacortes | B139: 1093 | F139: IC | G139: FO2 | I139: Petroleum | J139: 1.75 | N139: 1.75 | O139: 1.75 | U139: Operating | Y139: Anacortes | Z139: Skagit | AA139: WA | AB139: Y | AC139: Puget Sound & Coastal | AD139: WECC | AE139: City of Anacortes | AF139: Municipal | AG139: Self-generation | AO139: 1 | AT139: 1.75 | AU139: 1.6275 | BP139: 1.75 MW IC unit at waste water treatment plant. | BQ139: =VLOOKUP($B139,[2]!Table_intranet_power_vewProjectLatLongUrl[#Data],2,FALSE) -> 0 | BR139: =VLOOKUP($B139,[2]!Table_intranet_power_vewProjectLatLongUrl[#Data],3,FALSE) -> 0 | BS139: =VLOOKUP($B139,[2]!Table_intranet_power_vewProjectLatLongUrl[#Data],4,FALSE) -> 0 | BT139: 2014-01-30T10:46:13 | BU139: 1.75 | BV139: 1.75 | BW139: 0.93 | BX139: 1.6275 | BZ139: N | CA139: 100% Self-gen
A140: City of Great Falls WWTP | B140: 1094 | F140: ICCG | G140: WG | I140: Biomass | J140: 0.5 | N140: 0.5 | O140: 0.5 | U140: Operating | W140: 2005 | Y140: Great Falls | Z140: Cascade | AA140: MT | AB140: N | AC140: Missouri | AD140: WECC | AE140: City of Great Falls | AF140: Independent | AO140: 1 | AT140: 0.5 | AU140: 0.4 | AV140: City of Great Falls WWTP | AW140: Wastewater treatment | BP140: http://www.eea-inc.com/chpdata/States/MT.html. | BQ140: =VLOOKUP($B140,[2]!Table_intranet_power_vewProjectLatLongUrl[#Data],2,FALSE) -> 47.490047 | BR140: =VLOOKUP($B140,[2]!Table_intranet_power_vewProjectLatLongUrl[#Data],3,FALSE) -> -111.3138 | BS140: =VLOOKUP($B140,[2]!Table_intranet_power_vewProjectLatLongUrl[#Data],4,FALSE) -> 0 | BT140: 2014-01-30T10:46:22 | BU140: 0.5 | BV140: 0.5 | BW140: 0.8 | BX140: 0.4 | BZ140: N | CA140: WWTP w/o contract | CS140: =IF(BZ140="N","",IF(ISBLANK(V140),"Dec",V140)&"-"&IF(ISBLANK(W140),1980,W140)) ->  | CT140: =IF(BZ140="N","",IF(U140="Retired",X140,"Jan-2051")) -> 
A141: City of Gresham WWTP | B141: 1095 | F141: ICCG | G141: WG | I141: Biomass | J141: 0.395 | N141: 0.395 | O141: 0.395 | U141: Operating | W141: 2000 | Y141: Gresham | Z141: Multnomah | AA141: OR | AB141: Y | AC141: Columbia | AD141: WECC | AE141: City of Gresham | AF141: Independent | AO141: 1 | AT141: 0.395 | AU141: 0.316 | AV141: City of Gresham WWTP | AW141: Wastewater treatment | BP141: 395 kW GE reciprocating engine | BQ141: =VLOOKUP($B141,[2]!Table_intranet_power_vewProjectLatLongUrl[#Data],2,FALSE) -> 45.546652 | BR141: =VLOOKUP($B141,[2]!Table_intranet_power_vewProjectLatLongUrl[#Data],3,FALSE) -> -122.45893 | BS141: =VLOOKUP($B141,[2]!Table_intranet_power_vewProjectLatLongUrl[#Data],4,FALSE) -> http://greshamoregon.gov/city/city-departments/environmental-services/wastewater-division/template.aspx?id=4330 | BT141: 2014-01-30T10:46:31 | BU141: 0.395 | BV141: 0.395 | BW141: 0.8 | BX141: 0.316 | BZ141: N | CA141: <0.5 MW
A142: City of Helena WWTP | B142: 1096 | F142: ICCG | G142: WG | I142: Biomass | J142: 0.043 | N142: 0 | O142: 0 | U142: Operating | W142: 1984 | Y142: Helena | Z142: Lewis & Clark | AA142: MT | AB142: Y | AC142: Missouri | AD142: WECC | AE142: City of Helena | AF142: Independent | AG142: NorthWestern | AO142: 0.31 | AT142: 0.01333 | AU142: 0 | AV142: City of Helena WWTP | AW142: Wastewater treatment | AZ142: NorthWestern | BP142: Repowered 2009 with 43 kW Stirling reciprocating unit. | BQ142: =VLOOKUP($B142,[2]!Table_intranet_power_vewProjectLatLongUrl[#Data],2,FALSE) -> 46.620298 | BR142: =VLOOKUP($B142,[2]!Table_intranet_power_vewProjectLatLongUrl[#Data],3,FALSE) -> -112.002433 | BS142: =VLOOKUP($B142,[2]!Table_intranet_power_vewProjectLatLongUrl[#Data],4,FALSE) -> http://www.ci.helena.mt.us/index.php?id=397 | BT142: 2009-08-27 | BU142: 0 | BV142: 0 | BW142: 0.8 | BX142: 0 | BZ142: N | CA142: <0.5 MW
A143: City of Medford WWTP | B143: 1097 | F143: ICCG | G143: WG | I143: Biomass | J143: 0.73 | U143: Operating | W143: 1999 | Y143: Medford | Z143: Jackson | AA143: OR | AB143: Y | AC143: Puget Sound & Coastal | AD143: WECC | AE143: City of Medford | AF143: Independent | AO143: 1 | AT143: 0.73 | AU143: 0.584 | AV143: City of Medford WWTP | AW143: Wastewater treatment | BQ143: =VLOOKUP($B143,[2]!Table_intranet_power_vewProjectLatLongUrl[#Data],2,FALSE) -> 42.435993 | BR143: =VLOOKUP($B143,[2]!Table_intranet_power_vewProjectLatLongUrl[#Data],3,FALSE) -> -122.904072 | BS143: =VLOOKUP($B143,[2]!Table_intranet_power_vewProjectLatLongUrl[#Data],4,FALSE) -> http://www.ci.medford.or.us/SectionIndex.asp?SectionID=32 | BT143: 2006-08-16 | BU143: 0.73 | BV143: 0.73 | BW143: 0.8 | BX143: 0.584 | BZ143: N | CA143: WWTP w/o contract
A144: Clear Lake | B144: 1098 | C144: 814 | D144: 1 | E144: None | F144: Diversion | G144: WAT | I144: Hydro | J144: 2.5 | K144: 2.5 | M144: 1.71 | N144: 2.8 | O144: 2.8 | P144: 2.1 | Q144: 2.2 | U144: Operating | V144: Dec | W144: 1937 | Y144: Snake R. (Off-stream) | Z144: Gooding | AA144: ID | AB144: Y | AC144: Columbia | AD144: WECC | AE144: Idaho Power Co. | AF144: IOU | AG144: Idaho Power Co. | AO144: 1 | AT144: 2.5 | AU144: 1.13155 | AZ144: IPC | BG144: 1.85 | BH144: 1.86 | BI144: 1.8 | BJ144: 1.88 | BK144: 1.9 | BL144: 1.41 | BM144: 1.94 | BN144: 1.79 | BO144: 1.9 | BP144: IPC Springs | BQ144: =VLOOKUP($B144,[2]!Table_intranet_power_vewProjectLatLongUrl[#Data],2,FALSE) -> 42.66701 | BR144: =VLOOKUP($B144,[2]!Table_intranet_power_vewProjectLatLongUrl[#Data],3,FALSE) -> -114.78012 | BS144: =VLOOKUP($B144,[2]!Table_intranet_power_vewProjectLatLongUrl[#Data],4,FALSE) -> 0 | BT144: 2017-10-17T14:59:49 | BU144: 2.5 | BV144: 2.8 | BW144: 0.427 | BX144: 1.13155 | BY144: Independent | BZ144: N | CA144: Accounted for in HydInd file
A145: Clearwater 1 | B145: 1099 | C145: 3020 | D145: 1 | E145: 1927F | F145: Storage w/Div | G145: WAT | I145: Hydro | J145: 15 | K145: 15 | N145: 17.9 | O145: 17.9 | P145: 17.9 | Q145: 17.9 | R145: 6.95 | U145: Operating | V145: Jun | W145: 1953 | Y145: Clearwater R. | Z145: Douglas | AA145: OR | AB145: Y | AC145: Puget Sound & Coastal | AD145: WECC | AE145: PacifiCorp | AF145: IOU | AG145: PacifiCorp | AO145: 1 | AT145: 15 | AU145: 6.95 | AZ145: PACW | BA145: 5.5 | BB145: 5.6 | BC145: 2.1 | BD145: 1.72260274 | BE145: 1.540182648 | BF145: 1.3 | BG145: 1.43 | BH145: 4.08 | BI145: 3.6 | BJ145: 4.97 | BK145: 5.8 | BL145: 4.31 | BM145: 4.71 | BN145: 3.6 | BO145: 4.6 | BP145: (1) 15 MW vertical Francis turbine-generator. PacifiCorp North Umpqua project. Original license gtd Jan 1947; exp Jan 1997. Relicensed Nov 2003. | BQ145: =VLOOKUP($B145,[2]!Table_intranet_power_vewProjectLatLongUrl[#Data],2,FALSE) -> 43.335612 | BR145: =VLOOKUP($B145,[2]!Table_intranet_power_vewProjectLatLongUrl[#Data],3,FALSE) -> -122.783589 | BS145: =VLOOKUP($B145,[2]!Table_intranet_power_vewProjectLatLongUrl[#Data],4,FALSE) -> 0 | BT145: 2017-10-17T15:01:11 | BU145: 15 | BV145: 17.9 | BW145: 0.4633333333 | BX145: 6.95 | BY145: Independent | BZ145: N | CA145: Accounted for in HydInd file
A146: Clearwater 2 | B146: 1100 | C146: 3021 | D146: 1 | E146: 1927E | F146: Storage w/Div | G146: WAT | I146: Hydro | J146: 26 | K146: 26 | N146: 31 | O146: 31 | P146: 31 | Q146: 31 | R146: 7.54 | U146: Operating | V146: Nov | W146: 1953 | Y146: Clearwater R. | Z146: Douglas | AA146: OR | AB146: Y | AC146: Puget Sound & Coastal | AD146: WECC | AE146: PacifiCorp | AF146: IOU | AG146: PacifiCorp | AO146: 1 | AT146: 26 | AU146: 7.54 | AZ146: PACW | BA146: 5.3 | BB146: 5.7 | BC146: 35.1 | BD146: 1.753538813 | BE146: 1.564611872 | BF146: 1.6 | BG146: 1.46 | BH146: 4.79 | BI146: 3.4 | BJ146: 6.43 | BK146: 6.2 | BL146: 4.5 | BM146: 5.12 | BN146: 3.67 | BO146: 5.2 | BP146: (1) 26 MW vertical Francis turbine-generator. PacifiCorp North Umpqua project. Original license gtd Jan 1947; exp Jan 1997. Relicensed Nov 2003. | BQ146: =VLOOKUP($B146,[2]!Table_intranet_power_vewProjectLatLongUrl[#Data],2,FALSE) -> 43.267 | BR146: =VLOOKUP($B146,[2]!Table_intranet_power_vewProjectLatLongUrl[#Data],3,FALSE) -> -122.409 | BS146: =VLOOKUP($B146,[2]!Table_intranet_power_vewProjectLatLongUrl[#Data],4,FALSE) -> 0 | BT146: 2017-10-17T15:01:33 | BU146: 26 | BV146: 31 | BW146: 0.29 | BX146: 7.54 | BY146: Independent | BZ146: N | CA146: Accounted for in HydInd file
A147: Clearwater Hatchery (Dworshak) | B147: 1101 | E147: 10819 | F147: HY | G147: WAT | I147: Hydro | J147: 2.9 | L147: 3 | N147: 3 | O147: 3 | R147: 1.81 | U147: Operating | W147: 2000 | Y147: N.Fk. Clearwater R. | Z147: Clearwater | AA147: ID | AB147: Y | AC147: Columbia | AD147: WECC | AE147: ID Dept of Water Resources | AF147: Independent | AG147: BPA | AO147: 1 | AT147: 2.9 | AU147: 1.81 | AZ147: BPA | BA147: 2 | BC147: 2 | BD147: 0.2042237443 | BP147: 2.5 MW turbine & a 0.4 MW turbine. License granted August 1998; expires July 2048. | BQ147: =VLOOKUP($B147,[2]!Table_intranet_power_vewProjectLatLongUrl[#Data],2,FALSE) -> 0 | BR147: =VLOOKUP($B147,[2]!Table_intranet_power_vewProjectLatLongUrl[#Data],3,FALSE) -> 0 | BS147: =VLOOKUP($B147,[2]!Table_intranet_power_vewProjectLatLongUrl[#Data],4,FALSE) -> 0 | BT147: 2014-01-30T11:32:06 | BU147: 2.9 | BV147: 3 | BW147: 0.624137931 | BX147: 1.81 | BZ147: Y | CA147: Not accounted for in HydInd file | CC147: PNW East | CD147: HY_East | CE147: n/a | CF147: 1 | CH147: 1 | CJ147: 1 | CN147: Clearwater Hatchery (Dworshak) | CO147: PNW East | CP147: Thr | CQ147: Hyd | CR147: 3 | CS147: Dec-2000 | CT147: Jan-2051 | CU147: n/a | CV147: Water | CW147: 0 | CX147: 24 | CY147: FALSE | CZ147: Cf HY East | DA147: Zero | DB147: Expense | DC147: Default | DD147: 50 | DE147: Flat | DF147: 0 | DG147: 0 | DH147: FALSE | DI147: TRUE | DJ147: FALSE | DK147: FALSE | DL147: 0 | DM147: 0 | DN147: 0 | DR147: Clearwater Hatchery (Dworshak) | DT147: Clearwater Hatchery (Dworshak) | DU147: 0.9803108218 | DV147: 1.287083087 | DW147: 1.144528242 | DX147: 1.453926465 | DY147: 1.672830878 | DZ147: 1.291076953 | EA147: 1.502533144 | EB147: 1.623229976 | EC147: 2.131918598 | ED147: 1.98146468 | EE147: 1.984940756 | EF147: 1.793416558 | EG147: 0.9803108218 | EH147: 1.287083087 | EI147: 1.144528242 | EJ147: 1.453926465 | EK147: 1.672830878 | EL147: 1.291076953 | EM147: 1.502533144 | EN147: 1.623229976 | EO147: 2.131918598 | EP147: 1.98146468 | EQ147: 1.984940756 | ER147: 1.793416558
A148: Clearwater Paper 1 - 4 (Potlatch Lewiston) | B148: 1449 | C148: 50637 | D148: GEN1,GEN2,GEN3,GEN4 | F148: RB/STCG | G148: BL | H148: WW/NG | I148: Biomass | J148: 113 | K148: 113.8 | L148: 75 | N148: 55 | O148: 55 | P148: 54.5 | Q148: 68.1 | U148: Operating | V148: Jan | W148: 1950 | Y148: Lewiston | Z148: Nez Pierce | AA148: ID | AB148: Y | AC148: Columbia | AD148: WECC | AE148: Clearwater Paper | AF148: Independent | AG148: Avista Utilities (QF Jan 2013 - June 2018) | AN148: 2018 | AO148: 1 | AT148: =AO148*J148 -> 113 | AU148: =IF(ISNUMBER(R148),R148,BX148)*AO148 -> 52 | AV148: Idaho Pulp & Paperboard Div. | AW148: Kraft pulp and paper mill | AZ148: Avista | BA148: 36.2 | BB148: 49.7 | BC148: 58.5 | BD148: 57.16232877 | BE148: 54.63515982 | BF148: 51 | BG148: 47.91 | BH148: 51.34 | BI148: 49.76 | BJ148: 50.67 | BK148: 48.1 | BL148: 47.88 | BM148: 43.36 | BN148: 46.22 | BO148: 47.6 | BP148: Unit 1 (1950) - 10 MW, Unit 2 (1977) - 9.2 MW, Unit 3 (1981) - 28.8 MW, Unit 4 (1991) - 65 MW. Formerly Potlatch Lewiston. Unit 1 and 2 out-of-service, per WECC. | BQ148: =VLOOKUP($B148,[2]!Table_intranet_power_vewProjectLatLongUrl[#Data],2,FALSE) -> 46.426 | BR148: =VLOOKUP($B148,[2]!Table_intranet_power_vewProjectLatLongUrl[#Data],3,FALSE) -> -116.958 | BS148: =VLOOKUP($B148,[2]!Table_intranet_power_vewProjectLatLongUrl[#Data],4,FALSE) -> 0 | BT148: 2017-10-17T15:02:12 | BU148: 75 | BV148: 55 | BW148: 0.8 | BX148: 52 | BZ148: Y | CC148: PNW East | CD148: WWSTCG | CE148: 8000 | CF148: 1 | CH148: 1 | CJ148: 1 | CL148: Y | CN148: Clearwater Paper 1 - 4 (Potlatch Lewiston) | CO148: PNW East | CP148: Thr | CQ148: STCG | CR148: 75 | CS148: Jan-1950 | CT148: Jan-2051 | CU148: 8000 | CV148: Mill Residue | CW148: 0.07 | CX148: 56 | CY148: FALSE | CZ148: MR 28d Flat | DA148: Bio1 | DB148: Default | DC148: Default | DD148: 30 | DE148: Flat | DF148: 0 | DG148: 1 | DH148: FALSE | DI148: TRUE | DJ148: FALSE | DK148: FALSE | DL148: 0 | DM148: 0 | DN148: 0 | DR148: Clearwater Paper 1 - 4 (Potlatch Lewiston) | DT148: Clearwater Paper 1 - 4 (Potlatch Lewiston) | DU148: =IF($BZ148="N","",IF(OR($I148<>"Wind",$I148<>"Solar",$I148<>"Hydro"),($CF148*$CH148*IF(ISBLANK($L148),IF(ISBLANK($O148),$J148,$O148),$L148))*VLOOKUP($CZ148,ASeasDist,DU$7,FALSE)*VLOOKUP($DE148,ASeasDist,DU$7),$J148*$CF148*$CH148)) -> 67.80821918 | DV148: 67.80821918 | DW148: 67.80821918 | DX148: 67.80821918 | DY148: 67.80821918 | DZ148: 67.80821918 | EA148: 67.80821918 | EB148: 67.80821918 | EC148: 67.80821918 | ED148: 67.80821918 | EE148: 67.80821918 | EF148: 67.80821918 | EG148: =IF($BZ148="N","",IF(OR($I148<>"Wind",$I148<>"Solar",$I148<>"Hydro"),$CJ148*IF(ISBLANK($L148),IF(ISBLANK($O148),$J148,$O148),$L148),$J148)*(1-$CW148)*VLOOKUP($CZ148,ASeasDist,EG$7,FALSE)*VLOOKUP($DE148,ASeasDist,EG$7)) -> 63.06164384 | EH148: 63.06164384 | EI148: 63.06164384 | EJ148: 63.06164384 | EK148: 63.06164384 | EL148: 63.06164384 | EM148: 63.06164384 | EN148: 63.06164384 | EO148: 63.06164384 | EP148: 63.06164384 | EQ148: 63.06164384 | ER148: 63.06164384
A149: Cline Falls | B149: 1102 | C149: 6482 | D149: 1 | E149: None | F149: Diversion | G149: WAT | I149: Hydro | J149: 1 | K149: 1 | N149: 1 | O149: 1 | P149: 1.1 | Q149: 1.1 | U149: Retired | V149: May | W149: 1943 | X149: 2013 | Y149: Deschutes R. | Z149: Deschutes | AA149: OR | AB149: Y | AC149: Columbia | AD149: WECC | AE149: PacifiCorp | AF149: IOU | AG149: PacifiCorp | AT149: =AO149*J149 -> 0 | AU149: =IF(ISNUMBER(R149),R149,BX149)*AO149 -> 0 | AZ149: PACW | BA149: 0.2 | BB149: 0.2 | BC149: 0.1 | BD149: 0.04589041096 | BE149: 0.04817351598 | BG149: 0 | BH149: 0 | BI149: 0 | BJ149: 0 | BK149: 0 | BL149: 0 | BM149: 0 | BP149: PAC minor | BQ149: =VLOOKUP($B149,[2]!Table_intranet_power_vewProjectLatLongUrl[#Data],2,FALSE) -> 44.2778 | BR149: =VLOOKUP($B149,[2]!Table_intranet_power_vewProjectLatLongUrl[#Data],3,FALSE) -> -121.2564 | BS149: =VLOOKUP($B149,[2]!Table_intranet_power_vewProjectLatLongUrl[#Data],4,FALSE) -> 0 | BT149: 2017-10-17T15:03:06 | BU149: 1 | BV149: 1 | BW149: 0.427 | BX149: 0.427 | BZ149: N | CA149: Retired as of 2013
A150: Coastal Energy | B150: 1917 | C150: 57756 | D150: 1 | F150: WT | G150: WND | I150: Wind | J150: 6 | K150: 6 | P150: 6 | Q150: 6 | R150: 1.386 | U150: Operating | V150: Jun | W150: 2010 | Y150: Grayland | Z150: Grays Harbor | AA150: WA | AB150: Y | AC150: Puget Sound & Coastal | AD150: WECC | AE150: Coastal Community Action Program | AF150: Independent | AG150: Grays Harbor PUD (June 2010 - June 2030) | AN150: 2030 | AO150: 1 | AT150: =AO150*J150 -> 6 | AU150: =IF(ISNUMBER(R150),R150,BX150)*AO150 -> 1.386 | AZ150: BPA | BJ150: 1.38 | BK150: 1.7 | BL150: 1.36 | BM150: 1.86 | BN150: 1.47 | BO150: 1.6 | BP150: (4) GE 1.5 MW WTG. | BQ150: =VLOOKUP($B150,[2]!Table_intranet_power_vewProjectLatLongUrl[#Data],2,FALSE) -> 46.793272 | BR150: =VLOOKUP($B150,[2]!Table_intranet_power_vewProjectLatLongUrl[#Data],3,FALSE) -> -124.065341 | BS150: =VLOOKUP($B150,[2]!Table_intranet_power_vewProjectLatLongUrl[#Data],4,FALSE) -> http://en.openei.org/wiki/Coastal_Energy_(CCAP) | BT150: 2017-10-17T15:03:24 | BU150: 6 | BV150: 6 | BW150: 0.231 | BX150: 1.386 | BZ150: Y | CB150: 100% PNW PPA | CC150: PNW West | CD150: WN_PNWW | CE150: n/a | CF150: 1 | CH150: 0.05 | CJ150: 1 | CL150: Y | CN150: Coastal Energy | CO150: PNW West | CP150: Thr | CQ150: Wind | CR150: 6 | CS150: Jun-2010 | CT150: Jan-2051 | CU150: n/a | CV150: Wind | CW150: 0 | CX150: 0 | CY150: FALSE | CZ150: Cf WN PNWE | DA150: WindB1 | DB150: Default | DC150: Default | DD150: 20 | DE150: Flat | DF150: 0 | DG150: 1 | DH150: FALSE | DI150: TRUE | DJ150: FALSE | DK150: FALSE | DL150: 0 | DM150: 0 | DN150: 0 | DO150: 100% PNW PPA | DR150: Coastal Energy | DT150: Coastal Energy | DU150: 0.0846 | DV150: 0.0657 | DW150: 0.0765 | DX150: 0.0864 | DY150: 0.0927 | DZ150: 0.081 | EA150: 0.0963 | EB150: 0.0963 | EC150: 0.1089 | ED150: 0.0963 | EE150: 0.0999 | EF150: 0.0963 | EG150: 1.692 | EH150: 1.314 | EI150: 1.53 | EJ150: 1.728 | EK150: 1.854 | EL150: 1.62 | EM150: 1.926 | EN150: 1.926 | EO150: 2.178 | EP150: 1.926 | EQ150: 1.998 | ER150: 1.926
A151: Cochrane 1 & 2 | B151: 1103 | C151: 2182 | D151: COC1,COC2 | E151: 2188C | F151: ROR | G151: WAT | I151: Hydro | J151: 69 | K151: 60.4 | N151: 64 | O151: 64 | P151: 64 | Q151: 64 | R151: 33.879 | U151: Operating | V151: Jul | W151: 1958 | Y151: Missouri R. | Z151: Cascade | AA151: MT | AB151: N | AC151: Missouri | AD151: WECC | AE151: Northwestern Energy purchased from PPL Montana, finalized Nov. 2014. | AF151: IOU | AG151: Northwestern Energy | AO151: 0.31 | AT151: =AO151*J151 -> 21.39 | AU151: =IF(ISNUMBER(R151),R151,BX151)*AO151 -> 10.50249 | AZ151: NorthWestern | BG151: 30.9 | BH151: 34.06 | BI151: 33.9 | BJ151: 32.53 | BK151: 26 | BL151: 26.17 | BM151: 27.91 | BN151: 29.75 | BO151: 26.7 | BP151: Original License granted April 1956; expired November 1994. | BQ151: =VLOOKUP($B151,[2]!Table_intranet_power_vewProjectLatLongUrl[#Data],2,FALSE) -> 47.554 | BR151: =VLOOKUP($B151,[2]!Table_intranet_power_vewProjectLatLongUrl[#Data],3,FALSE) -> -111.148 | BS151: =VLOOKUP($B151,[2]!Table_intranet_power_vewProjectLatLongUrl[#Data],4,FALSE) -> http://www.northwesternenergy.com/our-company/hydroelectric-facilities | BT151: 2017-10-17T15:03:53 | BU151: =IF(OR(I151="Wind",I151="Solar",I151="Hydro"),J151,IF(ISNUMBER(L151),L151,IF(ISNUMBER(O151), O151, IF(ISNUMBER(Q151),Q151,J151)))) -> 69 | BV151: 64 | BW151: =IF(OR(ISBLANK(J151),ISBLANK(R151),J151=0),VLOOKUP(IF(G151="WAT","HY",IF(G151="LFG","LFG",F151)),Acapability,4,FALSE),R151/J151) -> 0.491 | BX151: 33.879 | BZ151: Y | CA151: Not accounted for in HydInd file | CB151: 100% PNW Utility Owner | CC151: PNW East | CD151: HY_Missouri | CE151: n/a | CF151: 0.31 | CG151: NorthWestern | CH151: 1 | CJ151: 0.31 | CK151: NorthWestern | CN151: Cochrane 1 & 2 | CO151: PNW East | CP151: Thr | CQ151: Hyd | CR151: 19.84 | CS151: Jul-1958 | CT151: Jan-2051 | CU151: n/a | CV151: Water | CW151: 0 | CX151: 24 | CY151: FALSE | CZ151: Cf HY Missouri | DA151: Zero | DB151: Expense | DC151: Default | DD151: 50 | DE151: Flat | DF151: 0 | DG151: 0 | DH151: FALSE | DI151: TRUE | DJ151: FALSE | DK151: FALSE | DL151: 0 | DM151: 0 | DN151: 0 | DO151: 100% PNW Utility Owner | DR151: Cochrane 1 & 2 | DT151: Cochrane 1 & 2 | DU151: 10.29999794 | DV151: 10.97792061 | DW151: 11.81288683 | DX151: 12.49475151 | DY151: 12.52474287 | DZ151: 12.2000968 | EA151: 12.33227402 | EB151: 13.37254173 | EC151: 15.5525811 | ED151: 21.38212294 | EE151: 15.56135804 | EF151: 11.06161357 | EG151: 10.29999794 | EH151: 10.97792061 | EI151: 11.81288683 | EJ151: 12.49475151 | EK151: 12.52474287 | EL151: 12.2000968 | EM151: 12.33227402 | EN151: 13.37254173 | EO151: 15.5525811 | EP151: 21.38212294 | EQ151: 15.56135804 | ER151: 11.06161357
A152: Coffin Butte 1 - 5 | B152: 1104 | C152: 7725 | D152: 1,2,3,4,5 | F152: IC | G152: LFG | I152: Biomass | J152: 5.2 | K152: 5.6 | L152: 5.3 | M152: 5.58 | N152: 5.4 | O152: 5.4 | P152: 5.4 | Q152: 5.4 | U152: Operating | V152: May | W152: 1995 | Y152: Coffin Butte Landfill | Z152: Benton | AA152: OR | AB152: Y | AC152: Columbia | AD152: WECC | AE152: Power Resources Cooperative | AF152: Coop | AG152: Portland General Electric (15 yr PURPA agreement beg October 2012) | AN152: 2027 | AO152: 1 | AP152: 0 | AQ152: 0 | AR152: 0 | AS152: 0 | AT152: 5.2 | AU152: 4.0125 | AZ152: BPA | BF152: 2.3 | BG152: 5.11 | BH152: 4.9 | BI152: 4.8 | BJ152: 5.15 | BK152: 5 | BL152: 4.84 | BM152: 4.83 | BN152: 5 | BO152: 5.1 | BP152: Units 1 - 3 Caterpillar 3516 engines. Units 4 & 5 1.6 MW Caterpillar 3520 engines (Oct 2007 service). | BQ152: =VLOOKUP($B152,[2]!Table_intranet_power_vewProjectLatLongUrl[#Data],2,FALSE) -> 44.697279 | BR152: =VLOOKUP($B152,[2]!Table_intranet_power_vewProjectLatLongUrl[#Data],3,FALSE) -> -123.223496 | BS152: =VLOOKUP($B152,[2]!Table_intranet_power_vewProjectLatLongUrl[#Data],4,FALSE) -> http://www.pngc.com/future/coffin_butte.aspx | BT152: 2017-10-17T15:04:41 | BU152: 5.3 | BV152: 5.4 | BW152: 0.75 | BX152: 4.0125 | BZ152: Y | CC152: PNW West | CD152: BGIC | CE152: 11900 | CF152: 1 | CH152: 1 | CJ152: 1 | CL152: Y | CN152: Coffin Butte 1 - 5 | CO152: PNW West | CP152: Thr | CQ152: IC | CR152: 5.3 | CS152: May-1995 | CT152: Jan-2051 | CU152: 11900 | CV152: Zero-cost Biofuel | CW152: 0.047 | CX152: 56 | CY152: FALSE | CZ152: MR 7d Flat | DA152: Landfill | DB152: Default | DC152: Default | DD152: 20 | DE152: Flat | DF152: 0 | DG152: 1 | DH152: FALSE | DI152: TRUE | DJ152: FALSE | DK152: FALSE | DL152: 0 | DM152: 0 | DN152: 0 | DR152: Coffin Butte 1 - 5 | DT152: Coffin Butte 1 - 5 | DU152: 5.096712329 | DV152: 5.096712329 | DW152: 5.096712329 | DX152: 5.096712329 | DY152: 5.096712329 | DZ152: 5.096712329 | EA152: 5.096712329 | EB152: 5.096712329 | EC152: 5.096712329 | ED152: 5.096712329 | EE152: 5.096712329 | EF152: 5.096712329 | EG152: 4.857166849 | EH152: 4.857166849 | EI152: 4.857166849 | EJ152: 4.857166849 | EK152: 4.857166849 | EL152: 4.857166849 | EM152: 4.857166849 | EN152: 4.857166849 | EO152: 4.857166849 | EP152: 4.857166849 | EQ152: 4.857166849 | ER152: 4.857166849
A153: Cogen II (D.R. Johnson) 1 & 2 | B153: 1105 | C153: 50993 | D153: GEN1 | F153: STCG | G153: NG | H153: WW | I153: Natural gas | J153: 7.5 | K153: 7.5 | L153: 7.5 | N153: 7.5 | O153: 7.5 | P153: 7.8 | Q153: 7.3 | U153: Operating | V153: Oct | W153: 1987 | Y153: Riddle | Z153: Douglas | AA153: OR | AB153: Y | AC153: Puget Sound & Coastal | AD153: WECC | AE153: Cogen II, LLC | AF153: Independent | AG153: PacifiCorp (QF) | AO153: 1 | AT153: 7.5 | AU153: 6 | AV153: D. R. Johnson Lumber Co. - Riddle | AW153: Lumber & wood products | AX153: Williams Northwest | AZ153: PACW | BE153: 2.410958904 | BF153: 2.3 | BG153: 7.52 | BH153: 6.48 | BI153: 0 | BJ153: 0 | BK153: 0 | BL153: 0 | BM153: 0 | BN153: 0 | BO153: 0 | BQ153: =VLOOKUP($B153,[2]!Table_intranet_power_vewProjectLatLongUrl[#Data],2,FALSE) -> 42.961126 | BR153: =VLOOKUP($B153,[2]!Table_intranet_power_vewProjectLatLongUrl[#Data],3,FALSE) -> -123.359138 | BS153: =VLOOKUP($B153,[2]!Table_intranet_power_vewProjectLatLongUrl[#Data],4,FALSE) -> 0 | BT153: 2017-10-17T15:05:26 | BU153: 7.5 | BV153: 7.5 | BW153: 0.8 | BX153: 6 | BZ153: Y | CC153: PNW West | CD153: NGSTCG_PNWW | CE153: 8000 | CF153: 1 | CH153: 1 | CJ153: 1 | CL153: Y | CN153: Cogen II (D.R. Johnson) 1 & 2 | CO153: PNW West | CP153: Thr | CQ153: STCG | CR153: 7.5 | CS153: Oct-1987 | CT153: Jan-2051 | CU153: 8000 | CV153: PNW W. gas | CW153: 0.07 | CX153: 56 | CY153: FALSE | CZ153: MR 28d Flat | DA153: Cogen1 | DB153: Default | DC153: Default | DD153: 30 | DE153: Flat | DF153: 0 | DG153: 1 | DH153: FALSE | DI153: TRUE | DJ153: FALSE | DK153: FALSE | DL153: 0 | DM153: 0 | DN153: 0 | DR153: Cogen II (D.R. Johnson) 1 & 2 | DT153: Cogen II (D.R. Johnson) 1 & 2 | DU153: 6.780821918 | DV153: 6.780821918 | DW153: 6.780821918 | DX153: 6.780821918 | DY153: 6.780821918 | DZ153: 6.780821918 | EA153: 6.780821918 | EB153: 6.780821918 | EC153: 6.780821918 | ED153: 6.780821918 | EE153: 6.780821918 | EF153: 6.780821918 | EG153: 6.306164384 | EH153: 6.306164384 | EI153: 6.306164384 | EJ153: 6.306164384 | EK153: 6.306164384 | EL153: 6.306164384 | EM153: 6.306164384 | EN153: 6.306164384 | EO153: 6.306164384 | EP153: 6.306164384 | EQ153: 6.306164384 | ER153: 6.306164384
A154: Cold Springs (Mountain Air Wind Park) | B154: 2044 | C154: 57431 | D154: 1 | F154: WT | G154: WND | I154: Wind | J154: 23 | K154: 23 | M154: 0 | P154: 23 | Q154: 23 | U154: Operating | V154: Dec | W154: 2012 | Y154: Mountain Home | Z154: Elmore | AA154: ID | AB154: Y | AC154: Columbia | AD154: WECC | AE154: Terna Energy | AF154: Independent | AG154: QF PPA to IPC (Dec 2012 - Dec 2032) | AN154: 2032 | AO154: 1 | AT154: 23 | AU154: 7.36 | AZ154: IPC | BK154: 1.4 | BL154: 5.59 | BM154: 6.14 | BN154: 5.06 | BO154: 6.1 | BP154: (10) Siemens SWT 2.3-101 MW. Mtn Air Wind Park (six projects for total 138 MW) started testing operation in September 2012. | BQ154: =VLOOKUP($B154,[2]!Table_intranet_power_vewProjectLatLongUrl[#Data],2,FALSE) -> 43.026 | BR154: =VLOOKUP($B154,[2]!Table_intranet_power_vewProjectLatLongUrl[#Data],3,FALSE) -> -115.395 | BS154: =VLOOKUP($B154,[2]!Table_intranet_power_vewProjectLatLongUrl[#Data],4,FALSE) -> http://www.rnp.org/node/mtn-air-cold-springs-windfarm | BT154: 2017-10-17T15:06:54 | BU154: 23 | BV154: 23 | BW154: 0.32 | BX154: 7.36 | BZ154: Y | CB154: 100% PNW PPA | CC154: PNW East | CD154: WN_PNWE | CE154: n/a | CF154: 1 | CH154: 0.05 | CJ154: 1 | CL154: Y | CN154: Cold Springs (Mountain Air Wind Park) | CO154: PNW East | CP154: Thr | CQ154: Wind | CR154: 23 | CS154: Dec-2012 | CT154: Jan-2051 | CU154: n/a | CV154: Wind | CW154: 0 | CX154: 0 | CY154: FALSE | CZ154: Cf WN PNWE | DA154: WindB1 | DB154: Default | DC154: Default | DD154: 20 | DE154: Flat | DF154: 0 | DG154: 1 | DH154: FALSE | DI154: TRUE | DJ154: FALSE | DK154: FALSE | DL154: 0 | DM154: 0 | DN154: 0 | DO154: 100% PNW PPA | DR154: Cold Springs (Mountain Air Wind Park) | DT154: =CN154 -> Cold Springs (Mountain Air Wind Park) | DU154: 0.3243 | DV154: 0.25185 | DW154: 0.29325 | DX154: 0.3312 | DY154: 0.35535 | DZ154: 0.3105 | EA154: 0.36915 | EB154: 0.36915 | EC154: 0.41745 | ED154: 0.36915 | EE154: 0.38295 | EF154: 0.36915 | EG154: 6.486 | EH154: 5.037 | EI154: 5.865 | EJ154: 6.624 | EK154: 7.107 | EL154: 6.21 | EM154: 7.383 | EN154: 7.383 | EO154: 8.349 | EP154: 7.383 | EQ154: 7.659 | ER154: 7.383
A155: Collier Solar | B155: 2177 | C155: 60976 | D155: PV1 | F155: PV | G155: SOL | I155: Solar | J155: 9.9 | K155: 9.9 | P155: 9.9 | Q155: 9.9 | U155: Operating | V155: Dec | W155: 2016 | Y155: Bend | Z155: Deschutes | AA155: OR | AB155: Y | AC155: Columbia | AD155: WECC | AE155: Pine Gate Renewables | AF155: Independent | AG155: PPA w/ PacifiCorp for 20 years | AN155: 2036 | AO155: 1 | AT155: 9.9 | AZ155: PACE | BP155: http://edocs.puc.state.or.us/efdocs/RPA/re142rpa114740.pdf | BT155: 2017-12-20T12:51:54 | BU155: 9.9 | BV155: 9.9 | BW155: =IF(OR(ISBLANK(J155),ISBLANK(R155),J155=0),VLOOKUP(IF(G155="WAT","HY",IF(G155="LFG","LFG",F155)),Acapability,4,FALSE),R155/J155) -> 0.254 | BX155: 2.5146 | BZ155: Y | CB155: 100% PNW PPA | CC155: PNW East | CD155: PV | CF155: 1 | CH155: 0.75 | CJ155: 1 | CL155: Y | CN155: Collier Solar | CO155: PNW East | CP155: =IF(BZ155="N","",VLOOKUP($CD155,ATechDat,2,FALSE)) -> Thr | CQ155: =IF(BZ155="N","",VLOOKUP($CD155,ATechDat,3,FALSE)) -> PV | CR155: 7.425 | CS155: Dec-2016 | CT155: Jan-2051 | CU155: 0 | CV155: =IF(BZ155="N","",VLOOKUP($CD155,ATechDat,4,FALSE)) -> Solar | CW155: =IF(BZ155="N","",VLOOKUP($CD155,ATechDat,5,FALSE)) -> 0 | CX155: =IF(BZ155="N","",VLOOKUP($CD155,ATechDat,6,FALSE)) -> 0 | CY155: =IF(BZ155="N","",VLOOKUP($CD155,ATechDat,7,FALSE)) -> FALSE | CZ155: =IF(BZ155="N","",VLOOKUP($CD155,ATechDat,8,FALSE)) -> Cf PV | DA155: =IF(BZ155="N","",VLOOKUP($CD155,ATechDat,9,FALSE)) -> SolarPV | DB155: =IF(BZ155="N","",VLOOKUP($CD155,ATechDat,10,FALSE)) -> Default | DC155: =IF(BZ155="N","",VLOOKUP($CD155,ATechDat,11,FALSE)) -> Default | DD155: =IF(BZ155="N","",VLOOKUP($CD155,ATechDat,12,FALSE)) -> 30 | DE155: =IF(BZ155="N","",VLOOKUP($CD155,ATechDat,13,FALSE)) -> Flat | DF155: =IF(BZ155="N","",VLOOKUP($CD155,ATechDat,14,FALSE)) -> 0 | DG155: =IF(BZ155="N","",VLOOKUP($CD155,ATechDat,15,FALSE)) -> 1 | DH155: =IF(BZ155="N","",VLOOKUP($CD155,ATechDat,16,FALSE)) -> FALSE | DI155: =IF(BZ155="N","",VLOOKUP($CD155,ATechDat,17,FALSE)) -> TRUE | DJ155: =IF(BZ155="N","",VLOOKUP($CD155,ATechDat,18,FALSE)) -> FALSE | DK155: =IF(BZ155="N","",VLOOKUP($CD155,ATechDat,19,FALSE)) -> FALSE | DL155: =IF(BZ155="N","",VLOOKUP($CD155,ATechDat,20,FALSE)) -> 0 | DM155: =IF(BZ155="N","",VLOOKUP($CD155,ATechDat,21,FALSE)) -> 0 | DN155: =IF(BZ155="N","",VLOOKUP($CD155,ATechDat,22,FALSE)) -> 0 | DO155: 100% PNW PPA | DR155: Collier Solar | DT155: =CN155 -> Collier Solar | DU155: 2.195537025 | DV155: 1.426035213 | DW155: 0.6594826275 | DX155: 0.545172336 | DY155: 0.626195236 | DZ155: 1.058005147 | EA155: 1.69215224 | EB155: 2.006217944 | EC155: 2.61742392 | ED155: 2.873117078 | EE155: 2.964652063 | EF155: 2.654698362 | EG155: 2.9273827 | EH155: 1.901380284 | EI155: 0.87931017 | EJ155: 0.726896448 | EK155: 0.8349269813 | EL155: 1.410673529 | EM155: 2.256202987 | EN155: 2.674957259 | EO155: 3.48989856 | EP155: 3.830822771 | EQ155: 3.952869418 | ER155: 3.539597816
A156: Collins Wood Products | B156: 1106 | F156: STCG | G156: WW | I156: Biomass | J156: 7.5 | U156: Idle | Y156: Klamath Falls | Z156: Klamath | AA156: OR | AB156: Y | AC156: Puget Sound & Coastal | AD156: WECC | AE156: Collins Wood Products | AF156: Independent | AG156: Idle | AO156: 0 | AT156: 0 | AU156: 0 | AV156: Collins Wood Products | AW156: Defibrated wood and board mills | BD156: 0 | BE156: 0 | BP156: Steam load by Klamath Cogen 6/2001 | BQ156: =VLOOKUP($B156,[2]!Table_intranet_power_vewProjectLatLongUrl[#Data],2,FALSE) -> 0 | BR156: =VLOOKUP($B156,[2]!Table_intranet_power_vewProjectLatLongUrl[#Data],3,FALSE) -> 0 | BS156: =VLOOKUP($B156,[2]!Table_intranet_power_vewProjectLatLongUrl[#Data],4,FALSE) -> 0 | BU156: 7.5 | BV156: 7.5 | BW156: 0.8 | BX156: 6 | BZ156: N | CA156: Idle
A157: Colstrip 1 | B157: 1107 | C157: 6076 | D157: 1 | F157: ST | G157: COL | I157: Coal | J157: 358.4 | K157: 358 | L157: 308 | N157: 307 | O157: 307 | P157: 307 | Q157: 307 | U157: Operating | V157: Nov | W157: 1975 | X157: 2022 | Y157: Colstrip | Z157: Rosebud | AA157: MT | AB157: N | AC157: Missouri | AD157: WECC | AE157: Talen Energy Corp (formerly PPL Montana) (50%); PSE (50%) | AF157: IOU/Independent | AG157: Puget Sound Energy (50%), Talen Energy system sales (50%) | AH157: 28.95 | AI157: 2.9 | AJ157: 10855 | AK157: 229 | AL157: 1.96 | AM157: 1.72 | AN157: n/a | AO157: 0.5 | AP157: 0.5 | AQ157: 0 | AR157: 0 | AS157: 0 | AT157: 179.2 | AU157: 132.225 | AZ157: NorthWestern (Talen Energy share), PSE (share) | BA157: 1585.3 | BB157: 1707.3 | BC157: 1772.7 | BD157: 1853.970662 | BE157: 1685.47363 | BF157: 1808.2 | BG157: 1836.39 | BH157: 1501.7 | BI157: 1850.67 | BJ157: 1486.9 | BK157: 1398.5 | BL157: 1454.09 | BM157: 1567.34 | BN157: 1694.55 | BO157: 1525 | BP157: One 358.4 MW STG. Ownership per P. Cartwright 4/6/01. | BQ157: =VLOOKUP($B157,[2]!Table_intranet_power_vewProjectLatLongUrl[#Data],2,FALSE) -> 45.884204 | BR157: =VLOOKUP($B157,[2]!Table_intranet_power_vewProjectLatLongUrl[#Data],3,FALSE) -> -106.612002 | BS157: =VLOOKUP($B157,[2]!Table_intranet_power_vewProjectLatLongUrl[#Data],4,FALSE) -> http://www.pplmontana.com/producing+power/power+plants/Colstrip.htm | BT157: 2017-10-17T15:07:57 | BU157: 308 | BV157: 307 | BW157: 0.86 | BX157: 264.45 | BZ157: Y | CB157: 50% PPL MT system sales | CC157: PNW East | CD157: CLST_EMT | CE157: 11170 | CF157: 0.5 | CG157: PPLMT Sys sales | CH157: 1 | CJ157: 0.5 | CK157: PPLMT Sys sales | CN157: Colstrip 1 | CO157: PNW East | CP157: Thr | CQ157: Coal | CR157: 154 | CS157: Nov-1975 | CT157: Jan-2051 | CU157: 11170 | CV157: MT coal | CW157: 0.067 | CX157: 40 | CY157: TRUE | CZ157: MR 35d Winter Pk_Hydro | DA157: Col1 | DB157: Default | DC157: Default | DD157: 30 | DE157: Flat | DF157: 0 | DG157: 0 | DH157: FALSE | DI157: TRUE | DJ157: FALSE | DK157: FALSE | DL157: 0 | DM157: 0 | DN157: 0 | DO157: 50% PPL MT system sales | DR157: Colstrip 1 | DT157: Colstrip 1 | DU157: 154 | DV157: 147.5561644 | DW157: 147.5561644 | DX157: 154 | DY157: 154 | DZ157: 154 | EA157: 150.7780822 | EB157: 147.5561644 | EC157: 147.5561644 | ED157: 147.5561644 | EE157: 154 | EF157: 154 | EG157: 143.682 | EH157: 137.6699014 | EI157: 137.6699014 | EJ157: 143.682 | EK157: 143.682 | EL157: 143.682 | EM157: 140.6759507 | EN157: 137.6699014 | EO157: 137.6699014 | EP157: 137.6699014 | EQ157: 143.682 | ER157: 143.682
A158: Colstrip 2 | B158: 1108 | C158: 6076 | D158: 2 | F158: ST | G158: COL | I158: Coal | J158: 358.4 | K158: 358 | L158: 308 | N158: 307 | O158: 307 | P158: 307 | Q158: 307 | U158: Operating | V158: Aug | W158: 1976 | X158: 2022 | Y158: Colstrip | Z158: Rosebud | AA158: MT | AB158: N | AC158: Missouri | AD158: WECC | AE158: Talen Energy Corp (formerly PPL Montana) (50%); PSE (50%) | AF158: IOU/Independent | AG158: Puget Sound Energy (50%), Talen Energy system sales (50%) | AH158: 28.95 | AI158: 2.9 | AJ158: 11020 | AK158: 229 | AL158: 1.96 | AM158: 1.72 | AN158: n/a | AO158: 0.5 | AP158: 0.5 | AQ158: 0 | AR158: 0 | AS158: 0 | AT158: 179.2 | AU158: 132.225 | AZ158: NorthWestern (Talen Energy share), PSE (share) | BP158: One 358.4 MW STG. Ownership per P. Cartwright 4/6/01. | BQ158: =VLOOKUP($B158,[2]!Table_intranet_power_vewProjectLatLongUrl[#Data],2,FALSE) -> 45.884204 | BR158: =VLOOKUP($B158,[2]!Table_intranet_power_vewProjectLatLongUrl[#Data],3,FALSE) -> -106.612002 | BS158: =VLOOKUP($B158,[2]!Table_intranet_power_vewProjectLatLongUrl[#Data],4,FALSE) -> http://www.pplmontana.com/producing+power/power+plants/Colstrip.htm | BT158: 2017-10-17T15:08:00 | BU158: 308 | BV158: 307 | BW158: 0.86 | BX158: 264.45 | BZ158: Y | CB158: 50% PPL MT system sales | CC158: PNW East | CD158: CLST_EMT | CE158: 11170 | CF158: 0.5 | CG158: PPLMT Sys sales | CH158: 1 | CJ158: 0.5 | CK158: PPLMT Sys sales | CN158: Colstrip 2 | CO158: PNW East | CP158: Thr | CQ158: Coal | CR158: 154 | CS158: Aug-1976 | CT158: Jan-2051 | CU158: 11170 | CV158: MT coal | CW158: 0.067 | CX158: 40 | CY158: TRUE | CZ158: MR 35d Winter Pk_Hydro | DA158: Col1 | DB158: Default | DC158: Default | DD158: 30 | DE158: Flat | DF158: 0 | DG158: 0 | DH158: FALSE | DI158: TRUE | DJ158: FALSE | DK158: FALSE | DL158: 0 | DM158: 0 | DN158: 0 | DO158: 50% PPL MT system sales | DR158: Colstrip 2 | DT158: Colstrip 2 | DU158: =IF($BZ158="N","",IF(OR($I158<>"Wind",$I158<>"Solar",$I158<>"Hydro"),($CF158*$CH158*IF(ISBLANK($L158),IF(ISBLANK($O158),$J158,$O158),$L158))*VLOOKUP($CZ158,ASeasDist,DU$7,FALSE)*VLOOKUP($DE158,ASeasDist,DU$7),$J158*$CF158*$CH158)) -> 154 | DV158: 147.5561644 | DW158: 147.5561644 | DX158: 154 | DY158: 154 | DZ158: 154 | EA158: 150.7780822 | EB158: 147.5561644 | EC158: 147.5561644 | ED158: 147.5561644 | EE158: 154 | EF158: 154 | EG158: =IF($BZ158="N","",IF(OR($I158<>"Wind",$I158<>"Solar",$I158<>"Hydro"),$CJ158*IF(ISBLANK($L158),IF(ISBLANK($O158),$J158,$O158),$L158),$J158)*(1-$CW158)*VLOOKUP($CZ158,ASeasDist,EG$7,FALSE)*VLOOKUP($DE158,ASeasDist,EG$7)) -> 143.682 | EH158: 137.6699014 | EI158: 137.6699014 | EJ158: 143.682 | EK158: 143.682 | EL158: 143.682 | EM158: 140.6759507 | EN158: 137.6699014 | EO158: 137.6699014 | EP158: 137.6699014 | EQ158: 143.682 | ER158: 143.682
A159: Colstrip 3 | B159: 1109 | C159: 6076 | D159: 3 | F159: ST | G159: COL | I159: Coal | J159: 778 | K159: 778 | L159: 740 | N159: 740 | O159: 740 | P159: 740 | Q159: 740 | U159: Operating | V159: Jan | W159: 1984 | Y159: Colstrip | Z159: Rosebud | AA159: MT | AB159: N | AC159: Missouri | AD159: WECC | AE159: Talen Energy Corp (formerly PPL Montana) (30%); PSE (25%); PGE (20%), Avista (15%); PacifiCorp (10%) | AF159: IOU/Independent | AG159: Puget Sound Energy (25%), Portland General Electric (20%), Avista (15%), PacifiCorp (10%), Talen Energy system sales (30%) | AH159: 28.95 | AI159: 2.9 | AJ159: 10566 | AK159: 89 | AL159: 1.96 | AM159: 0.23 | AN159: n/a | AO159: 0.7 | AP159: 0 | AQ159: 0 | AR159: 0 | AS159: 0 | AT159: 544.6 | AU159: 445.48 | AZ159: Avista, NorthWestern (Talen Energy share), PACW (share), PGE (share), PSE (share) | BP159: One 778.0 MW STG. Ownership per P. Cartwright 4/6/01. | BQ159: =VLOOKUP($B159,[2]!Table_intranet_power_vewProjectLatLongUrl[#Data],2,FALSE) -> 45.884204 | BR159: =VLOOKUP($B159,[2]!Table_intranet_power_vewProjectLatLongUrl[#Data],3,FALSE) -> -106.612002 | BS159: =VLOOKUP($B159,[2]!Table_intranet_power_vewProjectLatLongUrl[#Data],4,FALSE) -> http://www.pplmontana.com/producing+power/power+plants/Colstrip.htm | BT159: 2017-10-17T15:08:03 | BU159: 740 | BV159: 740 | BW159: 0.86 | BX159: 636.4 | BZ159: Y | CB159: 30% PPL MT system sales | CC159: PNW East | CD159: CLST_EMT | CE159: 10870 | CF159: 0.7 | CG159: PPLMT Sys sales | CH159: 1 | CJ159: 0.7 | CK159: PPLMT Sys sales | CN159: Colstrip 3 | CO159: PNW East | CP159: Thr | CQ159: Coal | CR159: 518 | CS159: Jan-1984 | CT159: Jan-2051 | CU159: 10870 | CV159: MT coal | CW159: 0.067 | CX159: 40 | CY159: TRUE | CZ159: MR 35d Winter Pk_Hydro | DA159: Col1 | DB159: Default | DC159: Default | DD159: 30 | DE159: Flat | DF159: 0 | DG159: 0 | DH159: FALSE | DI159: TRUE | DJ159: FALSE | DK159: FALSE | DL159: 0 | DM159: 0 | DN159: 0 | DO159: 30% PPL MT system sales | DR159: Colstrip 3 | DT159: Colstrip 3 | DU159: 518 | DV159: 496.3252802 | DW159: 496.3252802 | DX159: 518 | DY159: 518 | DZ159: 518 | EA159: 507.1626401 | EB159: 496.3252802 | EC159: 496.3252802 | ED159: 496.3252802 | EE159: 518 | EF159: 518 | EG159: 483.294 | EH159: 463.0714864 | EI159: 463.0714864 | EJ159: 483.294 | EK159: 483.294 | EL159: 483.294 | EM159: 473.1827432 | EN159: 463.0714864 | EO159: 463.0714864 | EP159: 463.0714864 | EQ159: 483.294 | ER159: 483.294
A160: Colstrip 4 | B160: 1110 | C160: 6076 | D160: 4 | F160: ST | G160: COL | I160: Coal | J160: 778 | K160: 778 | L160: 740 | N160: 740 | O160: 740 | P160: 740 | Q160: 740 | U160: Operating | V160: Apr | W160: 1986 | Y160: Colstrip | Z160: Rosebud | AA160: MT | AB160: N | AC160: Missouri | AD160: WECC | AE160: NorthWestern (30%); PSE (25%); PGE (20%), Avista (15%); PacifiCorp (10%) | AF160: IOU/Independent | AG160: Puget Sound Energy (25%), Portland General Electric (20%), Avista (15%), PacifiCorp (10%), NorthWestern (90 MW through 2018; 21 MW through July 2014) NWE balance to 3rd parties. All NW Corp 30% to NWE ratebase Jan 2011. | AH160: 28.95 | AI160: 2.9 | AJ160: 10692 | AK160: 89 | AL160: 1.96 | AM160: 0.23 | AO160: 0.92 | AT160: 715.76 | AU160: 585.488 | AZ160: Avista, NorthWestern, PACW, PGE, PSE | BP160: One 778.0 MW STG. | BQ160: =VLOOKUP($B160,[2]!Table_intranet_power_vewProjectLatLongUrl[#Data],2,FALSE) -> 45.884204 | BR160: =VLOOKUP($B160,[2]!Table_intranet_power_vewProjectLatLongUrl[#Data],3,FALSE) -> -106.612002 | BS160: =VLOOKUP($B160,[2]!Table_intranet_power_vewProjectLatLongUrl[#Data],4,FALSE) -> http://www.pplweb.com/ppl+generation/coal+plants/colstrip.htm | BT160: 2017-10-17T15:08:05 | BU160: 740 | BV160: 740 | BW160: 0.86 | BX160: 636.4 | BZ160: Y | CC160: PNW East | CD160: CLST_EMT | CE160: 10870 | CF160: 0.92 | CG160: NorthWestern | CH160: 1 | CJ160: 0.92 | CK160: NorthWestern | CN160: Colstrip 4 | CO160: PNW East | CP160: Thr | CQ160: Coal | CR160: 680.8 | CS160: Apr-1986 | CT160: Jan-2051 | CU160: 10870 | CV160: MT coal | CW160: 0.067 | CX160: 40 | CY160: TRUE | CZ160: MR 35d Winter Pk_Hydro | DA160: Col1 | DB160: Default | DC160: Default | DD160: 30 | DE160: Flat | DF160: 0 | DG160: 0 | DH160: FALSE | DI160: TRUE | DJ160: FALSE | DK160: FALSE | DL160: 0 | DM160: 0 | DN160: 0 | DR160: Colstrip 4 | DT160: Colstrip 4 | DU160: 680.8 | DV160: 652.3132254 | DW160: 652.3132254 | DX160: 680.8 | DY160: 680.8 | DZ160: 680.8 | EA160: 666.5566127 | EB160: 652.3132254 | EC160: 652.3132254 | ED160: 652.3132254 | EE160: 680.8 | EF160: 680.8 | EG160: 635.1864 | EH160: 608.6082393 | EI160: 608.6082393 | EJ160: 635.1864 | EK160: 635.1864 | EL160: 635.1864 | EM160: 621.8973197 | EN160: 608.6082393 | EO160: 608.6082393 | EP160: 608.6082393 | EQ160: 635.1864 | ER160: 635.1864
A161: Columbia Blvd Wastewater Treatment Plant | B161: 1111 | F161: ICCG | G161: WG | I161: Biomass | J161: 1.7 | L161: 1.7 | N161: 1.7 | O161: 1.7 | U161: Operating | V161: Jun | W161: 2008 | Y161: Portland | Z161: Multnomah | AA161: OR | AB161: Y | AC161: Columbia | AD161: WECC | AE161: City of Portland | AF161: Independent | AG161: Listed NUG per 2009 White Book | AO161: 1 | AT161: 1.7 | AU161: 1.36 | AV161: Columbia Blvd WWTP | AW161: WWTP digestors | BP161: (2) 850 kW reciprocating engines. Also, (4) 30kW microturbines installed in 2001. | BQ161: =VLOOKUP($B161,[2]!Table_intranet_power_vewProjectLatLongUrl[#Data],2,FALSE) -> 45.596391 | BR161: =VLOOKUP($B161,[2]!Table_intranet_power_vewProjectLatLongUrl[#Data],3,FALSE) -> -122.720041 | BS161: =VLOOKUP($B161,[2]!Table_intranet_power_vewProjectLatLongUrl[#Data],4,FALSE) -> http://brownfield.org/bes/index.cfm?a=40645&c=31031 | BT161: 2014-01-30T11:35:11 | BU161: 1.7 | BV161: 1.7 | BW161: 0.8 | BX161: 1.36 | BZ161: Y | CC161: PNWW | CD161: BGIC | CE161: 9700 | CF161: 1 | CH161: 1 | CJ161: 1 | CN161: Columbia Blvd Wastewater Treatment Plant | CO161: PNWW | CP161: Thr | CQ161: IC | CR161: 1.7 | CS161: Jun-2008 | CT161: Jan-2051 | CU161: 9700 | CV161: Zero-cost Biofuel | CW161: 0.047 | CX161: 56 | CY161: FALSE | CZ161: MR 7d Flat | DA161: Landfill | DB161: Default | DC161: Default | DD161: 20 | DE161: Flat | DF161: 0 | DG161: 1 | DH161: FALSE | DI161: TRUE | DJ161: FALSE | DK161: FALSE | DL161: 0 | DM161: 0 | DN161: 0 | DR161: Columbia Blvd Wastewater Treatment Plant | DT161: Columbia Blvd Wastewater Treatment Plant | DU161: 1.634794521 | DV161: 1.634794521 | DW161: 1.634794521 | DX161: 1.634794521 | DY161: 1.634794521 | DZ161: 1.634794521 | EA161: 1.634794521 | EB161: 1.634794521 | EC161: 1.634794521 | ED161: 1.634794521 | EE161: 1.634794521 | EF161: 1.634794521 | EG161: 1.557959178 | EH161: 1.557959178 | EI161: 1.557959178 | EJ161: 1.557959178 | EK161: 1.557959178 | EL161: 1.557959178 | EM161: 1.557959178 | EN161: 1.557959178 | EO161: 1.557959178 | EP161: 1.557959178 | EQ161: 1.557959178 | ER161: 1.557959178
A162: Columbia Generating Station | B162: 1112 | C162: 371 | D162: 2 | F162: NB | G162: UR | I162: Uranium | J162: 1200 | K162: 1200 | L162: 1150 | N162: 1130 | O162: 1145 | P162: 1160 | Q162: 1169 | U162: Operating | V162: Dec | W162: 1984 | Y162: Hanford | Z162: Benton | AA162: WA | AB162: Y | AC162: Columbia | AD162: WECC | AE162: Energy Northwest | AF162: JOA | AG162: BPA | AH162: 327.19 | AI162: 0.88 | AJ162: 10400 | AK162: 46 | AL162: n/a | AM162: n/a | AO162: 1 | AT162: 1200 | AU162: 1026 | AZ162: BPA | BA162: 1032.9 | BB162: 869.3 | BC162: 1022.5 | BD162: 940.8987443 | BE162: 1064.871804 | BF162: 925.6 | BG162: 1056.2 | BH162: 757.31 | BI162: 1054.92 | BJ162: 548.66 | BK162: 1065.5 | BL162: 965.86 | BM162: 1084.17 | BN162: 931.61 | BO162: 1098.8 | BP162: One 1200 MW STG. | BQ162: =VLOOKUP($B162,[2]!Table_intranet_power_vewProjectLatLongUrl[#Data],2,FALSE) -> 46.469 | BR162: =VLOOKUP($B162,[2]!Table_intranet_power_vewProjectLatLongUrl[#Data],3,FALSE) -> -119.32 | BS162: =VLOOKUP($B162,[2]!Table_intranet_power_vewProjectLatLongUrl[#Data],4,FALSE) -> http://www.energy-northwest.com/generation/cgs/index.php | BT162: 2017-10-17T15:09:23 | BU162: 1150 | BV162: 1130 | BW162: 0.9 | BX162: 1026 | BZ162: Y | CC162: PNW East | CD162: CGS | CE162: 10060 | CF162: 1 | CH162: 1 | CJ162: 1 | CN162: Columbia Generating Station | CO162: PNW East | CP162: Thr | CQ162: Nuclear | CR162: 1150 | CS162: Dec-1984 | CT162: Jan-2051 | CU162: 10060 | CV162: WNP-2 nuclear fuel | CW162: 0.096 | CX162: 112 | CY162: TRUE | CZ162: MR 28d Winter Pk_Hydro | DA162: Wnp2 | DB162: Default | DC162: Default | DD162: 30 | DE162: Flat | DF162: 0 | DG162: 0 | DH162: FALSE | DI162: TRUE | DJ162: FALSE | DK162: FALSE | DL162: 0 | DM162: 0 | DN162: 0 | DR162: Columbia Generating Station | DT162: Columbia Generating Station | DU162: 1150 | DV162: 1150 | DW162: 1150 | DX162: 1150 | DY162: 1150 | DZ162: 1150 | EA162: 960.9589041 | EB162: 771.9178082 | EC162: 771.9178082 | ED162: 771.9178082 | EE162: 1150 | EF162: 1150 | EG162: 1039.6 | EH162: 1039.6 | EI162: 1039.6 | EJ162: 1039.6 | EK162: 1039.6 | EL162: 1039.6 | EM162: 868.7068493 | EN162: 697.8136986 | EO162: 697.8136986 | EP162: 697.8136986 | EQ162: 1039.6 | ER162: 1039.6
A163: Columbia Ridge Landfill | B163: 1716 | C163: 57015 | D163: GEN1,GEN2,GEN3,GEN4,GEN5,GEN6,GEN7,GEN8 | F163: IC | G163: LFG | I163: Biomass | J163: 6.4 | K163: 6.4 | M163: 12.8 | N163: 6.4 | O163: 6.4 | P163: 6.4 | Q163: 6.4 | R163: 5.8 | U163: Operating | V163: Dec | W163: 2009 | Y163: Arlington | Z163: Gilliam | AA163: OR | AB163: Y | AC163: Columbia | AD163: WECC | AE163: Waste Management, Inc. | AF163: Independent | AG163: Seattle City Light (Dec 2009 - Dec 2029) | AN163: 2029 | AO163: 1 | AT163: 6.4 | AU163: 5.8 | AZ163: BPA | BH163: 0.18 | BI163: 5.9 | BJ163: 5.76 | BK163: 5.7 | BL163: 5.95 | BM163: 7.97 | BO163: 11.4 | BP163: (8) 0.8 MW reciprocating engines. | BQ163: =VLOOKUP($B163,[2]!Table_intranet_power_vewProjectLatLongUrl[#Data],2,FALSE) -> 45.616193 | BR163: =VLOOKUP($B163,[2]!Table_intranet_power_vewProjectLatLongUrl[#Data],3,FALSE) -> -120.243065 | BS163: =VLOOKUP($B163,[2]!Table_intranet_power_vewProjectLatLongUrl[#Data],4,FALSE) -> http://www.wmnorthwest.com/landfill/landfillcities/columbia.html | BT163: 2017-10-25T12:06:38 | BU163: 6.4 | BV163: 6.4 | BW163: 0.90625 | BX163: 5.8 | BZ163: Y | CC163: PNW East | CD163: BGIC | CE163: 11700 | CF163: 1 | CH163: 1 | CJ163: 1 | CL163: Y | CN163: Columbia Ridge Landfill | CO163: PNW East | CP163: Thr | CQ163: IC | CR163: 6.4 | CS163: Dec-2009 | CT163: Jan-2051 | CU163: 11700 | CV163: Zero-cost Biofuel | CW163: 0.047 | CX163: 56 | CY163: FALSE | CZ163: MR 7d Flat | DA163: Landfill | DB163: Default | DC163: Default | DD163: 20 | DE163: Flat | DF163: 0 | DG163: 1 | DH163: FALSE | DI163: TRUE | DJ163: FALSE | DK163: FALSE | DL163: 0 | DM163: 0 | DN163: 0 | DR163: Columbia Ridge Landfill | DT163: Columbia Ridge Landfill | DU163: 6.154520548 | DV163: 6.154520548 | DW163: 6.154520548 | DX163: 6.154520548 | DY163: 6.154520548 | DZ163: 6.154520548 | EA163: 6.154520548 | EB163: 6.154520548 | EC163: 6.154520548 | ED163: 6.154520548 | EE163: 6.154520548 | EF163: 6.154520548 | EG163: 5.865258082 | EH163: 5.865258082 | EI163: 5.865258082 | EJ163: 5.865258082 | EK163: 5.865258082 | EL163: 5.865258082 | EM163: 5.865258082 | EN163: 5.865258082 | EO163: 5.865258082 | EP163: 5.865258082 | EQ163: 5.865258082 | ER163: 5.865258082
A164: Columbia Ridge Landfill Expansion | B164: 2039 | C164: 57015 | D164: GEN9,GEN10,GEN11,GEN12 | F164: IC | G164: LFG | I164: Biomass | J164: 6.4 | K164: 6.4 | P164: 6.4 | Q164: 6.4 | R164: 5.8 | U164: Operating | V164: Aug | W164: 2014 | Z164: Gilliam | AA164: OR | AB164: Y | AD164: WECC | AE164: Waste Management, Inc. | AF164: Independent | AG164: Seattle City Light | AN164: 2034 | AO164: 1 | AT164: 6.4 | AU164: 5.8 | AZ164: BPA | BP164: (4) 1.6 MW reciprocating engines. | BQ164: =VLOOKUP($B164,[2]!Table_intranet_power_vewProjectLatLongUrl[#Data],2,FALSE) -> 45.616193 | BR164: =VLOOKUP($B164,[2]!Table_intranet_power_vewProjectLatLongUrl[#Data],3,FALSE) -> -120.243065 | BS164: =VLOOKUP($B164,[2]!Table_intranet_power_vewProjectLatLongUrl[#Data],4,FALSE) -> http://www.wmnorthwest.com/landfill/landfillcities/columbia.html | BT164: 2017-10-25T12:07:28 | BU164: =IF(OR(I164="Wind",I164="Solar",I164="Hydro"),J164,IF(ISNUMBER(L164),L164,IF(ISNUMBER(O164), O164, IF(ISNUMBER(Q164),Q164,J164)))) -> 6.4 | BV164: =IF(OR(J164="Wind",J164="Solar",J164="Hydro"),J164,IF(ISNUMBER(N164),N164,IF(ISNUMBER(P164), P164, IF(ISNUMBER(L164),L164,J164)))) -> 6.4 | BW164: =IF(OR(ISBLANK(J164),ISBLANK(R164),J164=0),VLOOKUP(IF(G164="WAT","HY",IF(G164="LFG","LFG",F164)),Acapability,4,FALSE),R164/J164) -> 0.90625 | BX164: =IF(ISNUMBER(R164),R164,AVERAGE(BU164,BV164)*BW164) -> 5.8 | BZ164: Y | CC164: PNW East | CD164: BGIC | CE164: 11700 | CF164: 1 | CH164: 1 | CJ164: 1 | CL164: Y | CN164: =IF($BZ164="Y",A164,"") -> Columbia Ridge Landfill Expansion | CO164: =IF($BZ164="Y",CC164,"") -> PNW East | CP164: =IF(BZ164="N","",VLOOKUP($CD164,ATechDat,2,FALSE)) -> Thr | CQ164: =IF(BZ164="N","",VLOOKUP($CD164,ATechDat,3,FALSE)) -> IC | CR164: 6.4 | CS164: =IF(BZ164="N","",IF(ISBLANK(V164),"Dec",V164)&"-"&IF(ISBLANK(W164),1980,W164)) -> Aug-2014 | CT164: =IF(BZ164="N","",IF(U164="Retired",X164,"Jan-2051")) -> Jan-2051 | CU164: =IF(BZ164="N","",CE164) -> 11700 | CV164: =IF(BZ164="N","",VLOOKUP($CD164,ATechDat,4,FALSE)) -> Zero-cost Biofuel | CW164: =IF(BZ164="N","",VLOOKUP($CD164,ATechDat,5,FALSE)) -> 0.047 | CX164: =IF(BZ164="N","",VLOOKUP($CD164,ATechDat,6,FALSE)) -> 56 | CY164: =IF(BZ164="N","",VLOOKUP($CD164,ATechDat,7,FALSE)) -> FALSE | CZ164: =IF(BZ164="N","",VLOOKUP($CD164,ATechDat,8,FALSE)) -> MR 7d Flat | DA164: =IF(BZ164="N","",VLOOKUP($CD164,ATechDat,9,FALSE)) -> Landfill | DB164: =IF(BZ164="N","",VLOOKUP($CD164,ATechDat,10,FALSE)) -> Default | DC164: =IF(BZ164="N","",VLOOKUP($CD164,ATechDat,11,FALSE)) -> Default | DD164: =IF(BZ164="N","",VLOOKUP($CD164,ATechDat,12,FALSE)) -> 20 | DE164: =IF(BZ164="N","",VLOOKUP($CD164,ATechDat,13,FALSE)) -> Flat | DF164: =IF(BZ164="N","",VLOOKUP($CD164,ATechDat,14,FALSE)) -> 0 | DG164: =IF(BZ164="N","",VLOOKUP($CD164,ATechDat,15,FALSE)) -> 1 | DH164: =IF(BZ164="N","",VLOOKUP($CD164,ATechDat,16,FALSE)) -> FALSE | DI164: =IF(BZ164="N","",VLOOKUP($CD164,ATechDat,17,FALSE)) -> TRUE | DJ164: =IF(BZ164="N","",VLOOKUP($CD164,ATechDat,18,FALSE)) -> FALSE | DK164: =IF(BZ164="N","",VLOOKUP($CD164,ATechDat,19,FALSE)) -> FALSE | DL164: =IF(BZ164="N","",VLOOKUP($CD164,ATechDat,20,FALSE)) -> 0 | DM164: =IF(BZ164="N","",VLOOKUP($CD164,ATechDat,21,FALSE)) -> 0 | DN164: =IF(BZ164="N","",VLOOKUP($CD164,ATechDat,22,FALSE)) -> 0 | DO164: =IF(ISBLANK(CB164),"",CB164) ->  | DR164: =IF(BZ164="N","",CN164) -> Columbia Ridge Landfill Expansion | DT164: =CN164 -> Columbia Ridge Landfill Expansion | DU164: 6.154520548 | DV164: 6.154520548 | DW164: 6.154520548 | DX164: 6.154520548 | DY164: 6.154520548 | DZ164: 6.154520548 | EA164: 6.154520548 | EB164: 6.154520548 | EC164: 6.154520548 | ED164: 6.154520548 | EE164: 6.154520548 | EF164: 6.154520548 | EG164: 5.865258082 | EH164: 5.865258082 | EI164: 5.865258082 | EJ164: 5.865258082 | EK164: 5.865258082 | EL164: 5.865258082 | EM164: 5.865258082 | EN164: 5.865258082 | EO164: 5.865258082 | EP164: 5.865258082 | EQ164: 5.865258082 | ER164: 5.865258082
A165: Colville Indian Power & Veneer 1 & 2 | B165: 1113 | C165: 56191 | D165: GEN1,GEN2 | F165: STCG | G165: WW | I165: Biomass | J165: 12.5 | K165: 15.7 | L165: 0.9 | N165: 12.5 | O165: 14 | P165: 12.5 | Q165: 14 | U165: Operating | V165: Nov | W165: 2002 | Y165: Omak | Z165: Okanogan | AA165: WA | AB165: Y | AC165: Columbia | AD165: WECC | AE165: Colville Tribal Enterprise Corporation | AF165: Tribal | AG165: Self-gen (5.5 MW), surplus sold | AO165: 1 | AT165: 12.5 | AU165: 5.36 | AV165: Colville Indian Precision Pine | AW165: Timber products | BK165: 0 | BL165: 0 | BP165: (2) boilers, Unit 1 STG 5 MW, Unit 2 STG 7.5 MW. | BQ165: =VLOOKUP($B165,[2]!Table_intranet_power_vewProjectLatLongUrl[#Data],2,FALSE) -> 48.400525 | BR165: =VLOOKUP($B165,[2]!Table_intranet_power_vewProjectLatLongUrl[#Data],3,FALSE) -> -119.517086 | BS165: =VLOOKUP($B165,[2]!Table_intranet_power_vewProjectLatLongUrl[#Data],4,FALSE) -> 0 | BT165: 2014-01-30T11:35:33 | BU165: 0.9 | BV165: 12.5 | BW165: 0.8 | BX165: 5.36 | BZ165: Y | CA165: Assume WB is firm net of self-gen | CC165: PNW East | CD165: WWSTCG | CE165: 5000 | CF165: 1 | CH165: 1 | CJ165: 1 | CL165: Y | CN165: Colville Indian Power & Veneer 1 & 2 | CO165: PNW East | CP165: Thr | CQ165: STCG | CR165: 0.9 | CS165: Nov-2002 | CT165: Jan-2051 | CU165: 5000 | CV165: Mill Residue | CW165: 0.07 | CX165: 56 | CY165: FALSE | CZ165: MR 28d Flat | DA165: Bio1 | DB165: Default | DC165: Default | DD165: 30 | DE165: Flat | DF165: 0 | DG165: 1 | DH165: FALSE | DI165: TRUE | DJ165: FALSE | DK165: FALSE | DL165: 0 | DM165: 0 | DN165: 0 | DR165: Colville Indian Power & Veneer 1 & 2 | DT165: =CN165 -> Colville Indian Power & Veneer 1 & 2 | DU165: 0.8136986301 | DV165: 0.8136986301 | DW165: 0.8136986301 | DX165: 0.8136986301 | DY165: 0.8136986301 | DZ165: 0.8136986301 | EA165: 0.8136986301 | EB165: 0.8136986301 | EC165: 0.8136986301 | ED165: 0.8136986301 | EE165: 0.8136986301 | EF165: 0.8136986301 | EG165: 0.756739726 | EH165: 0.756739726 | EI165: 0.756739726 | EJ165: 0.756739726 | EK165: 0.756739726 | EL165: 0.756739726 | EM165: 0.756739726 | EN165: 0.756739726 | EO165: 0.756739726 | EP165: 0.756739726 | EQ165: 0.756739726 | ER165: 0.756739726
A166: Combine Hills I | B166: 1115 | C166: 56195 | D166: 001 | F166: WT | G166: WND | I166: Wind | J166: 41 | K166: 41 | M166: 0 | N166: 8 | O166: 8 | P166: 41 | Q166: 41 | R166: 14 | U166: Operating | V166: Dec | W166: 2003 | Y166: Helix area | Z166: Umatilla | AA166: OR | AB166: Y | AC166: Columbia | AD166: WECC | AE166: Eurus Energy America, Inc. | AF166: Independent | AG166: PacifiCorp (Dec 2003 - Dec 2027) | AN166: 2027 | AO166: 1 | AT166: 41 | AU166: 14 | AZ166: PACW | BD166: 8.05239726 | BE166: 17.9 | BF166: 14.9 | BG166: 16.84 | BH166: 11.94 | BI166: 11.9 | BJ166: 13.56 | BK166: 12.5 | BL166: 11.71 | BM166: 12.28 | BN166: 10.39 | BO166: 13.3 | BP166: (41) Mitsubishi MWT 1000-A WTG. | BQ166: =VLOOKUP($B166,[2]!Table_intranet_power_vewProjectLatLongUrl[#Data],2,FALSE) -> 45.942 | BR166: =VLOOKUP($B166,[2]!Table_intranet_power_vewProjectLatLongUrl[#Data],3,FALSE) -> -118.498 | BS166: =VLOOKUP($B166,[2]!Table_intranet_power_vewProjectLatLongUrl[#Data],4,FALSE) -> http://www.transmission.bpa.gov/PlanProj/Wind/default.cfm?page=combine | BT166: 2017-10-17T15:10:09 | BU166: 41 | BV166: 8 | BW166: 0.3414634146 | BX166: 14 | BZ166: Y | CB166: 100% PNW PPA | CC166: PNW East | CD166: WN_PNWE | CE166: n/a | CF166: 1 | CH166: 0.05 | CJ166: 1 | CL166: Y | CN166: Combine Hills I | CO166: PNW East | CP166: Thr | CQ166: Wind | CR166: 41 | CS166: Dec-2003 | CT166: Jan-2051 | CU166: n/a | CV166: Wind | CW166: 0 | CX166: 0 | CY166: FALSE | CZ166: Cf WN PNWE | DA166: WindB1 | DB166: Default | DC166: Default | DD166: 20 | DE166: Flat | DF166: 0 | DG166: 1 | DH166: FALSE | DI166: TRUE | DJ166: FALSE | DK166: FALSE | DL166: 0 | DM166: 0 | DN166: 0 | DO166: 100% PNW PPA | DR166: Combine Hills I | DT166: Combine Hills I | DU166: 0.1128 | DV166: 0.0876 | DW166: 0.102 | DX166: 0.1152 | DY166: 0.1236 | DZ166: 0.108 | EA166: 0.1284 | EB166: 0.1284 | EC166: 0.1452 | ED166: 0.1284 | EE166: 0.1332 | EF166: 0.1284 | EG166: 2.256 | EH166: 1.752 | EI166: 2.04 | EJ166: 2.304 | EK166: 2.472 | EL166: 2.16 | EM166: 2.568 | EN166: 2.568 | EO166: 2.904 | EP166: 2.568 | EQ166: 2.664 | ER166: 2.568
